{"text_format":"1","workbook":"xlsx","n_sheets":8,"sheets":["Notes","Summary","Engagement Score Breakdown","Engagement Score","Advocacy","Involvement","Motivation","BS"],"not_rendered":{"charts":0,"images":0,"macros":1,"external_links":1,"defined_names":19,"comments":0,"pivot_tables":0},"unopened":[],"bounds":{"document_bytes":16777216,"sheet_cells":100000,"rows_first":2000,"rows_last":500,"rows_between":2000,"halvings":0,"cell_chars":16384,"cell_head_chars":4096},"cells_cut":0,"cells_raw":0,"read":"whole","date_system":"1900"}

{"sheet":"Notes","index":0,"n_rows":3,"n_cols":1,"rows_kept":3,"cut":false,"hidden":false,"merged":[]}
[]
["National Quarterly Pulse Survey Data - Q4 2023-24"]
[": "]

{"sheet":"Summary","index":1,"n_rows":36,"n_cols":6,"rows_kept":36,"cut":false,"hidden":false,"merged":[[5,1,5,3],[7,2,7,5]]}
[]
[]
[]
[null,"National level headline figures for Quarter 4"]
[]
[null,"179 NHS service providers submitted to Q4 2023-24"]
[]
[null,null,"Quarter 4"]
[null,null,"Response count","Head Count","Score","Proportion"]
[null,"Engagement",114335,1258006,6.6339775647548116]
[null,"Acute and Acute & Community Trusts",77333,906653,6.5695218511422491,0.67637206454716403]
[null,"Acute Specialist Trusts",2422,27773,7.1121256483903856,2.1183364673984344E-2]
[null,"Ambulance Trusts",5297,50480,5.7204699289040857,4.6328770717628025E-2]
[null,"Community Trusts",6269,43955,7.1076392032091364,5.4830104517426863E-2]
[null,"Mental Health & Learning Disability and Mental Health, Learning Disability & Community Trusts",23014,229145,6.8837808679985448,0.20128569554379674]
[]
[null,"Motivation",114969,1258006,6.7746233042530299]
[null,"Acute and Acute & Community Trusts",77825,906653,6.7305561739320678,0.67692160495437903]
[null,"Acute Specialist Trusts",2424,27773,6.9233647345767926,2.1083944367612139E-2]
[null,"Ambulance Trusts",5341,50480,6.0891660886879126,4.6456001182927573E-2]
[null,"Community Trusts",6281,43955,7.118072689911819,5.4632118223173202E-2]
[null,"Mental Health & Learning Disability and Mental Health, Learning Disability & Community Trusts",23098,229145,6.9738154340236695,0.20090633127190807]
[]
[null,"Advocacy",114701,1258006,6.6450016419502305]
[null,"Acute and Acute & Community Trusts",77677,906653,6.5535382290259845,0.67721292752460749]
[null,"Acute Specialist Trusts",2429,27773,7.6427165383633753,2.1176798807333849E-2]
[null,"Ambulance Trusts",5297,50480,5.8799005726511862,4.6180940009241417E-2]
[null,"Community Trusts",6280,43955,7.3262930108018143,5.47510483779566E-2]
[null,"Mental Health & Learning Disability and Mental Health, Learning Disability & Community Trusts",23018,229145,6.8451045551434042,0.20067828528086068]
[]
[null,"Involvement",114975,1258006,6.4823077480611735]
[null,"Acute and Acute & Community Trusts",77790,906653,6.4244711504687011,0.67658186562296152]
[null,"Acute Specialist Trusts",2424,27773,6.7702956722309908,2.1082844096542725E-2]
[null,"Ambulance Trusts",5330,50480,5.1923431253731547,4.635790389215047E-2]
[null,"Community Trusts",6295,43955,6.8785519089137734,5.4751032833224612E-2]
[null,"Mental Health & Learning Disability and Mental Health, Learning Disability & Community Trusts",23136,229145,6.8324226148285616,0.20122635355512067]

{"sheet":"Engagement Score Breakdown","index":2,"n_rows":188,"n_cols":13,"rows_kept":188,"cut":false,"hidden":false,"merged":[[6,12,7,12],[6,6,7,6],[6,7,7,7],[6,8,7,8],[6,9,7,9],[6,10,7,10],[6,11,7,11],[6,5,7,5],[6,0,7,0],[6,1,7,1],[6,2,7,2],[6,3,7,3],[6,4,7,4]]}
[]
[]
[]
[]
[]
[]
["Region Code","Region Name","ICB Code","ICB Name","Org Code","Org Name","Care Setting","Total Responses (Average Across Theme)","HSCIC Workforce Headcount","Engagement Score","Advocacy","Involvement","Motivation"]
[]
[null,null,null,null,null,null,"England",114335,1258006,6.6339775647548116,6.6450016419502305,6.4823077480611735,6.7746233042530299]
["Y56","LONDON COMMISSIONING REGION","QMF","NHS NORTH EAST LONDON ICB - A3A8R","R1H","BARTS HEALTH NHS TRUST","Acute and Acute & Community Trusts",835,20029,6.0908183632734527,5.9241516966067866,5.9500998003992009,6.3982035928143715]
["Y56","LONDON COMMISSIONING REGION","QMJ","NHS NORTH CENTRAL LONDON ICB - 93C","RAL","ROYAL FREE LONDON NHS FOUNDATION TRUST","Acute and Acute & Community Trusts",112,11731,6.3219246031746037,6.1160714285714288,6.1383928571428568,6.7113095238095237]
["Y56","LONDON COMMISSIONING REGION","QRV","NHS NORTH WEST LONDON ICB - W2U3Z","RAN","ROYAL NATIONAL ORTHOPAEDIC HOSPITAL NHS TRUST","Acute Specialist Trusts",45,1686,7.1481481481481488,7.4259259259259265,7,7.0185185185185182]
["Y56","LONDON COMMISSIONING REGION","QMJ","NHS NORTH CENTRAL LONDON ICB - 93C","RAP","NORTH MIDDLESEX UNIVERSITY HOSPITAL NHS TRUST","Acute and Acute & Community Trusts",1086,4597,6.7229452894855291,6.4569990850869168,6.5855323020928118,7.1263044812768577]
["Y56","LONDON COMMISSIONING REGION","QMF","NHS NORTH EAST LONDON ICB - A3A8R","RAT","NORTH EAST LONDON NHS FOUNDATION TRUST","Mental Health & Learning Disability and Mental Health, Learning Disability & Community Trusts",87,7175,6.7369093231162198,6.8486590038314183,6.6475095785440619,6.7145593869731792]
["Y56","LONDON COMMISSIONING REGION","QKK","NHS SOUTH EAST LONDON ICB - 72Q","RJ1","GUY'S AND ST THOMAS' NHS FOUNDATION TRUST","Acute and Acute & Community Trusts",1608,23017,6.7219754012235962,7.1213047910295622,6.3592980295566504,6.6853233830845769]
["Y56","LONDON COMMISSIONING REGION","QKK","NHS SOUTH EAST LONDON ICB - 72Q","RJ2","LEWISHAM AND GREENWICH NHS TRUST","Acute and Acute & Community Trusts",88,7311,6.3446969696969688,5.9564393939393936,6.5814393939393936,6.4962121212121211]
["Y56","LONDON COMMISSIONING REGION","QWE","NHS SOUTH WEST LONDON ICB - 36L","RJ7","ST GEORGE'S UNIVERSITY HOSPITALS NHS FOUNDATION TRUST","Acute and Acute & Community Trusts",12,9885,5.7407407407407414,5.5555555555555562,5.7638888888888893,5.9027777777777777]
["Y56","LONDON COMMISSIONING REGION","QKK","NHS SOUTH EAST LONDON ICB - 72Q","RJZ","KING'S COLLEGE HOSPITAL NHS FOUNDATION TRUST","Acute and Acute & Community Trusts",55,14383,6.1060606060606064,5.5606060606060606,6.333333333333333,6.4242424242424239]
["Y56","LONDON COMMISSIONING REGION","QMJ","NHS NORTH CENTRAL LONDON ICB - 93C","RKE","WHITTINGTON HEALTH NHS TRUST","Acute and Acute & Community Trusts",411,4929,6.6646390916463902,6.5044606650446068,6.5490673154906727,6.940389294403893]
["Y56","LONDON COMMISSIONING REGION","QMJ","NHS NORTH CENTRAL LONDON ICB - 93C","RNK","TAVISTOCK AND PORTMAN NHS FOUNDATION TRUST","Mental Health & Learning Disability and Mental Health, Learning Disability & Community Trusts",21,819,5.4894179894179898,5.5555555555555554,5.3174603174603181,5.5952380952380949]
["Y56","LONDON COMMISSIONING REGION","QMJ","NHS NORTH CENTRAL LONDON ICB - 93C","RP4","GREAT ORMOND STREET HOSPITAL FOR CHILDREN NHS FOUNDATION TRUST","Acute Specialist Trusts",788,5718,6.9843253822712272,7.5147492625368733,6.5886075949367084,6.8496192893401018]
["Y56","LONDON COMMISSIONING REGION","QMJ","NHS NORTH CENTRAL LONDON ICB - 93C","RP6","MOORFIELDS EYE HOSPITAL NHS FOUNDATION TRUST","Acute Specialist Trusts",36,2484,5.5864197530864201,5.5555555555555554,4.6296296296296298,6.5740740740740735]
["Y56","LONDON COMMISSIONING REGION","QRV","NHS NORTH WEST LONDON ICB - W2U3Z","RPY","THE ROYAL MARSDEN NHS FOUNDATION TRUST","Acute Specialist Trusts",163,4612,6.6155419222903893,7.2597137014314921,6.1963190184049077,6.3905930470347654]
["Y56","LONDON COMMISSIONING REGION","QMF","NHS NORTH EAST LONDON ICB - A3A8R","RQX","HOMERTON HEALTHCARE NHS FOUNDATION TRUST","Acute and Acute & Community Trusts",607,4208,7.0556423510305342,7.4601867105985713,6.8209876543209873,6.8857526881720439]
["Y56","LONDON COMMISSIONING REGION","QWE","NHS SOUTH WEST LONDON ICB - 36L","RQY","SOUTH WEST LONDON AND ST GEORGE'S MENTAL HEALTH NHS TRUST","Mental Health & Learning Disability and Mental Health, Learning Disability & Community Trusts",75,2923,6.185185185185186,5.9777777777777779,6.1777777777777771,6.4]
["Y56","LONDON COMMISSIONING REGION","QMJ","NHS NORTH CENTRAL LONDON ICB - 93C","RRP","BARNET, ENFIELD AND HARINGEY MENTAL HEALTH NHS TRUST","Mental Health & Learning Disability and Mental Health, Learning Disability & Community Trusts",85,3066,6.1535947712418304,5.6372549019607847,6.4411764705882355,6.382352941176471]
["Y56","LONDON COMMISSIONING REGION","QKK","NHS SOUTH EAST LONDON ICB - 72Q","RRU","LONDON AMBULANCE SERVICE NHS TRUST","Ambulance Trusts",86,7665,5.9625322997416008,5.9786821705426352,5.6395348837209305,6.2693798449612395]
["Y56","LONDON COMMISSIONING REGION","QMJ","NHS NORTH CENTRAL LONDON ICB - 93C","RRV","UNIVERSITY COLLEGE LONDON HOSPITALS NHS FOUNDATION TRUST","Acute and Acute & Community Trusts",514,10939,7.2070903588413318,7.7091439688715955,6.9892996108949417,6.9228274967574581]
["Y56","LONDON COMMISSIONING REGION","QMJ","NHS NORTH CENTRAL LONDON ICB - 93C","RV3","CENTRAL AND NORTH WEST LONDON NHS FOUNDATION TRUST","Mental Health & Learning Disability and Mental Health, Learning Disability & Community Trusts",35,8539,5.5158730158730158,5.1904761904761898,5.5476190476190474,5.8095238095238102]
["Y56","LONDON COMMISSIONING REGION","QWE","NHS SOUTH WEST LONDON ICB - 36L","RVR","EPSOM AND ST HELIER UNIVERSITY HOSPITALS NHS TRUST","Acute and Acute & Community Trusts",231,7102,5.5050505050505052,5.1948051948051948,5.4725829725829733,5.8477633477633475]
["Y56","LONDON COMMISSIONING REGION","QMF","NHS NORTH EAST LONDON ICB - A3A8R","RWK","EAST LONDON NHS FOUNDATION TRUST","Mental Health & Learning Disability and Mental Health, Learning Disability & Community Trusts",948,7300,7.0495084681200177,7.2292545710267229,6.9921875,6.927083333333333]
["Y56","LONDON COMMISSIONING REGION","QRV","NHS NORTH WEST LONDON ICB - W2U3Z","RYJ","IMPERIAL COLLEGE HEALTHCARE NHS TRUST","Acute and Acute & Community Trusts",96,13870,6.5277777777777777,6.7100694444444438,6.197916666666667,6.6753472222222223]
["Y56","LONDON COMMISSIONING REGION","QRV","NHS NORTH WEST LONDON ICB - W2U3Z","RYX","CENTRAL LONDON COMMUNITY HEALTHCARE NHS TRUST","Community Trusts",961,4806,7.2294844872134298,7.4167533818938605,7.0279780295228287,7.2437220502235986]
["Y56","LONDON COMMISSIONING REGION","QMJ","NHS NORTH CENTRAL LONDON ICB - 93C","TAF","CAMDEN AND ISLINGTON NHS FOUNDATION TRUST","Mental Health & Learning Disability and Mental Health, Learning Disability & Community Trusts",85,2562,5.7516339869281046,5.3235294117647056,5.666666666666667,6.2647058823529411]
["Y58","SOUTH WEST COMMISSIONING REGION","QVV","NHS DORSET ICB - 11J","R0D","UNIVERSITY HOSPITALS DORSET NHS FOUNDATION TRUST","Acute and Acute & Community Trusts",990,9659,6.1593714927048255,5.8888888888888893,6.198653198653199,6.390572390572391]
["Y58","SOUTH WEST COMMISSIONING REGION","QUY","NHS BRISTOL, NORTH SOMERSET AND SOUTH GLOUCESTERSHIRE ICB - 15C","RA7","UNIVERSITY HOSPITALS BRISTOL AND WESTON NHS FOUNDATION TRUST","Acute and Acute & Community Trusts",857,12869,6.8669778296382731,7.0954881369117073,6.671528588098016,6.8339167639050959]
["Y58","SOUTH WEST COMMISSIONING REGION","QJK","NHS DEVON ICB - 15N","RA9","TORBAY AND SOUTH DEVON NHS FOUNDATION TRUST","Acute and Acute & Community Trusts",308,7174,6.004601097412956,5.717741935483871,6.1255411255411261,6.1705202312138727]
["Y58","SOUTH WEST COMMISSIONING REGION","QVV","NHS DORSET ICB - 11J","RBD","DORSET COUNTY HOSPITAL NHS FOUNDATION TRUST","Acute and Acute & Community Trusts",225,3465,6.4234567901234572,6.5962962962962965,6.1148148148148147,6.5592592592592593]
["Y58","SOUTH WEST COMMISSIONING REGION","QOX","NHS BATH AND NORTH EAST SOMERSET, SWINDON AND WILTSHIRE ICB - 92G","RD1","ROYAL UNITED HOSPITALS BATH NHS FOUNDATION TRUST","Acute and Acute & Community Trusts",1132,6582,6.7163728739141391,6.7954946996466434,6.5803597331012469,6.773264188994526]
["Y58","SOUTH WEST COMMISSIONING REGION","QVV","NHS DORSET ICB - 11J","RDY","DORSET HEALTHCARE UNIVERSITY NHS FOUNDATION TRUST","Mental Health & Learning Disability and Mental Health, Learning Disability & Community Trusts",596,6869,6.6028150633855338,6.6331096196868016,6.3450782997762865,6.8302572706935125]
["Y58","SOUTH WEST COMMISSIONING REGION","QT6","NHS CORNWALL AND THE ISLES OF SCILLY ICB - 11N","REF","ROYAL CORNWALL HOSPITALS NHS TRUST","Acute and Acute & Community Trusts",834,7222,6.5364375166533435,6.252997601918465,6.7036370903277378,6.6526778577138286]
["Y58","SOUTH WEST COMMISSIONING REGION","QSL","NHS SOMERSET ICB - 11X","RH5","SOMERSET NHS FOUNDATION TRUST","Acute and Acute & Community Trusts",719,13308,6.8022716736207691,6.7686601761706076,6.6631896152063046,6.9749652294853961]
["Y58","SOUTH WEST COMMISSIONING REGION","QJK","NHS DEVON ICB - 15N","RH8","ROYAL DEVON UNIVERSITY HEALTHCARE NHS FOUNDATION TRUST","Acute and Acute & Community Trusts",2311,13192,6.7059215840342468,6.7724867724867721,6.6010835471913323,6.7441944324246359]
["Y58","SOUTH WEST COMMISSIONING REGION","QT6","NHS CORNWALL AND THE ISLES OF SCILLY ICB - 11N","RJ8","CORNWALL PARTNERSHIP NHS FOUNDATION TRUST","Mental Health & Learning Disability and Mental Health, Learning Disability & Community Trusts",11,4926,6.7424242424242422,6.8181818181818183,6.6666666666666661,6.7424242424242431]
["Y58","SOUTH WEST COMMISSIONING REGION","QJK","NHS DEVON ICB - 15N","RK9","UNIVERSITY HOSPITALS PLYMOUTH NHS TRUST","Acute and Acute & Community Trusts",1135,10600,6.4020000508745589,6.3612334801762112,6.16637323943662,6.6783934330108474]
["Y58","SOUTH WEST COMMISSIONING REGION","QOX","NHS BATH AND NORTH EAST SOMERSET, SWINDON AND WILTSHIRE ICB - 92G","RN3","GREAT WESTERN HOSPITALS NHS FOUNDATION TRUST","Acute and Acute & Community Trusts",1278,5705,6.6984388864703268,6.6634063641105898,6.4596233230134166,6.9722869722869731]
["Y58","SOUTH WEST COMMISSIONING REGION","QR1","NHS GLOUCESTERSHIRE ICB - 11M","RTE","GLOUCESTERSHIRE HOSPITALS NHS FOUNDATION TRUST","Acute and Acute & Community Trusts",748,8924,6.2458710662156784,5.5346250448510945,6.7791889483065946,6.4237992054893462]
["Y58","SOUTH WEST COMMISSIONING REGION","QR1","NHS GLOUCESTERSHIRE ICB - 11M","RTQ","GLOUCESTERSHIRE HEALTH AND CARE NHS FOUNDATION TRUST","Mental Health & Learning Disability and Mental Health, Learning Disability & Community Trusts",288,4799,6.9212962962962967,6.8923611111111107,6.9560185185185182,6.9155092592592595]
["Y58","SOUTH WEST COMMISSIONING REGION","QUY","NHS BRISTOL, NORTH SOMERSET AND SOUTH GLOUCESTERSHIRE ICB - 15C","RVJ","NORTH BRISTOL NHS TRUST","Acute and Acute & Community Trusts",117,10025,6.168091168091169,6.417378917378918,5.8974358974358978,6.1894586894586894]
["Y58","SOUTH WEST COMMISSIONING REGION","QOX","NHS BATH AND NORTH EAST SOMERSET, SWINDON AND WILTSHIRE ICB - 92G","RVN","AVON AND WILTSHIRE MENTAL HEALTH PARTNERSHIP NHS TRUST","Mental Health & Learning Disability and Mental Health, Learning Disability & Community Trusts",139,4836,5.8193445243804964,5.4016786570743411,5.9532374100719423,6.1031175059952041]
["Y58","SOUTH WEST COMMISSIONING REGION","QJK","NHS DEVON ICB - 15N","RWV","DEVON PARTNERSHIP NHS TRUST","Mental Health & Learning Disability and Mental Health, Learning Disability & Community Trusts",155,3794,6.258064516129032,5.827956989247312,6.532258064516129,6.413978494623656]
["Y59","SOUTH EAST COMMISSIONING REGION","QRL","NHS HAMPSHIRE AND ISLE OF WIGHT ICB - D9Y0V","R1C","SOLENT NHS TRUST","Mental Health & Learning Disability and Mental Health, Learning Disability & Community Trusts",47,4205,7.2813238770685578,7.2340425531914896,7.3049645390070914,7.3049645390070914]
["Y59","SOUTH EAST COMMISSIONING REGION","QRL","NHS HAMPSHIRE AND ISLE OF WIGHT ICB - D9Y0V","R1F","ISLE OF WIGHT NHS TRUST","Acute and Acute & Community Trusts",455,4116,6.242979242979243,5.7032967032967035,6.3717948717948714,6.6538461538461542]
["Y59","SOUTH EAST COMMISSIONING REGION","QNX","NHS SUSSEX ICB - 09D","RDR","SUSSEX COMMUNITY NHS FOUNDATION TRUST","Community Trusts",638,5519,7.061999303378613,7.3602403343782647,6.6901776384535001,7.1355799373040751]
["Y59","SOUTH EAST COMMISSIONING REGION","QNQ","NHS FRIMLEY ICB - D4U1Y","RDU","FRIMLEY HEALTH NHS FOUNDATION TRUST","Acute and Acute & Community Trusts",2130,10689,6.9135321888031145,7.049295774647887,6.6083565029348161,7.0829442888266412]
["Y59","SOUTH EAST COMMISSIONING REGION","QRL","NHS HAMPSHIRE AND ISLE OF WIGHT ICB - D9Y0V","RHM","UNIVERSITY HOSPITAL SOUTHAMPTON NHS FOUNDATION TRUST","Acute and Acute & Community Trusts",3323,13536,6.8325556041288849,7.0975022569966901,6.65625,6.7439145553899644]
["Y59","SOUTH EAST COMMISSIONING REGION","QRL","NHS HAMPSHIRE AND ISLE OF WIGHT ICB - D9Y0V","RHU","PORTSMOUTH HOSPITALS UNIVERSITY NATIONAL HEALTH SERVICE TRUST","Acute and Acute & Community Trusts",630,8774,6.352833188311731,6.0909568874868558,6.2261904761904763,6.7413522012578619]
["Y59","SOUTH EAST COMMISSIONING REGION","QU9","NHS BUCKINGHAMSHIRE, OXFORDSHIRE AND BERKSHIRE WEST ICB - 10Q","RHW","ROYAL BERKSHIRE NHS FOUNDATION TRUST","Acute and Acute & Community Trusts",42,6379,6.3624338624338632,6.5476190476190474,6.2896825396825404,6.25]
["Y59","SOUTH EAST COMMISSIONING REGION","QRL","NHS HAMPSHIRE AND ISLE OF WIGHT ICB - D9Y0V","RN5","HAMPSHIRE HOSPITALS NHS FOUNDATION TRUST","Acute and Acute & Community Trusts",197,7641,6.6694867456288778,6.4678510998307956,6.5905245346869705,6.9500846023688663]
["Y59","SOUTH EAST COMMISSIONING REGION","QKS","NHS KENT AND MEDWAY ICB - 91Q","RN7","DARTFORD AND GRAVESHAM NHS TRUST","Acute and Acute & Community Trusts",164,4349,6.5938346883468837,6.4583333333333339,6.4735772357723578,6.8495934959349585]
["Y59","SOUTH EAST COMMISSIONING REGION","QU9","NHS BUCKINGHAMSHIRE, OXFORDSHIRE AND BERKSHIRE WEST ICB - 10Q","RNU","OXFORD HEALTH NHS FOUNDATION TRUST","Mental Health & Learning Disability and Mental Health, Learning Disability & Community Trusts",467,6496,6.6458482036640492,6.5292648108493934,6.5827980014275518,6.8254817987152032]
["Y59","SOUTH EAST COMMISSIONING REGION","QKS","NHS KENT AND MEDWAY ICB - 91Q","RPA","MEDWAY NHS FOUNDATION TRUST","Acute and Acute & Community Trusts",80,5187,5.75,5.2395833333333339,5.78125,6.2291666666666661]
["Y59","SOUTH EAST COMMISSIONING REGION","QNX","NHS SUSSEX ICB - 09D","RPC","QUEEN VICTORIA HOSPITAL NHS FOUNDATION TRUST","Acute Specialist Trusts",158,1142,7.4138537271448657,8.064345991561181,6.8143459915611819,7.3628691983122359]
["Y59","SOUTH EAST COMMISSIONING REGION","QU9","NHS BUCKINGHAMSHIRE, OXFORDSHIRE AND BERKSHIRE WEST ICB - 10Q","RTH","OXFORD UNIVERSITY HOSPITALS NHS FOUNDATION TRUST","Acute and Acute & Community Trusts",2549,14228,6.8769972935535719,7.0815352425787887,6.6368352788586256,6.9126213592233006]
["Y59","SOUTH EAST COMMISSIONING REGION","QKS","NHS KENT AND MEDWAY ICB - 91Q","RVV","EAST KENT HOSPITALS UNIVERSITY NHS FOUNDATION TRUST","Acute and Acute & Community Trusts",2187,11409,6.1364736619587026,5.6995884773662553,6.1047124360132496,6.6051200724966019]
["Y59","SOUTH EAST COMMISSIONING REGION","QRL","NHS HAMPSHIRE AND ISLE OF WIGHT ICB - D9Y0V","RW1","SOUTHERN HEALTH NHS FOUNDATION TRUST","Mental Health & Learning Disability and Mental Health, Learning Disability & Community Trusts",668,6774,6.5930638722554882,6.4271457085828336,6.6591816367265464,6.6928642714570854]
["Y59","SOUTH EAST COMMISSIONING REGION","QKS","NHS KENT AND MEDWAY ICB - 91Q","RWF","MAIDSTONE AND TUNBRIDGE WELLS NHS TRUST","Acute and Acute & Community Trusts",717,7439,6.469766712552345,6.7108321710832177,6.068941504178273,6.6295264623955434]
["Y59","SOUTH EAST COMMISSIONING REGION","QNQ","NHS FRIMLEY ICB - D4U1Y","RWX","BERKSHIRE HEALTHCARE NHS FOUNDATION TRUST","Mental Health & Learning Disability and Mental Health, Learning Disability & Community Trusts",1575,4977,7.4291272310773842,7.7608465608465611,7.2513609715242877,7.2751741608613045]
["Y59","SOUTH EAST COMMISSIONING REGION","QNX","NHS SUSSEX ICB - 09D","RX2","SUSSEX PARTNERSHIP NHS FOUNDATION TRUST","Mental Health & Learning Disability and Mental Health, Learning Disability & Community Trusts",231,5895,5.6746031746031749,4.7943722943722946,5.9595959595959602,6.2698412698412698]
["Y59","SOUTH EAST COMMISSIONING REGION","QNX","NHS SUSSEX ICB - 09D","RXC","EAST SUSSEX HEALTHCARE NHS TRUST","Acute and Acute & Community Trusts",367,8366,5.9854677565849217,5.7947320617620344,5.8514986376021803,6.310172570390554]
["Y59","SOUTH EAST COMMISSIONING REGION","QU9","NHS BUCKINGHAMSHIRE, OXFORDSHIRE AND BERKSHIRE WEST ICB - 10Q","RXQ","BUCKINGHAMSHIRE HEALTHCARE NHS TRUST","Acute and Acute & Community Trusts",821,6875,6.5989985113005822,6.427121396670727,6.5052781161185544,6.8645960211124644]
["Y59","SOUTH EAST COMMISSIONING REGION","QXU","NHS SURREY HEARTLANDS  ICB - 92A","RXX","SURREY AND BORDERS PARTNERSHIP NHS FOUNDATION TRUST","Mental Health & Learning Disability and Mental Health, Learning Disability & Community Trusts",108,3314,6.6460905349794244,6.442901234567902,6.651234567901235,6.8441358024691352]
["Y59","SOUTH EAST COMMISSIONING REGION","QNX","NHS SUSSEX ICB - 09D","RYD","SOUTH EAST COAST AMBULANCE SERVICE NHS FOUNDATION TRUST","Ambulance Trusts",574,4604,5.2724545102593883,5.2540650406504064,4.7560975609756095,5.8072009291521489]
["Y59","SOUTH EAST COMMISSIONING REGION","QU9","NHS BUCKINGHAMSHIRE, OXFORDSHIRE AND BERKSHIRE WEST ICB - 10Q","RYE","SOUTH CENTRAL AMBULANCE SERVICE NHS FOUNDATION TRUST","Ambulance Trusts",262,4615,5.1706955046649705,5.1653944020356235,4.7805343511450378,5.5661577608142494]
["Y59","SOUTH EAST COMMISSIONING REGION","QNX","NHS SUSSEX ICB - 09D","RYR","UNIVERSITY HOSPITALS SUSSEX NHS FOUNDATION TRUST","Acute and Acute & Community Trusts",562,16851,5.7512850929221031,5.4122182680901538,5.7814353499406881,6.0602016607354692]
["Y59","SOUTH EAST COMMISSIONING REGION","QKS","NHS KENT AND MEDWAY ICB - 91Q","RYY","KENT COMMUNITY HEALTH NHS FOUNDATION TRUST","Community Trusts",873,5217,7.0577192312587487,7.2852233676975944,6.8967163039327986,6.9912180221458566]
["Y60","MIDLANDS COMMISSIONING REGION","QOC","NHS SHROPSHIRE, TELFORD AND WREKIN ICB - M2L0M","R1D","SHROPSHIRE COMMUNITY HEALTH NHS TRUST","Community Trusts",10,1661,5.3888888888888893,4.3333333333333339,6,5.8333333333333339]
["Y60","MIDLANDS COMMISSIONING REGION","QUA","NHS BLACK COUNTRY ICB - D2P2L","RBK","WALSALL HEALTHCARE NHS TRUST","Acute and Acute & Community Trusts",1094,5165,6.3932053625837897,6.3155088360755638,6.3071297989031079,6.5569774527726992]
["Y60","MIDLANDS COMMISSIONING REGION","QT1","NHS NOTTINGHAM AND NOTTINGHAMSHIRE ICB - 52R","RHA","NOTTINGHAMSHIRE HEALTHCARE NHS FOUNDATION TRUST","Mental Health & Learning Disability and Mental Health, Learning Disability & Community Trusts",793,9343,6.175560011891295,6.0298444724674241,6.2405541561712843,6.2562814070351758]
["Y60","MIDLANDS COMMISSIONING REGION","QWU","NHS COVENTRY AND WARWICKSHIRE ICB - B2M3M","RJC","SOUTH WARWICKSHIRE UNIVERSITY NHS FOUNDATION TRUST","Acute and Acute & Community Trusts",55,5443,6.7727272727272734,7.0151515151515147,6.621212121212122,6.6818181818181817]
["Y60","MIDLANDS COMMISSIONING REGION","QNC","NHS STAFFORDSHIRE AND STOKE-ON-TRENT ICB - 05W","RJE","UNIVERSITY HOSPITALS OF NORTH MIDLANDS NHS TRUST","Acute and Acute & Community Trusts",12,11957,5.1851851851851851,5.625,4.4444444444444446,5.4861111111111107]
["Y60","MIDLANDS COMMISSIONING REGION","QT1","NHS NOTTINGHAM AND NOTTINGHAMSHIRE ICB - 52R","RK5","SHERWOOD FOREST HOSPITALS NHS FOUNDATION TRUST","Acute and Acute & Community Trusts",740,6051,6.8609540279364749,7.2880410531012947,6.586711711711712,6.7081093189964154]
["Y60","MIDLANDS COMMISSIONING REGION","QWU","NHS COVENTRY AND WARWICKSHIRE ICB - B2M3M","RKB","UNIVERSITY HOSPITALS COVENTRY AND WARWICKSHIRE NHS TRUST","Acute and Acute & Community Trusts",235,9720,6.2943262411347511,6.1524822695035457,6.3652482269503539,6.3652482269503539]
["Y60","MIDLANDS COMMISSIONING REGION","QUA","NHS BLACK COUNTRY ICB - D2P2L","RL4","THE ROYAL WOLVERHAMPTON NHS TRUST","Acute and Acute & Community Trusts",459,11342,6.2981118373275224,6.3816267247639793,6.1456063907044305,6.3671023965141611]
["Y60","MIDLANDS COMMISSIONING REGION","QGH","NHS HEREFORDSHIRE AND WORCESTERSHIRE ICB - 18C","RLQ","WYE VALLEY NHS TRUST","Acute and Acute & Community Trusts",28,3981,6.6765873015873014,6.3988095238095237,6.6369047619047619,6.9940476190476195]
["Y60","MIDLANDS COMMISSIONING REGION","QWU","NHS COVENTRY AND WARWICKSHIRE ICB - B2M3M","RLT","GEORGE ELIOT HOSPITAL NHS TRUST","Acute and Acute & Community Trusts",54,2924,6.5843621399176966,6.2037037037037033,6.7438271604938276,6.8055555555555554]
["Y60","MIDLANDS COMMISSIONING REGION","QNC","NHS STAFFORDSHIRE AND STOKE-ON-TRENT ICB - 05W","RLY","NORTH STAFFORDSHIRE COMBINED HEALTHCARE NHS TRUST","Mental Health & Learning Disability and Mental Health, Learning Disability & Community Trusts",87,1792,6.4655172413793096,6.4655172413793105,6.3409961685823752,6.5900383141762457]
["Y60","MIDLANDS COMMISSIONING REGION","QUA","NHS BLACK COUNTRY ICB - D2P2L","RNA","THE DUDLEY GROUP NHS FOUNDATION TRUST","Acute and Acute & Community Trusts",381,6133,6.469816272965879,6.2379702537182844,6.4282589676290458,6.743219597550306]
["Y60","MIDLANDS COMMISSIONING REGION","QPM","NHS NORTHAMPTONSHIRE ICB - 78H","RNQ","KETTERING GENERAL HOSPITAL NHS FOUNDATION TRUST","Acute and Acute & Community Trusts",445,4820,5.8583021223470668,5.4550561797752808,5.9007490636704123,6.2191011235955056]
["Y60","MIDLANDS COMMISSIONING REGION","QPM","NHS NORTHAMPTONSHIRE ICB - 78H","RNS","NORTHAMPTON GENERAL HOSPITAL NHS TRUST","Acute and Acute & Community Trusts",446,5856,6.1092426507224715,5.7959641255605385,6.0893124065769806,6.4424514200298955]
["Y60","MIDLANDS COMMISSIONING REGION","QPM","NHS NORTHAMPTONSHIRE ICB - 78H","RP1","NORTHAMPTONSHIRE HEALTHCARE NHS FOUNDATION TRUST","Mental Health & Learning Disability and Mental Health, Learning Disability & Community Trusts",1834,4849,7.2281491554925532,7.4722828062522719,7.0159281010856027,7.196236559139785]
["Y60","MIDLANDS COMMISSIONING REGION","QJM","NHS LINCOLNSHIRE ICB - 71E","RP7","LINCOLNSHIRE PARTNERSHIP NHS FOUNDATION TRUST","Mental Health & Learning Disability and Mental Health, Learning Disability & Community Trusts",946,2733,7.2918273874026793,7.4691684284707538,7.1255660048763501,7.2807477288609359]
["Y60","MIDLANDS COMMISSIONING REGION","QHL","NHS BIRMINGHAM AND SOLIHULL ICB - 15E","RQ3","BIRMINGHAM WOMEN'S AND CHILDREN'S NHS FOUNDATION TRUST","Acute and Acute & Community Trusts",49,6407,5.895691609977324,6.4115646258503407,5.6122448979591839,5.6632653061224492]
["Y60","MIDLANDS COMMISSIONING REGION","QNC","NHS STAFFORDSHIRE AND STOKE-ON-TRENT ICB - 05W","RRE","MIDLANDS PARTNERSHIP NHS FOUNDATION TRUST","Mental Health & Learning Disability and Mental Health, Learning Disability & Community Trusts",255,10018,7.6601307189542487,7.8039215686274508,7.5915032679738559,7.5849673202614385]
["Y60","MIDLANDS COMMISSIONING REGION","QHL","NHS BIRMINGHAM AND SOLIHULL ICB - 15E","RRJ","THE ROYAL ORTHOPAEDIC HOSPITAL NHS FOUNDATION TRUST","Acute Specialist Trusts",221,1330,7.2221112481378027,7.7407407407407414,6.8702865761689287,7.0553064275037363]
["Y60","MIDLANDS COMMISSIONING REGION","QHL","NHS BIRMINGHAM AND SOLIHULL ICB - 15E","RRK","UNIVERSITY HOSPITALS BIRMINGHAM NHS FOUNDATION TRUST","Acute and Acute & Community Trusts",562,23861,5.7601818900751285,5.496737841043891,5.7161921708185055,6.067615658362989]
["Y60","MIDLANDS COMMISSIONING REGION","QK1","NHS LEICESTER, LEICESTERSHIRE AND RUTLAND ICB - 03W","RT5","LEICESTERSHIRE PARTNERSHIP NHS TRUST","Mental Health & Learning Disability and Mental Health, Learning Disability & Community Trusts",340,6305,6.7271241830065351,6.4191176470588234,6.7107843137254894,7.0514705882352944]
["Y60","MIDLANDS COMMISSIONING REGION","QJ2","NHS DERBY AND DERBYSHIRE ICB - 15M","RTG","UNIVERSITY HOSPITALS OF DERBY AND BURTON NHS FOUNDATION TRUST","Acute and Acute & Community Trusts",1425,14404,6.3939571150097469,6.4678362573099415,6.0561403508771932,6.6578947368421053]
["Y60","MIDLANDS COMMISSIONING REGION","QJM","NHS LINCOLNSHIRE ICB - 71E","RWD","UNITED LINCOLNSHIRE HOSPITALS NHS TRUST","Acute and Acute & Community Trusts",2209,9295,6.3839844153228613,6.0925003772446056,6.2895050685748366,6.7699478001491427]
["Y60","MIDLANDS COMMISSIONING REGION","QGH","NHS HEREFORDSHIRE AND WORCESTERSHIRE ICB - 18C","RWP","WORCESTERSHIRE ACUTE HOSPITALS NHS TRUST","Acute and Acute & Community Trusts",1210,7109,6.6019968916086915,6.3829201101928374,6.5624148269283182,6.860655737704918]
["Y60","MIDLANDS COMMISSIONING REGION","QT1","NHS NOTTINGHAM AND NOTTINGHAMSHIRE ICB - 52R","RX1","NOTTINGHAM UNIVERSITY HOSPITALS NHS TRUST","Acute and Acute & Community Trusts",2117,19481,6.4716842491996012,6.3828530940009447,6.4304833884427648,6.601716265155094]
["Y60","MIDLANDS COMMISSIONING REGION","QT1","NHS NOTTINGHAM AND NOTTINGHAMSHIRE ICB - 52R","RX9","EAST MIDLANDS AMBULANCE SERVICE NHS TRUST","Ambulance Trusts",326,4234,5.5010224948875264,5.552147239263804,4.9795501022494886,5.9713701431492847]
["Y60","MIDLANDS COMMISSIONING REGION","QHL","NHS BIRMINGHAM AND SOLIHULL ICB - 15E","RXK","SANDWELL AND WEST BIRMINGHAM HOSPITALS NHS TRUST","Acute and Acute & Community Trusts",3151,7631,6.8701317464723415,6.7920699344364657,6.7073552425665106,7.1109700624140491]
["Y60","MIDLANDS COMMISSIONING REGION","QJ2","NHS DERBY AND DERBYSHIRE ICB - 15M","RXM","DERBYSHIRE HEALTHCARE NHS FOUNDATION TRUST","Mental Health & Learning Disability and Mental Health, Learning Disability & Community Trusts",875,3199,7.0208592877596816,7.0852359208523596,6.8992467043314498,7.078095238095238]
["Y60","MIDLANDS COMMISSIONING REGION","QHL","NHS BIRMINGHAM AND SOLIHULL ICB - 15E","RXT","BIRMINGHAM AND SOLIHULL MENTAL HEALTH NHS FOUNDATION TRUST","Mental Health & Learning Disability and Mental Health, Learning Disability & Community Trusts",218,4840,6.0206422018348631,5.5733944954128436,6.0282874617737008,6.4602446483180422]
["Y60","MIDLANDS COMMISSIONING REGION","QOC","NHS SHROPSHIRE, TELFORD AND WREKIN ICB - M2L0M","RXW","THE SHREWSBURY AND TELFORD HOSPITAL NHS TRUST","Acute and Acute & Community Trusts",903,7779,6.1720191952750092,5.6358434846806942,6.1544850498338874,6.725729051310446]
["Y60","MIDLANDS COMMISSIONING REGION","QJM","NHS LINCOLNSHIRE ICB - 71E","RY5","LINCOLNSHIRE COMMUNITY HEALTH SERVICES NHS TRUST","Community Trusts",760,2420,6.9957964912360326,7.2346491228070171,6.7479410489813612,7.0047993019197214]
["Y60","MIDLANDS COMMISSIONING REGION","QJ2","NHS DERBY AND DERBYSHIRE ICB - 15M","RY8","DERBYSHIRE COMMUNITY HEALTH SERVICES NHS FOUNDATION TRUST","Community Trusts",743,4410,7.3090586411978222,7.7116755793226375,7.0766488413547233,7.1388515029161059]
["Y60","MIDLANDS COMMISSIONING REGION","QUA","NHS BLACK COUNTRY ICB - D2P2L","RYA","WEST MIDLANDS AMBULANCE SERVICE UNIVERSITY NHS FOUNDATION TRUST","Ambulance Trusts",510,6661,4.7113289760348591,4.7287581699346406,4.2205882352941178,5.1846405228758163]
["Y60","MIDLANDS COMMISSIONING REGION","QWU","NHS COVENTRY AND WARWICKSHIRE ICB - B2M3M","RYG","COVENTRY AND WARWICKSHIRE PARTNERSHIP NHS TRUST","Mental Health & Learning Disability and Mental Health, Learning Disability & Community Trusts",335,4289,6.352404643449419,5.8880597014925371,6.4776119402985071,6.6915422885572138]
["Y60","MIDLANDS COMMISSIONING REGION","QUA","NHS BLACK COUNTRY ICB - D2P2L","RYK","DUDLEY INTEGRATED HEALTH AND CARE NHS TRUST","Community Trusts",36,478,5.9953703703703702,6.0648148148148149,5.3703703703703702,6.5509259259259265]
["Y60","MIDLANDS COMMISSIONING REGION","QHL","NHS BIRMINGHAM AND SOLIHULL ICB - 15E","RYW","BIRMINGHAM COMMUNITY HEALTHCARE NHS FOUNDATION TRUST","Community Trusts",107,5198,6.5887850467289724,6.6433021806853585,6.32398753894081,6.7990654205607477]
["Y60","MIDLANDS COMMISSIONING REGION","QUA","NHS BLACK COUNTRY ICB - D2P2L","TAJ","BLACK COUNTRY HEALTHCARE NHS FOUNDATION TRUST","Mental Health & Learning Disability and Mental Health, Learning Disability & Community Trusts",522,3956,5.9541294167730952,5.6034482758620694,5.9339080459770113,6.3250319284802039]
["Y61","EAST OF ENGLAND COMMISSIONING REGION","QH8","NHS MID AND SOUTH ESSEX ICB - 06Q","R1L","ESSEX PARTNERSHIP UNIVERSITY NHS FOUNDATION TRUST","Mental Health & Learning Disability and Mental Health, Learning Disability & Community Trusts",527,6557,6.258697027197976,5.882352941176471,6.3472485768500952,6.5464895635673628]
["Y61","EAST OF ENGLAND COMMISSIONING REGION","QMM","NHS NORFOLK AND WAVENEY ICB - 26A","RCX","THE QUEEN ELIZABETH HOSPITAL, KING'S LYNN, NHS FOUNDATION TRUST","Acute and Acute & Community Trusts",313,3941,6.0019524316648925,5.4472843450479234,6.0410010649627264,6.5175718849840258]
["Y61","EAST OF ENGLAND COMMISSIONING REGION","QHG","NHS BEDFORDSHIRE, LUTON AND MILTON KEYNES ICB - M1J4Y","RD8","MILTON KEYNES UNIVERSITY HOSPITAL NHS FOUNDATION TRUST","Acute and Acute & Community Trusts",92,4192,5.9601449275362315,5.9601449275362324,5.5615942028985508,6.3586956521739131]
["Y61","EAST OF ENGLAND COMMISSIONING REGION","QUE","NHS CAMBRIDGESHIRE AND PETERBOROUGH ICB - 06H","RGN","NORTH WEST ANGLIA NHS FOUNDATION TRUST","Acute and Acute & Community Trusts",133,7330,6.3157894736842097,5.7894736842105265,6.4661654135338349,6.6917293233082704]
["Y61","EAST OF ENGLAND COMMISSIONING REGION","QJG","NHS SUFFOLK AND NORTH EAST ESSEX ICB - 07K","RGR","WEST SUFFOLK NHS FOUNDATION TRUST","Acute and Acute & Community Trusts",1438,5267,6.9158222759804424,7.0700046360686137,6.6991564067487452,6.9783057851239674]
["Y61","EAST OF ENGLAND COMMISSIONING REGION","QUE","NHS CAMBRIDGESHIRE AND PETERBOROUGH ICB - 06H","RGT","CAMBRIDGE UNIVERSITY HOSPITALS NHS FOUNDATION TRUST","Acute and Acute & Community Trusts",2880,12276,6.8916714466569644,7.3003472222222223,6.5016047684548379,6.8730623492938339]
["Y61","EAST OF ENGLAND COMMISSIONING REGION","QMM","NHS NORFOLK AND WAVENEY ICB - 26A","RM1","NORFOLK AND NORWICH UNIVERSITY HOSPITALS NHS FOUNDATION TRUST","Acute and Acute & Community Trusts",388,9383,6.0996563573883158,5.8140034364261171,5.9987113402061851,6.4862542955326461]
["Y61","EAST OF ENGLAND COMMISSIONING REGION","QMM","NHS NORFOLK AND WAVENEY ICB - 26A","RMY","NORFOLK AND SUFFOLK NHS FOUNDATION TRUST","Mental Health & Learning Disability and Mental Health, Learning Disability & Community Trusts",22,5055,5.1515151515151514,4.7727272727272725,5.0378787878787881,5.6439393939393945]
["Y61","EAST OF ENGLAND COMMISSIONING REGION","QM7","NHS HERTFORDSHIRE AND WEST ESSEX ICB - 07H","RQW","THE PRINCESS ALEXANDRA HOSPITAL NHS TRUST","Acute and Acute & Community Trusts",103,3990,5.6850053937432579,5.1779935275080913,5.7766990291262132,6.10032362459547]
["Y61","EAST OF ENGLAND COMMISSIONING REGION","QUE","NHS CAMBRIDGESHIRE AND PETERBOROUGH ICB - 06H","RT1","CAMBRIDGESHIRE AND PETERBOROUGH NHS FOUNDATION TRUST","Mental Health & Learning Disability and Mental Health, Learning Disability & Community Trusts",2429,4789,7.3902154521751058,7.4128585151639905,7.2896939755729386,7.46809386578839]
["Y61","EAST OF ENGLAND COMMISSIONING REGION","QM7","NHS HERTFORDSHIRE AND WEST ESSEX ICB - 07H","RWG","WEST HERTFORDSHIRE TEACHING HOSPITALS NHS TRUST","Acute and Acute & Community Trusts",486,5589,5.8830589849108366,5.3326474622770919,5.860768175582991,6.4557613168724277]
["Y61","EAST OF ENGLAND COMMISSIONING REGION","QM7","NHS HERTFORDSHIRE AND WEST ESSEX ICB - 07H","RWR","HERTFORDSHIRE PARTNERSHIP UNIVERSITY NHS FOUNDATION TRUST","Mental Health & Learning Disability and Mental Health, Learning Disability & Community Trusts",945,4182,7.2548094492538935,7.4929453262786589,7.0616770616770612,7.2098059598059594]
["Y61","EAST OF ENGLAND COMMISSIONING REGION","QMM","NHS NORFOLK AND WAVENEY ICB - 26A","RY3","NORFOLK COMMUNITY HEALTH AND CARE NHS TRUST","Community Trusts",510,2474,7.2903050108932463,7.4542483660130712,7.0915032679738559,7.3251633986928111]
["Y61","EAST OF ENGLAND COMMISSIONING REGION","QM7","NHS HERTFORDSHIRE AND WEST ESSEX ICB - 07H","RY4","HERTFORDSHIRE COMMUNITY NHS TRUST","Community Trusts",264,2422,7.2485269360269351,7.3074494949494948,6.9760101010101012,7.4621212121212119]
["Y61","EAST OF ENGLAND COMMISSIONING REGION","QUE","NHS CAMBRIDGESHIRE AND PETERBOROUGH ICB - 06H","RYC","EAST OF ENGLAND AMBULANCE SERVICE NHS TRUST","Ambulance Trusts",1451,6007,5.8205557298264159,5.9711693085228577,5.2056350829356965,6.2848627980206926]
["Y61","EAST OF ENGLAND COMMISSIONING REGION","QUE","NHS CAMBRIDGESHIRE AND PETERBOROUGH ICB - 06H","RYV","CAMBRIDGESHIRE COMMUNITY SERVICES NHS TRUST","Community Trusts",41,2637,6.7750677506775068,7.1341463414634143,6.2804878048780486,6.9105691056910565]
["Y62","NORTH WEST COMMISSIONING REGION","QOP","NHS GREATER MANCHESTER ICB - 00T","R0A","MANCHESTER UNIVERSITY NHS FOUNDATION TRUST","Acute and Acute & Community Trusts",3328,29187,6.5702212324703524,6.5272835112692764,6.4681357951161402,6.7152443910256405]
["Y62","NORTH WEST COMMISSIONING REGION","QYG","NHS CHESHIRE AND MERSEYSIDE ICB - 01J","RBL","WIRRAL UNIVERSITY TEACHING HOSPITAL NHS FOUNDATION TRUST","Acute and Acute & Community Trusts",748,6784,6.328357100415924,6.0762032085561497,6.1697860962566846,6.7390819964349369]
["Y62","NORTH WEST COMMISSIONING REGION","QYG","NHS CHESHIRE AND MERSEYSIDE ICB - 01J","RBN","MERSEY AND WEST LANCASHIRE TEACHING HOSPITALS NHS TRUST","Acute and Acute & Community Trusts",196,10855,6.3803854875283461,6.3860544217687076,6.2032312925170068,6.5518707482993204]
["Y62","NORTH WEST COMMISSIONING REGION","QYG","NHS CHESHIRE AND MERSEYSIDE ICB - 01J","RBQ","LIVERPOOL HEART AND CHEST HOSPITAL NHS FOUNDATION TRUST","Acute Specialist Trusts",166,1952,7.3945783132530112,8.0773092369477908,7.0431726907630523,7.0632530120481931]
["Y62","NORTH WEST COMMISSIONING REGION","QYG","NHS CHESHIRE AND MERSEYSIDE ICB - 01J","RBT","MID CHESHIRE HOSPITALS NHS FOUNDATION TRUST","Acute and Acute & Community Trusts",807,5629,6.8404929092661435,6.9072697232548537,6.6315572077653862,6.9826517967781907]
["Y62","NORTH WEST COMMISSIONING REGION","QOP","NHS GREATER MANCHESTER ICB - 00T","RBV","THE CHRISTIE NHS FOUNDATION TRUST","Acute Specialist Trusts",112,3633,7.0411706349206353,7.4404761904761907,7.0163690476190483,6.6666666666666661]
["Y62","NORTH WEST COMMISSIONING REGION","QYG","NHS CHESHIRE AND MERSEYSIDE ICB - 01J","REM","LIVERPOOL UNIVERSITY HOSPITALS NHS FOUNDATION TRUST","Acute and Acute & Community Trusts",1341,15194,6.0618112519678524,5.9799900571712659,5.9016902808849121,6.3037534178473784]
["Y62","NORTH WEST COMMISSIONING REGION","QYG","NHS CHESHIRE AND MERSEYSIDE ICB - 01J","REN","THE CLATTERBRIDGE CANCER CENTRE NHS FOUNDATION TRUST","Acute Specialist Trusts",547,1840,7.3654275848060129,7.9539914686166968,7.1556977452772701,6.98659354052407]
["Y62","NORTH WEST COMMISSIONING REGION","QYG","NHS CHESHIRE AND MERSEYSIDE ICB - 01J","REP","LIVERPOOL WOMEN'S NHS FOUNDATION TRUST","Acute Specialist Trusts",82,1803,6.6869918699186996,6.8495934959349585,6.321138211382114,6.8902439024390247]
["Y62","NORTH WEST COMMISSIONING REGION","QYG","NHS CHESHIRE AND MERSEYSIDE ICB - 01J","RET","THE WALTON CENTRE NHS FOUNDATION TRUST","Acute Specialist Trusts",104,1573,7.3076923076923075,7.6923076923076925,7.0352564102564097,7.1955128205128212]
["Y62","NORTH WEST COMMISSIONING REGION","QYG","NHS CHESHIRE AND MERSEYSIDE ICB - 01J","RJN","EAST CHESHIRE NHS TRUST","Acute and Acute & Community Trusts",39,2753,6.5954415954415948,6.3888888888888884,6.4529914529914532,6.9444444444444438]
["Y62","NORTH WEST COMMISSIONING REGION","QYG","NHS CHESHIRE AND MERSEYSIDE ICB - 01J","RJR","COUNTESS OF CHESTER HOSPITAL NHS FOUNDATION TRUST","Acute and Acute & Community Trusts",87,4968,5.7822477650063862,5.1915708812260535,5.7375478927203067,6.4176245210727974]
["Y62","NORTH WEST COMMISSIONING REGION","QOP","NHS GREATER MANCHESTER ICB - 00T","RM3","NORTHERN CARE ALLIANCE NHS FOUNDATION TRUST","Acute and Acute & Community Trusts",1514,20832,5.9731395860854244,5.7683839718185821,5.9687362395420518,6.1822985468956411]
["Y62","NORTH WEST COMMISSIONING REGION","QOP","NHS GREATER MANCHESTER ICB - 00T","RMC","BOLTON NHS FOUNDATION TRUST","Acute and Acute & Community Trusts",149,6800,6.1204325130499626,5.8165548098434003,6.0626398210290828,6.4821029082774055]
["Y62","NORTH WEST COMMISSIONING REGION","QOP","NHS GREATER MANCHESTER ICB - 00T","RMP","TAMESIDE AND GLOSSOP INTEGRATED CARE NHS FOUNDATION TRUST","Acute and Acute & Community Trusts",91,4557,6.5781440781440779,6.3003663003663011,6.6117216117216113,6.822344322344323]
["Y62","NORTH WEST COMMISSIONING REGION","QOP","NHS GREATER MANCHESTER ICB - 00T","RRF","WRIGHTINGTON, WIGAN AND LEIGH NHS FOUNDATION TRUST","Acute and Acute & Community Trusts",37,7264,6.2537537537537533,6.2612612612612608,6.5090090090090094,5.9909909909909906]
["Y62","NORTH WEST COMMISSIONING REGION","QOP","NHS GREATER MANCHESTER ICB - 00T","RT2","PENNINE CARE NHS FOUNDATION TRUST","Mental Health & Learning Disability and Mental Health, Learning Disability & Community Trusts",80,4019,6.25,6.1354166666666661,6.1666666666666661,6.447916666666667]
["Y62","NORTH WEST COMMISSIONING REGION","QE1","NHS LANCASHIRE AND SOUTH CUMBRIA ICB - 01E","RTX","UNIVERSITY HOSPITALS OF MORECAMBE BAY NHS FOUNDATION TRUST","Acute and Acute & Community Trusts",44,7524,6.3068181818181825,6.3068181818181817,6.3068181818181817,6.3068181818181817]
["Y62","NORTH WEST COMMISSIONING REGION","QYG","NHS CHESHIRE AND MERSEYSIDE ICB - 01J","RW4","MERSEY CARE NHS FOUNDATION TRUST","Mental Health & Learning Disability and Mental Health, Learning Disability & Community Trusts",1362,11102,6.8775493555229232,6.7345814977973566,6.8061674008810575,7.0918991678903565]
["Y62","NORTH WEST COMMISSIONING REGION","QE1","NHS LANCASHIRE AND SOUTH CUMBRIA ICB - 01E","RW5","LANCASHIRE & SOUTH CUMBRIA NHS FOUNDATION TRUST","Mental Health & Learning Disability and Mental Health, Learning Disability & Community Trusts",1195,7660,6.8391445839144582,6.7092050209205025,6.8012552301255234,7.0069735006973506]
["Y62","NORTH WEST COMMISSIONING REGION","QOP","NHS GREATER MANCHESTER ICB - 00T","RWJ","STOCKPORT NHS FOUNDATION TRUST","Acute and Acute & Community Trusts",90,6242,5.9876543209876543,5.4629629629629628,6.1574074074074066,6.3425925925925934]
["Y62","NORTH WEST COMMISSIONING REGION","QYG","NHS CHESHIRE AND MERSEYSIDE ICB - 01J","RWW","WARRINGTON AND HALTON TEACHING HOSPITALS NHS FOUNDATION TRUST","Acute and Acute & Community Trusts",91,4664,6.6452991452991457,6.4926739926739927,6.5934065934065931,6.8498168498168504]
["Y62","NORTH WEST COMMISSIONING REGION","QOP","NHS GREATER MANCHESTER ICB - 00T","RX7","NORTH WEST AMBULANCE SERVICE NHS TRUST","Ambulance Trusts",1103,7179,6.3434396741050945,6.7142641281353876,5.9040178571428568,6.4120370370370372]
["Y62","NORTH WEST COMMISSIONING REGION","QYG","NHS CHESHIRE AND MERSEYSIDE ICB - 01J","RXA","CHESHIRE AND WIRRAL PARTNERSHIP NHS FOUNDATION TRUST","Mental Health & Learning Disability and Mental Health, Learning Disability & Community Trusts",601,4345,7.0211163906077703,7.1150662251655632,6.8663338879645037,7.0819490586932439]
["Y62","NORTH WEST COMMISSIONING REGION","QE1","NHS LANCASHIRE AND SOUTH CUMBRIA ICB - 01E","RXL","BLACKPOOL TEACHING HOSPITALS NHS FOUNDATION TRUST","Acute and Acute & Community Trusts",360,8309,6.7391975308641969,6.583333333333333,6.8009259259259265,6.833333333333333]
["Y62","NORTH WEST COMMISSIONING REGION","QE1","NHS LANCASHIRE AND SOUTH CUMBRIA ICB - 01E","RXN","LANCASHIRE TEACHING HOSPITALS NHS FOUNDATION TRUST","Acute and Acute & Community Trusts",1501,10291,6.606507303121937,6.4251610037752602,6.585579662502739,6.8087812430878127]
["Y62","NORTH WEST COMMISSIONING REGION","QE1","NHS LANCASHIRE AND SOUTH CUMBRIA ICB - 01E","RXR","EAST LANCASHIRE HOSPITALS NHS TRUST","Acute and Acute & Community Trusts",35,10213,6.5079365079365088,6.2142857142857144,6.8095238095238102,6.5]
["Y62","NORTH WEST COMMISSIONING REGION","QOP","NHS GREATER MANCHESTER ICB - 00T","RXV","GREATER MANCHESTER MENTAL HEALTH NHS FOUNDATION TRUST","Mental Health & Learning Disability and Mental Health, Learning Disability & Community Trusts",1486,6861,6.6080629257666663,6.3324360699865414,6.7605555555555563,6.7311971517578995]
["Y62","NORTH WEST COMMISSIONING REGION","QYG","NHS CHESHIRE AND MERSEYSIDE ICB - 01J","RY2","BRIDGEWATER COMMUNITY HEALTHCARE NHS FOUNDATION TRUST","Community Trusts",205,1579,6.8943089430894311,7.024390243902439,6.6869918699186988,6.9715447154471546]
["Y62","NORTH WEST COMMISSIONING REGION","QYG","NHS CHESHIRE AND MERSEYSIDE ICB - 01J","RY7","WIRRAL COMMUNITY HEALTH AND CARE NHS FOUNDATION TRUST","Community Trusts",354,1757,7.1641556811048339,7.3328625235404905,6.9161958568738235,7.2434086629001877]
["Y63","NORTH EAST AND YORKSHIRE COMMISSIONING REGION","QHM","NHS  NORTH EAST AND NORTH CUMBRIA ICB - 00L","R0B","SOUTH TYNESIDE AND SUNDERLAND NHS FOUNDATION TRUST","Acute and Acute & Community Trusts",160,9548,5.5451388888888884,5.3385416666666661,5.421875,5.875]
["Y63","NORTH EAST AND YORKSHIRE COMMISSIONING REGION","QWO","NHS WEST YORKSHIRE ICB - 02T","RAE","BRADFORD TEACHING HOSPITALS NHS FOUNDATION TRUST","Acute and Acute & Community Trusts",77,6767,6.3924963924963931,6.1904761904761907,6.4718614718614713,6.5151515151515156]
["Y63","NORTH EAST AND YORKSHIRE COMMISSIONING REGION","QOQ","NHS HUMBER AND NORTH YORKSHIRE ICB - 02Y","RCB","YORK AND SCARBOROUGH TEACHING HOSPITALS NHS FOUNDATION TRUST","Acute and Acute & Community Trusts",318,10211,5.9425227113906365,5.3825995807127889,6.1111111111111107,6.333857442348009]
["Y63","NORTH EAST AND YORKSHIRE COMMISSIONING REGION","QOQ","NHS HUMBER AND NORTH YORKSHIRE ICB - 02Y","RCD","HARROGATE AND DISTRICT NHS FOUNDATION TRUST","Acute and Acute & Community Trusts",1332,5180,7.1450958987366748,7.1452702702702702,6.9566840926064231,7.3333333333333339]
["Y63","NORTH EAST AND YORKSHIRE COMMISSIONING REGION","QWO","NHS WEST YORKSHIRE ICB - 02T","RCF","AIREDALE NHS FOUNDATION TRUST","Acute and Acute & Community Trusts",299,3762,6.3851727982162769,6.2430323299888517,6.3154960981047932,6.5969899665551841]
["Y63","NORTH EAST AND YORKSHIRE COMMISSIONING REGION","QF7","NHS SOUTH YORKSHIRE ICB - 02P","RCU","SHEFFIELD CHILDREN'S NHS FOUNDATION TRUST","Acute and Acute & Community Trusts",427,3944,7.0576372625552963,7.4082747853239663,6.9535519125683054,6.8110850897736146]
["Y63","NORTH EAST AND YORKSHIRE COMMISSIONING REGION","QF7","NHS SOUTH YORKSHIRE ICB - 02P","RFF","BARNSLEY HOSPITAL NHS FOUNDATION TRUST","Acute and Acute & Community Trusts",147,4369,6.5173847316704467,6.2868480725623579,6.3378684807256231,6.9274376417233565]
["Y63","NORTH EAST AND YORKSHIRE COMMISSIONING REGION","QF7","NHS SOUTH YORKSHIRE ICB - 02P","RFR","THE ROTHERHAM NHS FOUNDATION TRUST","Acute and Acute & Community Trusts",62,4865,6.0528673835125453,5.725806451612903,6.008064516129032,6.424731182795699]
["Y63","NORTH EAST AND YORKSHIRE COMMISSIONING REGION","QWO","NHS WEST YORKSHIRE ICB - 02T","RGD","LEEDS AND YORK PARTNERSHIP NHS FOUNDATION TRUST","Mental Health & Learning Disability and Mental Health, Learning Disability & Community Trusts",296,3126,7.1921921921921923,7.0439189189189193,7.3423423423423433,7.1903153153153161]
["Y63","NORTH EAST AND YORKSHIRE COMMISSIONING REGION","QF7","NHS SOUTH YORKSHIRE ICB - 02P","RHQ","SHEFFIELD TEACHING HOSPITALS NHS FOUNDATION TRUST","Acute and Acute & Community Trusts",1129,17944,6.3778171439818907,6.526424564511367,6.2267493356953052,6.3802775317390017]
["Y63","NORTH EAST AND YORKSHIRE COMMISSIONING REGION","QOQ","NHS HUMBER AND NORTH YORKSHIRE ICB - 02Y","RJL","NORTHERN LINCOLNSHIRE AND GOOLE NHS FOUNDATION TRUST","Acute and Acute & Community Trusts",142,7085,5.3305946791862278,4.800469483568075,5.369718309859155,5.821596244131455]
["Y63","NORTH EAST AND YORKSHIRE COMMISSIONING REGION","QHM","NHS  NORTH EAST AND NORTH CUMBRIA ICB - 00L","RNN","NORTH CUMBRIA INTEGRATED CARE NHS FOUNDATION TRUST","Acute and Acute & Community Trusts",396,7353,5.8971661054994398,5.3261784511784507,6.0690235690235692,6.2962962962962967]
["Y63","NORTH EAST AND YORKSHIRE COMMISSIONING REGION","QHM","NHS  NORTH EAST AND NORTH CUMBRIA ICB - 00L","RR7","GATESHEAD HEALTH NHS FOUNDATION TRUST","Acute and Acute & Community Trusts",95,5359,6.640350877192982,6.8421052631578947,6.5701754385964906,6.5087719298245617]
["Y63","NORTH EAST AND YORKSHIRE COMMISSIONING REGION","QWO","NHS WEST YORKSHIRE ICB - 02T","RR8","LEEDS TEACHING HOSPITALS NHS TRUST","Acute and Acute & Community Trusts",1543,20689,6.7428170231151441,6.8826960466623461,6.5397494059192054,6.8060056167638798]
["Y63","NORTH EAST AND YORKSHIRE COMMISSIONING REGION","QHM","NHS  NORTH EAST AND NORTH CUMBRIA ICB - 00L","RTF","NORTHUMBRIA HEALTHCARE NHS FOUNDATION TRUST","Acute and Acute & Community Trusts",4114,9211,7.1979149786636425,7.733349538162372,6.8119024469291851,7.0484929508993677]
["Y63","NORTH EAST AND YORKSHIRE COMMISSIONING REGION","QHM","NHS  NORTH EAST AND NORTH CUMBRIA ICB - 00L","RVW","NORTH TEES AND HARTLEPOOL NHS FOUNDATION TRUST","Acute and Acute & Community Trusts",51,5934,6.715686274509804,6.4869281045751634,6.9117647058823533,6.7483660130718954]
["Y63","NORTH EAST AND YORKSHIRE COMMISSIONING REGION","QOQ","NHS HUMBER AND NORTH YORKSHIRE ICB - 02Y","RWA","HULL UNIVERSITY TEACHING HOSPITALS NHS TRUST","Acute and Acute & Community Trusts",1893,9682,6.4632858944501193,6.3699594999119569,6.3362068965517242,6.6836912868866767]
["Y63","NORTH EAST AND YORKSHIRE COMMISSIONING REGION","QWO","NHS WEST YORKSHIRE ICB - 02T","RWY","CALDERDALE AND HUDDERSFIELD NHS FOUNDATION TRUST","Acute and Acute & Community Trusts",282,6698,6.305161544523247,6.3918439716312054,6.3297872340425529,6.1938534278959816]
["Y63","NORTH EAST AND YORKSHIRE COMMISSIONING REGION","QHM","NHS  NORTH EAST AND NORTH CUMBRIA ICB - 00L","RX3","TEES, ESK AND WEAR VALLEYS NHS FOUNDATION TRUST","Mental Health & Learning Disability and Mental Health, Learning Disability & Community Trusts",823,7998,6.7007560415822871,6.4044147428108547,6.7770352369380316,6.9208181449979742]
["Y63","NORTH EAST AND YORKSHIRE COMMISSIONING REGION","QHM","NHS  NORTH EAST AND NORTH CUMBRIA ICB - 00L","RX4","CUMBRIA, NORTHUMBERLAND, TYNE AND WEAR NHS FOUNDATION TRUST","Mental Health & Learning Disability and Mental Health, Learning Disability & Community Trusts",549,8284,6.7961951022060312,6.8093503339404977,6.6863995142683672,6.8928354584092286]
["Y63","NORTH EAST AND YORKSHIRE COMMISSIONING REGION","QHM","NHS  NORTH EAST AND NORTH CUMBRIA ICB - 00L","RX6","NORTH EAST AMBULANCE SERVICE NHS FOUNDATION TRUST","Ambulance Trusts",66,3264,4.6548821548821548,4.5328282828282829,3.75,5.6818181818181817]
["Y63","NORTH EAST AND YORKSHIRE COMMISSIONING REGION","QWO","NHS WEST YORKSHIRE ICB - 02T","RX8","YORKSHIRE AMBULANCE SERVICE NHS TRUST","Ambulance Trusts",919,6251,5.9430540442509967,6.1715632934348932,5.3835690968443961,6.2740297424737026]
["Y63","NORTH EAST AND YORKSHIRE COMMISSIONING REGION","QF7","NHS SOUTH YORKSHIRE ICB - 02P","RXE","ROTHERHAM DONCASTER AND SOUTH HUMBER NHS FOUNDATION TRUST","Mental Health & Learning Disability and Mental Health, Learning Disability & Community Trusts",58,3856,6.0057471264367814,5.8045977011494259,6.0632183908045985,6.1494252873563218]
["Y63","NORTH EAST AND YORKSHIRE COMMISSIONING REGION","QWO","NHS WEST YORKSHIRE ICB - 02T","RXF","MID YORKSHIRE TEACHING NHS TRUST","Acute and Acute & Community Trusts",1741,9757,6.4355963582975733,6.2990618418533408,6.3141025641025648,6.6936246689368142]
["Y63","NORTH EAST AND YORKSHIRE COMMISSIONING REGION","QWO","NHS WEST YORKSHIRE ICB - 02T","RXG","SOUTH WEST YORKSHIRE PARTNERSHIP NHS FOUNDATION TRUST","Mental Health & Learning Disability and Mental Health, Learning Disability & Community Trusts",127,4839,7.0778652668416449,7.1391076115485559,7.0209973753280837,7.0734908136482941]
["Y63","NORTH EAST AND YORKSHIRE COMMISSIONING REGION","QHM","NHS  NORTH EAST AND NORTH CUMBRIA ICB - 00L","RXP","COUNTY DURHAM AND DARLINGTON NHS FOUNDATION TRUST","Acute and Acute & Community Trusts",726,8337,6.1470768288950106,5.8505509641873275,6.0307621671258032,6.5599173553719012]
["Y63","NORTH EAST AND YORKSHIRE COMMISSIONING REGION","QWO","NHS WEST YORKSHIRE ICB - 02T","RY6","LEEDS COMMUNITY HEALTHCARE NHS TRUST","Community Trusts",767,3377,6.9912178792712467,7.1517895644674425,6.8151278716948411,7.0067362016514565]
["Y63","NORTH EAST AND YORKSHIRE COMMISSIONING REGION","QWO","NHS WEST YORKSHIRE ICB - 02T","TAD","BRADFORD DISTRICT CARE NHS FOUNDATION TRUST","Mental Health & Learning Disability and Mental Health, Learning Disability & Community Trusts",370,3287,7.0654407777049286,7.1689189189189193,7.0148247978436657,7.0125786163522008]
["Y63","NORTH EAST AND YORKSHIRE COMMISSIONING REGION","QF7","NHS SOUTH YORKSHIRE ICB - 02P","TAH","SHEFFIELD HEALTH & SOCIAL CARE NHS FOUNDATION TRUST","Mental Health & Learning Disability and Mental Health, Learning Disability & Community Trusts",318,2592,6.064814814814814,5.6027253668763102,6.4517819706498951,6.1399371069182394]

{"sheet":"Engagement Score","index":3,"n_rows":189,"n_cols":60,"rows_kept":189,"cut":false,"hidden":false,"merged":[[6,50,6,54],[6,55,6,57],[6,20,6,24],[6,25,6,29],[6,30,6,34],[6,35,6,39],[6,40,6,44],[6,45,6,49],[6,15,6,19],[6,0,7,0],[6,1,7,1],[6,2,7,2],[6,3,7,3],[6,4,7,4],[6,5,7,5],[6,6,7,6],[6,7,7,7],[6,8,7,8],[6,9,7,9],[6,10,6,14]]}
[]
[]
[null,null,null,null,null,null,null,null,null,null,null,null,null,null,null,null,null,null,null,null,null,null,null,"Avg Motivation:",{"$f":"AVERAGE(T4,Y4,AD4)","v":6.7746233042530308},null,null,null,null,null,null,null,null,null,null,null,null,null,"Avg Involvement:",{"$f":"AVERAGE(AI4,AN4,AS4)","v":6.4823077480611717},null,null,null,null,null,null,null,null,null,null,null,null,null,"Avg Advocacy: ",{"$f":"AVERAGE(AX4,BC4,BH4)","v":6.6450016419502305}]
[null,null,null,null,null,null,null,null,null,null,null,null,null,null,null,null,null,null,null,{"$f":"IF($H$10=0,\"-\",((K$10*0)+(L$10*2.5)+(M$10*5)+(N$10*7.5)+(O$10*10))/$BF$10)","v":6.083748662682984},null,null,null,null,{"$f":"IF($H$10=0,\"-\",((P$10*0)+(Q$10*2.5)+(R$10*5)+(S$10*7.5)+(T$10*10))/$BF$10)","v":6.9228009289460637},null,null,null,null,{"$f":"IF($H$10=0,\"-\",((U$10*0)+(V$10*2.5)+(W$10*5)+(X$10*7.5)+(Y$10*10))/$BF$10)","v":7.3173203211300439},null,null,null,null,{"$f":"IF($H$10=0,\"-\",((Z$10*0)+(AA$10*2.5)+(AB$10*5)+(AC$10*7.5)+(AD$10*10))/$BE$10)","v":6.6521200260926285},null,null,null,null,{"$f":"IF($H$10=0,\"-\",((AE$10*0)+(AF$10*2.5)+(AG$10*5)+(AH$10*7.5)+(AI$10*10))/$BE$10)","v":6.6854316155686018},null,null,null,null,{"$f":"IF($H$10=0,\"-\",((AJ$10*0)+(AK$10*2.5)+(AL$10*5)+(AM$10*7.5)+(AN$10*10))/$BE$10)","v":6.1093716025222875},null,null,null,null,{"$f":"IF($H$10=0,\"-\",((AO$10*0)+(AP$10*2.5)+(AQ$10*5)+(AR$10*7.5)+(AS$10*10))/$BD$10)","v":7.1111193450798158},null,null,null,null,{"$f":"IF($H$10=0,\"-\",((AT$10*0)+(AU$10*2.5)+(AV$10*5)+(AW$10*7.5)+(AX$10*10))/$BD$10)","v":6.2113669453622897},null,null,null,null,{"$f":"IF($H$10=0,\"-\",((AY$10*0)+(AZ$10*2.5)+(BA$10*5)+(BB$10*7.5)+(BC$10*10))/$BD$10)","v":6.6125186354085841}]
[]
[]
["Region Code","Region Name","ICB Code","ICB Name","Org Code","Org Name","Care Setting","Total Responses (Average across Theme)","HSCIC Workforce Headcount","Engagement Score","Weighted Breakdown of Responses - Motivation Q1",null,null,null,null,"Weighted Breakdown of Responses - Motivation Q2",null,null,null,null,"Weighted Breakdown of Responses - Motivation Q3",null,null,null,null,"Weighted Breakdown of Responses - Involvement Q4",null,null,null,null,"Weighted Breakdown of Responses - Involvement Q5",null,null,null,null,"Weighted Breakdown of Responses - Involvement Q6",null,null,null,null,"Weighted Breakdown of Responses - Advocacy Q7",null,null,null,null,"Weighted Breakdown of Responses - Advocacy Q8",null,null,null,null,"Weighted Breakdown of Responses - Advocacy Q9",null,null,null,null,"Minimum headcounts"]
[null,null,null,null,null,null,null,null,null,null,"Strongly Disagree","Disagree","Neither Disagree nor Agree","Agree","Strongly Agree","Strongly Disagree","Disagree","Neither Disagree nor Agree","Agree","Strongly Agree","Strongly Disagree","Disagree","Neither Disagree nor Agree","Agree","Strongly Agree","Strongly Disagree","Disagree","Neither Disagree nor Agree","Agree","Strongly Agree","Strongly Disagree","Disagree","Neither Disagree nor Agree","Agree","Strongly Agree","Strongly Disagree","Disagree","Neither Disagree nor Agree","Agree","Strongly Agree","Strongly Disagree","Disagree","Neither Disagree nor Agree","Agree","Strongly Agree","Strongly Disagree","Disagree","Neither Disagree nor Agree","Agree","Strongly Agree","Strongly Disagree","Disagree","Neither Disagree nor Agree","Agree","Strongly Agree","Min Advocacy Headcount","Min involvement Headcount","Min motivation Headcount"]
[null,null,null,null,null,null,"England",114335,1258006,6.6339775647548116,4802,15064,37894,42567,15306,2496,9029,29354,45886,28242,2498,6341,25989,42589,37605,5399,12046,22152,53323,22403,6011,11298,20638,53767,23397,7349,15766,28952,45244,17892,4313,9161,19687,48770,32854,8386,13578,27947,43968,20901,5298,10254,27008,49677,22521,114701,114975,114969]
[null,null,null,null,null,null,"Selection (excluding suppressed data)",{"$f":"SUBTOTAL(9,H11:H1002)","v":114335},{"$f":"SUBTOTAL(9,I11:I1002)","v":1258006},{"$f":"AVERAGE(Y3,AN3,BC3)","v":6.6339775647548107},{"$f":"SUBTOTAL(9,K11:K1002)","v":4802},{"$f":"SUBTOTAL(9,L11:L1002)","v":15064},37894,42567,15306,2496,9029,29354,45886,28242,2498,6341,25989,42589,37605,5399,12046,22152,53323,22403,6011,11298,20638,53767,23397,7349,15766,28952,45244,17892,4313,9161,19687,48770,32854,8386,13578,27947,43968,20901,5298,10254,27008,49677,22521,114701,114975,114969]
["Y56","LONDON COMMISSIONING REGION","QMF","NHS NORTH EAST LONDON ICB - A3A8R","R1H","BARTS HEALTH NHS TRUST","Acute and Acute & Community Trusts",835,20029,6.0908183632734527,52,160,280,230,113,34,91,251,274,185,34,56,197,248,300,71,102,190,328,144,73,114,173,327,148,82,143,213,270,127,70,72,177,343,173,117,125,227,260,106,68,84,248,314,121,835,835,835]
["Y56","LONDON COMMISSIONING REGION","QMJ","NHS NORTH CENTRAL LONDON ICB - 93C","RAL","ROYAL FREE LONDON NHS FOUNDATION TRUST","Acute and Acute & Community Trusts",112,11731,6.3219246031746037,5,21,39,30,17,3,13,22,38,36,3,6,23,42,38,3,23,24,47,15,3,20,20,48,21,9,20,20,47,16,7,17,19,38,31,11,16,30,38,17,9,17,23,44,19,112,112,112]
["Y56","LONDON COMMISSIONING REGION","QRV","NHS NORTH WEST LONDON ICB - W2U3Z","RAN","ROYAL NATIONAL ORTHOPAEDIC HOSPITAL NHS TRUST","Acute Specialist Trusts",45,1686,7.1481481481481488,2,6,9,21,7,2,5,6,19,13,0,4,6,18,17,4,1,6,18,16,4,1,6,21,13,4,1,11,20,9,1,2,6,21,15,2,4,9,19,11,1,0,9,17,18,45,45,45]
["Y56","LONDON COMMISSIONING REGION","QMJ","NHS NORTH CENTRAL LONDON ICB - 93C","RAP","NORTH MIDDLESEX UNIVERSITY HOSPITAL NHS TRUST","Acute and Acute & Community Trusts",1086,4597,6.7229452894855291,33,97,350,386,240,14,71,282,399,322,19,54,247,360,406,50,79,254,521,195,53,72,237,538,199,62,95,303,470,172,33,73,181,476,330,70,132,312,399,181,76,127,347,392,153,1093,1099,1086]
["Y56","LONDON COMMISSIONING REGION","QMF","NHS NORTH EAST LONDON ICB - A3A8R","RAT","NORTH EAST LONDON NHS FOUNDATION TRUST","Mental Health & Learning Disability and Mental Health, Learning Disability & Community Trusts",87,7175,6.7369093231162198,5,9,35,24,14,3,6,25,35,18,3,2,17,35,30,4,9,14,44,16,5,8,11,44,19,3,11,23,34,16,2,5,14,32,34,5,5,27,31,19,4,7,27,35,14,87,87,87]
["Y56","LONDON COMMISSIONING REGION","QKK","NHS SOUTH EAST LONDON ICB - 72Q","RJ1","GUY'S AND ST THOMAS' NHS FOUNDATION TRUST","Acute and Acute & Community Trusts",1608,23017,6.7219754012235962,69,211,560,585,208,52,142,457,607,355,41,95,353,592,527,98,190,309,721,317,103,176,315,717,324,128,221,395,630,250,42,107,238,698,551,91,205,341,620,378,30,95,263,777,470,1635,1624,1608]
["Y56","LONDON COMMISSIONING REGION","QKK","NHS SOUTH EAST LONDON ICB - 72Q","RJ2","LEWISHAM AND GREENWICH NHS TRUST","Acute and Acute & Community Trusts",88,7311,6.3446969696969688,4,17,26,31,10,3,13,21,31,20,1,9,18,29,31,5,11,16,34,22,6,8,12,40,22,4,13,22,31,18,1,8,29,30,20,9,15,28,24,12,5,14,27,34,8,88,88,88]
["Y56","LONDON COMMISSIONING REGION","QWE","NHS SOUTH WEST LONDON ICB - 36L","RJ7","ST GEORGE'S UNIVERSITY HOSPITALS NHS FOUNDATION TRUST","Acute and Acute & Community Trusts",12,9885,5.7407407407407414,1,4,4,2,1,0,3,3,5,1,0,3,1,2,6,1,3,0,6,2,1,2,1,6,2,1,4,3,2,2,1,2,3,2,4,3,2,4,0,3,1,2,3,4,2,12,12,12]
["Y56","LONDON COMMISSIONING REGION","QKK","NHS SOUTH EAST LONDON ICB - 72Q","RJZ","KING'S COLLEGE HOSPITAL NHS FOUNDATION TRUST","Acute and Acute & Community Trusts",55,14383,6.1060606060606064,5,5,23,16,6,3,5,16,20,11,3,3,7,25,17,5,1,11,28,10,4,4,11,26,10,5,7,18,16,9,5,7,14,22,7,10,10,17,14,4,3,4,16,28,4,55,55,55]
["Y56","LONDON COMMISSIONING REGION","QMJ","NHS NORTH CENTRAL LONDON ICB - 93C","RKE","WHITTINGTON HEALTH NHS TRUST","Acute and Acute & Community Trusts",411,4929,6.6646390916463902,24,49,126,146,66,12,27,103,153,116,12,16,70,144,169,30,33,66,196,86,32,30,63,189,97,35,41,87,185,63,23,25,71,170,122,45,43,95,155,73,35,29,91,182,74,411,411,411]
["Y56","LONDON COMMISSIONING REGION","QMJ","NHS NORTH CENTRAL LONDON ICB - 93C","RNK","TAVISTOCK AND PORTMAN NHS FOUNDATION TRUST","Mental Health & Learning Disability and Mental Health, Learning Disability & Community Trusts",21,819,5.4894179894179898,3,6,5,6,1,1,4,6,6,4,1,4,5,5,6,3,6,1,8,3,3,4,1,10,3,3,4,5,8,1,2,3,5,8,3,4,3,8,4,2,2,1,7,7,4,21,21,21]
["Y56","LONDON COMMISSIONING REGION","QMJ","NHS NORTH CENTRAL LONDON ICB - 93C","RP4","GREAT ORMOND STREET HOSPITAL FOR CHILDREN NHS FOUNDATION TRUST","Acute Specialist Trusts",788,5718,6.9843253822712272,33,92,238,341,90,22,60,167,360,180,12,37,153,355,231,37,87,128,371,170,40,78,134,359,182,50,109,185,304,142,17,56,69,365,288,48,73,146,320,204,18,21,59,364,330,791,790,788]
["Y56","LONDON COMMISSIONING REGION","QMJ","NHS NORTH CENTRAL LONDON ICB - 93C","RP6","MOORFIELDS EYE HOSPITAL NHS FOUNDATION TRUST","Acute Specialist Trusts",36,2484,5.5864197530864201,6,3,7,14,6,3,3,7,10,13,3,2,5,14,12,6,10,8,7,5,7,7,10,8,4,7,7,12,5,5,4,6,5,16,5,9,5,10,7,5,3,4,9,12,8,36,36,36]
["Y56","LONDON COMMISSIONING REGION","QRV","NHS NORTH WEST LONDON ICB - W2U3Z","RPY","THE ROYAL MARSDEN NHS FOUNDATION TRUST","Acute Specialist Trusts",163,4612,6.6155419222903893,12,26,52,59,14,8,14,45,58,38,8,6,44,57,48,13,12,34,81,23,13,17,27,75,31,14,22,47,59,21,5,4,31,59,64,12,23,38,61,29,6,4,17,59,77,163,163,163]
["Y56","LONDON COMMISSIONING REGION","QMF","NHS NORTH EAST LONDON ICB - A3A8R","RQX","HOMERTON HEALTHCARE NHS FOUNDATION TRUST","Acute and Acute & Community Trusts",607,4208,7.0556423510305342,24,66,222,227,92,16,38,170,236,160,13,28,141,224,214,26,39,114,297,147,25,47,100,304,145,31,75,136,265,114,9,18,68,280,234,29,40,124,238,176,15,24,119,264,186,607,621,620]
["Y56","LONDON COMMISSIONING REGION","QWE","NHS SOUTH WEST LONDON ICB - 36L","RQY","SOUTH WEST LONDON AND ST GEORGE'S MENTAL HEALTH NHS TRUST","Mental Health & Learning Disability and Mental Health, Learning Disability & Community Trusts",75,2923,6.185185185185186,2,13,27,30,3,1,7,23,33,11,3,4,19,27,22,5,11,12,32,15,4,12,14,30,15,6,14,18,23,14,5,6,9,39,16,6,13,25,27,4,5,11,20,34,5,75,75,75]
["Y56","LONDON COMMISSIONING REGION","QMJ","NHS NORTH CENTRAL LONDON ICB - 93C","RRP","BARNET, ENFIELD AND HARINGEY MENTAL HEALTH NHS TRUST","Mental Health & Learning Disability and Mental Health, Learning Disability & Community Trusts",85,3066,6.1535947712418304,7,10,28,25,15,4,12,19,33,17,6,6,22,21,30,8,5,19,35,18,7,6,14,38,20,6,11,22,30,16,6,10,24,27,18,10,15,24,24,12,10,12,32,19,12,85,85,85]
["Y56","LONDON COMMISSIONING REGION","QKK","NHS SOUTH EAST LONDON ICB - 72Q","RRU","LONDON AMBULANCE SERVICE NHS TRUST","Ambulance Trusts",86,7665,5.9625322997416008,5,13,28,31,9,3,7,24,35,17,4,7,28,30,17,7,16,22,32,9,9,8,18,37,14,13,13,24,26,10,8,8,17,35,18,14,11,20,30,11,8,9,18,36,15,86,86,86]
["Y56","LONDON COMMISSIONING REGION","QMJ","NHS NORTH CENTRAL LONDON ICB - 93C","RRV","UNIVERSITY COLLEGE LONDON HOSPITALS NHS FOUNDATION TRUST","Acute and Acute & Community Trusts",514,10939,7.2070903588413318,14,57,171,199,73,11,42,127,202,132,6,28,107,182,191,25,34,77,240,138,24,34,66,240,150,31,47,105,216,115,17,18,59,216,204,23,22,94,204,171,11,12,56,215,220,514,514,514]
["Y56","LONDON COMMISSIONING REGION","QMJ","NHS NORTH CENTRAL LONDON ICB - 93C","RV3","CENTRAL AND NORTH WEST LONDON NHS FOUNDATION TRUST","Mental Health & Learning Disability and Mental Health, Learning Disability & Community Trusts",35,8539,5.5158730158730158,3,11,10,11,0,2,4,15,12,2,1,1,10,11,12,4,2,10,14,5,7,2,6,15,5,5,6,10,12,2,2,6,7,9,11,6,10,9,9,1,4,6,14,10,1,35,35,35]
["Y56","LONDON COMMISSIONING REGION","QWE","NHS SOUTH WEST LONDON ICB - 36L","RVR","EPSOM AND ST HELIER UNIVERSITY HOSPITALS NHS TRUST","Acute and Acute & Community Trusts",231,7102,5.5050505050505052,22,53,85,56,15,12,34,78,73,34,11,20,58,79,63,25,36,52,98,20,26,34,44,100,27,31,45,56,80,19,24,31,61,74,41,50,36,67,70,8,27,34,71,83,16,231,231,231]
["Y56","LONDON COMMISSIONING REGION","QMF","NHS NORTH EAST LONDON ICB - A3A8R","RWK","EAST LONDON NHS FOUNDATION TRUST","Mental Health & Learning Disability and Mental Health, Learning Disability & Community Trusts",948,7300,7.0495084681200177,22,98,338,362,146,13,64,248,410,227,11,46,231,358,314,22,65,167,498,212,22,68,151,485,234,31,104,216,423,187,13,34,117,419,366,38,71,194,405,240,30,63,233,420,203,948,960,960]
["Y56","LONDON COMMISSIONING REGION","QRV","NHS NORTH WEST LONDON ICB - W2U3Z","RYJ","IMPERIAL COLLEGE HEALTHCARE NHS TRUST","Acute and Acute & Community Trusts",96,13870,6.5277777777777777,6,15,29,37,9,5,8,21,42,20,2,6,16,33,39,6,18,14,35,23,8,15,14,37,22,8,13,26,32,17,5,8,12,37,34,10,12,21,31,22,6,9,17,40,24,96,96,96]
["Y56","LONDON COMMISSIONING REGION","QRV","NHS NORTH WEST LONDON ICB - W2U3Z","RYX","CENTRAL LONDON COMMUNITY HEALTHCARE NHS TRUST","Community Trusts",961,4806,7.2294844872134298,23,91,306,386,182,14,54,228,367,306,10,43,203,306,408,28,69,160,485,233,31,55,154,487,246,32,96,218,427,198,12,42,102,414,393,43,71,199,373,276,20,40,208,427,266,961,971,969]
["Y56","LONDON COMMISSIONING REGION","QMJ","NHS NORTH CENTRAL LONDON ICB - 93C","TAF","CAMDEN AND ISLINGTON NHS FOUNDATION TRUST","Mental Health & Learning Disability and Mental Health, Learning Disability & Community Trusts",85,2562,5.7516339869281046,2,20,30,26,7,4,13,27,26,15,1,6,21,28,29,7,14,17,37,10,10,8,19,39,9,12,10,26,30,7,6,9,27,33,10,16,17,24,21,7,9,12,27,29,8,85,85,85]
["Y58","SOUTH WEST COMMISSIONING REGION","QVV","NHS DORSET ICB - 11J","R0D","UNIVERSITY HOSPITALS DORSET NHS FOUNDATION TRUST","Acute and Acute & Community Trusts",990,9659,6.1593714927048255,48,194,340,310,98,28,108,303,357,194,31,71,225,338,325,59,125,194,439,173,62,123,168,445,192,73,171,259,357,130,65,136,223,402,164,86,167,319,312,106,54,127,289,398,122,990,990,990]
["Y58","SOUTH WEST COMMISSIONING REGION","QUY","NHS BRISTOL, NORTH SOMERSET AND SOUTH GLOUCESTERSHIRE ICB - 15C","RA7","UNIVERSITY HOSPITALS BRISTOL AND WESTON NHS FOUNDATION TRUST","Acute and Acute & Community Trusts",857,12869,6.8669778296382731,25,96,281,339,116,14,51,240,364,188,15,43,199,327,273,32,95,143,381,206,30,93,144,373,217,40,134,184,353,146,11,44,128,380,294,45,84,185,375,168,16,42,191,426,182,857,857,857]
["Y58","SOUTH WEST COMMISSIONING REGION","QJK","NHS DEVON ICB - 15N","RA9","TORBAY AND SOUTH DEVON NHS FOUNDATION TRUST","Acute and Acute & Community Trusts",308,7174,6.004601097412956,13,69,135,105,24,9,42,114,118,63,9,32,97,122,86,21,51,52,130,55,20,34,52,138,65,30,64,71,91,52,14,46,76,134,40,30,68,83,103,26,12,56,93,118,31,310,308,346]
["Y58","SOUTH WEST COMMISSIONING REGION","QVV","NHS DORSET ICB - 11J","RBD","DORSET COUNTY HOSPITAL NHS FOUNDATION TRUST","Acute and Acute & Community Trusts",225,3465,6.4234567901234572,9,39,77,76,24,2,22,61,82,58,5,16,60,80,64,14,28,38,107,38,18,33,28,106,40,21,43,47,86,28,6,19,42,101,57,18,27,56,78,46,9,22,53,102,39,225,225,225]
["Y58","SOUTH WEST COMMISSIONING REGION","QOX","NHS BATH AND NORTH EAST SOMERSET, SWINDON AND WILTSHIRE ICB - 92G","RD1","ROYAL UNITED HOSPITALS BATH NHS FOUNDATION TRUST","Acute and Acute & Community Trusts",1132,6582,6.7163728739141391,40,134,424,452,115,13,90,326,473,255,14,48,269,469,358,35,105,193,611,207,45,98,173,616,219,67,169,285,498,130,21,87,187,548,291,59,124,282,497,171,25,81,266,554,206,1132,1149,1157]
["Y58","SOUTH WEST COMMISSIONING REGION","QVV","NHS DORSET ICB - 11J","RDY","DORSET HEALTHCARE UNIVERSITY NHS FOUNDATION TRUST","Mental Health & Learning Disability and Mental Health, Learning Disability & Community Trusts",596,6869,6.6028150633855338,21,77,196,219,83,12,40,166,226,152,11,39,111,232,203,33,75,101,278,109,38,58,106,274,120,36,92,167,211,90,16,54,116,269,141,42,72,150,232,100,12,50,145,277,112,596,596,596]
["Y58","SOUTH WEST COMMISSIONING REGION","QT6","NHS CORNWALL AND THE ISLES OF SCILLY ICB - 11N","REF","ROYAL CORNWALL HOSPITALS NHS TRUST","Acute and Acute & Community Trusts",834,7222,6.5364375166533435,44,126,231,362,71,29,77,175,410,143,15,50,157,345,268,41,73,132,371,217,47,66,129,381,212,58,111,181,333,151,32,78,176,388,160,62,94,230,349,99,51,101,222,362,99,834,834,834]
["Y58","SOUTH WEST COMMISSIONING REGION","QSL","NHS SOMERSET ICB - 11X","RH5","SOMERSET NHS FOUNDATION TRUST","Acute and Acute & Community Trusts",719,13308,6.8022716736207691,22,92,213,289,103,9,47,186,281,196,13,31,141,274,260,31,66,125,345,152,32,60,125,340,162,41,88,179,278,133,29,54,123,297,216,48,77,163,290,141,39,50,151,320,159,719,719,719]
["Y58","SOUTH WEST COMMISSIONING REGION","QJK","NHS DEVON ICB - 15N","RH8","ROYAL DEVON UNIVERSITY HEALTHCARE NHS FOUNDATION TRUST","Acute and Acute & Community Trusts",2311,13192,6.7059215840342468,80,284,781,952,239,27,175,627,1026,458,29,127,554,933,668,74,239,424,1175,430,89,202,415,1185,447,116,292,597,1013,322,69,179,400,1026,663,139,295,538,1051,313,69,151,459,1218,434,2331,2338,2311]
["Y58","SOUTH WEST COMMISSIONING REGION","QT6","NHS CORNWALL AND THE ISLES OF SCILLY ICB - 11N","RJ8","CORNWALL PARTNERSHIP NHS FOUNDATION TRUST","Mental Health & Learning Disability and Mental Health, Learning Disability & Community Trusts",11,4926,6.7424242424242422,1,1,3,5,1,0,0,3,6,2,0,0,3,7,1,0,1,4,4,2,0,1,0,8,2,0,3,2,5,1,0,0,3,5,3,0,2,2,5,2,0,2,3,4,2,11,11,11]
["Y58","SOUTH WEST COMMISSIONING REGION","QJK","NHS DEVON ICB - 15N","RK9","UNIVERSITY HOSPITALS PLYMOUTH NHS TRUST","Acute and Acute & Community Trusts",1135,10600,6.4020000508745589,75,180,335,385,163,36,107,269,405,320,27,59,258,432,361,91,132,213,485,216,96,114,200,498,228,114,180,263,421,160,49,122,203,475,287,105,147,248,478,160,58,143,270,493,171,1135,1136,1137]
["Y58","SOUTH WEST COMMISSIONING REGION","QOX","NHS BATH AND NORTH EAST SOMERSET, SWINDON AND WILTSHIRE ICB - 92G","RN3","GREAT WESTERN HOSPITALS NHS FOUNDATION TRUST","Acute and Acute & Community Trusts",1278,5705,6.6984388864703268,34,152,427,486,197,16,93,323,509,346,16,66,264,492,449,42,142,276,625,211,48,125,263,630,228,60,178,366,513,175,26,88,232,589,345,52,151,362,518,198,42,123,355,566,192,1278,1292,1287]
["Y58","SOUTH WEST COMMISSIONING REGION","QR1","NHS GLOUCESTERSHIRE ICB - 11M","RTE","GLOUCESTERSHIRE HOSPITALS NHS FOUNDATION TRUST","Acute and Acute & Community Trusts",748,8924,6.2458710662156784,50,149,323,307,104,25,102,273,339,184,27,64,254,330,255,66,128,223,380,137,82,131,19,381,135,102,173,253,308,92,84,116,203,345,183,123,181,252,283,90,107,157,284,286,101,929,748,923]
["Y58","SOUTH WEST COMMISSIONING REGION","QR1","NHS GLOUCESTERSHIRE ICB - 11M","RTQ","GLOUCESTERSHIRE HEALTH AND CARE NHS FOUNDATION TRUST","Mental Health & Learning Disability and Mental Health, Learning Disability & Community Trusts",288,4799,6.9212962962962967,9,30,101,113,35,5,13,77,127,66,3,10,67,109,99,5,28,49,143,63,6,15,48,146,73,8,29,77,123,51,7,25,48,143,65,14,24,71,119,60,6,19,60,142,61,288,288,288]
["Y58","SOUTH WEST COMMISSIONING REGION","QUY","NHS BRISTOL, NORTH SOMERSET AND SOUTH GLOUCESTERSHIRE ICB - 15C","RVJ","NORTH BRISTOL NHS TRUST","Acute and Acute & Community Trusts",117,10025,6.168091168091169,10,22,39,32,14,5,17,26,44,25,6,11,24,47,29,10,12,26,53,16,12,15,19,56,15,15,19,20,51,12,1,8,27,53,28,15,11,34,44,13,4,8,32,59,14,117,117,117]
["Y58","SOUTH WEST COMMISSIONING REGION","QOX","NHS BATH AND NORTH EAST SOMERSET, SWINDON AND WILTSHIRE ICB - 92G","RVN","AVON AND WILTSHIRE MENTAL HEALTH PARTNERSHIP NHS TRUST","Mental Health & Learning Disability and Mental Health, Learning Disability & Community Trusts",139,4836,5.8193445243804964,11,28,52,36,12,7,18,45,43,26,6,5,40,48,40,17,17,23,52,30,16,17,21,53,32,19,22,26,54,18,14,17,38,43,27,24,22,42,34,17,15,21,49,40,14,139,139,139]
["Y58","SOUTH WEST COMMISSIONING REGION","QJK","NHS DEVON ICB - 15N","RWV","DEVON PARTNERSHIP NHS TRUST","Mental Health & Learning Disability and Mental Health, Learning Disability & Community Trusts",155,3794,6.258064516129032,7,21,58,55,14,3,14,57,57,24,0,8,43,70,34,4,20,30,73,28,3,18,30,76,28,6,23,42,57,27,7,22,33,56,37,14,27,49,45,20,14,26,48,50,17,155,155,155]
["Y59","SOUTH EAST COMMISSIONING REGION","QRL","NHS HAMPSHIRE AND ISLE OF WIGHT ICB - D9Y0V","R1C","SOLENT NHS TRUST","Mental Health & Learning Disability and Mental Health, Learning Disability & Community Trusts",47,4205,7.2813238770685578,1,4,13,23,6,0,3,8,25,11,1,0,9,15,22,1,3,4,25,14,1,3,3,29,11,1,4,10,22,10,2,2,8,16,19,2,4,10,19,12,1,4,7,21,14,47,47,47]
["Y59","SOUTH EAST COMMISSIONING REGION","QRL","NHS HAMPSHIRE AND ISLE OF WIGHT ICB - D9Y0V","R1F","ISLE OF WIGHT NHS TRUST","Acute and Acute & Community Trusts",455,4116,6.242979242979243,19,71,164,152,49,8,45,127,150,125,5,30,111,155,154,21,50,95,203,86,26,48,73,219,89,28,79,106,180,62,23,60,117,160,95,41,71,164,134,45,43,75,147,150,40,455,455,455]
["Y59","SOUTH EAST COMMISSIONING REGION","QNX","NHS SUSSEX ICB - 09D","RDR","SUSSEX COMMUNITY NHS FOUNDATION TRUST","Community Trusts",638,5519,7.061999303378613,11,65,206,260,96,7,37,146,278,170,5,22,122,243,246,20,63,140,287,128,20,40,130,305,143,24,68,193,247,106,14,27,92,273,232,20,46,140,271,161,13,23,117,303,182,638,638,638]
["Y59","SOUTH EAST COMMISSIONING REGION","QNQ","NHS FRIMLEY ICB - D4U1Y","RDU","FRIMLEY HEALTH NHS FOUNDATION TRUST","Acute and Acute & Community Trusts",2130,10689,6.9135321888031145,50,209,694,859,369,30,120,537,864,591,36,94,468,800,744,65,190,481,1069,361,65,170,467,1079,382,77,234,629,923,295,36,113,308,996,677,102,193,518,940,385,51,126,443,1072,444,2130,2158,2142]
["Y59","SOUTH EAST COMMISSIONING REGION","QRL","NHS HAMPSHIRE AND ISLE OF WIGHT ICB - D9Y0V","RHM","UNIVERSITY HOSPITAL SOUTHAMPTON NHS FOUNDATION TRUST","Acute and Acute & Community Trusts",3323,13536,6.8325556041288849,110,398,1183,1303,396,49,247,907,1463,690,53,166,846,1334,956,86,299,654,1714,614,108,258,631,1748,617,151,413,880,1436,480,80,243,422,1548,1030,137,325,768,1433,661,52,156,648,1673,794,3323,3360,3355]
["Y59","SOUTH EAST COMMISSIONING REGION","QRL","NHS HAMPSHIRE AND ISLE OF WIGHT ICB - D9Y0V","RHU","PORTSMOUTH HOSPITALS UNIVERSITY NATIONAL HEALTH SERVICE TRUST","Acute and Acute & Community Trusts",630,8774,6.352833188311731,13,89,230,232,72,4,46,183,256,148,16,36,145,246,194,36,86,124,277,107,43,64,128,278,118,43,105,165,235,87,36,66,113,249,170,58,110,166,234,69,44,88,173,259,71,634,630,636]
["Y59","SOUTH EAST COMMISSIONING REGION","QU9","NHS BUCKINGHAMSHIRE, OXFORDSHIRE AND BERKSHIRE WEST ICB - 10Q","RHW","ROYAL BERKSHIRE NHS FOUNDATION TRUST","Acute and Acute & Community Trusts",42,6379,6.3624338624338632,3,6,15,10,8,2,5,17,10,8,0,3,14,15,10,2,7,6,16,11,1,6,12,12,11,2,11,9,13,7,2,3,8,16,13,5,7,11,12,7,1,6,5,18,12,42,42,42]
["Y59","SOUTH EAST COMMISSIONING REGION","QRL","NHS HAMPSHIRE AND ISLE OF WIGHT ICB - D9Y0V","RN5","HAMPSHIRE HOSPITALS NHS FOUNDATION TRUST","Acute and Acute & Community Trusts",197,7641,6.6694867456288778,8,18,60,88,23,4,14,43,78,58,5,14,38,67,73,11,19,34,97,36,8,19,24,103,43,13,25,44,85,30,10,14,39,85,49,12,28,54,75,28,7,15,59,84,32,197,197,197]
["Y59","SOUTH EAST COMMISSIONING REGION","QKS","NHS KENT AND MEDWAY ICB - 91Q","RN7","DARTFORD AND GRAVESHAM NHS TRUST","Acute and Acute & Community Trusts",164,4349,6.5938346883468837,7,20,48,63,26,4,14,41,56,49,4,13,37,48,62,14,17,31,57,45,13,18,24,66,43,11,22,41,56,34,6,16,34,61,47,15,24,38,57,30,3,19,47,68,27,164,164,164]
["Y59","SOUTH EAST COMMISSIONING REGION","QU9","NHS BUCKINGHAMSHIRE, OXFORDSHIRE AND BERKSHIRE WEST ICB - 10Q","RNU","OXFORD HEALTH NHS FOUNDATION TRUST","Mental Health & Learning Disability and Mental Health, Learning Disability & Community Trusts",467,6496,6.6458482036640492,16,71,163,151,66,7,34,131,169,126,10,21,89,183,164,23,50,76,205,113,27,35,79,216,110,34,70,104,175,84,19,34,85,191,138,56,53,104,160,94,34,36,106,199,92,467,467,467]
["Y59","SOUTH EAST COMMISSIONING REGION","QKS","NHS KENT AND MEDWAY ICB - 91Q","RPA","MEDWAY NHS FOUNDATION TRUST","Acute and Acute & Community Trusts",80,5187,5.75,10,10,29,22,9,6,9,22,23,20,7,5,14,23,31,12,6,16,29,17,12,12,10,33,13,13,9,17,28,13,13,6,10,30,21,17,12,19,24,8,20,8,22,23,7,80,80,80]
["Y59","SOUTH EAST COMMISSIONING REGION","QNX","NHS SUSSEX ICB - 09D","RPC","QUEEN VICTORIA HOSPITAL NHS FOUNDATION TRUST","Acute Specialist Trusts",158,1142,7.4138537271448657,2,15,42,69,30,1,10,28,69,50,1,6,23,67,61,3,19,27,68,41,6,15,26,67,44,7,24,26,73,28,1,10,12,50,85,5,11,24,69,49,1,2,7,65,83,158,158,158]
["Y59","SOUTH EAST COMMISSIONING REGION","QU9","NHS BUCKINGHAMSHIRE, OXFORDSHIRE AND BERKSHIRE WEST ICB - 10Q","RTH","OXFORD UNIVERSITY HOSPITALS NHS FOUNDATION TRUST","Acute and Acute & Community Trusts",2549,14228,6.8769972935535719,87,275,831,991,409,53,153,678,1034,657,44,120,593,1007,812,97,224,477,1262,510,113,222,457,1262,522,140,294,670,1080,395,59,138,354,1175,825,141,264,613,1032,502,49,136,462,1272,630,2549,2570,2575]
["Y59","SOUTH EAST COMMISSIONING REGION","QKS","NHS KENT AND MEDWAY ICB - 91Q","RVV","EAST KENT HOSPITALS UNIVERSITY NHS FOUNDATION TRUST","Acute and Acute & Community Trusts",2187,11409,6.1364736619587026,96,316,772,778,263,41,223,612,806,525,46,140,577,804,644,110,272,512,1028,292,129,246,463,1071,307,166,354,624,832,240,141,299,468,815,464,256,422,597,673,242,200,370,641,749,230,2187,2214,2207]
["Y59","SOUTH EAST COMMISSIONING REGION","QRL","NHS HAMPSHIRE AND ISLE OF WIGHT ICB - D9Y0V","RW1","SOUTHERN HEALTH NHS FOUNDATION TRUST","Mental Health & Learning Disability and Mental Health, Learning Disability & Community Trusts",668,6774,6.5930638722554882,18,92,242,231,85,8,58,179,282,141,14,44,143,268,199,24,52,126,360,106,23,56,95,370,124,31,87,160,289,101,13,55,149,293,158,50,80,186,252,100,34,68,187,278,101,668,668,668]
["Y59","SOUTH EAST COMMISSIONING REGION","QKS","NHS KENT AND MEDWAY ICB - 91Q","RWF","MAIDSTONE AND TUNBRIDGE WELLS NHS TRUST","Acute and Acute & Community Trusts",717,7439,6.469766712552345,45,108,169,313,83,31,78,109,334,166,23,51,144,306,194,47,98,147,301,125,47,96,146,314,115,53,124,196,252,93,22,61,110,340,185,48,77,182,315,95,29,41,147,368,132,717,718,718]
["Y59","SOUTH EAST COMMISSIONING REGION","QNQ","NHS FRIMLEY ICB - D4U1Y","RWX","BERKSHIRE HEALTHCARE NHS FOUNDATION TRUST","Mental Health & Learning Disability and Mental Health, Learning Disability & Community Trusts",1575,4977,7.4291272310773842,28,121,486,719,248,12,60,368,723,416,15,50,289,618,608,29,96,248,828,396,24,76,239,800,454,34,111,365,746,336,13,28,134,712,690,35,90,246,703,501,25,47,261,756,486,1575,1592,1579]
["Y59","SOUTH EAST COMMISSIONING REGION","QNX","NHS SUSSEX ICB - 09D","RX2","SUSSEX PARTNERSHIP NHS FOUNDATION TRUST","Mental Health & Learning Disability and Mental Health, Learning Disability & Community Trusts",231,5895,5.6746031746031749,16,39,93,68,15,8,28,71,78,46,4,17,58,80,72,13,39,39,106,34,18,32,40,107,34,22,40,60,84,25,33,34,53,86,25,51,47,74,40,19,37,39,78,63,14,231,231,231]
["Y59","SOUTH EAST COMMISSIONING REGION","QNX","NHS SUSSEX ICB - 09D","RXC","EAST SUSSEX HEALTHCARE NHS TRUST","Acute and Acute & Community Trusts",367,8366,5.9854677565849217,19,67,144,93,44,13,44,114,121,75,12,21,95,133,106,30,47,89,137,64,32,43,86,149,57,38,60,114,113,42,22,42,103,140,60,37,62,120,113,35,27,44,101,163,32,367,367,367]
["Y59","SOUTH EAST COMMISSIONING REGION","QU9","NHS BUCKINGHAMSHIRE, OXFORDSHIRE AND BERKSHIRE WEST ICB - 10Q","RXQ","BUCKINGHAMSHIRE HEALTHCARE NHS TRUST","Acute and Acute & Community Trusts",821,6875,6.5989985113005822,29,94,264,334,100,16,64,192,352,197,21,43,157,310,290,34,67,186,407,127,31,71,162,402,155,37,108,223,346,107,34,57,153,374,203,63,94,224,313,127,54,72,226,354,115,821,821,821]
["Y59","SOUTH EAST COMMISSIONING REGION","QXU","NHS SURREY HEARTLANDS  ICB - 92A","RXX","SURREY AND BORDERS PARTNERSHIP NHS FOUNDATION TRUST","Mental Health & Learning Disability and Mental Health, Learning Disability & Community Trusts",108,3314,6.6460905349794244,4,12,34,38,20,4,5,32,38,29,3,2,32,36,35,5,10,22,46,25,7,9,19,49,24,7,12,23,42,24,5,9,22,37,35,7,11,37,32,21,6,12,36,34,20,108,108,108]
["Y59","SOUTH EAST COMMISSIONING REGION","QNX","NHS SUSSEX ICB - 09D","RYD","SOUTH EAST COAST AMBULANCE SERVICE NHS FOUNDATION TRUST","Ambulance Trusts",574,4604,5.2724545102593883,46,103,206,174,45,24,84,148,207,111,40,70,192,204,68,69,112,126,219,48,88,126,139,183,38,106,159,160,117,32,72,74,138,204,86,132,119,136,150,37,48,79,148,247,52,574,574,574]
["Y59","SOUTH EAST COMMISSIONING REGION","QU9","NHS BUCKINGHAMSHIRE, OXFORDSHIRE AND BERKSHIRE WEST ICB - 10Q","RYE","SOUTH CENTRAL AMBULANCE SERVICE NHS FOUNDATION TRUST","Ambulance Trusts",262,4615,5.1706955046649705,22,56,101,62,21,12,46,76,82,46,13,54,79,82,34,39,49,62,96,16,34,51,68,87,22,53,68,66,58,17,30,51,61,82,38,53,56,79,57,17,28,31,65,113,25,262,262,262]
["Y59","SOUTH EAST COMMISSIONING REGION","QNX","NHS SUSSEX ICB - 09D","RYR","UNIVERSITY HOSPITALS SUSSEX NHS FOUNDATION TRUST","Acute and Acute & Community Trusts",562,16851,5.7512850929221031,27,122,234,138,41,17,86,178,191,90,17,51,146,191,157,42,92,110,232,86,42,81,107,242,90,56,132,153,156,65,45,73,131,219,94,79,115,189,142,37,49,92,187,187,47,562,562,562]
["Y59","SOUTH EAST COMMISSIONING REGION","QKS","NHS KENT AND MEDWAY ICB - 91Q","RYY","KENT COMMUNITY HEALTH NHS FOUNDATION TRUST","Community Trusts",873,5217,7.0577192312587487,39,107,268,358,101,24,53,184,388,224,21,24,153,308,367,46,75,134,390,228,45,58,117,406,247,48,90,184,360,191,28,44,113,363,325,58,55,180,341,239,29,31,144,416,253,873,873,873]
["Y60","MIDLANDS COMMISSIONING REGION","QOC","NHS SHROPSHIRE, TELFORD AND WREKIN ICB - M2L0M","R1D","SHROPSHIRE COMMUNITY HEALTH NHS TRUST","Community Trusts",10,1661,5.3888888888888893,0,2,6,2,0,0,1,5,3,1,0,2,3,2,3,0,1,3,4,2,1,2,1,4,2,1,4,0,3,2,2,2,2,4,0,5,1,2,2,0,0,1,5,4,0,10,10,10]
["Y60","MIDLANDS COMMISSIONING REGION","QUA","NHS BLACK COUNTRY ICB - D2P2L","RBK","WALSALL HEALTHCARE NHS TRUST","Acute and Acute & Community Trusts",1094,5165,6.3932053625837897,73,157,322,402,140,58,99,191,513,233,54,72,187,481,300,73,107,238,482,194,80,103,196,513,202,87,122,297,435,153,58,91,188,447,310,93,118,308,415,160,62,129,336,445,122,1094,1094,1094]
["Y60","MIDLANDS COMMISSIONING REGION","QT1","NHS NOTTINGHAM AND NOTTINGHAMSHIRE ICB - 52R","RHA","NOTTINGHAMSHIRE HEALTHCARE NHS FOUNDATION TRUST","Mental Health & Learning Disability and Mental Health, Learning Disability & Community Trusts",793,9343,6.175560011891295,53,171,213,275,85,30,128,169,351,119,22,86,127,365,196,49,105,135,377,128,46,75,141,400,135,64,119,228,288,98,42,75,141,314,221,93,136,205,259,104,63,120,235,274,101,793,794,796]
["Y60","MIDLANDS COMMISSIONING REGION","QWU","NHS COVENTRY AND WARWICKSHIRE ICB - B2M3M","RJC","SOUTH WARWICKSHIRE UNIVERSITY NHS FOUNDATION TRUST","Acute and Acute & Community Trusts",55,5443,6.7727272727272734,2,9,14,22,8,2,8,10,19,16,1,3,19,12,20,3,7,11,21,13,4,5,6,26,14,3,8,12,18,14,4,1,7,22,21,6,4,12,19,14,2,3,12,22,16,55,55,55]
["Y60","MIDLANDS COMMISSIONING REGION","QNC","NHS STAFFORDSHIRE AND STOKE-ON-TRENT ICB - 05W","RJE","UNIVERSITY HOSPITALS OF NORTH MIDLANDS NHS TRUST","Acute and Acute & Community Trusts",12,11957,5.1851851851851851,0,4,4,3,1,0,3,5,3,1,0,2,5,4,1,3,3,1,5,0,3,1,3,5,0,3,1,3,5,0,1,1,2,6,2,2,3,3,2,2,2,0,4,5,1,12,12,12]
["Y60","MIDLANDS COMMISSIONING REGION","QT1","NHS NOTTINGHAM AND NOTTINGHAMSHIRE ICB - 52R","RK5","SHERWOOD FOREST HOSPITALS NHS FOUNDATION TRUST","Acute and Acute & Community Trusts",740,6051,6.8609540279364749,32,113,208,308,83,22,76,156,353,140,11,49,122,344,218,34,87,138,330,151,35,79,120,345,167,40,98,168,320,119,15,53,108,354,217,26,57,105,388,173,6,45,102,422,174,747,740,744]
["Y60","MIDLANDS COMMISSIONING REGION","QWU","NHS COVENTRY AND WARWICKSHIRE ICB - B2M3M","RKB","UNIVERSITY HOSPITALS COVENTRY AND WARWICKSHIRE NHS TRUST","Acute and Acute & Community Trusts",235,9720,6.2943262411347511,22,42,70,76,25,13,29,53,83,57,13,16,47,73,86,15,27,48,100,45,16,22,44,98,55,18,32,60,84,41,14,20,54,100,47,32,21,63,90,29,21,17,56,107,34,235,235,235]
["Y60","MIDLANDS COMMISSIONING REGION","QUA","NHS BLACK COUNTRY ICB - D2P2L","RL4","THE ROYAL WOLVERHAMPTON NHS TRUST","Acute and Acute & Community Trusts",459,11342,6.2981118373275224,28,89,150,144,48,16,42,134,173,94,23,34,105,143,154,23,65,86,194,91,35,62,75,196,91,43,80,118,150,68,22,44,94,192,107,38,63,122,158,78,20,48,114,198,79,459,459,459]
["Y60","MIDLANDS COMMISSIONING REGION","QGH","NHS HEREFORDSHIRE AND WORCESTERSHIRE ICB - 18C","RLQ","WYE VALLEY NHS TRUST","Acute and Acute & Community Trusts",28,3981,6.6765873015873014,0,5,12,8,3,0,1,8,13,6,0,0,5,12,11,1,1,7,13,6,0,1,5,16,6,2,3,12,9,2,0,1,5,16,6,0,3,14,7,4,0,6,10,10,2,28,28,28]
["Y60","MIDLANDS COMMISSIONING REGION","QWU","NHS COVENTRY AND WARWICKSHIRE ICB - B2M3M","RLT","GEORGE ELIOT HOSPITAL NHS TRUST","Acute and Acute & Community Trusts",54,2924,6.5843621399176966,3,6,18,18,9,2,2,14,19,17,1,4,11,24,14,5,2,12,20,15,4,5,8,17,20,4,7,12,16,15,1,9,5,26,13,7,6,13,21,7,6,5,12,23,8,54,54,54]
["Y60","MIDLANDS COMMISSIONING REGION","QNC","NHS STAFFORDSHIRE AND STOKE-ON-TRENT ICB - 05W","RLY","NORTH STAFFORDSHIRE COMBINED HEALTHCARE NHS TRUST","Mental Health & Learning Disability and Mental Health, Learning Disability & Community Trusts",87,1792,6.4655172413793096,4,13,29,31,10,1,8,24,30,24,3,6,20,36,22,4,18,12,29,24,5,13,13,34,22,7,17,16,29,18,6,8,11,39,23,8,8,23,25,23,4,14,25,25,19,87,87,87]
["Y60","MIDLANDS COMMISSIONING REGION","QUA","NHS BLACK COUNTRY ICB - D2P2L","RNA","THE DUDLEY GROUP NHS FOUNDATION TRUST","Acute and Acute & Community Trusts",381,6133,6.469816272965879,21,66,113,133,48,12,35,89,141,104,7,26,74,122,152,23,40,75,168,75,17,47,61,176,80,28,57,80,153,63,17,40,70,159,95,35,44,111,134,57,27,44,108,149,53,381,381,381]
["Y60","MIDLANDS COMMISSIONING REGION","QPM","NHS NORTHAMPTONSHIRE ICB - 78H","RNQ","KETTERING GENERAL HOSPITAL NHS FOUNDATION TRUST","Acute and Acute & Community Trusts",445,4820,5.8583021223470668,35,80,153,128,49,21,59,119,148,98,20,32,122,138,133,34,76,97,175,63,35,58,78,204,70,44,73,112,163,53,31,74,95,168,77,66,74,131,132,42,56,74,121,155,39,445,445,445]
["Y60","MIDLANDS COMMISSIONING REGION","QPM","NHS NORTHAMPTONSHIRE ICB - 78H","RNS","NORTHAMPTON GENERAL HOSPITAL NHS TRUST","Acute and Acute & Community Trusts",446,5856,6.1092426507224715,27,70,163,141,45,14,46,134,153,99,15,25,110,149,147,32,59,92,178,85,31,63,83,182,87,41,75,118,140,72,27,50,101,178,90,57,74,124,142,49,46,64,109,178,49,446,446,446]
["Y60","MIDLANDS COMMISSIONING REGION","QPM","NHS NORTHAMPTONSHIRE ICB - 78H","RP1","NORTHAMPTONSHIRE HEALTHCARE NHS FOUNDATION TRUST","Mental Health & Learning Disability and Mental Health, Learning Disability & Community Trusts",1834,4849,7.2281491554925532,32,153,591,813,290,18,77,438,817,510,15,60,397,726,663,27,121,328,985,415,29,129,318,958,441,44,182,477,842,328,15,68,215,825,712,44,136,355,798,501,25,96,383,818,516,1834,1873,1860]
["Y60","MIDLANDS COMMISSIONING REGION","QJM","NHS LINCOLNSHIRE ICB - 71E","RP7","LINCOLNSHIRE PARTNERSHIP NHS FOUNDATION TRUST","Mental Health & Learning Disability and Mental Health, Learning Disability & Community Trusts",946,2733,7.2918273874026793,22,65,256,464,152,10,42,189,418,295,12,43,185,369,346,20,67,127,498,245,20,61,134,497,245,36,81,222,413,206,14,41,116,387,388,24,54,160,401,308,29,63,197,405,253,946,957,954]
["Y60","MIDLANDS COMMISSIONING REGION","QHL","NHS BIRMINGHAM AND SOLIHULL ICB - 15E","RQ3","BIRMINGHAM WOMEN'S AND CHILDREN'S NHS FOUNDATION TRUST","Acute and Acute & Community Trusts",49,6407,5.895691609977324,6,10,16,15,2,3,9,14,17,6,2,5,17,13,12,9,7,9,16,8,10,2,5,21,11,8,7,10,17,7,2,7,13,15,12,4,8,14,14,9,1,3,13,20,12,49,49,49]
["Y60","MIDLANDS COMMISSIONING REGION","QNC","NHS STAFFORDSHIRE AND STOKE-ON-TRENT ICB - 05W","RRE","MIDLANDS PARTNERSHIP NHS FOUNDATION TRUST","Mental Health & Learning Disability and Mental Health, Learning Disability & Community Trusts",255,10018,7.6601307189542487,2,9,64,133,47,2,9,42,123,79,1,9,38,94,113,3,14,39,95,104,6,14,35,87,113,5,20,59,89,82,3,7,29,91,125,5,17,41,93,99,3,16,38,108,90,255,255,255]
["Y60","MIDLANDS COMMISSIONING REGION","QHL","NHS BIRMINGHAM AND SOLIHULL ICB - 15E","RRJ","THE ROYAL ORTHOPAEDIC HOSPITAL NHS FOUNDATION TRUST","Acute Specialist Trusts",221,1330,7.2221112481378027,5,24,61,92,43,5,15,45,88,70,5,16,53,77,73,6,22,39,108,50,11,20,36,98,56,15,23,39,101,46,7,8,29,94,87,6,15,35,96,73,4,2,26,97,96,225,221,223]
["Y60","MIDLANDS COMMISSIONING REGION","QHL","NHS BIRMINGHAM AND SOLIHULL ICB - 15E","RRK","UNIVERSITY HOSPITALS BIRMINGHAM NHS FOUNDATION TRUST","Acute and Acute & Community Trusts",562,23861,5.7601818900751285,42,104,209,162,45,24,68,182,182,106,26,55,148,181,152,43,83,119,239,78,58,84,110,225,85,71,110,130,188,63,43,74,132,227,86,75,134,158,149,46,47,91,159,206,59,562,562,562]
["Y60","MIDLANDS COMMISSIONING REGION","QK1","NHS LEICESTER, LEICESTERSHIRE AND RUTLAND ICB - 03W","RT5","LEICESTERSHIRE PARTNERSHIP NHS TRUST","Mental Health & Learning Disability and Mental Health, Learning Disability & Community Trusts",340,6305,6.7271241830065351,11,49,101,122,57,4,27,81,125,103,4,16,57,126,137,13,32,49,163,83,15,30,57,160,78,22,42,79,137,60,18,29,61,127,105,32,31,96,122,59,21,33,100,135,51,340,340,340]
["Y60","MIDLANDS COMMISSIONING REGION","QJ2","NHS DERBY AND DERBYSHIRE ICB - 15M","RTG","UNIVERSITY HOSPITALS OF DERBY AND BURTON NHS FOUNDATION TRUST","Acute and Acute & Community Trusts",1425,14404,6.3939571150097469,64,214,467,508,172,35,132,398,524,336,21,74,337,539,454,76,185,345,608,211,83,162,321,638,221,101,244,426,501,153,55,122,243,737,268,83,188,365,620,169,37,120,369,739,160,1425,1425,1425]
["Y60","MIDLANDS COMMISSIONING REGION","QJM","NHS LINCOLNSHIRE ICB - 71E","RWD","UNITED LINCOLNSHIRE HOSPITALS NHS TRUST","Acute and Acute & Community Trusts",2209,9295,6.3839844153228613,112,284,719,809,337,55,182,586,831,581,49,126,524,837,701,104,249,505,998,385,111,244,510,981,394,143,326,628,838,301,83,225,446,889,566,190,314,653,765,295,190,304,703,771,246,2209,2236,2235]
["Y60","MIDLANDS COMMISSIONING REGION","QGH","NHS HEREFORDSHIRE AND WORCESTERSHIRE ICB - 18C","RWP","WORCESTERSHIRE ACUTE HOSPITALS NHS TRUST","Acute and Acute & Community Trusts",1210,7109,6.6019968916086915,38,166,416,447,165,19,72,337,497,295,19,64,273,454,414,43,122,257,580,230,43,133,223,578,249,64,171,295,507,186,31,122,213,542,302,73,162,338,485,154,52,153,341,518,147,1210,1223,1220]
["Y60","MIDLANDS COMMISSIONING REGION","QT1","NHS NOTTINGHAM AND NOTTINGHAMSHIRE ICB - 52R","RX1","NOTTINGHAM UNIVERSITY HOSPITALS NHS TRUST","Acute and Acute & Community Trusts",2117,19481,6.4716842491996012,85,324,747,728,233,33,184,584,843,473,42,134,509,816,616,76,257,366,988,430,86,237,383,1000,411,135,342,547,792,301,65,193,445,843,571,150,345,563,804,255,73,237,534,981,292,2117,2117,2117]
["Y60","MIDLANDS COMMISSIONING REGION","QT1","NHS NOTTINGHAM AND NOTTINGHAMSHIRE ICB - 52R","RX9","EAST MIDLANDS AMBULANCE SERVICE NHS TRUST","Ambulance Trusts",326,4234,5.5010224948875264,24,70,98,100,34,16,32,108,99,71,21,33,107,102,63,25,63,77,119,42,48,74,75,97,32,61,92,77,67,29,48,58,62,99,59,49,62,83,90,42,25,38,81,137,45,326,326,326]
["Y60","MIDLANDS COMMISSIONING REGION","QHL","NHS BIRMINGHAM AND SOLIHULL ICB - 15E","RXK","SANDWELL AND WEST BIRMINGHAM HOSPITALS NHS TRUST","Acute and Acute & Community Trusts",3151,7631,6.8701317464723415,104,313,1010,1191,600,75,179,711,1227,967,75,141,693,1063,1179,129,267,604,1535,688,162,246,597,1521,674,171,332,806,1303,583,93,217,542,1440,929,151,293,775,1335,649,142,273,892,1332,568,3203,3195,3151]
["Y60","MIDLANDS COMMISSIONING REGION","QJ2","NHS DERBY AND DERBYSHIRE ICB - 15M","RXM","DERBYSHIRE HEALTHCARE NHS FOUNDATION TRUST","Mental Health & Learning Disability and Mental Health, Learning Disability & Community Trusts",875,3199,7.0208592877596816,23,84,304,380,99,0,44,222,378,232,0,41,195,333,306,19,59,153,454,200,26,58,164,447,192,35,84,227,397,144,13,56,125,409,274,21,71,185,410,189,22,62,215,412,166,876,885,875]
["Y60","MIDLANDS COMMISSIONING REGION","QHL","NHS BIRMINGHAM AND SOLIHULL ICB - 15E","RXT","BIRMINGHAM AND SOLIHULL MENTAL HEALTH NHS FOUNDATION TRUST","Mental Health & Learning Disability and Mental Health, Learning Disability & Community Trusts",218,4840,6.0206422018348631,12,36,87,56,27,5,18,69,74,52,4,16,63,64,71,13,27,51,88,39,19,30,37,94,38,21,43,49,71,34,14,21,56,76,51,21,44,76,58,19,22,45,73,56,22,218,218,218]
["Y60","MIDLANDS COMMISSIONING REGION","QOC","NHS SHROPSHIRE, TELFORD AND WREKIN ICB - M2L0M","RXW","THE SHREWSBURY AND TELFORD HOSPITAL NHS TRUST","Acute and Acute & Community Trusts",903,7779,6.1720191952750092,59,127,301,295,121,24,69,228,340,242,19,54,192,313,325,56,111,193,399,144,57,108,168,419,151,72,134,243,342,112,53,105,233,325,187,104,142,287,271,99,102,162,286,258,95,903,903,903]
["Y60","MIDLANDS COMMISSIONING REGION","QJM","NHS LINCOLNSHIRE ICB - 71E","RY5","LINCOLNSHIRE COMMUNITY HEALTH SERVICES NHS TRUST","Community Trusts",760,2420,6.9957964912360326,18,97,251,323,89,0,53,202,317,192,0,33,171,293,267,21,79,131,366,172,24,78,112,385,170,30,103,178,328,130,13,44,107,342,255,25,76,175,317,167,12,42,133,359,216,760,769,764]
["Y60","MIDLANDS COMMISSIONING REGION","QJ2","NHS DERBY AND DERBYSHIRE ICB - 15M","RY8","DERBYSHIRE COMMUNITY HEALTH SERVICES NHS FOUNDATION TRUST","Community Trusts",743,4410,7.3090586411978222,23,73,246,304,106,11,41,176,322,196,12,28,127,265,311,27,55,119,345,207,28,46,109,344,223,37,63,166,315,167,8,28,95,333,288,26,39,130,320,234,11,22,81,362,272,748,748,743]
["Y60","MIDLANDS COMMISSIONING REGION","QUA","NHS BLACK COUNTRY ICB - D2P2L","RYA","WEST MIDLANDS AMBULANCE SERVICE UNIVERSITY NHS FOUNDATION TRUST","Ambulance Trusts",510,6661,4.7113289760348591,69,126,178,97,40,27,102,174,130,77,46,83,195,125,61,74,130,123,139,44,91,138,138,113,30,107,181,127,74,21,100,101,107,133,69,119,120,124,115,32,55,91,163,158,43,510,510,510]
["Y60","MIDLANDS COMMISSIONING REGION","QWU","NHS COVENTRY AND WARWICKSHIRE ICB - B2M3M","RYG","COVENTRY AND WARWICKSHIRE PARTNERSHIP NHS TRUST","Mental Health & Learning Disability and Mental Health, Learning Disability & Community Trusts",335,4289,6.352404643449419,16,45,114,122,38,4,34,89,139,69,6,18,70,128,113,10,37,73,154,61,12,42,49,156,76,19,53,97,108,58,22,36,80,125,72,41,54,89,107,44,25,37,116,118,39,335,335,335]
["Y60","MIDLANDS COMMISSIONING REGION","QUA","NHS BLACK COUNTRY ICB - D2P2L","RYK","DUDLEY INTEGRATED HEALTH AND CARE NHS TRUST","Community Trusts",36,478,5.9953703703703702,3,7,11,8,7,2,2,11,8,13,1,2,11,10,12,6,6,7,11,6,5,5,6,15,5,7,5,8,12,4,0,5,10,11,10,2,5,16,11,2,2,1,17,13,3,36,36,36]
["Y60","MIDLANDS COMMISSIONING REGION","QHL","NHS BIRMINGHAM AND SOLIHULL ICB - 15E","RYW","BIRMINGHAM COMMUNITY HEALTHCARE NHS FOUNDATION TRUST","Community Trusts",107,5198,6.5887850467289724,5,15,37,44,6,3,8,26,46,24,3,1,21,37,45,10,10,20,48,19,8,13,11,50,25,7,20,21,41,18,4,8,20,49,26,6,15,28,43,15,2,7,27,51,20,107,107,107]
["Y60","MIDLANDS COMMISSIONING REGION","QUA","NHS BLACK COUNTRY ICB - D2P2L","TAJ","BLACK COUNTRY HEALTHCARE NHS FOUNDATION TRUST","Mental Health & Learning Disability and Mental Health, Learning Disability & Community Trusts",522,3956,5.9541294167730952,34,105,180,142,61,21,57,158,181,105,19,32,122,181,168,44,64,117,206,91,42,66,115,211,88,50,94,138,174,66,38,67,121,187,109,67,94,150,149,62,61,76,173,155,57,522,522,522]
["Y61","EAST OF ENGLAND COMMISSIONING REGION","QH8","NHS MID AND SOUTH ESSEX ICB - 06Q","R1L","ESSEX PARTNERSHIP UNIVERSITY NHS FOUNDATION TRUST","Mental Health & Learning Disability and Mental Health, Learning Disability & Community Trusts",527,6557,6.258697027197976,29,89,167,183,59,18,40,146,185,138,20,31,127,188,161,25,55,105,256,86,28,55,95,260,89,31,89,119,223,65,24,46,125,206,126,49,92,159,164,63,56,82,163,164,62,527,527,527]
["Y61","EAST OF ENGLAND COMMISSIONING REGION","QMM","NHS NORFOLK AND WAVENEY ICB - 26A","RCX","THE QUEEN ELIZABETH HOSPITAL, KING'S LYNN, NHS FOUNDATION TRUST","Acute and Acute & Community Trusts",313,3941,6.0019524316648925,28,44,101,96,44,12,32,77,108,84,10,20,78,104,101,21,42,63,140,47,20,40,63,134,56,29,59,70,118,37,25,47,65,116,60,55,46,86,85,41,41,59,86,95,32,313,313,313]
["Y61","EAST OF ENGLAND COMMISSIONING REGION","QHG","NHS BEDFORDSHIRE, LUTON AND MILTON KEYNES ICB - M1J4Y","RD8","MILTON KEYNES UNIVERSITY HOSPITAL NHS FOUNDATION TRUST","Acute and Acute & Community Trusts",92,4192,5.9601449275362315,8,14,30,32,8,6,9,22,35,20,1,8,28,22,33,9,15,21,33,14,10,19,10,40,13,11,20,21,31,9,6,11,18,37,20,9,17,26,29,11,4,12,28,40,8,92,92,92]
["Y61","EAST OF ENGLAND COMMISSIONING REGION","QUE","NHS CAMBRIDGESHIRE AND PETERBOROUGH ICB - 06H","RGN","NORTH WEST ANGLIA NHS FOUNDATION TRUST","Acute and Acute & Community Trusts",133,7330,6.3157894736842097,7,23,53,37,13,0,13,36,48,36,2,9,22,50,50,5,18,29,58,23,7,11,26,64,25,6,18,31,57,21,6,15,30,52,30,17,21,40,44,11,12,17,46,45,13,133,133,133]
["Y61","EAST OF ENGLAND COMMISSIONING REGION","QJG","NHS SUFFOLK AND NORTH EAST ESSEX ICB - 07K","RGR","WEST SUFFOLK NHS FOUNDATION TRUST","Acute and Acute & Community Trusts",1438,5267,6.9158222759804424,41,152,480,630,176,24,88,350,645,345,18,59,318,589,472,39,116,289,737,281,47,115,301,712,287,62,157,405,600,239,25,81,225,696,413,48,131,322,663,276,31,96,289,701,321,1438,1462,1452]
["Y61","EAST OF ENGLAND COMMISSIONING REGION","QUE","NHS CAMBRIDGESHIRE AND PETERBOROUGH ICB - 06H","RGT","CAMBRIDGE UNIVERSITY HOSPITALS NHS FOUNDATION TRUST","Acute and Acute & Community Trusts",2880,12276,6.8916714466569644,91,320,972,1136,416,47,187,755,1214,700,51,150,683,1144,880,106,294,582,1381,548,112,280,579,1382,556,173,381,769,1172,413,58,142,359,1388,933,117,242,593,1296,638,59,149,407,1425,842,2880,2908,2903]
["Y61","EAST OF ENGLAND COMMISSIONING REGION","QMM","NHS NORFOLK AND WAVENEY ICB - 26A","RM1","NORFOLK AND NORWICH UNIVERSITY HOSPITALS NHS FOUNDATION TRUST","Acute and Acute & Community Trusts",388,9383,6.0996563573883158,26,56,142,126,38,15,37,111,146,79,11,23,77,148,129,31,42,91,160,64,29,46,66,183,64,42,66,99,138,43,26,53,88,148,73,42,75,111,122,38,27,45,108,166,42,388,388,388]
["Y61","EAST OF ENGLAND COMMISSIONING REGION","QMM","NHS NORFOLK AND WAVENEY ICB - 26A","RMY","NORFOLK AND SUFFOLK NHS FOUNDATION TRUST","Mental Health & Learning Disability and Mental Health, Learning Disability & Community Trusts",22,5055,5.1515151515151514,3,5,6,7,1,1,3,9,5,4,1,3,7,6,5,4,4,5,7,2,2,5,4,9,2,4,5,4,7,2,4,2,5,8,3,8,2,4,6,2,6,3,4,5,4,22,22,22]
["Y61","EAST OF ENGLAND COMMISSIONING REGION","QM7","NHS HERTFORDSHIRE AND WEST ESSEX ICB - 07H","RQW","THE PRINCESS ALEXANDRA HOSPITAL NHS TRUST","Acute and Acute & Community Trusts",103,3990,5.6850053937432579,12,14,41,27,9,5,16,26,38,18,4,8,26,33,32,13,18,13,36,23,13,10,16,42,22,17,23,10,41,12,10,14,22,40,17,18,21,28,27,9,13,18,42,22,8,103,103,103]
["Y61","EAST OF ENGLAND COMMISSIONING REGION","QUE","NHS CAMBRIDGESHIRE AND PETERBOROUGH ICB - 06H","RT1","CAMBRIDGESHIRE AND PETERBOROUGH NHS FOUNDATION TRUST","Mental Health & Learning Disability and Mental Health, Learning Disability & Community Trusts",2429,4789,7.3902154521751058,30,162,683,1046,508,18,80,482,1014,835,20,76,434,896,1003,32,119,429,1180,669,32,108,404,1194,691,43,166,588,1077,555,24,90,345,974,996,83,153,558,977,658,57,117,495,1058,702,2429,2429,2429]
["Y61","EAST OF ENGLAND COMMISSIONING REGION","QM7","NHS HERTFORDSHIRE AND WEST ESSEX ICB - 07H","RWG","WEST HERTFORDSHIRE TEACHING HOSPITALS NHS TRUST","Acute and Acute & Community Trusts",486,5589,5.8830589849108366,30,86,164,148,58,16,53,135,184,98,16,23,111,181,155,33,63,117,216,57,36,54,111,228,57,45,81,139,186,35,41,68,102,201,74,66,91,146,152,31,59,81,167,155,24,486,486,486]
["Y61","EAST OF ENGLAND COMMISSIONING REGION","QM7","NHS HERTFORDSHIRE AND WEST ESSEX ICB - 07H","RWR","HERTFORDSHIRE PARTNERSHIP UNIVERSITY NHS FOUNDATION TRUST","Mental Health & Learning Disability and Mental Health, Learning Disability & Community Trusts",945,4182,7.2548094492538935,15,85,282,415,169,10,57,213,415,267,11,32,197,369,356,24,58,156,493,231,25,56,165,483,235,28,90,221,424,200,12,32,103,381,417,29,77,172,363,307,20,67,195,411,255,945,962,962]
["Y61","EAST OF ENGLAND COMMISSIONING REGION","QMM","NHS NORFOLK AND WAVENEY ICB - 26A","RY3","NORFOLK COMMUNITY HEALTH AND CARE NHS TRUST","Community Trusts",510,2474,7.2903050108932463,7,52,155,216,80,1,26,102,231,150,2,14,82,196,216,16,30,72,265,127,16,28,80,234,152,16,51,125,208,110,11,22,71,223,183,18,25,105,201,161,12,31,76,232,159,510,510,510]
["Y61","EAST OF ENGLAND COMMISSIONING REGION","QM7","NHS HERTFORDSHIRE AND WEST ESSEX ICB - 07H","RY4","HERTFORDSHIRE COMMUNITY NHS TRUST","Community Trusts",264,2422,7.2485269360269351,3,34,62,120,45,0,19,57,99,89,1,7,35,81,140,12,24,39,112,77,11,19,28,132,74,12,34,52,105,61,7,14,33,107,103,15,26,45,98,80,12,7,53,109,83,264,264,264]
["Y61","EAST OF ENGLAND COMMISSIONING REGION","QUE","NHS CAMBRIDGESHIRE AND PETERBOROUGH ICB - 06H","RYC","EAST OF ENGLAND AMBULANCE SERVICE NHS TRUST","Ambulance Trusts",1451,6007,5.8205557298264159,75,206,504,535,169,42,147,406,558,329,68,145,493,510,268,125,259,324,594,165,181,308,358,460,168,223,366,415,337,133,84,193,272,608,294,186,285,377,467,139,83,166,345,632,228,1451,1467,1482]
["Y61","EAST OF ENGLAND COMMISSIONING REGION","QUE","NHS CAMBRIDGESHIRE AND PETERBOROUGH ICB - 06H","RYV","CAMBRIDGESHIRE COMMUNITY SERVICES NHS TRUST","Community Trusts",41,2637,6.7750677506775068,2,5,16,12,6,1,4,11,14,11,0,0,9,15,17,3,5,7,16,10,3,3,10,17,8,4,7,9,13,8,1,5,2,22,11,3,2,9,17,10,0,3,6,22,10,41,41,41]
["Y62","NORTH WEST COMMISSIONING REGION","QOP","NHS GREATER MANCHESTER ICB - 00T","R0A","MANCHESTER UNIVERSITY NHS FOUNDATION TRUST","Acute and Acute & Community Trusts",3328,29187,6.5702212324703524,161,479,1124,1179,440,86,288,829,1358,773,88,174,771,1214,1081,191,365,634,1575,617,195,341,562,1579,695,224,460,772,1356,546,144,311,616,1409,909,248,459,859,1235,577,157,328,785,1490,612,3372,3358,3328]
["Y62","NORTH WEST COMMISSIONING REGION","QYG","NHS CHESHIRE AND MERSEYSIDE ICB - 01J","RBL","WIRRAL UNIVERSITY TEACHING HOSPITAL NHS FOUNDATION TRUST","Acute and Acute & Community Trusts",748,6784,6.328357100415924,41,120,260,232,95,19,63,190,263,213,22,44,144,235,303,46,83,174,314,131,53,86,156,312,141,61,109,204,270,104,60,84,140,295,169,89,99,208,257,95,43,93,178,322,112,748,748,748]
["Y62","NORTH WEST COMMISSIONING REGION","QYG","NHS CHESHIRE AND MERSEYSIDE ICB - 01J","RBN","MERSEY AND WEST LANCASHIRE TEACHING HOSPITALS NHS TRUST","Acute and Acute & Community Trusts",196,10855,6.3803854875283461,19,24,66,62,25,9,18,46,56,67,9,13,47,62,65,19,24,32,78,43,15,28,38,72,43,15,28,48,71,34,11,21,37,66,61,21,36,44,55,40,11,24,42,68,51,196,196,196]
["Y62","NORTH WEST COMMISSIONING REGION","QYG","NHS CHESHIRE AND MERSEYSIDE ICB - 01J","RBQ","LIVERPOOL HEART AND CHEST HOSPITAL NHS FOUNDATION TRUST","Acute Specialist Trusts",166,1952,7.3945783132530112,5,19,49,61,32,3,12,33,67,51,2,7,44,51,62,7,17,24,69,49,4,17,19,74,52,5,21,40,51,49,6,5,8,66,81,7,11,26,51,71,3,4,8,58,93,166,166,166]
["Y62","NORTH WEST COMMISSIONING REGION","QYG","NHS CHESHIRE AND MERSEYSIDE ICB - 01J","RBT","MID CHESHIRE HOSPITALS NHS FOUNDATION TRUST","Acute and Acute & Community Trusts",807,5629,6.8404929092661435,33,96,271,288,119,15,57,178,315,242,19,33,158,279,318,43,70,150,373,171,45,65,132,380,185,44,96,199,326,142,29,45,125,352,256,44,72,212,313,166,27,52,185,379,164,807,807,807]
["Y62","NORTH WEST COMMISSIONING REGION","QOP","NHS GREATER MANCHESTER ICB - 00T","RBV","THE CHRISTIE NHS FOUNDATION TRUST","Acute Specialist Trusts",112,3633,7.0411706349206353,6,20,32,37,17,1,11,31,43,26,4,8,22,37,41,5,7,12,59,29,6,7,13,47,39,8,12,20,51,21,1,7,15,51,38,9,11,16,52,24,1,5,12,42,52,112,112,112]
["Y62","NORTH WEST COMMISSIONING REGION","QYG","NHS CHESHIRE AND MERSEYSIDE ICB - 01J","REM","LIVERPOOL UNIVERSITY HOSPITALS NHS FOUNDATION TRUST","Acute and Acute & Community Trusts",1341,15194,6.0618112519678524,98,250,466,384,143,62,145,387,450,297,51,93,305,490,402,106,188,303,565,179,109,171,270,586,205,123,218,373,469,158,106,124,291,520,300,194,192,400,388,167,101,116,370,539,215,1341,1341,1341]
["Y62","NORTH WEST COMMISSIONING REGION","QYG","NHS CHESHIRE AND MERSEYSIDE ICB - 01J","REN","THE CLATTERBRIDGE CANCER CENTRE NHS FOUNDATION TRUST","Acute Specialist Trusts",547,1840,7.3654275848060129,16,59,136,264,72,6,46,83,300,112,9,37,73,280,148,9,49,66,281,142,8,47,60,277,155,10,61,113,252,111,1,22,54,213,257,17,28,101,230,171,1,13,42,241,250,547,547,547]
["Y62","NORTH WEST COMMISSIONING REGION","QYG","NHS CHESHIRE AND MERSEYSIDE ICB - 01J","REP","LIVERPOOL WOMEN'S NHS FOUNDATION TRUST","Acute Specialist Trusts",82,1803,6.6869918699186996,6,7,22,36,11,5,2,20,33,22,4,3,12,33,30,5,13,16,29,19,4,12,13,31,22,6,15,21,22,18,3,5,15,31,28,8,13,18,22,21,4,2,17,37,22,82,82,82]
["Y62","NORTH WEST COMMISSIONING REGION","QYG","NHS CHESHIRE AND MERSEYSIDE ICB - 01J","RET","THE WALTON CENTRE NHS FOUNDATION TRUST","Acute Specialist Trusts",104,1573,7.3076923076923075,2,11,29,46,16,0,12,17,45,30,0,7,18,33,46,2,12,19,40,31,4,7,14,49,30,4,14,18,40,28,1,2,16,44,41,5,9,20,41,29,1,1,15,37,50,104,104,104]
["Y62","NORTH WEST COMMISSIONING REGION","QYG","NHS CHESHIRE AND MERSEYSIDE ICB - 01J","RJN","EAST CHESHIRE NHS TRUST","Acute and Acute & Community Trusts",39,2753,6.5954415954415948,0,10,12,10,7,0,4,11,11,13,1,1,6,15,16,3,2,6,19,9,4,3,4,19,9,6,3,11,10,9,1,3,7,18,10,4,4,15,11,5,1,4,14,11,9,39,39,39]
["Y62","NORTH WEST COMMISSIONING REGION","QYG","NHS CHESHIRE AND MERSEYSIDE ICB - 01J","RJR","COUNTESS OF CHESTER HOSPITAL NHS FOUNDATION TRUST","Acute and Acute & Community Trusts",87,4968,5.7822477650063862,7,16,29,27,8,4,8,26,30,19,4,3,16,34,30,11,10,15,35,16,10,14,14,34,15,13,12,23,28,11,9,13,22,29,14,16,17,25,24,5,9,14,28,31,5,87,87,87]
["Y62","NORTH WEST COMMISSIONING REGION","QOP","NHS GREATER MANCHESTER ICB - 00T","RM3","NORTHERN CARE ALLIANCE NHS FOUNDATION TRUST","Acute and Acute & Community Trusts",1514,20832,5.9731395860854244,127,290,513,428,156,79,191,430,508,306,53,123,377,512,449,125,211,324,624,230,118,190,304,647,255,133,257,408,503,213,125,196,330,560,303,230,240,418,455,171,107,182,451,573,201,1514,1514,1514]
["Y62","NORTH WEST COMMISSIONING REGION","QOP","NHS GREATER MANCHESTER ICB - 00T","RMC","BOLTON NHS FOUNDATION TRUST","Acute and Acute & Community Trusts",149,6800,6.1204325130499626,12,25,40,48,24,5,18,42,39,45,8,8,34,57,42,15,18,28,56,32,14,16,21,65,33,18,26,34,49,22,11,17,27,60,34,27,17,40,46,19,19,15,44,45,26,149,149,149]
["Y62","NORTH WEST COMMISSIONING REGION","QOP","NHS GREATER MANCHESTER ICB - 00T","RMP","TAMESIDE AND GLOSSOP INTEGRATED CARE NHS FOUNDATION TRUST","Acute and Acute & Community Trusts",91,4557,6.5781440781440779,5,17,33,24,12,1,6,26,31,27,2,2,20,27,40,3,12,10,44,22,6,3,20,42,20,4,11,32,30,14,2,10,15,42,22,6,9,33,32,11,2,17,25,36,11,91,91,91]
["Y62","NORTH WEST COMMISSIONING REGION","QOP","NHS GREATER MANCHESTER ICB - 00T","RRF","WRIGHTINGTON, WIGAN AND LEIGH NHS FOUNDATION TRUST","Acute and Acute & Community Trusts",37,7264,6.2537537537537533,3,8,11,12,3,2,4,13,13,5,1,3,11,14,8,2,4,11,9,11,2,3,9,13,10,2,5,10,13,7,1,6,4,17,9,4,3,11,13,6,3,3,12,14,5,37,37,37]
["Y62","NORTH WEST COMMISSIONING REGION","QOP","NHS GREATER MANCHESTER ICB - 00T","RT2","PENNINE CARE NHS FOUNDATION TRUST","Mental Health & Learning Disability and Mental Health, Learning Disability & Community Trusts",80,4019,6.25,7,12,18,29,14,4,10,17,26,23,6,8,19,20,27,6,11,10,34,19,6,9,16,34,15,8,15,20,23,14,5,6,15,34,20,11,10,18,27,14,9,8,21,30,12,80,80,80]
["Y62","NORTH WEST COMMISSIONING REGION","QE1","NHS LANCASHIRE AND SOUTH CUMBRIA ICB - 01E","RTX","UNIVERSITY HOSPITALS OF MORECAMBE BAY NHS FOUNDATION TRUST","Acute and Acute & Community Trusts",44,7524,6.3068181818181825,3,5,19,10,7,1,4,17,14,8,2,3,13,13,13,1,7,8,20,8,1,7,5,26,5,1,10,11,17,5,2,3,12,15,12,3,5,16,14,6,2,5,12,19,6,44,44,44]
["Y62","NORTH WEST COMMISSIONING REGION","QYG","NHS CHESHIRE AND MERSEYSIDE ICB - 01J","RW4","MERSEY CARE NHS FOUNDATION TRUST","Mental Health & Learning Disability and Mental Health, Learning Disability & Community Trusts",1362,11102,6.8775493555229232,55,159,422,516,210,25,98,287,524,428,27,60,232,452,591,67,118,203,660,314,72,95,181,684,330,74,152,295,571,270,53,88,259,535,427,115,153,331,485,278,60,87,333,575,307,1362,1362,1362]
["Y62","NORTH WEST COMMISSIONING REGION","QE1","NHS LANCASHIRE AND SOUTH CUMBRIA ICB - 01E","RW5","LANCASHIRE & SOUTH CUMBRIA NHS FOUNDATION TRUST","Mental Health & Learning Disability and Mental Health, Learning Disability & Community Trusts",1195,7660,6.8391445839144582,29,142,405,470,149,13,62,273,505,342,12,46,279,437,421,48,83,216,578,270,52,88,192,580,283,55,128,289,518,205,36,81,222,522,334,73,116,274,500,232,45,107,324,529,190,1195,1195,1195]
["Y62","NORTH WEST COMMISSIONING REGION","QOP","NHS GREATER MANCHESTER ICB - 00T","RWJ","STOCKPORT NHS FOUNDATION TRUST","Acute and Acute & Community Trusts",90,6242,5.9876543209876543,7,21,31,20,11,2,13,23,32,20,4,8,17,23,38,8,12,16,35,19,7,12,15,36,20,9,12,23,32,14,10,12,19,30,19,13,20,24,23,10,11,14,21,35,9,90,90,90]
["Y62","NORTH WEST COMMISSIONING REGION","QYG","NHS CHESHIRE AND MERSEYSIDE ICB - 01J","RWW","WARRINGTON AND HALTON TEACHING HOSPITALS NHS FOUNDATION TRUST","Acute and Acute & Community Trusts",91,4664,6.6452991452991457,2,18,23,36,12,0,11,26,29,25,1,4,19,32,35,2,16,19,31,23,4,11,13,39,24,4,15,20,32,20,0,11,13,40,27,4,17,23,31,16,8,8,23,38,14,91,91,91]
["Y62","NORTH WEST COMMISSIONING REGION","QOP","NHS GREATER MANCHESTER ICB - 00T","RX7","NORTH WEST AMBULANCE SERVICE NHS TRUST","Ambulance Trusts",1103,7179,6.3434396741050945,44,175,367,403,137,23,113,306,439,235,30,108,332,417,229,69,172,205,471,203,109,174,217,416,205,137,195,281,333,174,41,104,200,441,317,90,143,244,416,210,34,78,230,513,249,1103,1120,1116]
["Y62","NORTH WEST COMMISSIONING REGION","QYG","NHS CHESHIRE AND MERSEYSIDE ICB - 01J","RXA","CHESHIRE AND WIRRAL PARTNERSHIP NHS FOUNDATION TRUST","Mental Health & Learning Disability and Mental Health, Learning Disability & Community Trusts",601,4345,7.0211163906077703,16,57,176,279,77,6,33,150,253,160,11,21,120,235,216,23,42,115,281,143,31,36,86,300,151,38,60,137,245,121,12,28,91,296,178,24,50,125,270,137,13,39,134,290,128,604,601,602]
["Y62","NORTH WEST COMMISSIONING REGION","QE1","NHS LANCASHIRE AND SOUTH CUMBRIA ICB - 01E","RXL","BLACKPOOL TEACHING HOSPITALS NHS FOUNDATION TRUST","Acute and Acute & Community Trusts",360,8309,6.7391975308641969,16,52,110,143,39,5,26,97,133,99,4,17,92,109,138,14,32,72,160,82,12,25,59,177,87,18,43,78,151,70,9,24,71,155,101,21,29,108,146,56,20,36,101,148,55,360,360,360]
["Y62","NORTH WEST COMMISSIONING REGION","QE1","NHS LANCASHIRE AND SOUTH CUMBRIA ICB - 01E","RXN","LANCASHIRE TEACHING HOSPITALS NHS FOUNDATION TRUST","Acute and Acute & Community Trusts",1501,10291,6.606507303121937,51,179,554,565,184,24,102,409,654,318,22,72,348,595,472,46,142,289,779,268,47,135,271,801,271,89,192,382,661,197,48,128,266,676,383,100,174,436,578,215,74,183,417,612,215,1501,1521,1507]
["Y62","NORTH WEST COMMISSIONING REGION","QE1","NHS LANCASHIRE AND SOUTH CUMBRIA ICB - 01E","RXR","EAST LANCASHIRE HOSPITALS NHS TRUST","Acute and Acute & Community Trusts",35,10213,6.5079365079365088,4,6,10,9,6,2,3,12,9,9,1,2,6,12,14,1,4,5,15,10,1,3,3,18,10,1,8,9,10,7,1,1,6,16,11,9,2,9,9,6,2,8,6,11,8,35,35,35]
["Y62","NORTH WEST COMMISSIONING REGION","QOP","NHS GREATER MANCHESTER ICB - 00T","RXV","GREATER MANCHESTER MENTAL HEALTH NHS FOUNDATION TRUST","Mental Health & Learning Disability and Mental Health, Learning Disability & Community Trusts",1486,6861,6.6080629257666663,53,188,558,547,169,29,92,408,645,325,26,81,348,613,430,42,118,269,762,310,52,124,252,774,299,62,174,356,677,231,50,120,284,637,398,110,210,382,538,249,116,204,410,531,225,1486,1500,1498]
["Y62","NORTH WEST COMMISSIONING REGION","QYG","NHS CHESHIRE AND MERSEYSIDE ICB - 01J","RY2","BRIDGEWATER COMMUNITY HEALTHCARE NHS FOUNDATION TRUST","Community Trusts",205,1579,6.8943089430894311,5,28,59,87,26,4,16,46,76,63,3,9,44,77,72,13,22,36,89,45,9,18,31,96,51,9,24,45,90,37,12,15,24,90,64,14,26,45,68,52,2,15,31,94,63,205,205,205]
["Y62","NORTH WEST COMMISSIONING REGION","QYG","NHS CHESHIRE AND MERSEYSIDE ICB - 01J","RY7","WIRRAL COMMUNITY HEALTH AND CARE NHS FOUNDATION TRUST","Community Trusts",354,1757,7.1641556811048339,13,42,100,136,63,4,23,79,137,111,2,15,52,120,165,8,33,75,149,89,11,26,59,165,93,13,34,91,139,77,8,18,55,140,133,16,37,78,124,99,5,12,61,164,112,354,354,354]
["Y63","NORTH EAST AND YORKSHIRE COMMISSIONING REGION","QHM","NHS  NORTH EAST AND NORTH CUMBRIA ICB - 00L","R0B","SOUTH TYNESIDE AND SUNDERLAND NHS FOUNDATION TRUST","Acute and Acute & Community Trusts",160,9548,5.5451388888888884,20,32,67,27,14,8,23,53,42,34,8,13,44,47,48,10,29,45,57,19,16,28,37,58,21,18,44,36,49,13,7,22,46,53,32,33,32,45,33,17,19,30,45,49,17,160,160,160]
["Y63","NORTH EAST AND YORKSHIRE COMMISSIONING REGION","QWO","NHS WEST YORKSHIRE ICB - 02T","RAE","BRADFORD TEACHING HOSPITALS NHS FOUNDATION TRUST","Acute and Acute & Community Trusts",77,6767,6.3924963924963931,6,11,27,26,7,2,5,21,34,15,1,6,17,30,23,5,7,11,33,21,5,13,9,33,17,6,13,15,27,16,4,6,17,32,18,9,10,22,22,14,8,6,21,28,14,77,77,77]
["Y63","NORTH EAST AND YORKSHIRE COMMISSIONING REGION","QOQ","NHS HUMBER AND NORTH YORKSHIRE ICB - 02Y","RCB","YORK AND SCARBOROUGH TEACHING HOSPITALS NHS FOUNDATION TRUST","Acute and Acute & Community Trusts",318,10211,5.9425227113906365,18,68,110,96,26,6,39,90,131,52,7,18,87,99,107,22,37,58,146,55,28,34,49,153,54,31,58,75,110,44,15,46,85,122,50,43,61,101,88,25,31,61,117,86,23,318,318,318]
["Y63","NORTH EAST AND YORKSHIRE COMMISSIONING REGION","QOQ","NHS HUMBER AND NORTH YORKSHIRE ICB - 02Y","RCD","HARROGATE AND DISTRICT NHS FOUNDATION TRUST","Acute and Acute & Community Trusts",1332,5180,7.1450958987366748,36,124,436,533,218,10,60,299,588,388,9,35,204,436,661,43,122,250,537,391,48,83,229,588,394,50,147,351,513,278,24,86,211,580,436,48,116,298,566,305,17,71,288,672,284,1332,1339,1345]
["Y63","NORTH EAST AND YORKSHIRE COMMISSIONING REGION","QWO","NHS WEST YORKSHIRE ICB - 02T","RCF","AIREDALE NHS FOUNDATION TRUST","Acute and Acute & Community Trusts",299,3762,6.3851727982162769,13,59,96,96,35,7,32,81,111,68,8,15,66,98,112,17,29,71,123,59,21,34,43,136,65,26,50,68,104,51,12,40,58,128,61,33,31,73,114,48,18,39,67,128,47,299,299,299]
["Y63","NORTH EAST AND YORKSHIRE COMMISSIONING REGION","QF7","NHS SOUTH YORKSHIRE ICB - 02P","RCU","SHEFFIELD CHILDREN'S NHS FOUNDATION TRUST","Acute and Acute & Community Trusts",427,3944,7.0576372625552963,17,43,151,167,49,9,27,107,183,101,10,16,101,164,136,15,35,56,212,109,15,31,56,215,110,17,50,91,192,77,11,12,63,192,149,21,27,91,175,113,16,12,50,208,141,427,427,427]
["Y63","NORTH EAST AND YORKSHIRE COMMISSIONING REGION","QF7","NHS SOUTH YORKSHIRE ICB - 02P","RFF","BARNSLEY HOSPITAL NHS FOUNDATION TRUST","Acute and Acute & Community Trusts",147,4369,6.5173847316704467,6,21,47,50,23,2,10,36,57,42,2,6,29,60,50,6,22,19,67,33,9,15,24,71,28,10,28,37,53,19,9,14,29,58,37,9,22,38,54,24,9,20,35,63,20,147,147,147]
["Y63","NORTH EAST AND YORKSHIRE COMMISSIONING REGION","QF7","NHS SOUTH YORKSHIRE ICB - 02P","RFR","THE ROTHERHAM NHS FOUNDATION TRUST","Acute and Acute & Community Trusts",62,4865,6.0528673835125453,4,13,18,21,6,1,9,15,26,11,2,7,10,18,25,4,6,19,20,13,5,9,15,23,10,5,12,13,23,9,5,4,16,21,16,8,10,19,16,9,6,9,23,20,4,62,62,62]
["Y63","NORTH EAST AND YORKSHIRE COMMISSIONING REGION","QWO","NHS WEST YORKSHIRE ICB - 02T","RGD","LEEDS AND YORK PARTNERSHIP NHS FOUNDATION TRUST","Mental Health & Learning Disability and Mental Health, Learning Disability & Community Trusts",296,3126,7.1921921921921923,7,22,92,133,42,2,14,54,143,83,6,8,55,128,99,7,22,31,149,87,5,20,23,156,92,8,30,45,145,68,5,18,51,127,95,13,27,59,119,78,13,24,71,111,77,296,296,296]
["Y63","NORTH EAST AND YORKSHIRE COMMISSIONING REGION","QF7","NHS SOUTH YORKSHIRE ICB - 02P","RHQ","SHEFFIELD TEACHING HOSPITALS NHS FOUNDATION TRUST","Acute and Acute & Community Trusts",1129,17944,6.3778171439818907,68,212,409,336,104,30,110,331,432,226,31,69,273,421,335,61,125,239,521,183,69,107,232,522,199,91,173,303,422,140,39,95,215,498,282,76,165,307,435,146,27,93,280,542,187,1129,1129,1129]
["Y63","NORTH EAST AND YORKSHIRE COMMISSIONING REGION","QOQ","NHS HUMBER AND NORTH YORKSHIRE ICB - 02Y","RJL","NORTHERN LINCOLNSHIRE AND GOOLE NHS FOUNDATION TRUST","Acute and Acute & Community Trusts",142,7085,5.3305946791862278,15,34,46,35,12,10,25,35,43,29,10,12,38,43,39,14,24,29,60,15,17,26,27,54,18,19,32,42,33,16,15,22,42,44,19,35,26,41,35,5,28,20,43,39,12,142,142,142]
["Y63","NORTH EAST AND YORKSHIRE COMMISSIONING REGION","QHM","NHS  NORTH EAST AND NORTH CUMBRIA ICB - 00L","RNN","NORTH CUMBRIA INTEGRATED CARE NHS FOUNDATION TRUST","Acute and Acute & Community Trusts",396,7353,5.8971661054994398,15,77,149,125,30,11,48,117,145,75,11,26,103,151,105,22,65,74,177,58,24,58,61,186,67,29,73,96,155,43,26,58,110,142,60,56,79,121,115,25,43,65,135,126,27,396,396,396]
["Y63","NORTH EAST AND YORKSHIRE COMMISSIONING REGION","QHM","NHS  NORTH EAST AND NORTH CUMBRIA ICB - 00L","RR7","GATESHEAD HEALTH NHS FOUNDATION TRUST","Acute and Acute & Community Trusts",95,5359,6.640350877192982,7,17,30,30,11,3,9,27,36,20,3,4,18,40,30,4,9,22,39,21,5,9,21,39,21,5,11,23,38,18,3,6,15,43,28,4,12,23,37,19,3,8,22,42,20,95,95,95]
["Y63","NORTH EAST AND YORKSHIRE COMMISSIONING REGION","QWO","NHS WEST YORKSHIRE ICB - 02T","RR8","LEEDS TEACHING HOSPITALS NHS TRUST","Acute and Acute & Community Trusts",1543,20689,6.7428170231151441,63,193,491,604,192,27,100,408,623,385,23,84,353,600,483,60,169,273,700,341,81,147,265,717,333,95,221,375,609,243,44,113,230,647,509,90,177,363,630,283,47,103,326,754,313,1543,1543,1543]
["Y63","NORTH EAST AND YORKSHIRE COMMISSIONING REGION","QHM","NHS  NORTH EAST AND NORTH CUMBRIA ICB - 00L","RTF","NORTHUMBRIA HEALTHCARE NHS FOUNDATION TRUST","Acute and Acute & Community Trusts",4114,9211,7.1979149786636425,133,366,1348,1621,646,53,198,963,1736,1164,59,159,941,1561,1394,109,374,824,2010,797,133,335,694,2089,883,123,417,983,1880,711,43,117,459,1865,1630,85,180,655,1931,1263,50,135,554,2050,1325,4114,4114,4114]
["Y63","NORTH EAST AND YORKSHIRE COMMISSIONING REGION","QHM","NHS  NORTH EAST AND NORTH CUMBRIA ICB - 00L","RVW","NORTH TEES AND HARTLEPOOL NHS FOUNDATION TRUST","Acute and Acute & Community Trusts",51,5934,6.715686274509804,3,5,19,19,5,4,1,9,23,14,1,1,14,20,15,4,4,8,22,13,4,2,5,22,18,6,2,7,25,11,4,1,10,21,15,3,7,14,19,8,2,5,13,26,5,51,51,51]
["Y63","NORTH EAST AND YORKSHIRE COMMISSIONING REGION","QOQ","NHS HUMBER AND NORTH YORKSHIRE ICB - 02Y","RWA","HULL UNIVERSITY TEACHING HOSPITALS NHS TRUST","Acute and Acute & Community Trusts",1893,9682,6.4632858944501193,78,262,684,687,217,33,138,552,743,443,34,94,523,683,580,81,205,410,898,324,90,217,399,897,311,100,287,532,747,249,66,184,388,817,438,123,255,496,749,271,96,212,508,819,261,1893,1914,1909]
["Y63","NORTH EAST AND YORKSHIRE COMMISSIONING REGION","QWO","NHS WEST YORKSHIRE ICB - 02T","RWY","CALDERDALE AND HUDDERSFIELD NHS FOUNDATION TRUST","Acute and Acute & Community Trusts",282,6698,6.305161544523247,15,62,98,89,18,4,32,81,119,46,11,26,77,88,80,6,46,56,128,46,11,34,55,135,47,14,48,72,105,43,10,22,53,125,72,23,40,74,109,36,11,30,81,119,41,282,282,282]
["Y63","NORTH EAST AND YORKSHIRE COMMISSIONING REGION","QHM","NHS  NORTH EAST AND NORTH CUMBRIA ICB - 00L","RX3","TEES, ESK AND WEAR VALLEYS NHS FOUNDATION TRUST","Mental Health & Learning Disability and Mental Health, Learning Disability & Community Trusts",823,7998,6.7007560415822871,28,105,248,345,97,8,69,194,342,210,14,41,158,309,301,26,76,161,391,169,27,62,142,405,187,26,91,218,342,146,32,65,131,359,236,61,103,216,309,134,57,103,227,322,114,823,823,823]
["Y63","NORTH EAST AND YORKSHIRE COMMISSIONING REGION","QHM","NHS  NORTH EAST AND NORTH CUMBRIA ICB - 00L","RX4","CUMBRIA, NORTHUMBERLAND, TYNE AND WEAR NHS FOUNDATION TRUST","Mental Health & Learning Disability and Mental Health, Learning Disability & Community Trusts",549,8284,6.7961951022060312,19,73,164,229,64,9,40,115,236,149,10,31,114,212,182,24,46,108,251,120,23,52,84,265,125,28,65,137,220,99,14,36,83,236,180,39,55,127,223,105,26,47,127,239,110,549,549,549]
["Y63","NORTH EAST AND YORKSHIRE COMMISSIONING REGION","QHM","NHS  NORTH EAST AND NORTH CUMBRIA ICB - 00L","RX6","NORTH EAST AMBULANCE SERVICE NHS FOUNDATION TRUST","Ambulance Trusts",66,3264,4.6548821548821548,12,12,14,22,6,6,8,13,23,16,7,8,17,25,9,17,15,7,18,9,19,16,14,11,6,27,19,7,8,5,17,16,13,13,7,23,12,17,10,4,3,5,28,23,7,66,66,66]
["Y63","NORTH EAST AND YORKSHIRE COMMISSIONING REGION","QWO","NHS WEST YORKSHIRE ICB - 02T","RX8","YORKSHIRE AMBULANCE SERVICE NHS TRUST","Ambulance Trusts",919,6251,5.9430540442509967,58,170,280,286,125,30,94,239,325,231,45,95,274,303,202,91,135,200,363,130,108,164,214,301,132,148,194,256,220,101,77,96,181,344,221,121,136,216,311,135,48,86,223,389,173,919,919,919]
["Y63","NORTH EAST AND YORKSHIRE COMMISSIONING REGION","QF7","NHS SOUTH YORKSHIRE ICB - 02P","RXE","ROTHERHAM DONCASTER AND SOUTH HUMBER NHS FOUNDATION TRUST","Mental Health & Learning Disability and Mental Health, Learning Disability & Community Trusts",58,3856,6.0057471264367814,1,14,19,19,5,0,8,22,18,10,2,6,14,25,11,1,15,12,24,6,1,7,15,27,8,1,13,15,22,7,3,7,13,24,11,7,12,12,21,6,6,6,17,24,5,58,58,58]
["Y63","NORTH EAST AND YORKSHIRE COMMISSIONING REGION","QWO","NHS WEST YORKSHIRE ICB - 02T","RXF","MID YORKSHIRE TEACHING NHS TRUST","Acute and Acute & Community Trusts",1741,9757,6.4355963582975733,83,236,605,636,214,44,144,443,706,425,41,104,430,633,558,91,206,342,829,304,110,191,318,829,325,123,272,433,709,231,51,169,367,751,403,137,216,444,693,251,98,219,510,690,224,1741,1768,1762]
["Y63","NORTH EAST AND YORKSHIRE COMMISSIONING REGION","QWO","NHS WEST YORKSHIRE ICB - 02T","RXG","SOUTH WEST YORKSHIRE PARTNERSHIP NHS FOUNDATION TRUST","Mental Health & Learning Disability and Mental Health, Learning Disability & Community Trusts",127,4839,7.0778652668416449,1,9,53,44,20,0,5,44,39,39,0,5,29,50,43,5,12,17,58,35,3,14,12,60,38,3,16,28,52,28,2,10,14,52,49,4,10,30,49,34,7,7,26,62,25,127,127,127]
["Y63","NORTH EAST AND YORKSHIRE COMMISSIONING REGION","QHM","NHS  NORTH EAST AND NORTH CUMBRIA ICB - 00L","RXP","COUNTY DURHAM AND DARLINGTON NHS FOUNDATION TRUST","Acute and Acute & Community Trusts",726,8337,6.1470768288950106,50,117,262,202,95,23,63,212,236,192,24,35,174,230,263,49,110,133,298,136,58,105,131,292,140,62,130,203,223,108,58,89,148,248,183,96,114,197,217,102,75,102,193,243,113,726,726,726]
["Y63","NORTH EAST AND YORKSHIRE COMMISSIONING REGION","QWO","NHS WEST YORKSHIRE ICB - 02T","RY6","LEEDS COMMUNITY HEALTHCARE NHS TRUST","Community Trusts",767,3377,6.9912178792712467,22,79,276,315,82,8,37,191,353,178,9,24,153,303,279,27,58,133,401,156,24,57,144,377,175,31,101,173,341,123,19,39,93,379,244,24,74,171,327,177,13,54,167,361,180,773,769,767]
["Y63","NORTH EAST AND YORKSHIRE COMMISSIONING REGION","QWO","NHS WEST YORKSHIRE ICB - 02T","TAD","BRADFORD DISTRICT CARE NHS FOUNDATION TRUST","Mental Health & Learning Disability and Mental Health, Learning Disability & Community Trusts",370,3287,7.0654407777049286,12,24,58,144,133,22,30,77,148,95,14,33,83,153,88,19,33,45,157,117,17,27,52,166,109,20,33,80,149,89,12,39,111,155,55,5,20,80,153,112,5,9,77,133,147,370,371,371]
["Y63","NORTH EAST AND YORKSHIRE COMMISSIONING REGION","QF7","NHS SOUTH YORKSHIRE ICB - 02P","TAH","SHEFFIELD HEALTH & SOCIAL CARE NHS FOUNDATION TRUST","Mental Health & Learning Disability and Mental Health, Learning Disability & Community Trusts",318,2592,6.064814814814814,21,60,120,97,20,12,34,101,112,59,9,29,80,125,75,21,31,52,154,60,19,27,50,159,63,27,39,71,136,45,12,42,68,124,72,39,72,87,88,32,31,59,108,93,27,318,318,318]

{"sheet":"Advocacy","index":4,"n_rows":189,"n_cols":25,"rows_kept":189,"cut":false,"hidden":false,"merged":[[6,20,6,24],[6,6,7,6],[6,7,7,7],[6,8,7,8],[6,9,7,9],[6,10,6,14],[6,15,6,19],[6,5,7,5],[6,0,7,0],[6,1,7,1],[6,2,7,2],[6,3,7,3],[6,4,7,4]]}
[]
[]
[]
[]
[null,null,null,null,null,null,null,null,null,null,null,null,null,null,"Avg Advocacy:",{"$f":"AVERAGE(K6,P6,U6)","v":6.6450016419502305}]
[null,null,null,null,null,null,null,null,null,null,{"$f":"IF($H$10=0,\"-\",((K$10*0)+(L$10*2.5)+(M$10*5)+(N$10*7.5)+(O$10*10))/$H$10)","v":7.1111193450798158},null,null,null,null,{"$f":"IF($H$10=0,\"-\",((P$10*0)+(Q$10*2.5)+(R$10*5)+(S$10*7.5)+(T$10*10))/$H$10)","v":6.2113669453622897},null,null,null,null,{"$f":"IF($H$10=0,\"-\",((U$10*0)+(V$10*2.5)+(W$10*5)+(X$10*7.5)+(Y$10*10))/$H$10)","v":6.6125186354085841}]
["Region Code","Region Name","ICB Code","ICB Name","Org Code","Org Name","Care Setting","Total Responses (Average across Theme)","HSCIC Workforce Headcount","Advocacy Score","Weighted Breakdown of Responses - Advocacy Q1",null,null,null,null," Weighted Breakdown of Responses - Advocacy Q2",null,null,null,null,"Weighted Breakdown of Responses - Advocacy Q3"]
[null,null,null,null,null,null,null,null,null,null,"Strongly Disagree","Disagree","Neither Disagree nor Agree","Agree","Strongly Agree","Strongly Disagree","Disagree","Neither Disagree nor Agree","Agree","Strongly Agree","Strongly Disagree","Disagree","Neither Disagree nor Agree","Agree","Strongly Agree"]
[null,null,null,null,null,"England",null,114701,1258006,6.6450016419502305,4313,9161,19687,48770,32854,8386,13578,27947,43968,20901,5298,10254,27008,49677,22521]
[null,null,null,null,null,"Selection (excluding suppressed data)",null,{"$f":"SUBTOTAL(9,H11:H1002)","v":114701},{"$f":"SUBTOTAL(9,I11:I1002)","v":1258006},{"$f":"IF(H10=0,\"-\",AVERAGE(((K10*0)+(L10*2.5)+(M10*5)+(N10*7.5)+(O10*10)),((P10*0)+(Q10*2.5)+(R10*5)+(S10*7.5)+(T10*10)),((U10*0)+(V10*2.5)+(W10*5)+(X10*7.5)+(Y10*10)))/H10)","v":6.6450016419502305},{"$f":"SUBTOTAL(9,K11:K1002)","v":4313},{"$f":"SUBTOTAL(9,L11:L1002)","v":9161},19687,48770,32854,8386,13578,27947,43968,20901,5298,10254,27008,49677,22521]
["Y56","LONDON COMMISSIONING REGION","QMF","NHS NORTH EAST LONDON ICB - A3A8R","R1H","BARTS HEALTH NHS TRUST","Acute and Acute & Community Trusts",835,20029,5.9241516966067866,70,72,177,343,173,117,125,227,260,106,68,84,248,314,121]
["Y56","LONDON COMMISSIONING REGION","QMJ","NHS NORTH CENTRAL LONDON ICB - 93C","RAL","ROYAL FREE LONDON NHS FOUNDATION TRUST","Acute and Acute & Community Trusts",112,11731,6.1160714285714288,7,17,19,38,31,11,16,30,38,17,9,17,23,44,19]
["Y56","LONDON COMMISSIONING REGION","QRV","NHS NORTH WEST LONDON ICB - W2U3Z","RAN","ROYAL NATIONAL ORTHOPAEDIC HOSPITAL NHS TRUST","Acute Specialist Trusts",45,1686,7.4259259259259265,1,2,6,21,15,2,4,9,19,11,1,0,9,17,18]
["Y56","LONDON COMMISSIONING REGION","QMJ","NHS NORTH CENTRAL LONDON ICB - 93C","RAP","NORTH MIDDLESEX UNIVERSITY HOSPITAL NHS TRUST","Acute and Acute & Community Trusts",1093,4597,6.4569990850869168,33,73,181,476,330,70,132,312,399,181,76,127,347,392,153]
["Y56","LONDON COMMISSIONING REGION","QMF","NHS NORTH EAST LONDON ICB - A3A8R","RAT","NORTH EAST LONDON NHS FOUNDATION TRUST","Mental Health & Learning Disability and Mental Health, Learning Disability & Community Trusts",87,7175,6.8486590038314183,2,5,14,32,34,5,5,27,31,19,4,7,27,35,14]
["Y56","LONDON COMMISSIONING REGION","QKK","NHS SOUTH EAST LONDON ICB - 72Q","RJ1","GUY'S AND ST THOMAS' NHS FOUNDATION TRUST","Acute and Acute & Community Trusts",1635,23017,7.1213047910295622,42,107,238,698,551,91,205,341,620,378,30,95,263,777,470]
["Y56","LONDON COMMISSIONING REGION","QKK","NHS SOUTH EAST LONDON ICB - 72Q","RJ2","LEWISHAM AND GREENWICH NHS TRUST","Acute and Acute & Community Trusts",88,7311,5.9564393939393936,1,8,29,30,20,9,15,28,24,12,5,14,27,34,8]
["Y56","LONDON COMMISSIONING REGION","QWE","NHS SOUTH WEST LONDON ICB - 36L","RJ7","ST GEORGE'S UNIVERSITY HOSPITALS NHS FOUNDATION TRUST","Acute and Acute & Community Trusts",12,9885,5.5555555555555562,1,2,3,2,4,3,2,4,0,3,1,2,3,4,2]
["Y56","LONDON COMMISSIONING REGION","QKK","NHS SOUTH EAST LONDON ICB - 72Q","RJZ","KING'S COLLEGE HOSPITAL NHS FOUNDATION TRUST","Acute and Acute & Community Trusts",55,14383,5.5606060606060606,5,7,14,22,7,10,10,17,14,4,3,4,16,28,4]
["Y56","LONDON COMMISSIONING REGION","QMJ","NHS NORTH CENTRAL LONDON ICB - 93C","RKE","WHITTINGTON HEALTH NHS TRUST","Acute and Acute & Community Trusts",411,4929,6.5044606650446068,23,25,71,170,122,45,43,95,155,73,35,29,91,182,74]
["Y56","LONDON COMMISSIONING REGION","QMJ","NHS NORTH CENTRAL LONDON ICB - 93C","RNK","TAVISTOCK AND PORTMAN NHS FOUNDATION TRUST","Mental Health & Learning Disability and Mental Health, Learning Disability & Community Trusts",21,819,5.5555555555555554,2,3,5,8,3,4,3,8,4,2,2,1,7,7,4]
["Y56","LONDON COMMISSIONING REGION","QMJ","NHS NORTH CENTRAL LONDON ICB - 93C","RP4","GREAT ORMOND STREET HOSPITAL FOR CHILDREN NHS FOUNDATION TRUST","Acute Specialist Trusts",791,5718,7.5147492625368733,17,56,69,365,288,48,73,146,320,204,18,21,59,364,330]
["Y56","LONDON COMMISSIONING REGION","QMJ","NHS NORTH CENTRAL LONDON ICB - 93C","RP6","MOORFIELDS EYE HOSPITAL NHS FOUNDATION TRUST","Acute Specialist Trusts",36,2484,5.5555555555555554,4,6,5,16,5,9,5,10,7,5,3,4,9,12,8]
["Y56","LONDON COMMISSIONING REGION","QRV","NHS NORTH WEST LONDON ICB - W2U3Z","RPY","THE ROYAL MARSDEN NHS FOUNDATION TRUST","Acute Specialist Trusts",163,4612,7.2597137014314921,5,4,31,59,64,12,23,38,61,29,6,4,17,59,77]
["Y56","LONDON COMMISSIONING REGION","QMF","NHS NORTH EAST LONDON ICB - A3A8R","RQX","HOMERTON HEALTHCARE NHS FOUNDATION TRUST","Acute and Acute & Community Trusts",607,4208,7.4601867105985713,9,18,68,280,234,29,40,124,238,176,15,24,119,264,186]
["Y56","LONDON COMMISSIONING REGION","QWE","NHS SOUTH WEST LONDON ICB - 36L","RQY","SOUTH WEST LONDON AND ST GEORGE'S MENTAL HEALTH NHS TRUST","Mental Health & Learning Disability and Mental Health, Learning Disability & Community Trusts",75,2923,5.9777777777777779,5,6,9,39,16,6,13,25,27,4,5,11,20,34,5]
["Y56","LONDON COMMISSIONING REGION","QMJ","NHS NORTH CENTRAL LONDON ICB - 93C","RRP","BARNET, ENFIELD AND HARINGEY MENTAL HEALTH NHS TRUST","Mental Health & Learning Disability and Mental Health, Learning Disability & Community Trusts",85,3066,5.6372549019607847,6,10,24,27,18,10,15,24,24,12,10,12,32,19,12]
["Y56","LONDON COMMISSIONING REGION","QKK","NHS SOUTH EAST LONDON ICB - 72Q","RRU","LONDON AMBULANCE SERVICE NHS TRUST","Ambulance Trusts",86,7665,5.9786821705426352,8,8,17,35,18,14,11,20,30,11,8,9,18,36,15]
["Y56","LONDON COMMISSIONING REGION","QMJ","NHS NORTH CENTRAL LONDON ICB - 93C","RRV","UNIVERSITY COLLEGE LONDON HOSPITALS NHS FOUNDATION TRUST","Acute and Acute & Community Trusts",514,10939,7.7091439688715955,17,18,59,216,204,23,22,94,204,171,11,12,56,215,220]
["Y56","LONDON COMMISSIONING REGION","QMJ","NHS NORTH CENTRAL LONDON ICB - 93C","RV3","CENTRAL AND NORTH WEST LONDON NHS FOUNDATION TRUST","Mental Health & Learning Disability and Mental Health, Learning Disability & Community Trusts",35,8539,5.1904761904761898,2,6,7,9,11,6,10,9,9,1,4,6,14,10,1]
["Y56","LONDON COMMISSIONING REGION","QWE","NHS SOUTH WEST LONDON ICB - 36L","RVR","EPSOM AND ST HELIER UNIVERSITY HOSPITALS NHS TRUST","Acute and Acute & Community Trusts",231,7102,5.1948051948051948,24,31,61,74,41,50,36,67,70,8,27,34,71,83,16]
["Y56","LONDON COMMISSIONING REGION","QMF","NHS NORTH EAST LONDON ICB - A3A8R","RWK","EAST LONDON NHS FOUNDATION TRUST","Mental Health & Learning Disability and Mental Health, Learning Disability & Community Trusts",948,7300,7.2292545710267229,13,34,117,419,366,38,71,194,405,240,30,63,233,420,203]
["Y56","LONDON COMMISSIONING REGION","QRV","NHS NORTH WEST LONDON ICB - W2U3Z","RYJ","IMPERIAL COLLEGE HEALTHCARE NHS TRUST","Acute and Acute & Community Trusts",96,13870,6.7100694444444438,5,8,12,37,34,10,12,21,31,22,6,9,17,40,24]
["Y56","LONDON COMMISSIONING REGION","QRV","NHS NORTH WEST LONDON ICB - W2U3Z","RYX","CENTRAL LONDON COMMUNITY HEALTHCARE NHS TRUST","Community Trusts",961,4806,7.4167533818938605,12,42,102,414,393,43,71,199,373,276,20,40,208,427,266]
["Y56","LONDON COMMISSIONING REGION","QMJ","NHS NORTH CENTRAL LONDON ICB - 93C","TAF","CAMDEN AND ISLINGTON NHS FOUNDATION TRUST","Mental Health & Learning Disability and Mental Health, Learning Disability & Community Trusts",85,2562,5.3235294117647056,6,9,27,33,10,16,17,24,21,7,9,12,27,29,8]
["Y58","SOUTH WEST COMMISSIONING REGION","QVV","NHS DORSET ICB - 11J","R0D","UNIVERSITY HOSPITALS DORSET NHS FOUNDATION TRUST","Acute and Acute & Community Trusts",990,9659,5.8888888888888893,65,136,223,402,164,86,167,319,312,106,54,127,289,398,122]
["Y58","SOUTH WEST COMMISSIONING REGION","QUY","NHS BRISTOL, NORTH SOMERSET AND SOUTH GLOUCESTERSHIRE ICB - 15C","RA7","UNIVERSITY HOSPITALS BRISTOL AND WESTON NHS FOUNDATION TRUST","Acute and Acute & Community Trusts",857,12869,7.0954881369117073,11,44,128,380,294,45,84,185,375,168,16,42,191,426,182]
["Y58","SOUTH WEST COMMISSIONING REGION","QJK","NHS DEVON ICB - 15N","RA9","TORBAY AND SOUTH DEVON NHS FOUNDATION TRUST","Acute and Acute & Community Trusts",310,7174,5.717741935483871,14,46,76,134,40,30,68,83,103,26,12,56,93,118,31]
["Y58","SOUTH WEST COMMISSIONING REGION","QVV","NHS DORSET ICB - 11J","RBD","DORSET COUNTY HOSPITAL NHS FOUNDATION TRUST","Acute and Acute & Community Trusts",225,3465,6.5962962962962965,6,19,42,101,57,18,27,56,78,46,9,22,53,102,39]
["Y58","SOUTH WEST COMMISSIONING REGION","QOX","NHS BATH AND NORTH EAST SOMERSET, SWINDON AND WILTSHIRE ICB - 92G","RD1","ROYAL UNITED HOSPITALS BATH NHS FOUNDATION TRUST","Acute and Acute & Community Trusts",1132,6582,6.7954946996466434,21,87,187,548,291,59,124,282,497,171,25,81,266,554,206]
["Y58","SOUTH WEST COMMISSIONING REGION","QVV","NHS DORSET ICB - 11J","RDY","DORSET HEALTHCARE UNIVERSITY NHS FOUNDATION TRUST","Mental Health & Learning Disability and Mental Health, Learning Disability & Community Trusts",596,6869,6.6331096196868016,16,54,116,269,141,42,72,150,232,100,12,50,145,277,112]
["Y58","SOUTH WEST COMMISSIONING REGION","QT6","NHS CORNWALL AND THE ISLES OF SCILLY ICB - 11N","REF","ROYAL CORNWALL HOSPITALS NHS TRUST","Acute and Acute & Community Trusts",834,7222,6.252997601918465,32,78,176,388,160,62,94,230,349,99,51,101,222,362,99]
["Y58","SOUTH WEST COMMISSIONING REGION","QSL","NHS SOMERSET ICB - 11X","RH5","SOMERSET NHS FOUNDATION TRUST","Acute and Acute & Community Trusts",719,13308,6.7686601761706076,29,54,123,297,216,48,77,163,290,141,39,50,151,320,159]
["Y58","SOUTH WEST COMMISSIONING REGION","QJK","NHS DEVON ICB - 15N","RH8","ROYAL DEVON UNIVERSITY HEALTHCARE NHS FOUNDATION TRUST","Acute and Acute & Community Trusts",2331,13192,6.7724867724867721,69,179,400,1026,663,139,295,538,1051,313,69,151,459,1218,434]
["Y58","SOUTH WEST COMMISSIONING REGION","QT6","NHS CORNWALL AND THE ISLES OF SCILLY ICB - 11N","RJ8","CORNWALL PARTNERSHIP NHS FOUNDATION TRUST","Mental Health & Learning Disability and Mental Health, Learning Disability & Community Trusts",11,4926,6.8181818181818183,0,0,3,5,3,0,2,2,5,2,0,2,3,4,2]
["Y58","SOUTH WEST COMMISSIONING REGION","QJK","NHS DEVON ICB - 15N","RK9","UNIVERSITY HOSPITALS PLYMOUTH NHS TRUST","Acute and Acute & Community Trusts",1135,10600,6.3612334801762112,49,122,203,475,287,105,147,248,478,160,58,143,270,493,171]
["Y58","SOUTH WEST COMMISSIONING REGION","QOX","NHS BATH AND NORTH EAST SOMERSET, SWINDON AND WILTSHIRE ICB - 92G","RN3","GREAT WESTERN HOSPITALS NHS FOUNDATION TRUST","Acute and Acute & Community Trusts",1278,5705,6.6634063641105898,26,88,232,589,345,52,151,362,518,198,42,123,355,566,192]
["Y58","SOUTH WEST COMMISSIONING REGION","QR1","NHS GLOUCESTERSHIRE ICB - 11M","RTE","GLOUCESTERSHIRE HOSPITALS NHS FOUNDATION TRUST","Acute and Acute & Community Trusts",929,8924,5.5346250448510945,84,116,203,345,183,123,181,252,283,90,107,157,284,286,101]
["Y58","SOUTH WEST COMMISSIONING REGION","QR1","NHS GLOUCESTERSHIRE ICB - 11M","RTQ","GLOUCESTERSHIRE HEALTH AND CARE NHS FOUNDATION TRUST","Mental Health & Learning Disability and Mental Health, Learning Disability & Community Trusts",288,4799,6.8923611111111107,7,25,48,143,65,14,24,71,119,60,6,19,60,142,61]
["Y58","SOUTH WEST COMMISSIONING REGION","QUY","NHS BRISTOL, NORTH SOMERSET AND SOUTH GLOUCESTERSHIRE ICB - 15C","RVJ","NORTH BRISTOL NHS TRUST","Acute and Acute & Community Trusts",117,10025,6.417378917378918,1,8,27,53,28,15,11,34,44,13,4,8,32,59,14]
["Y58","SOUTH WEST COMMISSIONING REGION","QOX","NHS BATH AND NORTH EAST SOMERSET, SWINDON AND WILTSHIRE ICB - 92G","RVN","AVON AND WILTSHIRE MENTAL HEALTH PARTNERSHIP NHS TRUST","Mental Health & Learning Disability and Mental Health, Learning Disability & Community Trusts",139,4836,5.4016786570743411,14,17,38,43,27,24,22,42,34,17,15,21,49,40,14]
["Y58","SOUTH WEST COMMISSIONING REGION","QJK","NHS DEVON ICB - 15N","RWV","DEVON PARTNERSHIP NHS TRUST","Mental Health & Learning Disability and Mental Health, Learning Disability & Community Trusts",155,3794,5.827956989247312,7,22,33,56,37,14,27,49,45,20,14,26,48,50,17]
["Y59","SOUTH EAST COMMISSIONING REGION","QRL","NHS HAMPSHIRE AND ISLE OF WIGHT ICB - D9Y0V","R1C","SOLENT NHS TRUST","Mental Health & Learning Disability and Mental Health, Learning Disability & Community Trusts",47,4205,7.2340425531914896,2,2,8,16,19,2,4,10,19,12,1,4,7,21,14]
["Y59","SOUTH EAST COMMISSIONING REGION","QRL","NHS HAMPSHIRE AND ISLE OF WIGHT ICB - D9Y0V","R1F","ISLE OF WIGHT NHS TRUST","Acute and Acute & Community Trusts",455,4116,5.7032967032967035,23,60,117,160,95,41,71,164,134,45,43,75,147,150,40]
["Y59","SOUTH EAST COMMISSIONING REGION","QNX","NHS SUSSEX ICB - 09D","RDR","SUSSEX COMMUNITY NHS FOUNDATION TRUST","Community Trusts",638,5519,7.3602403343782647,14,27,92,273,232,20,46,140,271,161,13,23,117,303,182]
["Y59","SOUTH EAST COMMISSIONING REGION","QNQ","NHS FRIMLEY ICB - D4U1Y","RDU","FRIMLEY HEALTH NHS FOUNDATION TRUST","Acute and Acute & Community Trusts",2130,10689,7.049295774647887,36,113,308,996,677,102,193,518,940,385,51,126,443,1072,444]
["Y59","SOUTH EAST COMMISSIONING REGION","QRL","NHS HAMPSHIRE AND ISLE OF WIGHT ICB - D9Y0V","RHM","UNIVERSITY HOSPITAL SOUTHAMPTON NHS FOUNDATION TRUST","Acute and Acute & Community Trusts",3323,13536,7.0975022569966901,80,243,422,1548,1030,137,325,768,1433,661,52,156,648,1673,794]
["Y59","SOUTH EAST COMMISSIONING REGION","QRL","NHS HAMPSHIRE AND ISLE OF WIGHT ICB - D9Y0V","RHU","PORTSMOUTH HOSPITALS UNIVERSITY NATIONAL HEALTH SERVICE TRUST","Acute and Acute & Community Trusts",634,8774,6.0909568874868558,36,66,113,249,170,58,110,166,234,69,44,88,173,259,71]
["Y59","SOUTH EAST COMMISSIONING REGION","QU9","NHS BUCKINGHAMSHIRE, OXFORDSHIRE AND BERKSHIRE WEST ICB - 10Q","RHW","ROYAL BERKSHIRE NHS FOUNDATION TRUST","Acute and Acute & Community Trusts",42,6379,6.5476190476190474,2,3,8,16,13,5,7,11,12,7,1,6,5,18,12]
["Y59","SOUTH EAST COMMISSIONING REGION","QRL","NHS HAMPSHIRE AND ISLE OF WIGHT ICB - D9Y0V","RN5","HAMPSHIRE HOSPITALS NHS FOUNDATION TRUST","Acute and Acute & Community Trusts",197,7641,6.4678510998307956,10,14,39,85,49,12,28,54,75,28,7,15,59,84,32]
["Y59","SOUTH EAST COMMISSIONING REGION","QKS","NHS KENT AND MEDWAY ICB - 91Q","RN7","DARTFORD AND GRAVESHAM NHS TRUST","Acute and Acute & Community Trusts",164,4349,6.4583333333333339,6,16,34,61,47,15,24,38,57,30,3,19,47,68,27]
["Y59","SOUTH EAST COMMISSIONING REGION","QU9","NHS BUCKINGHAMSHIRE, OXFORDSHIRE AND BERKSHIRE WEST ICB - 10Q","RNU","OXFORD HEALTH NHS FOUNDATION TRUST","Mental Health & Learning Disability and Mental Health, Learning Disability & Community Trusts",467,6496,6.5292648108493934,19,34,85,191,138,56,53,104,160,94,34,36,106,199,92]
["Y59","SOUTH EAST COMMISSIONING REGION","QKS","NHS KENT AND MEDWAY ICB - 91Q","RPA","MEDWAY NHS FOUNDATION TRUST","Acute and Acute & Community Trusts",80,5187,5.2395833333333339,13,6,10,30,21,17,12,19,24,8,20,8,22,23,7]
["Y59","SOUTH EAST COMMISSIONING REGION","QNX","NHS SUSSEX ICB - 09D","RPC","QUEEN VICTORIA HOSPITAL NHS FOUNDATION TRUST","Acute Specialist Trusts",158,1142,8.064345991561181,1,10,12,50,85,5,11,24,69,49,1,2,7,65,83]
["Y59","SOUTH EAST COMMISSIONING REGION","QU9","NHS BUCKINGHAMSHIRE, OXFORDSHIRE AND BERKSHIRE WEST ICB - 10Q","RTH","OXFORD UNIVERSITY HOSPITALS NHS FOUNDATION TRUST","Acute and Acute & Community Trusts",2549,14228,7.0815352425787887,59,138,354,1175,825,141,264,613,1032,502,49,136,462,1272,630]
["Y59","SOUTH EAST COMMISSIONING REGION","QKS","NHS KENT AND MEDWAY ICB - 91Q","RVV","EAST KENT HOSPITALS UNIVERSITY NHS FOUNDATION TRUST","Acute and Acute & Community Trusts",2187,11409,5.6995884773662553,141,299,468,815,464,256,422,597,673,242,200,370,641,749,230]
["Y59","SOUTH EAST COMMISSIONING REGION","QRL","NHS HAMPSHIRE AND ISLE OF WIGHT ICB - D9Y0V","RW1","SOUTHERN HEALTH NHS FOUNDATION TRUST","Mental Health & Learning Disability and Mental Health, Learning Disability & Community Trusts",668,6774,6.4271457085828336,13,55,149,293,158,50,80,186,252,100,34,68,187,278,101]
["Y59","SOUTH EAST COMMISSIONING REGION","QKS","NHS KENT AND MEDWAY ICB - 91Q","RWF","MAIDSTONE AND TUNBRIDGE WELLS NHS TRUST","Acute and Acute & Community Trusts",717,7439,6.7108321710832177,22,61,110,340,185,48,77,182,315,95,29,41,147,368,132]
["Y59","SOUTH EAST COMMISSIONING REGION","QNQ","NHS FRIMLEY ICB - D4U1Y","RWX","BERKSHIRE HEALTHCARE NHS FOUNDATION TRUST","Mental Health & Learning Disability and Mental Health, Learning Disability & Community Trusts",1575,4977,7.7608465608465611,13,28,134,712,690,35,90,246,703,501,25,47,261,756,486]
["Y59","SOUTH EAST COMMISSIONING REGION","QNX","NHS SUSSEX ICB - 09D","RX2","SUSSEX PARTNERSHIP NHS FOUNDATION TRUST","Mental Health & Learning Disability and Mental Health, Learning Disability & Community Trusts",231,5895,4.7943722943722946,33,34,53,86,25,51,47,74,40,19,37,39,78,63,14]
["Y59","SOUTH EAST COMMISSIONING REGION","QNX","NHS SUSSEX ICB - 09D","RXC","EAST SUSSEX HEALTHCARE NHS TRUST","Acute and Acute & Community Trusts",367,8366,5.7947320617620344,22,42,103,140,60,37,62,120,113,35,27,44,101,163,32]
["Y59","SOUTH EAST COMMISSIONING REGION","QU9","NHS BUCKINGHAMSHIRE, OXFORDSHIRE AND BERKSHIRE WEST ICB - 10Q","RXQ","BUCKINGHAMSHIRE HEALTHCARE NHS TRUST","Acute and Acute & Community Trusts",821,6875,6.427121396670727,34,57,153,374,203,63,94,224,313,127,54,72,226,354,115]
["Y59","SOUTH EAST COMMISSIONING REGION","QXU","NHS SURREY HEARTLANDS  ICB - 92A","RXX","SURREY AND BORDERS PARTNERSHIP NHS FOUNDATION TRUST","Mental Health & Learning Disability and Mental Health, Learning Disability & Community Trusts",108,3314,6.442901234567902,5,9,22,37,35,7,11,37,32,21,6,12,36,34,20]
["Y59","SOUTH EAST COMMISSIONING REGION","QNX","NHS SUSSEX ICB - 09D","RYD","SOUTH EAST COAST AMBULANCE SERVICE NHS FOUNDATION TRUST","Ambulance Trusts",574,4604,5.2540650406504064,72,74,138,204,86,132,119,136,150,37,48,79,148,247,52]
["Y59","SOUTH EAST COMMISSIONING REGION","QU9","NHS BUCKINGHAMSHIRE, OXFORDSHIRE AND BERKSHIRE WEST ICB - 10Q","RYE","SOUTH CENTRAL AMBULANCE SERVICE NHS FOUNDATION TRUST","Ambulance Trusts",262,4615,5.1653944020356235,30,51,61,82,38,53,56,79,57,17,28,31,65,113,25]
["Y59","SOUTH EAST COMMISSIONING REGION","QNX","NHS SUSSEX ICB - 09D","RYR","UNIVERSITY HOSPITALS SUSSEX NHS FOUNDATION TRUST","Acute and Acute & Community Trusts",562,16851,5.4122182680901538,45,73,131,219,94,79,115,189,142,37,49,92,187,187,47]
["Y59","SOUTH EAST COMMISSIONING REGION","QKS","NHS KENT AND MEDWAY ICB - 91Q","RYY","KENT COMMUNITY HEALTH NHS FOUNDATION TRUST","Community Trusts",873,5217,7.2852233676975944,28,44,113,363,325,58,55,180,341,239,29,31,144,416,253]
["Y60","MIDLANDS COMMISSIONING REGION","QOC","NHS SHROPSHIRE, TELFORD AND WREKIN ICB - M2L0M","R1D","SHROPSHIRE COMMUNITY HEALTH NHS TRUST","Community Trusts",10,1661,4.3333333333333339,2,2,2,4,0,5,1,2,2,0,0,1,5,4,0]
["Y60","MIDLANDS COMMISSIONING REGION","QUA","NHS BLACK COUNTRY ICB - D2P2L","RBK","WALSALL HEALTHCARE NHS TRUST","Acute and Acute & Community Trusts",1094,5165,6.3155088360755638,58,91,188,447,310,93,118,308,415,160,62,129,336,445,122]
["Y60","MIDLANDS COMMISSIONING REGION","QT1","NHS NOTTINGHAM AND NOTTINGHAMSHIRE ICB - 52R","RHA","NOTTINGHAMSHIRE HEALTHCARE NHS FOUNDATION TRUST","Mental Health & Learning Disability and Mental Health, Learning Disability & Community Trusts",793,9343,6.0298444724674241,42,75,141,314,221,93,136,205,259,104,63,120,235,274,101]
["Y60","MIDLANDS COMMISSIONING REGION","QWU","NHS COVENTRY AND WARWICKSHIRE ICB - B2M3M","RJC","SOUTH WARWICKSHIRE UNIVERSITY NHS FOUNDATION TRUST","Acute and Acute & Community Trusts",55,5443,7.0151515151515147,4,1,7,22,21,6,4,12,19,14,2,3,12,22,16]
["Y60","MIDLANDS COMMISSIONING REGION","QNC","NHS STAFFORDSHIRE AND STOKE-ON-TRENT ICB - 05W","RJE","UNIVERSITY HOSPITALS OF NORTH MIDLANDS NHS TRUST","Acute and Acute & Community Trusts",12,11957,5.625,1,1,2,6,2,2,3,3,2,2,2,0,4,5,1]
["Y60","MIDLANDS COMMISSIONING REGION","QT1","NHS NOTTINGHAM AND NOTTINGHAMSHIRE ICB - 52R","RK5","SHERWOOD FOREST HOSPITALS NHS FOUNDATION TRUST","Acute and Acute & Community Trusts",747,6051,7.2880410531012947,15,53,108,354,217,26,57,105,388,173,6,45,102,422,174]
["Y60","MIDLANDS COMMISSIONING REGION","QWU","NHS COVENTRY AND WARWICKSHIRE ICB - B2M3M","RKB","UNIVERSITY HOSPITALS COVENTRY AND WARWICKSHIRE NHS TRUST","Acute and Acute & Community Trusts",235,9720,6.1524822695035457,14,20,54,100,47,32,21,63,90,29,21,17,56,107,34]
["Y60","MIDLANDS COMMISSIONING REGION","QUA","NHS BLACK COUNTRY ICB - D2P2L","RL4","THE ROYAL WOLVERHAMPTON NHS TRUST","Acute and Acute & Community Trusts",459,11342,6.3816267247639793,22,44,94,192,107,38,63,122,158,78,20,48,114,198,79]
["Y60","MIDLANDS COMMISSIONING REGION","QGH","NHS HEREFORDSHIRE AND WORCESTERSHIRE ICB - 18C","RLQ","WYE VALLEY NHS TRUST","Acute and Acute & Community Trusts",28,3981,6.3988095238095237,0,1,5,16,6,0,3,14,7,4,0,6,10,10,2]
["Y60","MIDLANDS COMMISSIONING REGION","QWU","NHS COVENTRY AND WARWICKSHIRE ICB - B2M3M","RLT","GEORGE ELIOT HOSPITAL NHS TRUST","Acute and Acute & Community Trusts",54,2924,6.2037037037037033,1,9,5,26,13,7,6,13,21,7,6,5,12,23,8]
["Y60","MIDLANDS COMMISSIONING REGION","QNC","NHS STAFFORDSHIRE AND STOKE-ON-TRENT ICB - 05W","RLY","NORTH STAFFORDSHIRE COMBINED HEALTHCARE NHS TRUST","Mental Health & Learning Disability and Mental Health, Learning Disability & Community Trusts",87,1792,6.4655172413793105,6,8,11,39,23,8,8,23,25,23,4,14,25,25,19]
["Y60","MIDLANDS COMMISSIONING REGION","QUA","NHS BLACK COUNTRY ICB - D2P2L","RNA","THE DUDLEY GROUP NHS FOUNDATION TRUST","Acute and Acute & Community Trusts",381,6133,6.2379702537182844,17,40,70,159,95,35,44,111,134,57,27,44,108,149,53]
["Y60","MIDLANDS COMMISSIONING REGION","QPM","NHS NORTHAMPTONSHIRE ICB - 78H","RNQ","KETTERING GENERAL HOSPITAL NHS FOUNDATION TRUST","Acute and Acute & Community Trusts",445,4820,5.4550561797752808,31,74,95,168,77,66,74,131,132,42,56,74,121,155,39]
["Y60","MIDLANDS COMMISSIONING REGION","QPM","NHS NORTHAMPTONSHIRE ICB - 78H","RNS","NORTHAMPTON GENERAL HOSPITAL NHS TRUST","Acute and Acute & Community Trusts",446,5856,5.7959641255605385,27,50,101,178,90,57,74,124,142,49,46,64,109,178,49]
["Y60","MIDLANDS COMMISSIONING REGION","QPM","NHS NORTHAMPTONSHIRE ICB - 78H","RP1","NORTHAMPTONSHIRE HEALTHCARE NHS FOUNDATION TRUST","Mental Health & Learning Disability and Mental Health, Learning Disability & Community Trusts",1834,4849,7.4722828062522719,15,68,215,825,712,44,136,355,798,501,25,96,383,818,516]
["Y60","MIDLANDS COMMISSIONING REGION","QJM","NHS LINCOLNSHIRE ICB - 71E","RP7","LINCOLNSHIRE PARTNERSHIP NHS FOUNDATION TRUST","Mental Health & Learning Disability and Mental Health, Learning Disability & Community Trusts",946,2733,7.4691684284707538,14,41,116,387,388,24,54,160,401,308,29,63,197,405,253]
["Y60","MIDLANDS COMMISSIONING REGION","QHL","NHS BIRMINGHAM AND SOLIHULL ICB - 15E","RQ3","BIRMINGHAM WOMEN'S AND CHILDREN'S NHS FOUNDATION TRUST","Acute and Acute & Community Trusts",49,6407,6.4115646258503407,2,7,13,15,12,4,8,14,14,9,1,3,13,20,12]
["Y60","MIDLANDS COMMISSIONING REGION","QNC","NHS STAFFORDSHIRE AND STOKE-ON-TRENT ICB - 05W","RRE","MIDLANDS PARTNERSHIP NHS FOUNDATION TRUST","Mental Health & Learning Disability and Mental Health, Learning Disability & Community Trusts",255,10018,7.8039215686274508,3,7,29,91,125,5,17,41,93,99,3,16,38,108,90]
["Y60","MIDLANDS COMMISSIONING REGION","QHL","NHS BIRMINGHAM AND SOLIHULL ICB - 15E","RRJ","THE ROYAL ORTHOPAEDIC HOSPITAL NHS FOUNDATION TRUST","Acute Specialist Trusts",225,1330,7.7407407407407414,7,8,29,94,87,6,15,35,96,73,4,2,26,97,96]
["Y60","MIDLANDS COMMISSIONING REGION","QHL","NHS BIRMINGHAM AND SOLIHULL ICB - 15E","RRK","UNIVERSITY HOSPITALS BIRMINGHAM NHS FOUNDATION TRUST","Acute and Acute & Community Trusts",562,23861,5.496737841043891,43,74,132,227,86,75,134,158,149,46,47,91,159,206,59]
["Y60","MIDLANDS COMMISSIONING REGION","QK1","NHS LEICESTER, LEICESTERSHIRE AND RUTLAND ICB - 03W","RT5","LEICESTERSHIRE PARTNERSHIP NHS TRUST","Mental Health & Learning Disability and Mental Health, Learning Disability & Community Trusts",340,6305,6.4191176470588234,18,29,61,127,105,32,31,96,122,59,21,33,100,135,51]
["Y60","MIDLANDS COMMISSIONING REGION","QJ2","NHS DERBY AND DERBYSHIRE ICB - 15M","RTG","UNIVERSITY HOSPITALS OF DERBY AND BURTON NHS FOUNDATION TRUST","Acute and Acute & Community Trusts",1425,14404,6.4678362573099415,55,122,243,737,268,83,188,365,620,169,37,120,369,739,160]
["Y60","MIDLANDS COMMISSIONING REGION","QJM","NHS LINCOLNSHIRE ICB - 71E","RWD","UNITED LINCOLNSHIRE HOSPITALS NHS TRUST","Acute and Acute & Community Trusts",2209,9295,6.0925003772446056,83,225,446,889,566,190,314,653,765,295,190,304,703,771,246]
["Y60","MIDLANDS COMMISSIONING REGION","QGH","NHS HEREFORDSHIRE AND WORCESTERSHIRE ICB - 18C","RWP","WORCESTERSHIRE ACUTE HOSPITALS NHS TRUST","Acute and Acute & Community Trusts",1210,7109,6.3829201101928374,31,122,213,542,302,73,162,338,485,154,52,153,341,518,147]
["Y60","MIDLANDS COMMISSIONING REGION","QT1","NHS NOTTINGHAM AND NOTTINGHAMSHIRE ICB - 52R","RX1","NOTTINGHAM UNIVERSITY HOSPITALS NHS TRUST","Acute and Acute & Community Trusts",2117,19481,6.3828530940009447,65,193,445,843,571,150,345,563,804,255,73,237,534,981,292]
["Y60","MIDLANDS COMMISSIONING REGION","QT1","NHS NOTTINGHAM AND NOTTINGHAMSHIRE ICB - 52R","RX9","EAST MIDLANDS AMBULANCE SERVICE NHS TRUST","Ambulance Trusts",326,4234,5.552147239263804,48,58,62,99,59,49,62,83,90,42,25,38,81,137,45]
["Y60","MIDLANDS COMMISSIONING REGION","QHL","NHS BIRMINGHAM AND SOLIHULL ICB - 15E","RXK","SANDWELL AND WEST BIRMINGHAM HOSPITALS NHS TRUST","Acute and Acute & Community Trusts",3203,7631,6.7920699344364657,93,217,542,1440,929,151,293,775,1335,649,142,273,892,1332,568]
["Y60","MIDLANDS COMMISSIONING REGION","QJ2","NHS DERBY AND DERBYSHIRE ICB - 15M","RXM","DERBYSHIRE HEALTHCARE NHS FOUNDATION TRUST","Mental Health & Learning Disability and Mental Health, Learning Disability & Community Trusts",876,3199,7.0852359208523596,13,56,125,409,274,21,71,185,410,189,22,62,215,412,166]
["Y60","MIDLANDS COMMISSIONING REGION","QHL","NHS BIRMINGHAM AND SOLIHULL ICB - 15E","RXT","BIRMINGHAM AND SOLIHULL MENTAL HEALTH NHS FOUNDATION TRUST","Mental Health & Learning Disability and Mental Health, Learning Disability & Community Trusts",218,4840,5.5733944954128436,14,21,56,76,51,21,44,76,58,19,22,45,73,56,22]
["Y60","MIDLANDS COMMISSIONING REGION","QOC","NHS SHROPSHIRE, TELFORD AND WREKIN ICB - M2L0M","RXW","THE SHREWSBURY AND TELFORD HOSPITAL NHS TRUST","Acute and Acute & Community Trusts",903,7779,5.6358434846806942,53,105,233,325,187,104,142,287,271,99,102,162,286,258,95]
["Y60","MIDLANDS COMMISSIONING REGION","QJM","NHS LINCOLNSHIRE ICB - 71E","RY5","LINCOLNSHIRE COMMUNITY HEALTH SERVICES NHS TRUST","Community Trusts",760,2420,7.2346491228070171,13,44,107,342,255,25,76,175,317,167,12,42,133,359,216]
["Y60","MIDLANDS COMMISSIONING REGION","QJ2","NHS DERBY AND DERBYSHIRE ICB - 15M","RY8","DERBYSHIRE COMMUNITY HEALTH SERVICES NHS FOUNDATION TRUST","Community Trusts",748,4410,7.7116755793226375,8,28,95,333,288,26,39,130,320,234,11,22,81,362,272]
["Y60","MIDLANDS COMMISSIONING REGION","QUA","NHS BLACK COUNTRY ICB - D2P2L","RYA","WEST MIDLANDS AMBULANCE SERVICE UNIVERSITY NHS FOUNDATION TRUST","Ambulance Trusts",510,6661,4.7287581699346406,100,101,107,133,69,119,120,124,115,32,55,91,163,158,43]
["Y60","MIDLANDS COMMISSIONING REGION","QWU","NHS COVENTRY AND WARWICKSHIRE ICB - B2M3M","RYG","COVENTRY AND WARWICKSHIRE PARTNERSHIP NHS TRUST","Mental Health & Learning Disability and Mental Health, Learning Disability & Community Trusts",335,4289,5.8880597014925371,22,36,80,125,72,41,54,89,107,44,25,37,116,118,39]
["Y60","MIDLANDS COMMISSIONING REGION","QUA","NHS BLACK COUNTRY ICB - D2P2L","RYK","DUDLEY INTEGRATED HEALTH AND CARE NHS TRUST","Community Trusts",36,478,6.0648148148148149,0,5,10,11,10,2,5,16,11,2,2,1,17,13,3]
["Y60","MIDLANDS COMMISSIONING REGION","QHL","NHS BIRMINGHAM AND SOLIHULL ICB - 15E","RYW","BIRMINGHAM COMMUNITY HEALTHCARE NHS FOUNDATION TRUST","Community Trusts",107,5198,6.6433021806853585,4,8,20,49,26,6,15,28,43,15,2,7,27,51,20]
["Y60","MIDLANDS COMMISSIONING REGION","QUA","NHS BLACK COUNTRY ICB - D2P2L","TAJ","BLACK COUNTRY HEALTHCARE NHS FOUNDATION TRUST","Mental Health & Learning Disability and Mental Health, Learning Disability & Community Trusts",522,3956,5.6034482758620694,38,67,121,187,109,67,94,150,149,62,61,76,173,155,57]
["Y61","EAST OF ENGLAND COMMISSIONING REGION","QH8","NHS MID AND SOUTH ESSEX ICB - 06Q","R1L","ESSEX PARTNERSHIP UNIVERSITY NHS FOUNDATION TRUST","Mental Health & Learning Disability and Mental Health, Learning Disability & Community Trusts",527,6557,5.882352941176471,24,46,125,206,126,49,92,159,164,63,56,82,163,164,62]
["Y61","EAST OF ENGLAND COMMISSIONING REGION","QMM","NHS NORFOLK AND WAVENEY ICB - 26A","RCX","THE QUEEN ELIZABETH HOSPITAL, KING'S LYNN, NHS FOUNDATION TRUST","Acute and Acute & Community Trusts",313,3941,5.4472843450479234,25,47,65,116,60,55,46,86,85,41,41,59,86,95,32]
["Y61","EAST OF ENGLAND COMMISSIONING REGION","QHG","NHS BEDFORDSHIRE, LUTON AND MILTON KEYNES ICB - M1J4Y","RD8","MILTON KEYNES UNIVERSITY HOSPITAL NHS FOUNDATION TRUST","Acute and Acute & Community Trusts",92,4192,5.9601449275362324,6,11,18,37,20,9,17,26,29,11,4,12,28,40,8]
["Y61","EAST OF ENGLAND COMMISSIONING REGION","QUE","NHS CAMBRIDGESHIRE AND PETERBOROUGH ICB - 06H","RGN","NORTH WEST ANGLIA NHS FOUNDATION TRUST","Acute and Acute & Community Trusts",133,7330,5.7894736842105265,6,15,30,52,30,17,21,40,44,11,12,17,46,45,13]
["Y61","EAST OF ENGLAND COMMISSIONING REGION","QJG","NHS SUFFOLK AND NORTH EAST ESSEX ICB - 07K","RGR","WEST SUFFOLK NHS FOUNDATION TRUST","Acute and Acute & Community Trusts",1438,5267,7.0700046360686137,25,81,225,696,413,48,131,322,663,276,31,96,289,701,321]
["Y61","EAST OF ENGLAND COMMISSIONING REGION","QUE","NHS CAMBRIDGESHIRE AND PETERBOROUGH ICB - 06H","RGT","CAMBRIDGE UNIVERSITY HOSPITALS NHS FOUNDATION TRUST","Acute and Acute & Community Trusts",2880,12276,7.3003472222222223,58,142,359,1388,933,117,242,593,1296,638,59,149,407,1425,842]
["Y61","EAST OF ENGLAND COMMISSIONING REGION","QMM","NHS NORFOLK AND WAVENEY ICB - 26A","RM1","NORFOLK AND NORWICH UNIVERSITY HOSPITALS NHS FOUNDATION TRUST","Acute and Acute & Community Trusts",388,9383,5.8140034364261171,26,53,88,148,73,42,75,111,122,38,27,45,108,166,42]
["Y61","EAST OF ENGLAND COMMISSIONING REGION","QMM","NHS NORFOLK AND WAVENEY ICB - 26A","RMY","NORFOLK AND SUFFOLK NHS FOUNDATION TRUST","Mental Health & Learning Disability and Mental Health, Learning Disability & Community Trusts",22,5055,4.7727272727272725,4,2,5,8,3,8,2,4,6,2,6,3,4,5,4]
["Y61","EAST OF ENGLAND COMMISSIONING REGION","QM7","NHS HERTFORDSHIRE AND WEST ESSEX ICB - 07H","RQW","THE PRINCESS ALEXANDRA HOSPITAL NHS TRUST","Acute and Acute & Community Trusts",103,3990,5.1779935275080913,10,14,22,40,17,18,21,28,27,9,13,18,42,22,8]
["Y61","EAST OF ENGLAND COMMISSIONING REGION","QUE","NHS CAMBRIDGESHIRE AND PETERBOROUGH ICB - 06H","RT1","CAMBRIDGESHIRE AND PETERBOROUGH NHS FOUNDATION TRUST","Mental Health & Learning Disability and Mental Health, Learning Disability & Community Trusts",2429,4789,7.4128585151639905,24,90,345,974,996,83,153,558,977,658,57,117,495,1058,702]
["Y61","EAST OF ENGLAND COMMISSIONING REGION","QM7","NHS HERTFORDSHIRE AND WEST ESSEX ICB - 07H","RWG","WEST HERTFORDSHIRE TEACHING HOSPITALS NHS TRUST","Acute and Acute & Community Trusts",486,5589,5.3326474622770919,41,68,102,201,74,66,91,146,152,31,59,81,167,155,24]
["Y61","EAST OF ENGLAND COMMISSIONING REGION","QM7","NHS HERTFORDSHIRE AND WEST ESSEX ICB - 07H","RWR","HERTFORDSHIRE PARTNERSHIP UNIVERSITY NHS FOUNDATION TRUST","Mental Health & Learning Disability and Mental Health, Learning Disability & Community Trusts",945,4182,7.4929453262786589,12,32,103,381,417,29,77,172,363,307,20,67,195,411,255]
["Y61","EAST OF ENGLAND COMMISSIONING REGION","QMM","NHS NORFOLK AND WAVENEY ICB - 26A","RY3","NORFOLK COMMUNITY HEALTH AND CARE NHS TRUST","Community Trusts",510,2474,7.4542483660130712,11,22,71,223,183,18,25,105,201,161,12,31,76,232,159]
["Y61","EAST OF ENGLAND COMMISSIONING REGION","QM7","NHS HERTFORDSHIRE AND WEST ESSEX ICB - 07H","RY4","HERTFORDSHIRE COMMUNITY NHS TRUST","Community Trusts",264,2422,7.3074494949494948,7,14,33,107,103,15,26,45,98,80,12,7,53,109,83]
["Y61","EAST OF ENGLAND COMMISSIONING REGION","QUE","NHS CAMBRIDGESHIRE AND PETERBOROUGH ICB - 06H","RYC","EAST OF ENGLAND AMBULANCE SERVICE NHS TRUST","Ambulance Trusts",1451,6007,5.9711693085228577,84,193,272,608,294,186,285,377,467,139,83,166,345,632,228]
["Y61","EAST OF ENGLAND COMMISSIONING REGION","QUE","NHS CAMBRIDGESHIRE AND PETERBOROUGH ICB - 06H","RYV","CAMBRIDGESHIRE COMMUNITY SERVICES NHS TRUST","Community Trusts",41,2637,7.1341463414634143,1,5,2,22,11,3,2,9,17,10,0,3,6,22,10]
["Y62","NORTH WEST COMMISSIONING REGION","QOP","NHS GREATER MANCHESTER ICB - 00T","R0A","MANCHESTER UNIVERSITY NHS FOUNDATION TRUST","Acute and Acute & Community Trusts",3372,29187,6.5272835112692764,144,311,616,1409,909,248,459,859,1235,577,157,328,785,1490,612]
["Y62","NORTH WEST COMMISSIONING REGION","QYG","NHS CHESHIRE AND MERSEYSIDE ICB - 01J","RBL","WIRRAL UNIVERSITY TEACHING HOSPITAL NHS FOUNDATION TRUST","Acute and Acute & Community Trusts",748,6784,6.0762032085561497,60,84,140,295,169,89,99,208,257,95,43,93,178,322,112]
["Y62","NORTH WEST COMMISSIONING REGION","QYG","NHS CHESHIRE AND MERSEYSIDE ICB - 01J","RBN","MERSEY AND WEST LANCASHIRE TEACHING HOSPITALS NHS TRUST","Acute and Acute & Community Trusts",196,10855,6.3860544217687076,11,21,37,66,61,21,36,44,55,40,11,24,42,68,51]
["Y62","NORTH WEST COMMISSIONING REGION","QYG","NHS CHESHIRE AND MERSEYSIDE ICB - 01J","RBQ","LIVERPOOL HEART AND CHEST HOSPITAL NHS FOUNDATION TRUST","Acute Specialist Trusts",166,1952,8.0773092369477908,6,5,8,66,81,7,11,26,51,71,3,4,8,58,93]
["Y62","NORTH WEST COMMISSIONING REGION","QYG","NHS CHESHIRE AND MERSEYSIDE ICB - 01J","RBT","MID CHESHIRE HOSPITALS NHS FOUNDATION TRUST","Acute and Acute & Community Trusts",807,5629,6.9072697232548537,29,45,125,352,256,44,72,212,313,166,27,52,185,379,164]
["Y62","NORTH WEST COMMISSIONING REGION","QOP","NHS GREATER MANCHESTER ICB - 00T","RBV","THE CHRISTIE NHS FOUNDATION TRUST","Acute Specialist Trusts",112,3633,7.4404761904761907,1,7,15,51,38,9,11,16,52,24,1,5,12,42,52]
["Y62","NORTH WEST COMMISSIONING REGION","QYG","NHS CHESHIRE AND MERSEYSIDE ICB - 01J","REM","LIVERPOOL UNIVERSITY HOSPITALS NHS FOUNDATION TRUST","Acute and Acute & Community Trusts",1341,15194,5.9799900571712659,106,124,291,520,300,194,192,400,388,167,101,116,370,539,215]
["Y62","NORTH WEST COMMISSIONING REGION","QYG","NHS CHESHIRE AND MERSEYSIDE ICB - 01J","REN","THE CLATTERBRIDGE CANCER CENTRE NHS FOUNDATION TRUST","Acute Specialist Trusts",547,1840,7.9539914686166968,1,22,54,213,257,17,28,101,230,171,1,13,42,241,250]
["Y62","NORTH WEST COMMISSIONING REGION","QYG","NHS CHESHIRE AND MERSEYSIDE ICB - 01J","REP","LIVERPOOL WOMEN'S NHS FOUNDATION TRUST","Acute Specialist Trusts",82,1803,6.8495934959349585,3,5,15,31,28,8,13,18,22,21,4,2,17,37,22]
["Y62","NORTH WEST COMMISSIONING REGION","QYG","NHS CHESHIRE AND MERSEYSIDE ICB - 01J","RET","THE WALTON CENTRE NHS FOUNDATION TRUST","Acute Specialist Trusts",104,1573,7.6923076923076925,1,2,16,44,41,5,9,20,41,29,1,1,15,37,50]
["Y62","NORTH WEST COMMISSIONING REGION","QYG","NHS CHESHIRE AND MERSEYSIDE ICB - 01J","RJN","EAST CHESHIRE NHS TRUST","Acute and Acute & Community Trusts",39,2753,6.3888888888888884,1,3,7,18,10,4,4,15,11,5,1,4,14,11,9]
["Y62","NORTH WEST COMMISSIONING REGION","QYG","NHS CHESHIRE AND MERSEYSIDE ICB - 01J","RJR","COUNTESS OF CHESTER HOSPITAL NHS FOUNDATION TRUST","Acute and Acute & Community Trusts",87,4968,5.1915708812260535,9,13,22,29,14,16,17,25,24,5,9,14,28,31,5]
["Y62","NORTH WEST COMMISSIONING REGION","QOP","NHS GREATER MANCHESTER ICB - 00T","RM3","NORTHERN CARE ALLIANCE NHS FOUNDATION TRUST","Acute and Acute & Community Trusts",1514,20832,5.7683839718185821,125,196,330,560,303,230,240,418,455,171,107,182,451,573,201]
["Y62","NORTH WEST COMMISSIONING REGION","QOP","NHS GREATER MANCHESTER ICB - 00T","RMC","BOLTON NHS FOUNDATION TRUST","Acute and Acute & Community Trusts",149,6800,5.8165548098434003,11,17,27,60,34,27,17,40,46,19,19,15,44,45,26]
["Y62","NORTH WEST COMMISSIONING REGION","QOP","NHS GREATER MANCHESTER ICB - 00T","RMP","TAMESIDE AND GLOSSOP INTEGRATED CARE NHS FOUNDATION TRUST","Acute and Acute & Community Trusts",91,4557,6.3003663003663011,2,10,15,42,22,6,9,33,32,11,2,17,25,36,11]
["Y62","NORTH WEST COMMISSIONING REGION","QOP","NHS GREATER MANCHESTER ICB - 00T","RRF","WRIGHTINGTON, WIGAN AND LEIGH NHS FOUNDATION TRUST","Acute and Acute & Community Trusts",37,7264,6.2612612612612608,1,6,4,17,9,4,3,11,13,6,3,3,12,14,5]
["Y62","NORTH WEST COMMISSIONING REGION","QOP","NHS GREATER MANCHESTER ICB - 00T","RT2","PENNINE CARE NHS FOUNDATION TRUST","Mental Health & Learning Disability and Mental Health, Learning Disability & Community Trusts",80,4019,6.1354166666666661,5,6,15,34,20,11,10,18,27,14,9,8,21,30,12]
["Y62","NORTH WEST COMMISSIONING REGION","QE1","NHS LANCASHIRE AND SOUTH CUMBRIA ICB - 01E","RTX","UNIVERSITY HOSPITALS OF MORECAMBE BAY NHS FOUNDATION TRUST","Acute and Acute & Community Trusts",44,7524,6.3068181818181817,2,3,12,15,12,3,5,16,14,6,2,5,12,19,6]
["Y62","NORTH WEST COMMISSIONING REGION","QYG","NHS CHESHIRE AND MERSEYSIDE ICB - 01J","RW4","MERSEY CARE NHS FOUNDATION TRUST","Mental Health & Learning Disability and Mental Health, Learning Disability & Community Trusts",1362,11102,6.7345814977973566,53,88,259,535,427,115,153,331,485,278,60,87,333,575,307]
["Y62","NORTH WEST COMMISSIONING REGION","QE1","NHS LANCASHIRE AND SOUTH CUMBRIA ICB - 01E","RW5","LANCASHIRE & SOUTH CUMBRIA NHS FOUNDATION TRUST","Mental Health & Learning Disability and Mental Health, Learning Disability & Community Trusts",1195,7660,6.7092050209205025,36,81,222,522,334,73,116,274,500,232,45,107,324,529,190]
["Y62","NORTH WEST COMMISSIONING REGION","QOP","NHS GREATER MANCHESTER ICB - 00T","RWJ","STOCKPORT NHS FOUNDATION TRUST","Acute and Acute & Community Trusts",90,6242,5.4629629629629628,10,12,19,30,19,13,20,24,23,10,11,14,21,35,9]
["Y62","NORTH WEST COMMISSIONING REGION","QYG","NHS CHESHIRE AND MERSEYSIDE ICB - 01J","RWW","WARRINGTON AND HALTON TEACHING HOSPITALS NHS FOUNDATION TRUST","Acute and Acute & Community Trusts",91,4664,6.4926739926739927,0,11,13,40,27,4,17,23,31,16,8,8,23,38,14]
["Y62","NORTH WEST COMMISSIONING REGION","QOP","NHS GREATER MANCHESTER ICB - 00T","RX7","NORTH WEST AMBULANCE SERVICE NHS TRUST","Ambulance Trusts",1103,7179,6.7142641281353876,41,104,200,441,317,90,143,244,416,210,34,78,230,513,249]
["Y62","NORTH WEST COMMISSIONING REGION","QYG","NHS CHESHIRE AND MERSEYSIDE ICB - 01J","RXA","CHESHIRE AND WIRRAL PARTNERSHIP NHS FOUNDATION TRUST","Mental Health & Learning Disability and Mental Health, Learning Disability & Community Trusts",604,4345,7.1150662251655632,12,28,91,296,178,24,50,125,270,137,13,39,134,290,128]
["Y62","NORTH WEST COMMISSIONING REGION","QE1","NHS LANCASHIRE AND SOUTH CUMBRIA ICB - 01E","RXL","BLACKPOOL TEACHING HOSPITALS NHS FOUNDATION TRUST","Acute and Acute & Community Trusts",360,8309,6.583333333333333,9,24,71,155,101,21,29,108,146,56,20,36,101,148,55]
["Y62","NORTH WEST COMMISSIONING REGION","QE1","NHS LANCASHIRE AND SOUTH CUMBRIA ICB - 01E","RXN","LANCASHIRE TEACHING HOSPITALS NHS FOUNDATION TRUST","Acute and Acute & Community Trusts",1501,10291,6.4251610037752602,48,128,266,676,383,100,174,436,578,215,74,183,417,612,215]
["Y62","NORTH WEST COMMISSIONING REGION","QE1","NHS LANCASHIRE AND SOUTH CUMBRIA ICB - 01E","RXR","EAST LANCASHIRE HOSPITALS NHS TRUST","Acute and Acute & Community Trusts",35,10213,6.2142857142857144,1,1,6,16,11,9,2,9,9,6,2,8,6,11,8]
["Y62","NORTH WEST COMMISSIONING REGION","QOP","NHS GREATER MANCHESTER ICB - 00T","RXV","GREATER MANCHESTER MENTAL HEALTH NHS FOUNDATION TRUST","Mental Health & Learning Disability and Mental Health, Learning Disability & Community Trusts",1486,6861,6.3324360699865414,50,120,284,637,398,110,210,382,538,249,116,204,410,531,225]
["Y62","NORTH WEST COMMISSIONING REGION","QYG","NHS CHESHIRE AND MERSEYSIDE ICB - 01J","RY2","BRIDGEWATER COMMUNITY HEALTHCARE NHS FOUNDATION TRUST","Community Trusts",205,1579,7.024390243902439,12,15,24,90,64,14,26,45,68,52,2,15,31,94,63]
["Y62","NORTH WEST COMMISSIONING REGION","QYG","NHS CHESHIRE AND MERSEYSIDE ICB - 01J","RY7","WIRRAL COMMUNITY HEALTH AND CARE NHS FOUNDATION TRUST","Community Trusts",354,1757,7.3328625235404905,8,18,55,140,133,16,37,78,124,99,5,12,61,164,112]
["Y63","NORTH EAST AND YORKSHIRE COMMISSIONING REGION","QHM","NHS  NORTH EAST AND NORTH CUMBRIA ICB - 00L","R0B","SOUTH TYNESIDE AND SUNDERLAND NHS FOUNDATION TRUST","Acute and Acute & Community Trusts",160,9548,5.3385416666666661,7,22,46,53,32,33,32,45,33,17,19,30,45,49,17]
["Y63","NORTH EAST AND YORKSHIRE COMMISSIONING REGION","QWO","NHS WEST YORKSHIRE ICB - 02T","RAE","BRADFORD TEACHING HOSPITALS NHS FOUNDATION TRUST","Acute and Acute & Community Trusts",77,6767,6.1904761904761907,4,6,17,32,18,9,10,22,22,14,8,6,21,28,14]
["Y63","NORTH EAST AND YORKSHIRE COMMISSIONING REGION","QOQ","NHS HUMBER AND NORTH YORKSHIRE ICB - 02Y","RCB","YORK AND SCARBOROUGH TEACHING HOSPITALS NHS FOUNDATION TRUST","Acute and Acute & Community Trusts",318,10211,5.3825995807127889,15,46,85,122,50,43,61,101,88,25,31,61,117,86,23]
["Y63","NORTH EAST AND YORKSHIRE COMMISSIONING REGION","QOQ","NHS HUMBER AND NORTH YORKSHIRE ICB - 02Y","RCD","HARROGATE AND DISTRICT NHS FOUNDATION TRUST","Acute and Acute & Community Trusts",1332,5180,7.1452702702702702,24,86,211,580,436,48,116,298,566,305,17,71,288,672,284]
["Y63","NORTH EAST AND YORKSHIRE COMMISSIONING REGION","QWO","NHS WEST YORKSHIRE ICB - 02T","RCF","AIREDALE NHS FOUNDATION TRUST","Acute and Acute & Community Trusts",299,3762,6.2430323299888517,12,40,58,128,61,33,31,73,114,48,18,39,67,128,47]
["Y63","NORTH EAST AND YORKSHIRE COMMISSIONING REGION","QF7","NHS SOUTH YORKSHIRE ICB - 02P","RCU","SHEFFIELD CHILDREN'S NHS FOUNDATION TRUST","Acute and Acute & Community Trusts",427,3944,7.4082747853239663,11,12,63,192,149,21,27,91,175,113,16,12,50,208,141]
["Y63","NORTH EAST AND YORKSHIRE COMMISSIONING REGION","QF7","NHS SOUTH YORKSHIRE ICB - 02P","RFF","BARNSLEY HOSPITAL NHS FOUNDATION TRUST","Acute and Acute & Community Trusts",147,4369,6.2868480725623579,9,14,29,58,37,9,22,38,54,24,9,20,35,63,20]
["Y63","NORTH EAST AND YORKSHIRE COMMISSIONING REGION","QF7","NHS SOUTH YORKSHIRE ICB - 02P","RFR","THE ROTHERHAM NHS FOUNDATION TRUST","Acute and Acute & Community Trusts",62,4865,5.725806451612903,5,4,16,21,16,8,10,19,16,9,6,9,23,20,4]
["Y63","NORTH EAST AND YORKSHIRE COMMISSIONING REGION","QWO","NHS WEST YORKSHIRE ICB - 02T","RGD","LEEDS AND YORK PARTNERSHIP NHS FOUNDATION TRUST","Mental Health & Learning Disability and Mental Health, Learning Disability & Community Trusts",296,3126,7.0439189189189193,5,18,51,127,95,13,27,59,119,78,13,24,71,111,77]
["Y63","NORTH EAST AND YORKSHIRE COMMISSIONING REGION","QF7","NHS SOUTH YORKSHIRE ICB - 02P","RHQ","SHEFFIELD TEACHING HOSPITALS NHS FOUNDATION TRUST","Acute and Acute & Community Trusts",1129,17944,6.526424564511367,39,95,215,498,282,76,165,307,435,146,27,93,280,542,187]
["Y63","NORTH EAST AND YORKSHIRE COMMISSIONING REGION","QOQ","NHS HUMBER AND NORTH YORKSHIRE ICB - 02Y","RJL","NORTHERN LINCOLNSHIRE AND GOOLE NHS FOUNDATION TRUST","Acute and Acute & Community Trusts",142,7085,4.800469483568075,15,22,42,44,19,35,26,41,35,5,28,20,43,39,12]
["Y63","NORTH EAST AND YORKSHIRE COMMISSIONING REGION","QHM","NHS  NORTH EAST AND NORTH CUMBRIA ICB - 00L","RNN","NORTH CUMBRIA INTEGRATED CARE NHS FOUNDATION TRUST","Acute and Acute & Community Trusts",396,7353,5.3261784511784507,26,58,110,142,60,56,79,121,115,25,43,65,135,126,27]
["Y63","NORTH EAST AND YORKSHIRE COMMISSIONING REGION","QHM","NHS  NORTH EAST AND NORTH CUMBRIA ICB - 00L","RR7","GATESHEAD HEALTH NHS FOUNDATION TRUST","Acute and Acute & Community Trusts",95,5359,6.8421052631578947,3,6,15,43,28,4,12,23,37,19,3,8,22,42,20]
["Y63","NORTH EAST AND YORKSHIRE COMMISSIONING REGION","QWO","NHS WEST YORKSHIRE ICB - 02T","RR8","LEEDS TEACHING HOSPITALS NHS TRUST","Acute and Acute & Community Trusts",1543,20689,6.8826960466623461,44,113,230,647,509,90,177,363,630,283,47,103,326,754,313]
["Y63","NORTH EAST AND YORKSHIRE COMMISSIONING REGION","QHM","NHS  NORTH EAST AND NORTH CUMBRIA ICB - 00L","RTF","NORTHUMBRIA HEALTHCARE NHS FOUNDATION TRUST","Acute and Acute & Community Trusts",4114,9211,7.733349538162372,43,117,459,1865,1630,85,180,655,1931,1263,50,135,554,2050,1325]
["Y63","NORTH EAST AND YORKSHIRE COMMISSIONING REGION","QHM","NHS  NORTH EAST AND NORTH CUMBRIA ICB - 00L","RVW","NORTH TEES AND HARTLEPOOL NHS FOUNDATION TRUST","Acute and Acute & Community Trusts",51,5934,6.4869281045751634,4,1,10,21,15,3,7,14,19,8,2,5,13,26,5]
["Y63","NORTH EAST AND YORKSHIRE COMMISSIONING REGION","QOQ","NHS HUMBER AND NORTH YORKSHIRE ICB - 02Y","RWA","HULL UNIVERSITY TEACHING HOSPITALS NHS TRUST","Acute and Acute & Community Trusts",1893,9682,6.3699594999119569,66,184,388,817,438,123,255,496,749,271,96,212,508,819,261]
["Y63","NORTH EAST AND YORKSHIRE COMMISSIONING REGION","QWO","NHS WEST YORKSHIRE ICB - 02T","RWY","CALDERDALE AND HUDDERSFIELD NHS FOUNDATION TRUST","Acute and Acute & Community Trusts",282,6698,6.3918439716312054,10,22,53,125,72,23,40,74,109,36,11,30,81,119,41]
["Y63","NORTH EAST AND YORKSHIRE COMMISSIONING REGION","QHM","NHS  NORTH EAST AND NORTH CUMBRIA ICB - 00L","RX3","TEES, ESK AND WEAR VALLEYS NHS FOUNDATION TRUST","Mental Health & Learning Disability and Mental Health, Learning Disability & Community Trusts",823,7998,6.4044147428108547,32,65,131,359,236,61,103,216,309,134,57,103,227,322,114]
["Y63","NORTH EAST AND YORKSHIRE COMMISSIONING REGION","QHM","NHS  NORTH EAST AND NORTH CUMBRIA ICB - 00L","RX4","CUMBRIA, NORTHUMBERLAND, TYNE AND WEAR NHS FOUNDATION TRUST","Mental Health & Learning Disability and Mental Health, Learning Disability & Community Trusts",549,8284,6.8093503339404977,14,36,83,236,180,39,55,127,223,105,26,47,127,239,110]
["Y63","NORTH EAST AND YORKSHIRE COMMISSIONING REGION","QHM","NHS  NORTH EAST AND NORTH CUMBRIA ICB - 00L","RX6","NORTH EAST AMBULANCE SERVICE NHS FOUNDATION TRUST","Ambulance Trusts",66,3264,4.5328282828282829,17,16,13,13,7,23,12,17,10,4,3,5,28,23,7]
["Y63","NORTH EAST AND YORKSHIRE COMMISSIONING REGION","QWO","NHS WEST YORKSHIRE ICB - 02T","RX8","YORKSHIRE AMBULANCE SERVICE NHS TRUST","Ambulance Trusts",919,6251,6.1715632934348932,77,96,181,344,221,121,136,216,311,135,48,86,223,389,173]
["Y63","NORTH EAST AND YORKSHIRE COMMISSIONING REGION","QF7","NHS SOUTH YORKSHIRE ICB - 02P","RXE","ROTHERHAM DONCASTER AND SOUTH HUMBER NHS FOUNDATION TRUST","Mental Health & Learning Disability and Mental Health, Learning Disability & Community Trusts",58,3856,5.8045977011494259,3,7,13,24,11,7,12,12,21,6,6,6,17,24,5]
["Y63","NORTH EAST AND YORKSHIRE COMMISSIONING REGION","QWO","NHS WEST YORKSHIRE ICB - 02T","RXF","MID YORKSHIRE TEACHING NHS TRUST","Acute and Acute & Community Trusts",1741,9757,6.2990618418533408,51,169,367,751,403,137,216,444,693,251,98,219,510,690,224]
["Y63","NORTH EAST AND YORKSHIRE COMMISSIONING REGION","QWO","NHS WEST YORKSHIRE ICB - 02T","RXG","SOUTH WEST YORKSHIRE PARTNERSHIP NHS FOUNDATION TRUST","Mental Health & Learning Disability and Mental Health, Learning Disability & Community Trusts",127,4839,7.1391076115485559,2,10,14,52,49,4,10,30,49,34,7,7,26,62,25]
["Y63","NORTH EAST AND YORKSHIRE COMMISSIONING REGION","QHM","NHS  NORTH EAST AND NORTH CUMBRIA ICB - 00L","RXP","COUNTY DURHAM AND DARLINGTON NHS FOUNDATION TRUST","Acute and Acute & Community Trusts",726,8337,5.8505509641873275,58,89,148,248,183,96,114,197,217,102,75,102,193,243,113]
["Y63","NORTH EAST AND YORKSHIRE COMMISSIONING REGION","QWO","NHS WEST YORKSHIRE ICB - 02T","RY6","LEEDS COMMUNITY HEALTHCARE NHS TRUST","Community Trusts",773,3377,7.1517895644674425,19,39,93,379,244,24,74,171,327,177,13,54,167,361,180]
["Y63","NORTH EAST AND YORKSHIRE COMMISSIONING REGION","QWO","NHS WEST YORKSHIRE ICB - 02T","TAD","BRADFORD DISTRICT CARE NHS FOUNDATION TRUST","Mental Health & Learning Disability and Mental Health, Learning Disability & Community Trusts",370,3287,7.1689189189189193,12,39,111,155,55,5,20,80,153,112,5,9,77,133,147]
["Y63","NORTH EAST AND YORKSHIRE COMMISSIONING REGION","QF7","NHS SOUTH YORKSHIRE ICB - 02P","TAH","SHEFFIELD HEALTH & SOCIAL CARE NHS FOUNDATION TRUST","Mental Health & Learning Disability and Mental Health, Learning Disability & Community Trusts",318,2592,5.6027253668763102,12,42,68,124,72,39,72,87,88,32,31,59,108,93,27]

{"sheet":"Involvement","index":5,"n_rows":189,"n_cols":25,"rows_kept":189,"cut":false,"hidden":false,"merged":[[6,20,6,24],[6,6,7,6],[6,7,7,7],[6,8,7,8],[6,9,7,9],[6,10,6,14],[6,15,6,19],[6,5,7,5],[6,0,7,0],[6,1,7,1],[6,2,7,2],[6,3,7,3],[6,4,7,4]]}
[]
[]
[]
[]
[null,null,null,null,null,null,null,null,null,null,null,null,null,null,"Avg Involvement:",{"$f":"AVERAGE(K6,P6,U6)","v":6.4823077480611717}]
[null,null,null,null,null,null,null,null,null,null,{"$f":"IF($H$10=0,\"-\",((K$10*0)+(L$10*2.5)+(M$10*5)+(N$10*7.5)+(O$10*10))/$H$10)","v":6.6521200260926285},null,null,null,null,{"$f":"IF($H$10=0,\"-\",((P$10*0)+(Q$10*2.5)+(R$10*5)+(S$10*7.5)+(T$10*10))/$H$10)","v":6.6854316155686018},null,null,null,null,{"$f":"IF($H$10=0,\"-\",((U$10*0)+(V$10*2.5)+(W$10*5)+(X$10*7.5)+(Y$10*10))/$H$10)","v":6.1093716025222875}]
["Region Code","Region Name","ICB Code","ICB Name","Org Code","Org Name","Care Setting","Total Responses (Average across Theme)","HSCIC Workforce Headcount","Involvement Score","Weighted Breakdown of Responses - Involvement Q1",null,null,null,null," Weighted Breakdown of Responses - Involvement Q2",null,null,null,null,"Weighted Breakdown of Responses - Involvement Q3"]
[null,null,null,null,null,null,null,null,null,null,"Strongly Disagree","Disagree","Neither Disagree nor Agree","Agree","Strongly Agree","Strongly Disagree","Disagree","Neither Disagree nor Agree","Agree","Strongly Agree","Strongly Disagree","Disagree","Neither Disagree nor Agree","Agree","Strongly Agree"]
[null,null,null,null,null,"England",null,114975,1258006,6.4823077480611735,5399,12046,22152,53323,22403,6011,11298,20638,53767,23397,7349,15766,28952,45244,17892]
[null,null,null,null,null,"Selection (excluding suppressed data)",null,{"$f":"SUBTOTAL(9,H11:H1002)","v":114975},{"$f":"SUBTOTAL(9,I11:I1002)","v":1258006},{"$f":"IF(H10=0,\"-\",AVERAGE(((K10*0)+(L10*2.5)+(M10*5)+(N10*7.5)+(O10*10)),((P10*0)+(Q10*2.5)+(R10*5)+(S10*7.5)+(T10*10)),((U10*0)+(V10*2.5)+(W10*5)+(X10*7.5)+(Y10*10)))/H10)","v":6.4823077480611735},{"$f":"SUBTOTAL(9,K11:K1002)","v":5399},{"$f":"SUBTOTAL(9,L11:L1002)","v":12046},22152,53323,22403,6011,11298,20638,53767,23397,7349,15766,28952,45244,17892]
["Y56","LONDON COMMISSIONING REGION","QMF","NHS NORTH EAST LONDON ICB - A3A8R","R1H","BARTS HEALTH NHS TRUST","Acute and Acute & Community Trusts",835,20029,5.9500998003992009,71,102,190,328,144,73,114,173,327,148,82,143,213,270,127]
["Y56","LONDON COMMISSIONING REGION","QMJ","NHS NORTH CENTRAL LONDON ICB - 93C","RAL","ROYAL FREE LONDON NHS FOUNDATION TRUST","Acute and Acute & Community Trusts",112,11731,6.1383928571428568,3,23,24,47,15,3,20,20,48,21,9,20,20,47,16]
["Y56","LONDON COMMISSIONING REGION","QRV","NHS NORTH WEST LONDON ICB - W2U3Z","RAN","ROYAL NATIONAL ORTHOPAEDIC HOSPITAL NHS TRUST","Acute Specialist Trusts",45,1686,7,4,1,6,18,16,4,1,6,21,13,4,1,11,20,9]
["Y56","LONDON COMMISSIONING REGION","QMJ","NHS NORTH CENTRAL LONDON ICB - 93C","RAP","NORTH MIDDLESEX UNIVERSITY HOSPITAL NHS TRUST","Acute and Acute & Community Trusts",1099,4597,6.5855323020928118,50,79,254,521,195,53,72,237,538,199,62,95,303,470,172]
["Y56","LONDON COMMISSIONING REGION","QMF","NHS NORTH EAST LONDON ICB - A3A8R","RAT","NORTH EAST LONDON NHS FOUNDATION TRUST","Mental Health & Learning Disability and Mental Health, Learning Disability & Community Trusts",87,7175,6.6475095785440619,4,9,14,44,16,5,8,11,44,19,3,11,23,34,16]
["Y56","LONDON COMMISSIONING REGION","QKK","NHS SOUTH EAST LONDON ICB - 72Q","RJ1","GUY'S AND ST THOMAS' NHS FOUNDATION TRUST","Acute and Acute & Community Trusts",1624,23017,6.3592980295566504,98,190,309,721,317,103,176,315,717,324,128,221,395,630,250]
["Y56","LONDON COMMISSIONING REGION","QKK","NHS SOUTH EAST LONDON ICB - 72Q","RJ2","LEWISHAM AND GREENWICH NHS TRUST","Acute and Acute & Community Trusts",88,7311,6.5814393939393936,5,11,16,34,22,6,8,12,40,22,4,13,22,31,18]
["Y56","LONDON COMMISSIONING REGION","QWE","NHS SOUTH WEST LONDON ICB - 36L","RJ7","ST GEORGE'S UNIVERSITY HOSPITALS NHS FOUNDATION TRUST","Acute and Acute & Community Trusts",12,9885,5.7638888888888893,1,3,0,6,2,1,2,1,6,2,1,4,3,2,2]
["Y56","LONDON COMMISSIONING REGION","QKK","NHS SOUTH EAST LONDON ICB - 72Q","RJZ","KING'S COLLEGE HOSPITAL NHS FOUNDATION TRUST","Acute and Acute & Community Trusts",55,14383,6.333333333333333,5,1,11,28,10,4,4,11,26,10,5,7,18,16,9]
["Y56","LONDON COMMISSIONING REGION","QMJ","NHS NORTH CENTRAL LONDON ICB - 93C","RKE","WHITTINGTON HEALTH NHS TRUST","Acute and Acute & Community Trusts",411,4929,6.5490673154906727,30,33,66,196,86,32,30,63,189,97,35,41,87,185,63]
["Y56","LONDON COMMISSIONING REGION","QMJ","NHS NORTH CENTRAL LONDON ICB - 93C","RNK","TAVISTOCK AND PORTMAN NHS FOUNDATION TRUST","Mental Health & Learning Disability and Mental Health, Learning Disability & Community Trusts",21,819,5.3174603174603181,3,6,1,8,3,3,4,1,10,3,3,4,5,8,1]
["Y56","LONDON COMMISSIONING REGION","QMJ","NHS NORTH CENTRAL LONDON ICB - 93C","RP4","GREAT ORMOND STREET HOSPITAL FOR CHILDREN NHS FOUNDATION TRUST","Acute Specialist Trusts",790,5718,6.5886075949367084,37,87,128,371,170,40,78,134,359,182,50,109,185,304,142]
["Y56","LONDON COMMISSIONING REGION","QMJ","NHS NORTH CENTRAL LONDON ICB - 93C","RP6","MOORFIELDS EYE HOSPITAL NHS FOUNDATION TRUST","Acute Specialist Trusts",36,2484,4.6296296296296298,6,10,8,7,5,7,7,10,8,4,7,7,12,5,5]
["Y56","LONDON COMMISSIONING REGION","QRV","NHS NORTH WEST LONDON ICB - W2U3Z","RPY","THE ROYAL MARSDEN NHS FOUNDATION TRUST","Acute Specialist Trusts",163,4612,6.1963190184049077,13,12,34,81,23,13,17,27,75,31,14,22,47,59,21]
["Y56","LONDON COMMISSIONING REGION","QMF","NHS NORTH EAST LONDON ICB - A3A8R","RQX","HOMERTON HEALTHCARE NHS FOUNDATION TRUST","Acute and Acute & Community Trusts",621,4208,6.8209876543209873,26,39,114,297,147,25,47,100,304,145,31,75,136,265,114]
["Y56","LONDON COMMISSIONING REGION","QWE","NHS SOUTH WEST LONDON ICB - 36L","RQY","SOUTH WEST LONDON AND ST GEORGE'S MENTAL HEALTH NHS TRUST","Mental Health & Learning Disability and Mental Health, Learning Disability & Community Trusts",75,2923,6.1777777777777771,5,11,12,32,15,4,12,14,30,15,6,14,18,23,14]
["Y56","LONDON COMMISSIONING REGION","QMJ","NHS NORTH CENTRAL LONDON ICB - 93C","RRP","BARNET, ENFIELD AND HARINGEY MENTAL HEALTH NHS TRUST","Mental Health & Learning Disability and Mental Health, Learning Disability & Community Trusts",85,3066,6.4411764705882355,8,5,19,35,18,7,6,14,38,20,6,11,22,30,16]
["Y56","LONDON COMMISSIONING REGION","QKK","NHS SOUTH EAST LONDON ICB - 72Q","RRU","LONDON AMBULANCE SERVICE NHS TRUST","Ambulance Trusts",86,7665,5.6395348837209305,7,16,22,32,9,9,8,18,37,14,13,13,24,26,10]
["Y56","LONDON COMMISSIONING REGION","QMJ","NHS NORTH CENTRAL LONDON ICB - 93C","RRV","UNIVERSITY COLLEGE LONDON HOSPITALS NHS FOUNDATION TRUST","Acute and Acute & Community Trusts",514,10939,6.9892996108949417,25,34,77,240,138,24,34,66,240,150,31,47,105,216,115]
["Y56","LONDON COMMISSIONING REGION","QMJ","NHS NORTH CENTRAL LONDON ICB - 93C","RV3","CENTRAL AND NORTH WEST LONDON NHS FOUNDATION TRUST","Mental Health & Learning Disability and Mental Health, Learning Disability & Community Trusts",35,8539,5.5476190476190474,4,2,10,14,5,7,2,6,15,5,5,6,10,12,2]
["Y56","LONDON COMMISSIONING REGION","QWE","NHS SOUTH WEST LONDON ICB - 36L","RVR","EPSOM AND ST HELIER UNIVERSITY HOSPITALS NHS TRUST","Acute and Acute & Community Trusts",231,7102,5.4725829725829733,25,36,52,98,20,26,34,44,100,27,31,45,56,80,19]
["Y56","LONDON COMMISSIONING REGION","QMF","NHS NORTH EAST LONDON ICB - A3A8R","RWK","EAST LONDON NHS FOUNDATION TRUST","Mental Health & Learning Disability and Mental Health, Learning Disability & Community Trusts",960,7300,6.9921875,22,65,167,498,212,22,68,151,485,234,31,104,216,423,187]
["Y56","LONDON COMMISSIONING REGION","QRV","NHS NORTH WEST LONDON ICB - W2U3Z","RYJ","IMPERIAL COLLEGE HEALTHCARE NHS TRUST","Acute and Acute & Community Trusts",96,13870,6.197916666666667,6,18,14,35,23,8,15,14,37,22,8,13,26,32,17]
["Y56","LONDON COMMISSIONING REGION","QRV","NHS NORTH WEST LONDON ICB - W2U3Z","RYX","CENTRAL LONDON COMMUNITY HEALTHCARE NHS TRUST","Community Trusts",971,4806,7.0279780295228287,28,69,160,485,233,31,55,154,487,246,32,96,218,427,198]
["Y56","LONDON COMMISSIONING REGION","QMJ","NHS NORTH CENTRAL LONDON ICB - 93C","TAF","CAMDEN AND ISLINGTON NHS FOUNDATION TRUST","Mental Health & Learning Disability and Mental Health, Learning Disability & Community Trusts",85,2562,5.666666666666667,7,14,17,37,10,10,8,19,39,9,12,10,26,30,7]
["Y58","SOUTH WEST COMMISSIONING REGION","QVV","NHS DORSET ICB - 11J","R0D","UNIVERSITY HOSPITALS DORSET NHS FOUNDATION TRUST","Acute and Acute & Community Trusts",990,9659,6.198653198653199,59,125,194,439,173,62,123,168,445,192,73,171,259,357,130]
["Y58","SOUTH WEST COMMISSIONING REGION","QUY","NHS BRISTOL, NORTH SOMERSET AND SOUTH GLOUCESTERSHIRE ICB - 15C","RA7","UNIVERSITY HOSPITALS BRISTOL AND WESTON NHS FOUNDATION TRUST","Acute and Acute & Community Trusts",857,12869,6.671528588098016,32,95,143,381,206,30,93,144,373,217,40,134,184,353,146]
["Y58","SOUTH WEST COMMISSIONING REGION","QJK","NHS DEVON ICB - 15N","RA9","TORBAY AND SOUTH DEVON NHS FOUNDATION TRUST","Acute and Acute & Community Trusts",308,7174,6.1255411255411261,21,51,52,130,55,20,34,52,138,65,30,64,71,91,52]
["Y58","SOUTH WEST COMMISSIONING REGION","QVV","NHS DORSET ICB - 11J","RBD","DORSET COUNTY HOSPITAL NHS FOUNDATION TRUST","Acute and Acute & Community Trusts",225,3465,6.1148148148148147,14,28,38,107,38,18,33,28,106,40,21,43,47,86,28]
["Y58","SOUTH WEST COMMISSIONING REGION","QOX","NHS BATH AND NORTH EAST SOMERSET, SWINDON AND WILTSHIRE ICB - 92G","RD1","ROYAL UNITED HOSPITALS BATH NHS FOUNDATION TRUST","Acute and Acute & Community Trusts",1149,6582,6.5803597331012469,35,105,193,611,207,45,98,173,616,219,67,169,285,498,130]
["Y58","SOUTH WEST COMMISSIONING REGION","QVV","NHS DORSET ICB - 11J","RDY","DORSET HEALTHCARE UNIVERSITY NHS FOUNDATION TRUST","Mental Health & Learning Disability and Mental Health, Learning Disability & Community Trusts",596,6869,6.3450782997762865,33,75,101,278,109,38,58,106,274,120,36,92,167,211,90]
["Y58","SOUTH WEST COMMISSIONING REGION","QT6","NHS CORNWALL AND THE ISLES OF SCILLY ICB - 11N","REF","ROYAL CORNWALL HOSPITALS NHS TRUST","Acute and Acute & Community Trusts",834,7222,6.7036370903277378,41,73,132,371,217,47,66,129,381,212,58,111,181,333,151]
["Y58","SOUTH WEST COMMISSIONING REGION","QSL","NHS SOMERSET ICB - 11X","RH5","SOMERSET NHS FOUNDATION TRUST","Acute and Acute & Community Trusts",719,13308,6.6631896152063046,31,66,125,345,152,32,60,125,340,162,41,88,179,278,133]
["Y58","SOUTH WEST COMMISSIONING REGION","QJK","NHS DEVON ICB - 15N","RH8","ROYAL DEVON UNIVERSITY HEALTHCARE NHS FOUNDATION TRUST","Acute and Acute & Community Trusts",2338,13192,6.6010835471913323,74,239,424,1175,430,89,202,415,1185,447,116,292,597,1013,322]
["Y58","SOUTH WEST COMMISSIONING REGION","QT6","NHS CORNWALL AND THE ISLES OF SCILLY ICB - 11N","RJ8","CORNWALL PARTNERSHIP NHS FOUNDATION TRUST","Mental Health & Learning Disability and Mental Health, Learning Disability & Community Trusts",11,4926,6.6666666666666661,0,1,4,4,2,0,1,0,8,2,0,3,2,5,1]
["Y58","SOUTH WEST COMMISSIONING REGION","QJK","NHS DEVON ICB - 15N","RK9","UNIVERSITY HOSPITALS PLYMOUTH NHS TRUST","Acute and Acute & Community Trusts",1136,10600,6.16637323943662,91,132,213,485,216,96,114,200,498,228,114,180,263,421,160]
["Y58","SOUTH WEST COMMISSIONING REGION","QOX","NHS BATH AND NORTH EAST SOMERSET, SWINDON AND WILTSHIRE ICB - 92G","RN3","GREAT WESTERN HOSPITALS NHS FOUNDATION TRUST","Acute and Acute & Community Trusts",1292,5705,6.4596233230134166,42,142,276,625,211,48,125,263,630,228,60,178,366,513,175]
["Y58","SOUTH WEST COMMISSIONING REGION","QR1","NHS GLOUCESTERSHIRE ICB - 11M","RTE","GLOUCESTERSHIRE HOSPITALS NHS FOUNDATION TRUST","Acute and Acute & Community Trusts",748,8924,6.7791889483065946,66,128,223,380,137,82,131,19,381,135,102,173,253,308,92]
["Y58","SOUTH WEST COMMISSIONING REGION","QR1","NHS GLOUCESTERSHIRE ICB - 11M","RTQ","GLOUCESTERSHIRE HEALTH AND CARE NHS FOUNDATION TRUST","Mental Health & Learning Disability and Mental Health, Learning Disability & Community Trusts",288,4799,6.9560185185185182,5,28,49,143,63,6,15,48,146,73,8,29,77,123,51]
["Y58","SOUTH WEST COMMISSIONING REGION","QUY","NHS BRISTOL, NORTH SOMERSET AND SOUTH GLOUCESTERSHIRE ICB - 15C","RVJ","NORTH BRISTOL NHS TRUST","Acute and Acute & Community Trusts",117,10025,5.8974358974358978,10,12,26,53,16,12,15,19,56,15,15,19,20,51,12]
["Y58","SOUTH WEST COMMISSIONING REGION","QOX","NHS BATH AND NORTH EAST SOMERSET, SWINDON AND WILTSHIRE ICB - 92G","RVN","AVON AND WILTSHIRE MENTAL HEALTH PARTNERSHIP NHS TRUST","Mental Health & Learning Disability and Mental Health, Learning Disability & Community Trusts",139,4836,5.9532374100719423,17,17,23,52,30,16,17,21,53,32,19,22,26,54,18]
["Y58","SOUTH WEST COMMISSIONING REGION","QJK","NHS DEVON ICB - 15N","RWV","DEVON PARTNERSHIP NHS TRUST","Mental Health & Learning Disability and Mental Health, Learning Disability & Community Trusts",155,3794,6.532258064516129,4,20,30,73,28,3,18,30,76,28,6,23,42,57,27]
["Y59","SOUTH EAST COMMISSIONING REGION","QRL","NHS HAMPSHIRE AND ISLE OF WIGHT ICB - D9Y0V","R1C","SOLENT NHS TRUST","Mental Health & Learning Disability and Mental Health, Learning Disability & Community Trusts",47,4205,7.3049645390070914,1,3,4,25,14,1,3,3,29,11,1,4,10,22,10]
["Y59","SOUTH EAST COMMISSIONING REGION","QRL","NHS HAMPSHIRE AND ISLE OF WIGHT ICB - D9Y0V","R1F","ISLE OF WIGHT NHS TRUST","Acute and Acute & Community Trusts",455,4116,6.3717948717948714,21,50,95,203,86,26,48,73,219,89,28,79,106,180,62]
["Y59","SOUTH EAST COMMISSIONING REGION","QNX","NHS SUSSEX ICB - 09D","RDR","SUSSEX COMMUNITY NHS FOUNDATION TRUST","Community Trusts",638,5519,6.6901776384535001,20,63,140,287,128,20,40,130,305,143,24,68,193,247,106]
["Y59","SOUTH EAST COMMISSIONING REGION","QNQ","NHS FRIMLEY ICB - D4U1Y","RDU","FRIMLEY HEALTH NHS FOUNDATION TRUST","Acute and Acute & Community Trusts",2158,10689,6.6083565029348161,65,190,481,1069,361,65,170,467,1079,382,77,234,629,923,295]
["Y59","SOUTH EAST COMMISSIONING REGION","QRL","NHS HAMPSHIRE AND ISLE OF WIGHT ICB - D9Y0V","RHM","UNIVERSITY HOSPITAL SOUTHAMPTON NHS FOUNDATION TRUST","Acute and Acute & Community Trusts",3360,13536,6.65625,86,299,654,1714,614,108,258,631,1748,617,151,413,880,1436,480]
["Y59","SOUTH EAST COMMISSIONING REGION","QRL","NHS HAMPSHIRE AND ISLE OF WIGHT ICB - D9Y0V","RHU","PORTSMOUTH HOSPITALS UNIVERSITY NATIONAL HEALTH SERVICE TRUST","Acute and Acute & Community Trusts",630,8774,6.2261904761904763,36,86,124,277,107,43,64,128,278,118,43,105,165,235,87]
["Y59","SOUTH EAST COMMISSIONING REGION","QU9","NHS BUCKINGHAMSHIRE, OXFORDSHIRE AND BERKSHIRE WEST ICB - 10Q","RHW","ROYAL BERKSHIRE NHS FOUNDATION TRUST","Acute and Acute & Community Trusts",42,6379,6.2896825396825404,2,7,6,16,11,1,6,12,12,11,2,11,9,13,7]
["Y59","SOUTH EAST COMMISSIONING REGION","QRL","NHS HAMPSHIRE AND ISLE OF WIGHT ICB - D9Y0V","RN5","HAMPSHIRE HOSPITALS NHS FOUNDATION TRUST","Acute and Acute & Community Trusts",197,7641,6.5905245346869705,11,19,34,97,36,8,19,24,103,43,13,25,44,85,30]
["Y59","SOUTH EAST COMMISSIONING REGION","QKS","NHS KENT AND MEDWAY ICB - 91Q","RN7","DARTFORD AND GRAVESHAM NHS TRUST","Acute and Acute & Community Trusts",164,4349,6.4735772357723578,14,17,31,57,45,13,18,24,66,43,11,22,41,56,34]
["Y59","SOUTH EAST COMMISSIONING REGION","QU9","NHS BUCKINGHAMSHIRE, OXFORDSHIRE AND BERKSHIRE WEST ICB - 10Q","RNU","OXFORD HEALTH NHS FOUNDATION TRUST","Mental Health & Learning Disability and Mental Health, Learning Disability & Community Trusts",467,6496,6.5827980014275518,23,50,76,205,113,27,35,79,216,110,34,70,104,175,84]
["Y59","SOUTH EAST COMMISSIONING REGION","QKS","NHS KENT AND MEDWAY ICB - 91Q","RPA","MEDWAY NHS FOUNDATION TRUST","Acute and Acute & Community Trusts",80,5187,5.78125,12,6,16,29,17,12,12,10,33,13,13,9,17,28,13]
["Y59","SOUTH EAST COMMISSIONING REGION","QNX","NHS SUSSEX ICB - 09D","RPC","QUEEN VICTORIA HOSPITAL NHS FOUNDATION TRUST","Acute Specialist Trusts",158,1142,6.8143459915611819,3,19,27,68,41,6,15,26,67,44,7,24,26,73,28]
["Y59","SOUTH EAST COMMISSIONING REGION","QU9","NHS BUCKINGHAMSHIRE, OXFORDSHIRE AND BERKSHIRE WEST ICB - 10Q","RTH","OXFORD UNIVERSITY HOSPITALS NHS FOUNDATION TRUST","Acute and Acute & Community Trusts",2570,14228,6.6368352788586256,97,224,477,1262,510,113,222,457,1262,522,140,294,670,1080,395]
["Y59","SOUTH EAST COMMISSIONING REGION","QKS","NHS KENT AND MEDWAY ICB - 91Q","RVV","EAST KENT HOSPITALS UNIVERSITY NHS FOUNDATION TRUST","Acute and Acute & Community Trusts",2214,11409,6.1047124360132496,110,272,512,1028,292,129,246,463,1071,307,166,354,624,832,240]
["Y59","SOUTH EAST COMMISSIONING REGION","QRL","NHS HAMPSHIRE AND ISLE OF WIGHT ICB - D9Y0V","RW1","SOUTHERN HEALTH NHS FOUNDATION TRUST","Mental Health & Learning Disability and Mental Health, Learning Disability & Community Trusts",668,6774,6.6591816367265464,24,52,126,360,106,23,56,95,370,124,31,87,160,289,101]
["Y59","SOUTH EAST COMMISSIONING REGION","QKS","NHS KENT AND MEDWAY ICB - 91Q","RWF","MAIDSTONE AND TUNBRIDGE WELLS NHS TRUST","Acute and Acute & Community Trusts",718,7439,6.068941504178273,47,98,147,301,125,47,96,146,314,115,53,124,196,252,93]
["Y59","SOUTH EAST COMMISSIONING REGION","QNQ","NHS FRIMLEY ICB - D4U1Y","RWX","BERKSHIRE HEALTHCARE NHS FOUNDATION TRUST","Mental Health & Learning Disability and Mental Health, Learning Disability & Community Trusts",1592,4977,7.2513609715242877,29,96,248,828,396,24,76,239,800,454,34,111,365,746,336]
["Y59","SOUTH EAST COMMISSIONING REGION","QNX","NHS SUSSEX ICB - 09D","RX2","SUSSEX PARTNERSHIP NHS FOUNDATION TRUST","Mental Health & Learning Disability and Mental Health, Learning Disability & Community Trusts",231,5895,5.9595959595959602,13,39,39,106,34,18,32,40,107,34,22,40,60,84,25]
["Y59","SOUTH EAST COMMISSIONING REGION","QNX","NHS SUSSEX ICB - 09D","RXC","EAST SUSSEX HEALTHCARE NHS TRUST","Acute and Acute & Community Trusts",367,8366,5.8514986376021803,30,47,89,137,64,32,43,86,149,57,38,60,114,113,42]
["Y59","SOUTH EAST COMMISSIONING REGION","QU9","NHS BUCKINGHAMSHIRE, OXFORDSHIRE AND BERKSHIRE WEST ICB - 10Q","RXQ","BUCKINGHAMSHIRE HEALTHCARE NHS TRUST","Acute and Acute & Community Trusts",821,6875,6.5052781161185544,34,67,186,407,127,31,71,162,402,155,37,108,223,346,107]
["Y59","SOUTH EAST COMMISSIONING REGION","QXU","NHS SURREY HEARTLANDS  ICB - 92A","RXX","SURREY AND BORDERS PARTNERSHIP NHS FOUNDATION TRUST","Mental Health & Learning Disability and Mental Health, Learning Disability & Community Trusts",108,3314,6.651234567901235,5,10,22,46,25,7,9,19,49,24,7,12,23,42,24]
["Y59","SOUTH EAST COMMISSIONING REGION","QNX","NHS SUSSEX ICB - 09D","RYD","SOUTH EAST COAST AMBULANCE SERVICE NHS FOUNDATION TRUST","Ambulance Trusts",574,4604,4.7560975609756095,69,112,126,219,48,88,126,139,183,38,106,159,160,117,32]
["Y59","SOUTH EAST COMMISSIONING REGION","QU9","NHS BUCKINGHAMSHIRE, OXFORDSHIRE AND BERKSHIRE WEST ICB - 10Q","RYE","SOUTH CENTRAL AMBULANCE SERVICE NHS FOUNDATION TRUST","Ambulance Trusts",262,4615,4.7805343511450378,39,49,62,96,16,34,51,68,87,22,53,68,66,58,17]
["Y59","SOUTH EAST COMMISSIONING REGION","QNX","NHS SUSSEX ICB - 09D","RYR","UNIVERSITY HOSPITALS SUSSEX NHS FOUNDATION TRUST","Acute and Acute & Community Trusts",562,16851,5.7814353499406881,42,92,110,232,86,42,81,107,242,90,56,132,153,156,65]
["Y59","SOUTH EAST COMMISSIONING REGION","QKS","NHS KENT AND MEDWAY ICB - 91Q","RYY","KENT COMMUNITY HEALTH NHS FOUNDATION TRUST","Community Trusts",873,5217,6.8967163039327986,46,75,134,390,228,45,58,117,406,247,48,90,184,360,191]
["Y60","MIDLANDS COMMISSIONING REGION","QOC","NHS SHROPSHIRE, TELFORD AND WREKIN ICB - M2L0M","R1D","SHROPSHIRE COMMUNITY HEALTH NHS TRUST","Community Trusts",10,1661,6,0,1,3,4,2,1,2,1,4,2,1,4,0,3,2]
["Y60","MIDLANDS COMMISSIONING REGION","QUA","NHS BLACK COUNTRY ICB - D2P2L","RBK","WALSALL HEALTHCARE NHS TRUST","Acute and Acute & Community Trusts",1094,5165,6.3071297989031079,73,107,238,482,194,80,103,196,513,202,87,122,297,435,153]
["Y60","MIDLANDS COMMISSIONING REGION","QT1","NHS NOTTINGHAM AND NOTTINGHAMSHIRE ICB - 52R","RHA","NOTTINGHAMSHIRE HEALTHCARE NHS FOUNDATION TRUST","Mental Health & Learning Disability and Mental Health, Learning Disability & Community Trusts",794,9343,6.2405541561712843,49,105,135,377,128,46,75,141,400,135,64,119,228,288,98]
["Y60","MIDLANDS COMMISSIONING REGION","QWU","NHS COVENTRY AND WARWICKSHIRE ICB - B2M3M","RJC","SOUTH WARWICKSHIRE UNIVERSITY NHS FOUNDATION TRUST","Acute and Acute & Community Trusts",55,5443,6.621212121212122,3,7,11,21,13,4,5,6,26,14,3,8,12,18,14]
["Y60","MIDLANDS COMMISSIONING REGION","QNC","NHS STAFFORDSHIRE AND STOKE-ON-TRENT ICB - 05W","RJE","UNIVERSITY HOSPITALS OF NORTH MIDLANDS NHS TRUST","Acute and Acute & Community Trusts",12,11957,4.4444444444444446,3,3,1,5,0,3,1,3,5,0,3,1,3,5,0]
["Y60","MIDLANDS COMMISSIONING REGION","QT1","NHS NOTTINGHAM AND NOTTINGHAMSHIRE ICB - 52R","RK5","SHERWOOD FOREST HOSPITALS NHS FOUNDATION TRUST","Acute and Acute & Community Trusts",740,6051,6.586711711711712,34,87,138,330,151,35,79,120,345,167,40,98,168,320,119]
["Y60","MIDLANDS COMMISSIONING REGION","QWU","NHS COVENTRY AND WARWICKSHIRE ICB - B2M3M","RKB","UNIVERSITY HOSPITALS COVENTRY AND WARWICKSHIRE NHS TRUST","Acute and Acute & Community Trusts",235,9720,6.3652482269503539,15,27,48,100,45,16,22,44,98,55,18,32,60,84,41]
["Y60","MIDLANDS COMMISSIONING REGION","QUA","NHS BLACK COUNTRY ICB - D2P2L","RL4","THE ROYAL WOLVERHAMPTON NHS TRUST","Acute and Acute & Community Trusts",459,11342,6.1456063907044305,23,65,86,194,91,35,62,75,196,91,43,80,118,150,68]
["Y60","MIDLANDS COMMISSIONING REGION","QGH","NHS HEREFORDSHIRE AND WORCESTERSHIRE ICB - 18C","RLQ","WYE VALLEY NHS TRUST","Acute and Acute & Community Trusts",28,3981,6.6369047619047619,1,1,7,13,6,0,1,5,16,6,2,3,12,9,2]
["Y60","MIDLANDS COMMISSIONING REGION","QWU","NHS COVENTRY AND WARWICKSHIRE ICB - B2M3M","RLT","GEORGE ELIOT HOSPITAL NHS TRUST","Acute and Acute & Community Trusts",54,2924,6.7438271604938276,5,2,12,20,15,4,5,8,17,20,4,7,12,16,15]
["Y60","MIDLANDS COMMISSIONING REGION","QNC","NHS STAFFORDSHIRE AND STOKE-ON-TRENT ICB - 05W","RLY","NORTH STAFFORDSHIRE COMBINED HEALTHCARE NHS TRUST","Mental Health & Learning Disability and Mental Health, Learning Disability & Community Trusts",87,1792,6.3409961685823752,4,18,12,29,24,5,13,13,34,22,7,17,16,29,18]
["Y60","MIDLANDS COMMISSIONING REGION","QUA","NHS BLACK COUNTRY ICB - D2P2L","RNA","THE DUDLEY GROUP NHS FOUNDATION TRUST","Acute and Acute & Community Trusts",381,6133,6.4282589676290458,23,40,75,168,75,17,47,61,176,80,28,57,80,153,63]
["Y60","MIDLANDS COMMISSIONING REGION","QPM","NHS NORTHAMPTONSHIRE ICB - 78H","RNQ","KETTERING GENERAL HOSPITAL NHS FOUNDATION TRUST","Acute and Acute & Community Trusts",445,4820,5.9007490636704123,34,76,97,175,63,35,58,78,204,70,44,73,112,163,53]
["Y60","MIDLANDS COMMISSIONING REGION","QPM","NHS NORTHAMPTONSHIRE ICB - 78H","RNS","NORTHAMPTON GENERAL HOSPITAL NHS TRUST","Acute and Acute & Community Trusts",446,5856,6.0893124065769806,32,59,92,178,85,31,63,83,182,87,41,75,118,140,72]
["Y60","MIDLANDS COMMISSIONING REGION","QPM","NHS NORTHAMPTONSHIRE ICB - 78H","RP1","NORTHAMPTONSHIRE HEALTHCARE NHS FOUNDATION TRUST","Mental Health & Learning Disability and Mental Health, Learning Disability & Community Trusts",1873,4849,7.0159281010856027,27,121,328,985,415,29,129,318,958,441,44,182,477,842,328]
["Y60","MIDLANDS COMMISSIONING REGION","QJM","NHS LINCOLNSHIRE ICB - 71E","RP7","LINCOLNSHIRE PARTNERSHIP NHS FOUNDATION TRUST","Mental Health & Learning Disability and Mental Health, Learning Disability & Community Trusts",957,2733,7.1255660048763501,20,67,127,498,245,20,61,134,497,245,36,81,222,413,206]
["Y60","MIDLANDS COMMISSIONING REGION","QHL","NHS BIRMINGHAM AND SOLIHULL ICB - 15E","RQ3","BIRMINGHAM WOMEN'S AND CHILDREN'S NHS FOUNDATION TRUST","Acute and Acute & Community Trusts",49,6407,5.6122448979591839,9,7,9,16,8,10,2,5,21,11,8,7,10,17,7]
["Y60","MIDLANDS COMMISSIONING REGION","QNC","NHS STAFFORDSHIRE AND STOKE-ON-TRENT ICB - 05W","RRE","MIDLANDS PARTNERSHIP NHS FOUNDATION TRUST","Mental Health & Learning Disability and Mental Health, Learning Disability & Community Trusts",255,10018,7.5915032679738559,3,14,39,95,104,6,14,35,87,113,5,20,59,89,82]
["Y60","MIDLANDS COMMISSIONING REGION","QHL","NHS BIRMINGHAM AND SOLIHULL ICB - 15E","RRJ","THE ROYAL ORTHOPAEDIC HOSPITAL NHS FOUNDATION TRUST","Acute Specialist Trusts",221,1330,6.8702865761689287,6,22,39,108,50,11,20,36,98,56,15,23,39,101,46]
["Y60","MIDLANDS COMMISSIONING REGION","QHL","NHS BIRMINGHAM AND SOLIHULL ICB - 15E","RRK","UNIVERSITY HOSPITALS BIRMINGHAM NHS FOUNDATION TRUST","Acute and Acute & Community Trusts",562,23861,5.7161921708185055,43,83,119,239,78,58,84,110,225,85,71,110,130,188,63]
["Y60","MIDLANDS COMMISSIONING REGION","QK1","NHS LEICESTER, LEICESTERSHIRE AND RUTLAND ICB - 03W","RT5","LEICESTERSHIRE PARTNERSHIP NHS TRUST","Mental Health & Learning Disability and Mental Health, Learning Disability & Community Trusts",340,6305,6.7107843137254894,13,32,49,163,83,15,30,57,160,78,22,42,79,137,60]
["Y60","MIDLANDS COMMISSIONING REGION","QJ2","NHS DERBY AND DERBYSHIRE ICB - 15M","RTG","UNIVERSITY HOSPITALS OF DERBY AND BURTON NHS FOUNDATION TRUST","Acute and Acute & Community Trusts",1425,14404,6.0561403508771932,76,185,345,608,211,83,162,321,638,221,101,244,426,501,153]
["Y60","MIDLANDS COMMISSIONING REGION","QJM","NHS LINCOLNSHIRE ICB - 71E","RWD","UNITED LINCOLNSHIRE HOSPITALS NHS TRUST","Acute and Acute & Community Trusts",2236,9295,6.2895050685748366,104,249,505,998,385,111,244,510,981,394,143,326,628,838,301]
["Y60","MIDLANDS COMMISSIONING REGION","QGH","NHS HEREFORDSHIRE AND WORCESTERSHIRE ICB - 18C","RWP","WORCESTERSHIRE ACUTE HOSPITALS NHS TRUST","Acute and Acute & Community Trusts",1223,7109,6.5624148269283182,43,122,257,580,230,43,133,223,578,249,64,171,295,507,186]
["Y60","MIDLANDS COMMISSIONING REGION","QT1","NHS NOTTINGHAM AND NOTTINGHAMSHIRE ICB - 52R","RX1","NOTTINGHAM UNIVERSITY HOSPITALS NHS TRUST","Acute and Acute & Community Trusts",2117,19481,6.4304833884427648,76,257,366,988,430,86,237,383,1000,411,135,342,547,792,301]
["Y60","MIDLANDS COMMISSIONING REGION","QT1","NHS NOTTINGHAM AND NOTTINGHAMSHIRE ICB - 52R","RX9","EAST MIDLANDS AMBULANCE SERVICE NHS TRUST","Ambulance Trusts",326,4234,4.9795501022494886,25,63,77,119,42,48,74,75,97,32,61,92,77,67,29]
["Y60","MIDLANDS COMMISSIONING REGION","QHL","NHS BIRMINGHAM AND SOLIHULL ICB - 15E","RXK","SANDWELL AND WEST BIRMINGHAM HOSPITALS NHS TRUST","Acute and Acute & Community Trusts",3195,7631,6.7073552425665106,129,267,604,1535,688,162,246,597,1521,674,171,332,806,1303,583]
["Y60","MIDLANDS COMMISSIONING REGION","QJ2","NHS DERBY AND DERBYSHIRE ICB - 15M","RXM","DERBYSHIRE HEALTHCARE NHS FOUNDATION TRUST","Mental Health & Learning Disability and Mental Health, Learning Disability & Community Trusts",885,3199,6.8992467043314498,19,59,153,454,200,26,58,164,447,192,35,84,227,397,144]
["Y60","MIDLANDS COMMISSIONING REGION","QHL","NHS BIRMINGHAM AND SOLIHULL ICB - 15E","RXT","BIRMINGHAM AND SOLIHULL MENTAL HEALTH NHS FOUNDATION TRUST","Mental Health & Learning Disability and Mental Health, Learning Disability & Community Trusts",218,4840,6.0282874617737008,13,27,51,88,39,19,30,37,94,38,21,43,49,71,34]
["Y60","MIDLANDS COMMISSIONING REGION","QOC","NHS SHROPSHIRE, TELFORD AND WREKIN ICB - M2L0M","RXW","THE SHREWSBURY AND TELFORD HOSPITAL NHS TRUST","Acute and Acute & Community Trusts",903,7779,6.1544850498338874,56,111,193,399,144,57,108,168,419,151,72,134,243,342,112]
["Y60","MIDLANDS COMMISSIONING REGION","QJM","NHS LINCOLNSHIRE ICB - 71E","RY5","LINCOLNSHIRE COMMUNITY HEALTH SERVICES NHS TRUST","Community Trusts",769,2420,6.7479410489813612,21,79,131,366,172,24,78,112,385,170,30,103,178,328,130]
["Y60","MIDLANDS COMMISSIONING REGION","QJ2","NHS DERBY AND DERBYSHIRE ICB - 15M","RY8","DERBYSHIRE COMMUNITY HEALTH SERVICES NHS FOUNDATION TRUST","Community Trusts",748,4410,7.0766488413547233,27,55,119,345,207,28,46,109,344,223,37,63,166,315,167]
["Y60","MIDLANDS COMMISSIONING REGION","QUA","NHS BLACK COUNTRY ICB - D2P2L","RYA","WEST MIDLANDS AMBULANCE SERVICE UNIVERSITY NHS FOUNDATION TRUST","Ambulance Trusts",510,6661,4.2205882352941178,74,130,123,139,44,91,138,138,113,30,107,181,127,74,21]
["Y60","MIDLANDS COMMISSIONING REGION","QWU","NHS COVENTRY AND WARWICKSHIRE ICB - B2M3M","RYG","COVENTRY AND WARWICKSHIRE PARTNERSHIP NHS TRUST","Mental Health & Learning Disability and Mental Health, Learning Disability & Community Trusts",335,4289,6.4776119402985071,10,37,73,154,61,12,42,49,156,76,19,53,97,108,58]
["Y60","MIDLANDS COMMISSIONING REGION","QUA","NHS BLACK COUNTRY ICB - D2P2L","RYK","DUDLEY INTEGRATED HEALTH AND CARE NHS TRUST","Community Trusts",36,478,5.3703703703703702,6,6,7,11,6,5,5,6,15,5,7,5,8,12,4]
["Y60","MIDLANDS COMMISSIONING REGION","QHL","NHS BIRMINGHAM AND SOLIHULL ICB - 15E","RYW","BIRMINGHAM COMMUNITY HEALTHCARE NHS FOUNDATION TRUST","Community Trusts",107,5198,6.32398753894081,10,10,20,48,19,8,13,11,50,25,7,20,21,41,18]
["Y60","MIDLANDS COMMISSIONING REGION","QUA","NHS BLACK COUNTRY ICB - D2P2L","TAJ","BLACK COUNTRY HEALTHCARE NHS FOUNDATION TRUST","Mental Health & Learning Disability and Mental Health, Learning Disability & Community Trusts",522,3956,5.9339080459770113,44,64,117,206,91,42,66,115,211,88,50,94,138,174,66]
["Y61","EAST OF ENGLAND COMMISSIONING REGION","QH8","NHS MID AND SOUTH ESSEX ICB - 06Q","R1L","ESSEX PARTNERSHIP UNIVERSITY NHS FOUNDATION TRUST","Mental Health & Learning Disability and Mental Health, Learning Disability & Community Trusts",527,6557,6.3472485768500952,25,55,105,256,86,28,55,95,260,89,31,89,119,223,65]
["Y61","EAST OF ENGLAND COMMISSIONING REGION","QMM","NHS NORFOLK AND WAVENEY ICB - 26A","RCX","THE QUEEN ELIZABETH HOSPITAL, KING'S LYNN, NHS FOUNDATION TRUST","Acute and Acute & Community Trusts",313,3941,6.0410010649627264,21,42,63,140,47,20,40,63,134,56,29,59,70,118,37]
["Y61","EAST OF ENGLAND COMMISSIONING REGION","QHG","NHS BEDFORDSHIRE, LUTON AND MILTON KEYNES ICB - M1J4Y","RD8","MILTON KEYNES UNIVERSITY HOSPITAL NHS FOUNDATION TRUST","Acute and Acute & Community Trusts",92,4192,5.5615942028985508,9,15,21,33,14,10,19,10,40,13,11,20,21,31,9]
["Y61","EAST OF ENGLAND COMMISSIONING REGION","QUE","NHS CAMBRIDGESHIRE AND PETERBOROUGH ICB - 06H","RGN","NORTH WEST ANGLIA NHS FOUNDATION TRUST","Acute and Acute & Community Trusts",133,7330,6.4661654135338349,5,18,29,58,23,7,11,26,64,25,6,18,31,57,21]
["Y61","EAST OF ENGLAND COMMISSIONING REGION","QJG","NHS SUFFOLK AND NORTH EAST ESSEX ICB - 07K","RGR","WEST SUFFOLK NHS FOUNDATION TRUST","Acute and Acute & Community Trusts",1462,5267,6.6991564067487452,39,116,289,737,281,47,115,301,712,287,62,157,405,600,239]
["Y61","EAST OF ENGLAND COMMISSIONING REGION","QUE","NHS CAMBRIDGESHIRE AND PETERBOROUGH ICB - 06H","RGT","CAMBRIDGE UNIVERSITY HOSPITALS NHS FOUNDATION TRUST","Acute and Acute & Community Trusts",2908,12276,6.5016047684548379,106,294,582,1381,548,112,280,579,1382,556,173,381,769,1172,413]
["Y61","EAST OF ENGLAND COMMISSIONING REGION","QMM","NHS NORFOLK AND WAVENEY ICB - 26A","RM1","NORFOLK AND NORWICH UNIVERSITY HOSPITALS NHS FOUNDATION TRUST","Acute and Acute & Community Trusts",388,9383,5.9987113402061851,31,42,91,160,64,29,46,66,183,64,42,66,99,138,43]
["Y61","EAST OF ENGLAND COMMISSIONING REGION","QMM","NHS NORFOLK AND WAVENEY ICB - 26A","RMY","NORFOLK AND SUFFOLK NHS FOUNDATION TRUST","Mental Health & Learning Disability and Mental Health, Learning Disability & Community Trusts",22,5055,5.0378787878787881,4,4,5,7,2,2,5,4,9,2,4,5,4,7,2]
["Y61","EAST OF ENGLAND COMMISSIONING REGION","QM7","NHS HERTFORDSHIRE AND WEST ESSEX ICB - 07H","RQW","THE PRINCESS ALEXANDRA HOSPITAL NHS TRUST","Acute and Acute & Community Trusts",103,3990,5.7766990291262132,13,18,13,36,23,13,10,16,42,22,17,23,10,41,12]
["Y61","EAST OF ENGLAND COMMISSIONING REGION","QUE","NHS CAMBRIDGESHIRE AND PETERBOROUGH ICB - 06H","RT1","CAMBRIDGESHIRE AND PETERBOROUGH NHS FOUNDATION TRUST","Mental Health & Learning Disability and Mental Health, Learning Disability & Community Trusts",2429,4789,7.2896939755729386,32,119,429,1180,669,32,108,404,1194,691,43,166,588,1077,555]
["Y61","EAST OF ENGLAND COMMISSIONING REGION","QM7","NHS HERTFORDSHIRE AND WEST ESSEX ICB - 07H","RWG","WEST HERTFORDSHIRE TEACHING HOSPITALS NHS TRUST","Acute and Acute & Community Trusts",486,5589,5.860768175582991,33,63,117,216,57,36,54,111,228,57,45,81,139,186,35]
["Y61","EAST OF ENGLAND COMMISSIONING REGION","QM7","NHS HERTFORDSHIRE AND WEST ESSEX ICB - 07H","RWR","HERTFORDSHIRE PARTNERSHIP UNIVERSITY NHS FOUNDATION TRUST","Mental Health & Learning Disability and Mental Health, Learning Disability & Community Trusts",962,4182,7.0616770616770612,24,58,156,493,231,25,56,165,483,235,28,90,221,424,200]
["Y61","EAST OF ENGLAND COMMISSIONING REGION","QMM","NHS NORFOLK AND WAVENEY ICB - 26A","RY3","NORFOLK COMMUNITY HEALTH AND CARE NHS TRUST","Community Trusts",510,2474,7.0915032679738559,16,30,72,265,127,16,28,80,234,152,16,51,125,208,110]
["Y61","EAST OF ENGLAND COMMISSIONING REGION","QM7","NHS HERTFORDSHIRE AND WEST ESSEX ICB - 07H","RY4","HERTFORDSHIRE COMMUNITY NHS TRUST","Community Trusts",264,2422,6.9760101010101012,12,24,39,112,77,11,19,28,132,74,12,34,52,105,61]
["Y61","EAST OF ENGLAND COMMISSIONING REGION","QUE","NHS CAMBRIDGESHIRE AND PETERBOROUGH ICB - 06H","RYC","EAST OF ENGLAND AMBULANCE SERVICE NHS TRUST","Ambulance Trusts",1467,6007,5.2056350829356965,125,259,324,594,165,181,308,358,460,168,223,366,415,337,133]
["Y61","EAST OF ENGLAND COMMISSIONING REGION","QUE","NHS CAMBRIDGESHIRE AND PETERBOROUGH ICB - 06H","RYV","CAMBRIDGESHIRE COMMUNITY SERVICES NHS TRUST","Community Trusts",41,2637,6.2804878048780486,3,5,7,16,10,3,3,10,17,8,4,7,9,13,8]
["Y62","NORTH WEST COMMISSIONING REGION","QOP","NHS GREATER MANCHESTER ICB - 00T","R0A","MANCHESTER UNIVERSITY NHS FOUNDATION TRUST","Acute and Acute & Community Trusts",3358,29187,6.4681357951161402,191,365,634,1575,617,195,341,562,1579,695,224,460,772,1356,546]
["Y62","NORTH WEST COMMISSIONING REGION","QYG","NHS CHESHIRE AND MERSEYSIDE ICB - 01J","RBL","WIRRAL UNIVERSITY TEACHING HOSPITAL NHS FOUNDATION TRUST","Acute and Acute & Community Trusts",748,6784,6.1697860962566846,46,83,174,314,131,53,86,156,312,141,61,109,204,270,104]
["Y62","NORTH WEST COMMISSIONING REGION","QYG","NHS CHESHIRE AND MERSEYSIDE ICB - 01J","RBN","MERSEY AND WEST LANCASHIRE TEACHING HOSPITALS NHS TRUST","Acute and Acute & Community Trusts",196,10855,6.2032312925170068,19,24,32,78,43,15,28,38,72,43,15,28,48,71,34]
["Y62","NORTH WEST COMMISSIONING REGION","QYG","NHS CHESHIRE AND MERSEYSIDE ICB - 01J","RBQ","LIVERPOOL HEART AND CHEST HOSPITAL NHS FOUNDATION TRUST","Acute Specialist Trusts",166,1952,7.0431726907630523,7,17,24,69,49,4,17,19,74,52,5,21,40,51,49]
["Y62","NORTH WEST COMMISSIONING REGION","QYG","NHS CHESHIRE AND MERSEYSIDE ICB - 01J","RBT","MID CHESHIRE HOSPITALS NHS FOUNDATION TRUST","Acute and Acute & Community Trusts",807,5629,6.6315572077653862,43,70,150,373,171,45,65,132,380,185,44,96,199,326,142]
["Y62","NORTH WEST COMMISSIONING REGION","QOP","NHS GREATER MANCHESTER ICB - 00T","RBV","THE CHRISTIE NHS FOUNDATION TRUST","Acute Specialist Trusts",112,3633,7.0163690476190483,5,7,12,59,29,6,7,13,47,39,8,12,20,51,21]
["Y62","NORTH WEST COMMISSIONING REGION","QYG","NHS CHESHIRE AND MERSEYSIDE ICB - 01J","REM","LIVERPOOL UNIVERSITY HOSPITALS NHS FOUNDATION TRUST","Acute and Acute & Community Trusts",1341,15194,5.9016902808849121,106,188,303,565,179,109,171,270,586,205,123,218,373,469,158]
["Y62","NORTH WEST COMMISSIONING REGION","QYG","NHS CHESHIRE AND MERSEYSIDE ICB - 01J","REN","THE CLATTERBRIDGE CANCER CENTRE NHS FOUNDATION TRUST","Acute Specialist Trusts",547,1840,7.1556977452772701,9,49,66,281,142,8,47,60,277,155,10,61,113,252,111]
["Y62","NORTH WEST COMMISSIONING REGION","QYG","NHS CHESHIRE AND MERSEYSIDE ICB - 01J","REP","LIVERPOOL WOMEN'S NHS FOUNDATION TRUST","Acute Specialist Trusts",82,1803,6.321138211382114,5,13,16,29,19,4,12,13,31,22,6,15,21,22,18]
["Y62","NORTH WEST COMMISSIONING REGION","QYG","NHS CHESHIRE AND MERSEYSIDE ICB - 01J","RET","THE WALTON CENTRE NHS FOUNDATION TRUST","Acute Specialist Trusts",104,1573,7.0352564102564097,2,12,19,40,31,4,7,14,49,30,4,14,18,40,28]
["Y62","NORTH WEST COMMISSIONING REGION","QYG","NHS CHESHIRE AND MERSEYSIDE ICB - 01J","RJN","EAST CHESHIRE NHS TRUST","Acute and Acute & Community Trusts",39,2753,6.4529914529914532,3,2,6,19,9,4,3,4,19,9,6,3,11,10,9]
["Y62","NORTH WEST COMMISSIONING REGION","QYG","NHS CHESHIRE AND MERSEYSIDE ICB - 01J","RJR","COUNTESS OF CHESTER HOSPITAL NHS FOUNDATION TRUST","Acute and Acute & Community Trusts",87,4968,5.7375478927203067,11,10,15,35,16,10,14,14,34,15,13,12,23,28,11]
["Y62","NORTH WEST COMMISSIONING REGION","QOP","NHS GREATER MANCHESTER ICB - 00T","RM3","NORTHERN CARE ALLIANCE NHS FOUNDATION TRUST","Acute and Acute & Community Trusts",1514,20832,5.9687362395420518,125,211,324,624,230,118,190,304,647,255,133,257,408,503,213]
["Y62","NORTH WEST COMMISSIONING REGION","QOP","NHS GREATER MANCHESTER ICB - 00T","RMC","BOLTON NHS FOUNDATION TRUST","Acute and Acute & Community Trusts",149,6800,6.0626398210290828,15,18,28,56,32,14,16,21,65,33,18,26,34,49,22]
["Y62","NORTH WEST COMMISSIONING REGION","QOP","NHS GREATER MANCHESTER ICB - 00T","RMP","TAMESIDE AND GLOSSOP INTEGRATED CARE NHS FOUNDATION TRUST","Acute and Acute & Community Trusts",91,4557,6.6117216117216113,3,12,10,44,22,6,3,20,42,20,4,11,32,30,14]
["Y62","NORTH WEST COMMISSIONING REGION","QOP","NHS GREATER MANCHESTER ICB - 00T","RRF","WRIGHTINGTON, WIGAN AND LEIGH NHS FOUNDATION TRUST","Acute and Acute & Community Trusts",37,7264,6.5090090090090094,2,4,11,9,11,2,3,9,13,10,2,5,10,13,7]
["Y62","NORTH WEST COMMISSIONING REGION","QOP","NHS GREATER MANCHESTER ICB - 00T","RT2","PENNINE CARE NHS FOUNDATION TRUST","Mental Health & Learning Disability and Mental Health, Learning Disability & Community Trusts",80,4019,6.1666666666666661,6,11,10,34,19,6,9,16,34,15,8,15,20,23,14]
["Y62","NORTH WEST COMMISSIONING REGION","QE1","NHS LANCASHIRE AND SOUTH CUMBRIA ICB - 01E","RTX","UNIVERSITY HOSPITALS OF MORECAMBE BAY NHS FOUNDATION TRUST","Acute and Acute & Community Trusts",44,7524,6.3068181818181817,1,7,8,20,8,1,7,5,26,5,1,10,11,17,5]
["Y62","NORTH WEST COMMISSIONING REGION","QYG","NHS CHESHIRE AND MERSEYSIDE ICB - 01J","RW4","MERSEY CARE NHS FOUNDATION TRUST","Mental Health & Learning Disability and Mental Health, Learning Disability & Community Trusts",1362,11102,6.8061674008810575,67,118,203,660,314,72,95,181,684,330,74,152,295,571,270]
["Y62","NORTH WEST COMMISSIONING REGION","QE1","NHS LANCASHIRE AND SOUTH CUMBRIA ICB - 01E","RW5","LANCASHIRE & SOUTH CUMBRIA NHS FOUNDATION TRUST","Mental Health & Learning Disability and Mental Health, Learning Disability & Community Trusts",1195,7660,6.8012552301255234,48,83,216,578,270,52,88,192,580,283,55,128,289,518,205]
["Y62","NORTH WEST COMMISSIONING REGION","QOP","NHS GREATER MANCHESTER ICB - 00T","RWJ","STOCKPORT NHS FOUNDATION TRUST","Acute and Acute & Community Trusts",90,6242,6.1574074074074066,8,12,16,35,19,7,12,15,36,20,9,12,23,32,14]
["Y62","NORTH WEST COMMISSIONING REGION","QYG","NHS CHESHIRE AND MERSEYSIDE ICB - 01J","RWW","WARRINGTON AND HALTON TEACHING HOSPITALS NHS FOUNDATION TRUST","Acute and Acute & Community Trusts",91,4664,6.5934065934065931,2,16,19,31,23,4,11,13,39,24,4,15,20,32,20]
["Y62","NORTH WEST COMMISSIONING REGION","QOP","NHS GREATER MANCHESTER ICB - 00T","RX7","NORTH WEST AMBULANCE SERVICE NHS TRUST","Ambulance Trusts",1120,7179,5.9040178571428568,69,172,205,471,203,109,174,217,416,205,137,195,281,333,174]
["Y62","NORTH WEST COMMISSIONING REGION","QYG","NHS CHESHIRE AND MERSEYSIDE ICB - 01J","RXA","CHESHIRE AND WIRRAL PARTNERSHIP NHS FOUNDATION TRUST","Mental Health & Learning Disability and Mental Health, Learning Disability & Community Trusts",601,4345,6.8663338879645037,23,42,115,281,143,31,36,86,300,151,38,60,137,245,121]
["Y62","NORTH WEST COMMISSIONING REGION","QE1","NHS LANCASHIRE AND SOUTH CUMBRIA ICB - 01E","RXL","BLACKPOOL TEACHING HOSPITALS NHS FOUNDATION TRUST","Acute and Acute & Community Trusts",360,8309,6.8009259259259265,14,32,72,160,82,12,25,59,177,87,18,43,78,151,70]
["Y62","NORTH WEST COMMISSIONING REGION","QE1","NHS LANCASHIRE AND SOUTH CUMBRIA ICB - 01E","RXN","LANCASHIRE TEACHING HOSPITALS NHS FOUNDATION TRUST","Acute and Acute & Community Trusts",1521,10291,6.585579662502739,46,142,289,779,268,47,135,271,801,271,89,192,382,661,197]
["Y62","NORTH WEST COMMISSIONING REGION","QE1","NHS LANCASHIRE AND SOUTH CUMBRIA ICB - 01E","RXR","EAST LANCASHIRE HOSPITALS NHS TRUST","Acute and Acute & Community Trusts",35,10213,6.8095238095238102,1,4,5,15,10,1,3,3,18,10,1,8,9,10,7]
["Y62","NORTH WEST COMMISSIONING REGION","QOP","NHS GREATER MANCHESTER ICB - 00T","RXV","GREATER MANCHESTER MENTAL HEALTH NHS FOUNDATION TRUST","Mental Health & Learning Disability and Mental Health, Learning Disability & Community Trusts",1500,6861,6.7605555555555563,42,118,269,762,310,52,124,252,774,299,62,174,356,677,231]
["Y62","NORTH WEST COMMISSIONING REGION","QYG","NHS CHESHIRE AND MERSEYSIDE ICB - 01J","RY2","BRIDGEWATER COMMUNITY HEALTHCARE NHS FOUNDATION TRUST","Community Trusts",205,1579,6.6869918699186988,13,22,36,89,45,9,18,31,96,51,9,24,45,90,37]
["Y62","NORTH WEST COMMISSIONING REGION","QYG","NHS CHESHIRE AND MERSEYSIDE ICB - 01J","RY7","WIRRAL COMMUNITY HEALTH AND CARE NHS FOUNDATION TRUST","Community Trusts",354,1757,6.9161958568738235,8,33,75,149,89,11,26,59,165,93,13,34,91,139,77]
["Y63","NORTH EAST AND YORKSHIRE COMMISSIONING REGION","QHM","NHS  NORTH EAST AND NORTH CUMBRIA ICB - 00L","R0B","SOUTH TYNESIDE AND SUNDERLAND NHS FOUNDATION TRUST","Acute and Acute & Community Trusts",160,9548,5.421875,10,29,45,57,19,16,28,37,58,21,18,44,36,49,13]
["Y63","NORTH EAST AND YORKSHIRE COMMISSIONING REGION","QWO","NHS WEST YORKSHIRE ICB - 02T","RAE","BRADFORD TEACHING HOSPITALS NHS FOUNDATION TRUST","Acute and Acute & Community Trusts",77,6767,6.4718614718614713,5,7,11,33,21,5,13,9,33,17,6,13,15,27,16]
["Y63","NORTH EAST AND YORKSHIRE COMMISSIONING REGION","QOQ","NHS HUMBER AND NORTH YORKSHIRE ICB - 02Y","RCB","YORK AND SCARBOROUGH TEACHING HOSPITALS NHS FOUNDATION TRUST","Acute and Acute & Community Trusts",318,10211,6.1111111111111107,22,37,58,146,55,28,34,49,153,54,31,58,75,110,44]
["Y63","NORTH EAST AND YORKSHIRE COMMISSIONING REGION","QOQ","NHS HUMBER AND NORTH YORKSHIRE ICB - 02Y","RCD","HARROGATE AND DISTRICT NHS FOUNDATION TRUST","Acute and Acute & Community Trusts",1339,5180,6.9566840926064231,43,122,250,537,391,48,83,229,588,394,50,147,351,513,278]
["Y63","NORTH EAST AND YORKSHIRE COMMISSIONING REGION","QWO","NHS WEST YORKSHIRE ICB - 02T","RCF","AIREDALE NHS FOUNDATION TRUST","Acute and Acute & Community Trusts",299,3762,6.3154960981047932,17,29,71,123,59,21,34,43,136,65,26,50,68,104,51]
["Y63","NORTH EAST AND YORKSHIRE COMMISSIONING REGION","QF7","NHS SOUTH YORKSHIRE ICB - 02P","RCU","SHEFFIELD CHILDREN'S NHS FOUNDATION TRUST","Acute and Acute & Community Trusts",427,3944,6.9535519125683054,15,35,56,212,109,15,31,56,215,110,17,50,91,192,77]
["Y63","NORTH EAST AND YORKSHIRE COMMISSIONING REGION","QF7","NHS SOUTH YORKSHIRE ICB - 02P","RFF","BARNSLEY HOSPITAL NHS FOUNDATION TRUST","Acute and Acute & Community Trusts",147,4369,6.3378684807256231,6,22,19,67,33,9,15,24,71,28,10,28,37,53,19]
["Y63","NORTH EAST AND YORKSHIRE COMMISSIONING REGION","QF7","NHS SOUTH YORKSHIRE ICB - 02P","RFR","THE ROTHERHAM NHS FOUNDATION TRUST","Acute and Acute & Community Trusts",62,4865,6.008064516129032,4,6,19,20,13,5,9,15,23,10,5,12,13,23,9]
["Y63","NORTH EAST AND YORKSHIRE COMMISSIONING REGION","QWO","NHS WEST YORKSHIRE ICB - 02T","RGD","LEEDS AND YORK PARTNERSHIP NHS FOUNDATION TRUST","Mental Health & Learning Disability and Mental Health, Learning Disability & Community Trusts",296,3126,7.3423423423423433,7,22,31,149,87,5,20,23,156,92,8,30,45,145,68]
["Y63","NORTH EAST AND YORKSHIRE COMMISSIONING REGION","QF7","NHS SOUTH YORKSHIRE ICB - 02P","RHQ","SHEFFIELD TEACHING HOSPITALS NHS FOUNDATION TRUST","Acute and Acute & Community Trusts",1129,17944,6.2267493356953052,61,125,239,521,183,69,107,232,522,199,91,173,303,422,140]
["Y63","NORTH EAST AND YORKSHIRE COMMISSIONING REGION","QOQ","NHS HUMBER AND NORTH YORKSHIRE ICB - 02Y","RJL","NORTHERN LINCOLNSHIRE AND GOOLE NHS FOUNDATION TRUST","Acute and Acute & Community Trusts",142,7085,5.369718309859155,14,24,29,60,15,17,26,27,54,18,19,32,42,33,16]
["Y63","NORTH EAST AND YORKSHIRE COMMISSIONING REGION","QHM","NHS  NORTH EAST AND NORTH CUMBRIA ICB - 00L","RNN","NORTH CUMBRIA INTEGRATED CARE NHS FOUNDATION TRUST","Acute and Acute & Community Trusts",396,7353,6.0690235690235692,22,65,74,177,58,24,58,61,186,67,29,73,96,155,43]
["Y63","NORTH EAST AND YORKSHIRE COMMISSIONING REGION","QHM","NHS  NORTH EAST AND NORTH CUMBRIA ICB - 00L","RR7","GATESHEAD HEALTH NHS FOUNDATION TRUST","Acute and Acute & Community Trusts",95,5359,6.5701754385964906,4,9,22,39,21,5,9,21,39,21,5,11,23,38,18]
["Y63","NORTH EAST AND YORKSHIRE COMMISSIONING REGION","QWO","NHS WEST YORKSHIRE ICB - 02T","RR8","LEEDS TEACHING HOSPITALS NHS TRUST","Acute and Acute & Community Trusts",1543,20689,6.5397494059192054,60,169,273,700,341,81,147,265,717,333,95,221,375,609,243]
["Y63","NORTH EAST AND YORKSHIRE COMMISSIONING REGION","QHM","NHS  NORTH EAST AND NORTH CUMBRIA ICB - 00L","RTF","NORTHUMBRIA HEALTHCARE NHS FOUNDATION TRUST","Acute and Acute & Community Trusts",4114,9211,6.8119024469291851,109,374,824,2010,797,133,335,694,2089,883,123,417,983,1880,711]
["Y63","NORTH EAST AND YORKSHIRE COMMISSIONING REGION","QHM","NHS  NORTH EAST AND NORTH CUMBRIA ICB - 00L","RVW","NORTH TEES AND HARTLEPOOL NHS FOUNDATION TRUST","Acute and Acute & Community Trusts",51,5934,6.9117647058823533,4,4,8,22,13,4,2,5,22,18,6,2,7,25,11]
["Y63","NORTH EAST AND YORKSHIRE COMMISSIONING REGION","QOQ","NHS HUMBER AND NORTH YORKSHIRE ICB - 02Y","RWA","HULL UNIVERSITY TEACHING HOSPITALS NHS TRUST","Acute and Acute & Community Trusts",1914,9682,6.3362068965517242,81,205,410,898,324,90,217,399,897,311,100,287,532,747,249]
["Y63","NORTH EAST AND YORKSHIRE COMMISSIONING REGION","QWO","NHS WEST YORKSHIRE ICB - 02T","RWY","CALDERDALE AND HUDDERSFIELD NHS FOUNDATION TRUST","Acute and Acute & Community Trusts",282,6698,6.3297872340425529,6,46,56,128,46,11,34,55,135,47,14,48,72,105,43]
["Y63","NORTH EAST AND YORKSHIRE COMMISSIONING REGION","QHM","NHS  NORTH EAST AND NORTH CUMBRIA ICB - 00L","RX3","TEES, ESK AND WEAR VALLEYS NHS FOUNDATION TRUST","Mental Health & Learning Disability and Mental Health, Learning Disability & Community Trusts",823,7998,6.7770352369380316,26,76,161,391,169,27,62,142,405,187,26,91,218,342,146]
["Y63","NORTH EAST AND YORKSHIRE COMMISSIONING REGION","QHM","NHS  NORTH EAST AND NORTH CUMBRIA ICB - 00L","RX4","CUMBRIA, NORTHUMBERLAND, TYNE AND WEAR NHS FOUNDATION TRUST","Mental Health & Learning Disability and Mental Health, Learning Disability & Community Trusts",549,8284,6.6863995142683672,24,46,108,251,120,23,52,84,265,125,28,65,137,220,99]
["Y63","NORTH EAST AND YORKSHIRE COMMISSIONING REGION","QHM","NHS  NORTH EAST AND NORTH CUMBRIA ICB - 00L","RX6","NORTH EAST AMBULANCE SERVICE NHS FOUNDATION TRUST","Ambulance Trusts",66,3264,3.75,17,15,7,18,9,19,16,14,11,6,27,19,7,8,5]
["Y63","NORTH EAST AND YORKSHIRE COMMISSIONING REGION","QWO","NHS WEST YORKSHIRE ICB - 02T","RX8","YORKSHIRE AMBULANCE SERVICE NHS TRUST","Ambulance Trusts",919,6251,5.3835690968443961,91,135,200,363,130,108,164,214,301,132,148,194,256,220,101]
["Y63","NORTH EAST AND YORKSHIRE COMMISSIONING REGION","QF7","NHS SOUTH YORKSHIRE ICB - 02P","RXE","ROTHERHAM DONCASTER AND SOUTH HUMBER NHS FOUNDATION TRUST","Mental Health & Learning Disability and Mental Health, Learning Disability & Community Trusts",58,3856,6.0632183908045985,1,15,12,24,6,1,7,15,27,8,1,13,15,22,7]
["Y63","NORTH EAST AND YORKSHIRE COMMISSIONING REGION","QWO","NHS WEST YORKSHIRE ICB - 02T","RXF","MID YORKSHIRE TEACHING NHS TRUST","Acute and Acute & Community Trusts",1768,9757,6.3141025641025648,91,206,342,829,304,110,191,318,829,325,123,272,433,709,231]
["Y63","NORTH EAST AND YORKSHIRE COMMISSIONING REGION","QWO","NHS WEST YORKSHIRE ICB - 02T","RXG","SOUTH WEST YORKSHIRE PARTNERSHIP NHS FOUNDATION TRUST","Mental Health & Learning Disability and Mental Health, Learning Disability & Community Trusts",127,4839,7.0209973753280837,5,12,17,58,35,3,14,12,60,38,3,16,28,52,28]
["Y63","NORTH EAST AND YORKSHIRE COMMISSIONING REGION","QHM","NHS  NORTH EAST AND NORTH CUMBRIA ICB - 00L","RXP","COUNTY DURHAM AND DARLINGTON NHS FOUNDATION TRUST","Acute and Acute & Community Trusts",726,8337,6.0307621671258032,49,110,133,298,136,58,105,131,292,140,62,130,203,223,108]
["Y63","NORTH EAST AND YORKSHIRE COMMISSIONING REGION","QWO","NHS WEST YORKSHIRE ICB - 02T","RY6","LEEDS COMMUNITY HEALTHCARE NHS TRUST","Community Trusts",769,3377,6.8151278716948411,27,58,133,401,156,24,57,144,377,175,31,101,173,341,123]
["Y63","NORTH EAST AND YORKSHIRE COMMISSIONING REGION","QWO","NHS WEST YORKSHIRE ICB - 02T","TAD","BRADFORD DISTRICT CARE NHS FOUNDATION TRUST","Mental Health & Learning Disability and Mental Health, Learning Disability & Community Trusts",371,3287,7.0148247978436657,19,33,45,157,117,17,27,52,166,109,20,33,80,149,89]
["Y63","NORTH EAST AND YORKSHIRE COMMISSIONING REGION","QF7","NHS SOUTH YORKSHIRE ICB - 02P","TAH","SHEFFIELD HEALTH & SOCIAL CARE NHS FOUNDATION TRUST","Mental Health & Learning Disability and Mental Health, Learning Disability & Community Trusts",318,2592,6.4517819706498951,21,31,52,154,60,19,27,50,159,63,27,39,71,136,45]

{"sheet":"Motivation","index":6,"n_rows":189,"n_cols":25,"rows_kept":189,"cut":false,"hidden":false,"merged":[[6,20,6,24],[6,6,7,6],[6,7,7,7],[6,8,7,8],[6,9,7,9],[6,10,6,14],[6,15,6,19],[6,5,7,5],[6,0,7,0],[6,1,7,1],[6,2,7,2],[6,3,7,3],[6,4,7,4]]}
[]
[]
[]
[]
[null,null,null,null,null,null,null,null,null,null,null,null,null,null,"Avg Involvement:",{"$f":"AVERAGE(K6,P6,U6)","v":6.7746233042530308}]
[null,null,null,null,null,null,null,null,null,null,{"$f":"IF($H$10=0,\"-\",((K$10*0)+(L$10*2.5)+(M$10*5)+(N$10*7.5)+(O$10*10))/$H$10)","v":6.083748662682984},null,null,null,null,{"$f":"IF($H$10=0,\"-\",((P$10*0)+(Q$10*2.5)+(R$10*5)+(S$10*7.5)+(T$10*10))/$H$10)","v":6.9228009289460637},null,null,null,null,{"$f":"IF($H$10=0,\"-\",((U$10*0)+(V$10*2.5)+(W$10*5)+(X$10*7.5)+(Y$10*10))/$H$10)","v":7.3173203211300439}]
["Region Code","Region Name","ICB Code","ICB Name","Org Code","Org Name","Care Setting","Total Responses (Average across Theme)","HSCIC Workforce Headcount","Motivation Score","Weighted Breakdown of Responses - Motivation Q1",null,null,null,null," Weighted Breakdown of Responses - Motivation Q2",null,null,null,null,"Weighted Breakdown of Responses - Motivation Q3"]
[null,null,null,null,null,null,null,null,null,null,"Strongly Disagree","Disagree","Neither Disagree nor Agree","Agree","Strongly Agree","Strongly Disagree","Disagree","Neither Disagree nor Agree","Agree","Strongly Agree","Strongly Disagree","Disagree","Neither Disagree nor Agree","Agree","Strongly Agree"]
[null,null,null,null,null,"England",null,114969,1258006,6.7746233042530299,4802,15064,37894,42567,15306,2496,9029,29354,45886,28242,2498,6341,25989,42589,37605]
[null,null,null,null,null,"Selection (excluding suppressed data)",null,{"$f":"SUBTOTAL(9,H11:H1002)","v":114969},{"$f":"SUBTOTAL(9,I11:I1002)","v":1258006},{"$f":"IF(H10=0,\"-\",AVERAGE(((K10*0)+(L10*2.5)+(M10*5)+(N10*7.5)+(O10*10)),((P10*0)+(Q10*2.5)+(R10*5)+(S10*7.5)+(T10*10)),((U10*0)+(V10*2.5)+(W10*5)+(X10*7.5)+(Y10*10)))/H10)","v":6.7746233042530299},{"$f":"SUBTOTAL(9,K11:K1002)","v":4802},{"$f":"SUBTOTAL(9,L11:L1002)","v":15064},37894,42567,15306,{"$f":"SUBTOTAL(9,P11:P1002)","v":2496},{"$f":"SUBTOTAL(9,Q11:Q1002)","v":9029},29354,45886,28242,{"$f":"SUBTOTAL(9,U11:U1002)","v":2498},{"$f":"SUBTOTAL(9,V11:V1002)","v":6341},25989,42589,37605]
["Y56","LONDON COMMISSIONING REGION","QMF","NHS NORTH EAST LONDON ICB - A3A8R","R1H","BARTS HEALTH NHS TRUST","Acute and Acute & Community Trusts",835,20029,6.3982035928143715,52,160,280,230,113,34,91,251,274,185,34,56,197,248,300]
["Y56","LONDON COMMISSIONING REGION","QMJ","NHS NORTH CENTRAL LONDON ICB - 93C","RAL","ROYAL FREE LONDON NHS FOUNDATION TRUST","Acute and Acute & Community Trusts",112,11731,6.7113095238095237,5,21,39,30,17,3,13,22,38,36,3,6,23,42,38]
["Y56","LONDON COMMISSIONING REGION","QRV","NHS NORTH WEST LONDON ICB - W2U3Z","RAN","ROYAL NATIONAL ORTHOPAEDIC HOSPITAL NHS TRUST","Acute Specialist Trusts",45,1686,7.0185185185185182,2,6,9,21,7,2,5,6,19,13,0,4,6,18,17]
["Y56","LONDON COMMISSIONING REGION","QMJ","NHS NORTH CENTRAL LONDON ICB - 93C","RAP","NORTH MIDDLESEX UNIVERSITY HOSPITAL NHS TRUST","Acute and Acute & Community Trusts",1086,4597,7.1263044812768577,33,97,350,386,240,14,71,282,399,322,19,54,247,360,406]
["Y56","LONDON COMMISSIONING REGION","QMF","NHS NORTH EAST LONDON ICB - A3A8R","RAT","NORTH EAST LONDON NHS FOUNDATION TRUST","Mental Health & Learning Disability and Mental Health, Learning Disability & Community Trusts",87,7175,6.7145593869731792,5,9,35,24,14,3,6,25,35,18,3,2,17,35,30]
["Y56","LONDON COMMISSIONING REGION","QKK","NHS SOUTH EAST LONDON ICB - 72Q","RJ1","GUY'S AND ST THOMAS' NHS FOUNDATION TRUST","Acute and Acute & Community Trusts",1608,23017,6.6853233830845769,69,211,560,585,208,52,142,457,607,355,41,95,353,592,527]
["Y56","LONDON COMMISSIONING REGION","QKK","NHS SOUTH EAST LONDON ICB - 72Q","RJ2","LEWISHAM AND GREENWICH NHS TRUST","Acute and Acute & Community Trusts",88,7311,6.4962121212121211,4,17,26,31,10,3,13,21,31,20,1,9,18,29,31]
["Y56","LONDON COMMISSIONING REGION","QWE","NHS SOUTH WEST LONDON ICB - 36L","RJ7","ST GEORGE'S UNIVERSITY HOSPITALS NHS FOUNDATION TRUST","Acute and Acute & Community Trusts",12,9885,5.9027777777777777,1,4,4,2,1,0,3,3,5,1,0,3,1,2,6]
["Y56","LONDON COMMISSIONING REGION","QKK","NHS SOUTH EAST LONDON ICB - 72Q","RJZ","KING'S COLLEGE HOSPITAL NHS FOUNDATION TRUST","Acute and Acute & Community Trusts",55,14383,6.4242424242424239,5,5,23,16,6,3,5,16,20,11,3,3,7,25,17]
["Y56","LONDON COMMISSIONING REGION","QMJ","NHS NORTH CENTRAL LONDON ICB - 93C","RKE","WHITTINGTON HEALTH NHS TRUST","Acute and Acute & Community Trusts",411,4929,6.940389294403893,24,49,126,146,66,12,27,103,153,116,12,16,70,144,169]
["Y56","LONDON COMMISSIONING REGION","QMJ","NHS NORTH CENTRAL LONDON ICB - 93C","RNK","TAVISTOCK AND PORTMAN NHS FOUNDATION TRUST","Mental Health & Learning Disability and Mental Health, Learning Disability & Community Trusts",21,819,5.5952380952380949,3,6,5,6,1,1,4,6,6,4,1,4,5,5,6]
["Y56","LONDON COMMISSIONING REGION","QMJ","NHS NORTH CENTRAL LONDON ICB - 93C","RP4","GREAT ORMOND STREET HOSPITAL FOR CHILDREN NHS FOUNDATION TRUST","Acute Specialist Trusts",788,5718,6.8496192893401018,33,92,238,341,90,22,60,167,360,180,12,37,153,355,231]
["Y56","LONDON COMMISSIONING REGION","QMJ","NHS NORTH CENTRAL LONDON ICB - 93C","RP6","MOORFIELDS EYE HOSPITAL NHS FOUNDATION TRUST","Acute Specialist Trusts",36,2484,6.5740740740740735,6,3,7,14,6,3,3,7,10,13,3,2,5,14,12]
["Y56","LONDON COMMISSIONING REGION","QRV","NHS NORTH WEST LONDON ICB - W2U3Z","RPY","THE ROYAL MARSDEN NHS FOUNDATION TRUST","Acute Specialist Trusts",163,4612,6.3905930470347654,12,26,52,59,14,8,14,45,58,38,8,6,44,57,48]
["Y56","LONDON COMMISSIONING REGION","QMF","NHS NORTH EAST LONDON ICB - A3A8R","RQX","HOMERTON HEALTHCARE NHS FOUNDATION TRUST","Acute and Acute & Community Trusts",620,4208,6.8857526881720439,24,66,222,227,92,16,38,170,236,160,13,28,141,224,214]
["Y56","LONDON COMMISSIONING REGION","QWE","NHS SOUTH WEST LONDON ICB - 36L","RQY","SOUTH WEST LONDON AND ST GEORGE'S MENTAL HEALTH NHS TRUST","Mental Health & Learning Disability and Mental Health, Learning Disability & Community Trusts",75,2923,6.4,2,13,27,30,3,1,7,23,33,11,3,4,19,27,22]
["Y56","LONDON COMMISSIONING REGION","QMJ","NHS NORTH CENTRAL LONDON ICB - 93C","RRP","BARNET, ENFIELD AND HARINGEY MENTAL HEALTH NHS TRUST","Mental Health & Learning Disability and Mental Health, Learning Disability & Community Trusts",85,3066,6.382352941176471,7,10,28,25,15,4,12,19,33,17,6,6,22,21,30]
["Y56","LONDON COMMISSIONING REGION","QKK","NHS SOUTH EAST LONDON ICB - 72Q","RRU","LONDON AMBULANCE SERVICE NHS TRUST","Ambulance Trusts",86,7665,6.2693798449612395,5,13,28,31,9,3,7,24,35,17,4,7,28,30,17]
["Y56","LONDON COMMISSIONING REGION","QMJ","NHS NORTH CENTRAL LONDON ICB - 93C","RRV","UNIVERSITY COLLEGE LONDON HOSPITALS NHS FOUNDATION TRUST","Acute and Acute & Community Trusts",514,10939,6.9228274967574581,14,57,171,199,73,11,42,127,202,132,6,28,107,182,191]
["Y56","LONDON COMMISSIONING REGION","QMJ","NHS NORTH CENTRAL LONDON ICB - 93C","RV3","CENTRAL AND NORTH WEST LONDON NHS FOUNDATION TRUST","Mental Health & Learning Disability and Mental Health, Learning Disability & Community Trusts",35,8539,5.8095238095238102,3,11,10,11,0,2,4,15,12,2,1,1,10,11,12]
["Y56","LONDON COMMISSIONING REGION","QWE","NHS SOUTH WEST LONDON ICB - 36L","RVR","EPSOM AND ST HELIER UNIVERSITY HOSPITALS NHS TRUST","Acute and Acute & Community Trusts",231,7102,5.8477633477633475,22,53,85,56,15,12,34,78,73,34,11,20,58,79,63]
["Y56","LONDON COMMISSIONING REGION","QMF","NHS NORTH EAST LONDON ICB - A3A8R","RWK","EAST LONDON NHS FOUNDATION TRUST","Mental Health & Learning Disability and Mental Health, Learning Disability & Community Trusts",960,7300,6.927083333333333,22,98,338,362,146,13,64,248,410,227,11,46,231,358,314]
["Y56","LONDON COMMISSIONING REGION","QRV","NHS NORTH WEST LONDON ICB - W2U3Z","RYJ","IMPERIAL COLLEGE HEALTHCARE NHS TRUST","Acute and Acute & Community Trusts",96,13870,6.6753472222222223,6,15,29,37,9,5,8,21,42,20,2,6,16,33,39]
["Y56","LONDON COMMISSIONING REGION","QRV","NHS NORTH WEST LONDON ICB - W2U3Z","RYX","CENTRAL LONDON COMMUNITY HEALTHCARE NHS TRUST","Community Trusts",969,4806,7.2437220502235986,23,91,306,386,182,14,54,228,367,306,10,43,203,306,408]
["Y56","LONDON COMMISSIONING REGION","QMJ","NHS NORTH CENTRAL LONDON ICB - 93C","TAF","CAMDEN AND ISLINGTON NHS FOUNDATION TRUST","Mental Health & Learning Disability and Mental Health, Learning Disability & Community Trusts",85,2562,6.2647058823529411,2,20,30,26,7,4,13,27,26,15,1,6,21,28,29]
["Y58","SOUTH WEST COMMISSIONING REGION","QVV","NHS DORSET ICB - 11J","R0D","UNIVERSITY HOSPITALS DORSET NHS FOUNDATION TRUST","Acute and Acute & Community Trusts",990,9659,6.390572390572391,48,194,340,310,98,28,108,303,357,194,31,71,225,338,325]
["Y58","SOUTH WEST COMMISSIONING REGION","QUY","NHS BRISTOL, NORTH SOMERSET AND SOUTH GLOUCESTERSHIRE ICB - 15C","RA7","UNIVERSITY HOSPITALS BRISTOL AND WESTON NHS FOUNDATION TRUST","Acute and Acute & Community Trusts",857,12869,6.8339167639050959,25,96,281,339,116,14,51,240,364,188,15,43,199,327,273]
["Y58","SOUTH WEST COMMISSIONING REGION","QJK","NHS DEVON ICB - 15N","RA9","TORBAY AND SOUTH DEVON NHS FOUNDATION TRUST","Acute and Acute & Community Trusts",346,7174,6.1705202312138727,13,69,135,105,24,9,42,114,118,63,9,32,97,122,86]
["Y58","SOUTH WEST COMMISSIONING REGION","QVV","NHS DORSET ICB - 11J","RBD","DORSET COUNTY HOSPITAL NHS FOUNDATION TRUST","Acute and Acute & Community Trusts",225,3465,6.5592592592592593,9,39,77,76,24,2,22,61,82,58,5,16,60,80,64]
["Y58","SOUTH WEST COMMISSIONING REGION","QOX","NHS BATH AND NORTH EAST SOMERSET, SWINDON AND WILTSHIRE ICB - 92G","RD1","ROYAL UNITED HOSPITALS BATH NHS FOUNDATION TRUST","Acute and Acute & Community Trusts",1157,6582,6.773264188994526,40,134,424,452,115,13,90,326,473,255,14,48,269,469,358]
["Y58","SOUTH WEST COMMISSIONING REGION","QVV","NHS DORSET ICB - 11J","RDY","DORSET HEALTHCARE UNIVERSITY NHS FOUNDATION TRUST","Mental Health & Learning Disability and Mental Health, Learning Disability & Community Trusts",596,6869,6.8302572706935125,21,77,196,219,83,12,40,166,226,152,11,39,111,232,203]
["Y58","SOUTH WEST COMMISSIONING REGION","QT6","NHS CORNWALL AND THE ISLES OF SCILLY ICB - 11N","REF","ROYAL CORNWALL HOSPITALS NHS TRUST","Acute and Acute & Community Trusts",834,7222,6.6526778577138286,44,126,231,362,71,29,77,175,410,143,15,50,157,345,268]
["Y58","SOUTH WEST COMMISSIONING REGION","QSL","NHS SOMERSET ICB - 11X","RH5","SOMERSET NHS FOUNDATION TRUST","Acute and Acute & Community Trusts",719,13308,6.9749652294853961,22,92,213,289,103,9,47,186,281,196,13,31,141,274,260]
["Y58","SOUTH WEST COMMISSIONING REGION","QJK","NHS DEVON ICB - 15N","RH8","ROYAL DEVON UNIVERSITY HEALTHCARE NHS FOUNDATION TRUST","Acute and Acute & Community Trusts",2311,13192,6.7441944324246359,80,284,781,952,239,27,175,627,1026,458,29,127,554,933,668]
["Y58","SOUTH WEST COMMISSIONING REGION","QT6","NHS CORNWALL AND THE ISLES OF SCILLY ICB - 11N","RJ8","CORNWALL PARTNERSHIP NHS FOUNDATION TRUST","Mental Health & Learning Disability and Mental Health, Learning Disability & Community Trusts",11,4926,6.7424242424242431,1,1,3,5,1,0,0,3,6,2,0,0,3,7,1]
["Y58","SOUTH WEST COMMISSIONING REGION","QJK","NHS DEVON ICB - 15N","RK9","UNIVERSITY HOSPITALS PLYMOUTH NHS TRUST","Acute and Acute & Community Trusts",1137,10600,6.6783934330108474,75,180,335,385,163,36,107,269,405,320,27,59,258,432,361]
["Y58","SOUTH WEST COMMISSIONING REGION","QOX","NHS BATH AND NORTH EAST SOMERSET, SWINDON AND WILTSHIRE ICB - 92G","RN3","GREAT WESTERN HOSPITALS NHS FOUNDATION TRUST","Acute and Acute & Community Trusts",1287,5705,6.9722869722869731,34,152,427,486,197,16,93,323,509,346,16,66,264,492,449]
["Y58","SOUTH WEST COMMISSIONING REGION","QR1","NHS GLOUCESTERSHIRE ICB - 11M","RTE","GLOUCESTERSHIRE HOSPITALS NHS FOUNDATION TRUST","Acute and Acute & Community Trusts",923,8924,6.4237992054893462,50,149,323,307,104,25,102,273,339,184,27,64,254,330,255]
["Y58","SOUTH WEST COMMISSIONING REGION","QR1","NHS GLOUCESTERSHIRE ICB - 11M","RTQ","GLOUCESTERSHIRE HEALTH AND CARE NHS FOUNDATION TRUST","Mental Health & Learning Disability and Mental Health, Learning Disability & Community Trusts",288,4799,6.9155092592592595,9,30,101,113,35,5,13,77,127,66,3,10,67,109,99]
["Y58","SOUTH WEST COMMISSIONING REGION","QUY","NHS BRISTOL, NORTH SOMERSET AND SOUTH GLOUCESTERSHIRE ICB - 15C","RVJ","NORTH BRISTOL NHS TRUST","Acute and Acute & Community Trusts",117,10025,6.1894586894586894,10,22,39,32,14,5,17,26,44,25,6,11,24,47,29]
["Y58","SOUTH WEST COMMISSIONING REGION","QOX","NHS BATH AND NORTH EAST SOMERSET, SWINDON AND WILTSHIRE ICB - 92G","RVN","AVON AND WILTSHIRE MENTAL HEALTH PARTNERSHIP NHS TRUST","Mental Health & Learning Disability and Mental Health, Learning Disability & Community Trusts",139,4836,6.1031175059952041,11,28,52,36,12,7,18,45,43,26,6,5,40,48,40]
["Y58","SOUTH WEST COMMISSIONING REGION","QJK","NHS DEVON ICB - 15N","RWV","DEVON PARTNERSHIP NHS TRUST","Mental Health & Learning Disability and Mental Health, Learning Disability & Community Trusts",155,3794,6.413978494623656,7,21,58,55,14,3,14,57,57,24,0,8,43,70,34]
["Y59","SOUTH EAST COMMISSIONING REGION","QRL","NHS HAMPSHIRE AND ISLE OF WIGHT ICB - D9Y0V","R1C","SOLENT NHS TRUST","Mental Health & Learning Disability and Mental Health, Learning Disability & Community Trusts",47,4205,7.3049645390070914,1,4,13,23,6,0,3,8,25,11,1,0,9,15,22]
["Y59","SOUTH EAST COMMISSIONING REGION","QRL","NHS HAMPSHIRE AND ISLE OF WIGHT ICB - D9Y0V","R1F","ISLE OF WIGHT NHS TRUST","Acute and Acute & Community Trusts",455,4116,6.6538461538461542,19,71,164,152,49,8,45,127,150,125,5,30,111,155,154]
["Y59","SOUTH EAST COMMISSIONING REGION","QNX","NHS SUSSEX ICB - 09D","RDR","SUSSEX COMMUNITY NHS FOUNDATION TRUST","Community Trusts",638,5519,7.1355799373040751,11,65,206,260,96,7,37,146,278,170,5,22,122,243,246]
["Y59","SOUTH EAST COMMISSIONING REGION","QNQ","NHS FRIMLEY ICB - D4U1Y","RDU","FRIMLEY HEALTH NHS FOUNDATION TRUST","Acute and Acute & Community Trusts",2142,10689,7.0829442888266412,50,209,694,859,369,30,120,537,864,591,36,94,468,800,744]
["Y59","SOUTH EAST COMMISSIONING REGION","QRL","NHS HAMPSHIRE AND ISLE OF WIGHT ICB - D9Y0V","RHM","UNIVERSITY HOSPITAL SOUTHAMPTON NHS FOUNDATION TRUST","Acute and Acute & Community Trusts",3355,13536,6.7439145553899644,110,398,1183,1303,396,49,247,907,1463,690,53,166,846,1334,956]
["Y59","SOUTH EAST COMMISSIONING REGION","QRL","NHS HAMPSHIRE AND ISLE OF WIGHT ICB - D9Y0V","RHU","PORTSMOUTH HOSPITALS UNIVERSITY NATIONAL HEALTH SERVICE TRUST","Acute and Acute & Community Trusts",636,8774,6.7413522012578619,13,89,230,232,72,4,46,183,256,148,16,36,145,246,194]
["Y59","SOUTH EAST COMMISSIONING REGION","QU9","NHS BUCKINGHAMSHIRE, OXFORDSHIRE AND BERKSHIRE WEST ICB - 10Q","RHW","ROYAL BERKSHIRE NHS FOUNDATION TRUST","Acute and Acute & Community Trusts",42,6379,6.25,3,6,15,10,8,2,5,17,10,8,0,3,14,15,10]
["Y59","SOUTH EAST COMMISSIONING REGION","QRL","NHS HAMPSHIRE AND ISLE OF WIGHT ICB - D9Y0V","RN5","HAMPSHIRE HOSPITALS NHS FOUNDATION TRUST","Acute and Acute & Community Trusts",197,7641,6.9500846023688663,8,18,60,88,23,4,14,43,78,58,5,14,38,67,73]
["Y59","SOUTH EAST COMMISSIONING REGION","QKS","NHS KENT AND MEDWAY ICB - 91Q","RN7","DARTFORD AND GRAVESHAM NHS TRUST","Acute and Acute & Community Trusts",164,4349,6.8495934959349585,7,20,48,63,26,4,14,41,56,49,4,13,37,48,62]
["Y59","SOUTH EAST COMMISSIONING REGION","QU9","NHS BUCKINGHAMSHIRE, OXFORDSHIRE AND BERKSHIRE WEST ICB - 10Q","RNU","OXFORD HEALTH NHS FOUNDATION TRUST","Mental Health & Learning Disability and Mental Health, Learning Disability & Community Trusts",467,6496,6.8254817987152032,16,71,163,151,66,7,34,131,169,126,10,21,89,183,164]
["Y59","SOUTH EAST COMMISSIONING REGION","QKS","NHS KENT AND MEDWAY ICB - 91Q","RPA","MEDWAY NHS FOUNDATION TRUST","Acute and Acute & Community Trusts",80,5187,6.2291666666666661,10,10,29,22,9,6,9,22,23,20,7,5,14,23,31]
["Y59","SOUTH EAST COMMISSIONING REGION","QNX","NHS SUSSEX ICB - 09D","RPC","QUEEN VICTORIA HOSPITAL NHS FOUNDATION TRUST","Acute Specialist Trusts",158,1142,7.3628691983122359,2,15,42,69,30,1,10,28,69,50,1,6,23,67,61]
["Y59","SOUTH EAST COMMISSIONING REGION","QU9","NHS BUCKINGHAMSHIRE, OXFORDSHIRE AND BERKSHIRE WEST ICB - 10Q","RTH","OXFORD UNIVERSITY HOSPITALS NHS FOUNDATION TRUST","Acute and Acute & Community Trusts",2575,14228,6.9126213592233006,87,275,831,991,409,53,153,678,1034,657,44,120,593,1007,812]
["Y59","SOUTH EAST COMMISSIONING REGION","QKS","NHS KENT AND MEDWAY ICB - 91Q","RVV","EAST KENT HOSPITALS UNIVERSITY NHS FOUNDATION TRUST","Acute and Acute & Community Trusts",2207,11409,6.6051200724966019,96,316,772,778,263,41,223,612,806,525,46,140,577,804,644]
["Y59","SOUTH EAST COMMISSIONING REGION","QRL","NHS HAMPSHIRE AND ISLE OF WIGHT ICB - D9Y0V","RW1","SOUTHERN HEALTH NHS FOUNDATION TRUST","Mental Health & Learning Disability and Mental Health, Learning Disability & Community Trusts",668,6774,6.6928642714570854,18,92,242,231,85,8,58,179,282,141,14,44,143,268,199]
["Y59","SOUTH EAST COMMISSIONING REGION","QKS","NHS KENT AND MEDWAY ICB - 91Q","RWF","MAIDSTONE AND TUNBRIDGE WELLS NHS TRUST","Acute and Acute & Community Trusts",718,7439,6.6295264623955434,45,108,169,313,83,31,78,109,334,166,23,51,144,306,194]
["Y59","SOUTH EAST COMMISSIONING REGION","QNQ","NHS FRIMLEY ICB - D4U1Y","RWX","BERKSHIRE HEALTHCARE NHS FOUNDATION TRUST","Mental Health & Learning Disability and Mental Health, Learning Disability & Community Trusts",1579,4977,7.2751741608613045,28,121,486,719,248,12,60,368,723,416,15,50,289,618,608]
["Y59","SOUTH EAST COMMISSIONING REGION","QNX","NHS SUSSEX ICB - 09D","RX2","SUSSEX PARTNERSHIP NHS FOUNDATION TRUST","Mental Health & Learning Disability and Mental Health, Learning Disability & Community Trusts",231,5895,6.2698412698412698,16,39,93,68,15,8,28,71,78,46,4,17,58,80,72]
["Y59","SOUTH EAST COMMISSIONING REGION","QNX","NHS SUSSEX ICB - 09D","RXC","EAST SUSSEX HEALTHCARE NHS TRUST","Acute and Acute & Community Trusts",367,8366,6.310172570390554,19,67,144,93,44,13,44,114,121,75,12,21,95,133,106]
["Y59","SOUTH EAST COMMISSIONING REGION","QU9","NHS BUCKINGHAMSHIRE, OXFORDSHIRE AND BERKSHIRE WEST ICB - 10Q","RXQ","BUCKINGHAMSHIRE HEALTHCARE NHS TRUST","Acute and Acute & Community Trusts",821,6875,6.8645960211124644,29,94,264,334,100,16,64,192,352,197,21,43,157,310,290]
["Y59","SOUTH EAST COMMISSIONING REGION","QXU","NHS SURREY HEARTLANDS  ICB - 92A","RXX","SURREY AND BORDERS PARTNERSHIP NHS FOUNDATION TRUST","Mental Health & Learning Disability and Mental Health, Learning Disability & Community Trusts",108,3314,6.8441358024691352,4,12,34,38,20,4,5,32,38,29,3,2,32,36,35]
["Y59","SOUTH EAST COMMISSIONING REGION","QNX","NHS SUSSEX ICB - 09D","RYD","SOUTH EAST COAST AMBULANCE SERVICE NHS FOUNDATION TRUST","Ambulance Trusts",574,4604,5.8072009291521489,46,103,206,174,45,24,84,148,207,111,40,70,192,204,68]
["Y59","SOUTH EAST COMMISSIONING REGION","QU9","NHS BUCKINGHAMSHIRE, OXFORDSHIRE AND BERKSHIRE WEST ICB - 10Q","RYE","SOUTH CENTRAL AMBULANCE SERVICE NHS FOUNDATION TRUST","Ambulance Trusts",262,4615,5.5661577608142494,22,56,101,62,21,12,46,76,82,46,13,54,79,82,34]
["Y59","SOUTH EAST COMMISSIONING REGION","QNX","NHS SUSSEX ICB - 09D","RYR","UNIVERSITY HOSPITALS SUSSEX NHS FOUNDATION TRUST","Acute and Acute & Community Trusts",562,16851,6.0602016607354692,27,122,234,138,41,17,86,178,191,90,17,51,146,191,157]
["Y59","SOUTH EAST COMMISSIONING REGION","QKS","NHS KENT AND MEDWAY ICB - 91Q","RYY","KENT COMMUNITY HEALTH NHS FOUNDATION TRUST","Community Trusts",873,5217,6.9912180221458566,39,107,268,358,101,24,53,184,388,224,21,24,153,308,367]
["Y60","MIDLANDS COMMISSIONING REGION","QOC","NHS SHROPSHIRE, TELFORD AND WREKIN ICB - M2L0M","R1D","SHROPSHIRE COMMUNITY HEALTH NHS TRUST","Community Trusts",10,1661,5.8333333333333339,0,2,6,2,0,0,1,5,3,1,0,2,3,2,3]
["Y60","MIDLANDS COMMISSIONING REGION","QUA","NHS BLACK COUNTRY ICB - D2P2L","RBK","WALSALL HEALTHCARE NHS TRUST","Acute and Acute & Community Trusts",1094,5165,6.5569774527726992,73,157,322,402,140,58,99,191,513,233,54,72,187,481,300]
["Y60","MIDLANDS COMMISSIONING REGION","QT1","NHS NOTTINGHAM AND NOTTINGHAMSHIRE ICB - 52R","RHA","NOTTINGHAMSHIRE HEALTHCARE NHS FOUNDATION TRUST","Mental Health & Learning Disability and Mental Health, Learning Disability & Community Trusts",796,9343,6.2562814070351758,53,171,213,275,85,30,128,169,351,119,22,86,127,365,196]
["Y60","MIDLANDS COMMISSIONING REGION","QWU","NHS COVENTRY AND WARWICKSHIRE ICB - B2M3M","RJC","SOUTH WARWICKSHIRE UNIVERSITY NHS FOUNDATION TRUST","Acute and Acute & Community Trusts",55,5443,6.6818181818181817,2,9,14,22,8,2,8,10,19,16,1,3,19,12,20]
["Y60","MIDLANDS COMMISSIONING REGION","QNC","NHS STAFFORDSHIRE AND STOKE-ON-TRENT ICB - 05W","RJE","UNIVERSITY HOSPITALS OF NORTH MIDLANDS NHS TRUST","Acute and Acute & Community Trusts",12,11957,5.4861111111111107,0,4,4,3,1,0,3,5,3,1,0,2,5,4,1]
["Y60","MIDLANDS COMMISSIONING REGION","QT1","NHS NOTTINGHAM AND NOTTINGHAMSHIRE ICB - 52R","RK5","SHERWOOD FOREST HOSPITALS NHS FOUNDATION TRUST","Acute and Acute & Community Trusts",744,6051,6.7081093189964154,32,113,208,308,83,22,76,156,353,140,11,49,122,344,218]
["Y60","MIDLANDS COMMISSIONING REGION","QWU","NHS COVENTRY AND WARWICKSHIRE ICB - B2M3M","RKB","UNIVERSITY HOSPITALS COVENTRY AND WARWICKSHIRE NHS TRUST","Acute and Acute & Community Trusts",235,9720,6.3652482269503539,22,42,70,76,25,13,29,53,83,57,13,16,47,73,86]
["Y60","MIDLANDS COMMISSIONING REGION","QUA","NHS BLACK COUNTRY ICB - D2P2L","RL4","THE ROYAL WOLVERHAMPTON NHS TRUST","Acute and Acute & Community Trusts",459,11342,6.3671023965141611,28,89,150,144,48,16,42,134,173,94,23,34,105,143,154]
["Y60","MIDLANDS COMMISSIONING REGION","QGH","NHS HEREFORDSHIRE AND WORCESTERSHIRE ICB - 18C","RLQ","WYE VALLEY NHS TRUST","Acute and Acute & Community Trusts",28,3981,6.9940476190476195,0,5,12,8,3,0,1,8,13,6,0,0,5,12,11]
["Y60","MIDLANDS COMMISSIONING REGION","QWU","NHS COVENTRY AND WARWICKSHIRE ICB - B2M3M","RLT","GEORGE ELIOT HOSPITAL NHS TRUST","Acute and Acute & Community Trusts",54,2924,6.8055555555555554,3,6,18,18,9,2,2,14,19,17,1,4,11,24,14]
["Y60","MIDLANDS COMMISSIONING REGION","QNC","NHS STAFFORDSHIRE AND STOKE-ON-TRENT ICB - 05W","RLY","NORTH STAFFORDSHIRE COMBINED HEALTHCARE NHS TRUST","Mental Health & Learning Disability and Mental Health, Learning Disability & Community Trusts",87,1792,6.5900383141762457,4,13,29,31,10,1,8,24,30,24,3,6,20,36,22]
["Y60","MIDLANDS COMMISSIONING REGION","QUA","NHS BLACK COUNTRY ICB - D2P2L","RNA","THE DUDLEY GROUP NHS FOUNDATION TRUST","Acute and Acute & Community Trusts",381,6133,6.743219597550306,21,66,113,133,48,12,35,89,141,104,7,26,74,122,152]
["Y60","MIDLANDS COMMISSIONING REGION","QPM","NHS NORTHAMPTONSHIRE ICB - 78H","RNQ","KETTERING GENERAL HOSPITAL NHS FOUNDATION TRUST","Acute and Acute & Community Trusts",445,4820,6.2191011235955056,35,80,153,128,49,21,59,119,148,98,20,32,122,138,133]
["Y60","MIDLANDS COMMISSIONING REGION","QPM","NHS NORTHAMPTONSHIRE ICB - 78H","RNS","NORTHAMPTON GENERAL HOSPITAL NHS TRUST","Acute and Acute & Community Trusts",446,5856,6.4424514200298955,27,70,163,141,45,14,46,134,153,99,15,25,110,149,147]
["Y60","MIDLANDS COMMISSIONING REGION","QPM","NHS NORTHAMPTONSHIRE ICB - 78H","RP1","NORTHAMPTONSHIRE HEALTHCARE NHS FOUNDATION TRUST","Mental Health & Learning Disability and Mental Health, Learning Disability & Community Trusts",1860,4849,7.196236559139785,32,153,591,813,290,18,77,438,817,510,15,60,397,726,663]
["Y60","MIDLANDS COMMISSIONING REGION","QJM","NHS LINCOLNSHIRE ICB - 71E","RP7","LINCOLNSHIRE PARTNERSHIP NHS FOUNDATION TRUST","Mental Health & Learning Disability and Mental Health, Learning Disability & Community Trusts",954,2733,7.2807477288609359,22,65,256,464,152,10,42,189,418,295,12,43,185,369,346]
["Y60","MIDLANDS COMMISSIONING REGION","QHL","NHS BIRMINGHAM AND SOLIHULL ICB - 15E","RQ3","BIRMINGHAM WOMEN'S AND CHILDREN'S NHS FOUNDATION TRUST","Acute and Acute & Community Trusts",49,6407,5.6632653061224492,6,10,16,15,2,3,9,14,17,6,2,5,17,13,12]
["Y60","MIDLANDS COMMISSIONING REGION","QNC","NHS STAFFORDSHIRE AND STOKE-ON-TRENT ICB - 05W","RRE","MIDLANDS PARTNERSHIP NHS FOUNDATION TRUST","Mental Health & Learning Disability and Mental Health, Learning Disability & Community Trusts",255,10018,7.5849673202614385,2,9,64,133,47,2,9,42,123,79,1,9,38,94,113]
["Y60","MIDLANDS COMMISSIONING REGION","QHL","NHS BIRMINGHAM AND SOLIHULL ICB - 15E","RRJ","THE ROYAL ORTHOPAEDIC HOSPITAL NHS FOUNDATION TRUST","Acute Specialist Trusts",223,1330,7.0553064275037363,5,24,61,92,43,5,15,45,88,70,5,16,53,77,73]
["Y60","MIDLANDS COMMISSIONING REGION","QHL","NHS BIRMINGHAM AND SOLIHULL ICB - 15E","RRK","UNIVERSITY HOSPITALS BIRMINGHAM NHS FOUNDATION TRUST","Acute and Acute & Community Trusts",562,23861,6.067615658362989,42,104,209,162,45,24,68,182,182,106,26,55,148,181,152]
["Y60","MIDLANDS COMMISSIONING REGION","QK1","NHS LEICESTER, LEICESTERSHIRE AND RUTLAND ICB - 03W","RT5","LEICESTERSHIRE PARTNERSHIP NHS TRUST","Mental Health & Learning Disability and Mental Health, Learning Disability & Community Trusts",340,6305,7.0514705882352944,11,49,101,122,57,4,27,81,125,103,4,16,57,126,137]
["Y60","MIDLANDS COMMISSIONING REGION","QJ2","NHS DERBY AND DERBYSHIRE ICB - 15M","RTG","UNIVERSITY HOSPITALS OF DERBY AND BURTON NHS FOUNDATION TRUST","Acute and Acute & Community Trusts",1425,14404,6.6578947368421053,64,214,467,508,172,35,132,398,524,336,21,74,337,539,454]
["Y60","MIDLANDS COMMISSIONING REGION","QJM","NHS LINCOLNSHIRE ICB - 71E","RWD","UNITED LINCOLNSHIRE HOSPITALS NHS TRUST","Acute and Acute & Community Trusts",2235,9295,6.7699478001491427,112,284,719,809,337,55,182,586,831,581,49,126,524,837,701]
["Y60","MIDLANDS COMMISSIONING REGION","QGH","NHS HEREFORDSHIRE AND WORCESTERSHIRE ICB - 18C","RWP","WORCESTERSHIRE ACUTE HOSPITALS NHS TRUST","Acute and Acute & Community Trusts",1220,7109,6.860655737704918,38,166,416,447,165,19,72,337,497,295,19,64,273,454,414]
["Y60","MIDLANDS COMMISSIONING REGION","QT1","NHS NOTTINGHAM AND NOTTINGHAMSHIRE ICB - 52R","RX1","NOTTINGHAM UNIVERSITY HOSPITALS NHS TRUST","Acute and Acute & Community Trusts",2117,19481,6.601716265155094,85,324,747,728,233,33,184,584,843,473,42,134,509,816,616]
["Y60","MIDLANDS COMMISSIONING REGION","QT1","NHS NOTTINGHAM AND NOTTINGHAMSHIRE ICB - 52R","RX9","EAST MIDLANDS AMBULANCE SERVICE NHS TRUST","Ambulance Trusts",326,4234,5.9713701431492847,24,70,98,100,34,16,32,108,99,71,21,33,107,102,63]
["Y60","MIDLANDS COMMISSIONING REGION","QHL","NHS BIRMINGHAM AND SOLIHULL ICB - 15E","RXK","SANDWELL AND WEST BIRMINGHAM HOSPITALS NHS TRUST","Acute and Acute & Community Trusts",3151,7631,7.1109700624140491,104,313,1010,1191,600,75,179,711,1227,967,75,141,693,1063,1179]
["Y60","MIDLANDS COMMISSIONING REGION","QJ2","NHS DERBY AND DERBYSHIRE ICB - 15M","RXM","DERBYSHIRE HEALTHCARE NHS FOUNDATION TRUST","Mental Health & Learning Disability and Mental Health, Learning Disability & Community Trusts",875,3199,7.078095238095238,23,84,304,380,99,0,44,222,378,232,0,41,195,333,306]
["Y60","MIDLANDS COMMISSIONING REGION","QHL","NHS BIRMINGHAM AND SOLIHULL ICB - 15E","RXT","BIRMINGHAM AND SOLIHULL MENTAL HEALTH NHS FOUNDATION TRUST","Mental Health & Learning Disability and Mental Health, Learning Disability & Community Trusts",218,4840,6.4602446483180422,12,36,87,56,27,5,18,69,74,52,4,16,63,64,71]
["Y60","MIDLANDS COMMISSIONING REGION","QOC","NHS SHROPSHIRE, TELFORD AND WREKIN ICB - M2L0M","RXW","THE SHREWSBURY AND TELFORD HOSPITAL NHS TRUST","Acute and Acute & Community Trusts",903,7779,6.725729051310446,59,127,301,295,121,24,69,228,340,242,19,54,192,313,325]
["Y60","MIDLANDS COMMISSIONING REGION","QJM","NHS LINCOLNSHIRE ICB - 71E","RY5","LINCOLNSHIRE COMMUNITY HEALTH SERVICES NHS TRUST","Community Trusts",764,2420,7.0047993019197214,18,97,251,323,89,0,53,202,317,192,0,33,171,293,267]
["Y60","MIDLANDS COMMISSIONING REGION","QJ2","NHS DERBY AND DERBYSHIRE ICB - 15M","RY8","DERBYSHIRE COMMUNITY HEALTH SERVICES NHS FOUNDATION TRUST","Community Trusts",743,4410,7.1388515029161059,23,73,246,304,106,11,41,176,322,196,12,28,127,265,311]
["Y60","MIDLANDS COMMISSIONING REGION","QUA","NHS BLACK COUNTRY ICB - D2P2L","RYA","WEST MIDLANDS AMBULANCE SERVICE UNIVERSITY NHS FOUNDATION TRUST","Ambulance Trusts",510,6661,5.1846405228758163,69,126,178,97,40,27,102,174,130,77,46,83,195,125,61]
["Y60","MIDLANDS COMMISSIONING REGION","QWU","NHS COVENTRY AND WARWICKSHIRE ICB - B2M3M","RYG","COVENTRY AND WARWICKSHIRE PARTNERSHIP NHS TRUST","Mental Health & Learning Disability and Mental Health, Learning Disability & Community Trusts",335,4289,6.6915422885572138,16,45,114,122,38,4,34,89,139,69,6,18,70,128,113]
["Y60","MIDLANDS COMMISSIONING REGION","QUA","NHS BLACK COUNTRY ICB - D2P2L","RYK","DUDLEY INTEGRATED HEALTH AND CARE NHS TRUST","Community Trusts",36,478,6.5509259259259265,3,7,11,8,7,2,2,11,8,13,1,2,11,10,12]
["Y60","MIDLANDS COMMISSIONING REGION","QHL","NHS BIRMINGHAM AND SOLIHULL ICB - 15E","RYW","BIRMINGHAM COMMUNITY HEALTHCARE NHS FOUNDATION TRUST","Community Trusts",107,5198,6.7990654205607477,5,15,37,44,6,3,8,26,46,24,3,1,21,37,45]
["Y60","MIDLANDS COMMISSIONING REGION","QUA","NHS BLACK COUNTRY ICB - D2P2L","TAJ","BLACK COUNTRY HEALTHCARE NHS FOUNDATION TRUST","Mental Health & Learning Disability and Mental Health, Learning Disability & Community Trusts",522,3956,6.3250319284802039,34,105,180,142,61,21,57,158,181,105,19,32,122,181,168]
["Y61","EAST OF ENGLAND COMMISSIONING REGION","QH8","NHS MID AND SOUTH ESSEX ICB - 06Q","R1L","ESSEX PARTNERSHIP UNIVERSITY NHS FOUNDATION TRUST","Mental Health & Learning Disability and Mental Health, Learning Disability & Community Trusts",527,6557,6.5464895635673628,29,89,167,183,59,18,40,146,185,138,20,31,127,188,161]
["Y61","EAST OF ENGLAND COMMISSIONING REGION","QMM","NHS NORFOLK AND WAVENEY ICB - 26A","RCX","THE QUEEN ELIZABETH HOSPITAL, KING'S LYNN, NHS FOUNDATION TRUST","Acute and Acute & Community Trusts",313,3941,6.5175718849840258,28,44,101,96,44,12,32,77,108,84,10,20,78,104,101]
["Y61","EAST OF ENGLAND COMMISSIONING REGION","QHG","NHS BEDFORDSHIRE, LUTON AND MILTON KEYNES ICB - M1J4Y","RD8","MILTON KEYNES UNIVERSITY HOSPITAL NHS FOUNDATION TRUST","Acute and Acute & Community Trusts",92,4192,6.3586956521739131,8,14,30,32,8,6,9,22,35,20,1,8,28,22,33]
["Y61","EAST OF ENGLAND COMMISSIONING REGION","QUE","NHS CAMBRIDGESHIRE AND PETERBOROUGH ICB - 06H","RGN","NORTH WEST ANGLIA NHS FOUNDATION TRUST","Acute and Acute & Community Trusts",133,7330,6.6917293233082704,7,23,53,37,13,0,13,36,48,36,2,9,22,50,50]
["Y61","EAST OF ENGLAND COMMISSIONING REGION","QJG","NHS SUFFOLK AND NORTH EAST ESSEX ICB - 07K","RGR","WEST SUFFOLK NHS FOUNDATION TRUST","Acute and Acute & Community Trusts",1452,5267,6.9783057851239674,41,152,480,630,176,24,88,350,645,345,18,59,318,589,472]
["Y61","EAST OF ENGLAND COMMISSIONING REGION","QUE","NHS CAMBRIDGESHIRE AND PETERBOROUGH ICB - 06H","RGT","CAMBRIDGE UNIVERSITY HOSPITALS NHS FOUNDATION TRUST","Acute and Acute & Community Trusts",2903,12276,6.8730623492938339,91,320,972,1136,416,47,187,755,1214,700,51,150,683,1144,880]
["Y61","EAST OF ENGLAND COMMISSIONING REGION","QMM","NHS NORFOLK AND WAVENEY ICB - 26A","RM1","NORFOLK AND NORWICH UNIVERSITY HOSPITALS NHS FOUNDATION TRUST","Acute and Acute & Community Trusts",388,9383,6.4862542955326461,26,56,142,126,38,15,37,111,146,79,11,23,77,148,129]
["Y61","EAST OF ENGLAND COMMISSIONING REGION","QMM","NHS NORFOLK AND WAVENEY ICB - 26A","RMY","NORFOLK AND SUFFOLK NHS FOUNDATION TRUST","Mental Health & Learning Disability and Mental Health, Learning Disability & Community Trusts",22,5055,5.6439393939393945,3,5,6,7,1,1,3,9,5,4,1,3,7,6,5]
["Y61","EAST OF ENGLAND COMMISSIONING REGION","QM7","NHS HERTFORDSHIRE AND WEST ESSEX ICB - 07H","RQW","THE PRINCESS ALEXANDRA HOSPITAL NHS TRUST","Acute and Acute & Community Trusts",103,3990,6.10032362459547,12,14,41,27,9,5,16,26,38,18,4,8,26,33,32]
["Y61","EAST OF ENGLAND COMMISSIONING REGION","QUE","NHS CAMBRIDGESHIRE AND PETERBOROUGH ICB - 06H","RT1","CAMBRIDGESHIRE AND PETERBOROUGH NHS FOUNDATION TRUST","Mental Health & Learning Disability and Mental Health, Learning Disability & Community Trusts",2429,4789,7.46809386578839,30,162,683,1046,508,18,80,482,1014,835,20,76,434,896,1003]
["Y61","EAST OF ENGLAND COMMISSIONING REGION","QM7","NHS HERTFORDSHIRE AND WEST ESSEX ICB - 07H","RWG","WEST HERTFORDSHIRE TEACHING HOSPITALS NHS TRUST","Acute and Acute & Community Trusts",486,5589,6.4557613168724277,30,86,164,148,58,16,53,135,184,98,16,23,111,181,155]
["Y61","EAST OF ENGLAND COMMISSIONING REGION","QM7","NHS HERTFORDSHIRE AND WEST ESSEX ICB - 07H","RWR","HERTFORDSHIRE PARTNERSHIP UNIVERSITY NHS FOUNDATION TRUST","Mental Health & Learning Disability and Mental Health, Learning Disability & Community Trusts",962,4182,7.2098059598059594,15,85,282,415,169,10,57,213,415,267,11,32,197,369,356]
["Y61","EAST OF ENGLAND COMMISSIONING REGION","QMM","NHS NORFOLK AND WAVENEY ICB - 26A","RY3","NORFOLK COMMUNITY HEALTH AND CARE NHS TRUST","Community Trusts",510,2474,7.3251633986928111,7,52,155,216,80,1,26,102,231,150,2,14,82,196,216]
["Y61","EAST OF ENGLAND COMMISSIONING REGION","QM7","NHS HERTFORDSHIRE AND WEST ESSEX ICB - 07H","RY4","HERTFORDSHIRE COMMUNITY NHS TRUST","Community Trusts",264,2422,7.4621212121212119,3,34,62,120,45,0,19,57,99,89,1,7,35,81,140]
["Y61","EAST OF ENGLAND COMMISSIONING REGION","QUE","NHS CAMBRIDGESHIRE AND PETERBOROUGH ICB - 06H","RYC","EAST OF ENGLAND AMBULANCE SERVICE NHS TRUST","Ambulance Trusts",1482,6007,6.2848627980206926,75,206,504,535,169,42,147,406,558,329,68,145,493,510,268]
["Y61","EAST OF ENGLAND COMMISSIONING REGION","QUE","NHS CAMBRIDGESHIRE AND PETERBOROUGH ICB - 06H","RYV","CAMBRIDGESHIRE COMMUNITY SERVICES NHS TRUST","Community Trusts",41,2637,6.9105691056910565,2,5,16,12,6,1,4,11,14,11,0,0,9,15,17]
["Y62","NORTH WEST COMMISSIONING REGION","QOP","NHS GREATER MANCHESTER ICB - 00T","R0A","MANCHESTER UNIVERSITY NHS FOUNDATION TRUST","Acute and Acute & Community Trusts",3328,29187,6.7152443910256405,161,479,1124,1179,440,86,288,829,1358,773,88,174,771,1214,1081]
["Y62","NORTH WEST COMMISSIONING REGION","QYG","NHS CHESHIRE AND MERSEYSIDE ICB - 01J","RBL","WIRRAL UNIVERSITY TEACHING HOSPITAL NHS FOUNDATION TRUST","Acute and Acute & Community Trusts",748,6784,6.7390819964349369,41,120,260,232,95,19,63,190,263,213,22,44,144,235,303]
["Y62","NORTH WEST COMMISSIONING REGION","QYG","NHS CHESHIRE AND MERSEYSIDE ICB - 01J","RBN","MERSEY AND WEST LANCASHIRE TEACHING HOSPITALS NHS TRUST","Acute and Acute & Community Trusts",196,10855,6.5518707482993204,19,24,66,62,25,9,18,46,56,67,9,13,47,62,65]
["Y62","NORTH WEST COMMISSIONING REGION","QYG","NHS CHESHIRE AND MERSEYSIDE ICB - 01J","RBQ","LIVERPOOL HEART AND CHEST HOSPITAL NHS FOUNDATION TRUST","Acute Specialist Trusts",166,1952,7.0632530120481931,5,19,49,61,32,3,12,33,67,51,2,7,44,51,62]
["Y62","NORTH WEST COMMISSIONING REGION","QYG","NHS CHESHIRE AND MERSEYSIDE ICB - 01J","RBT","MID CHESHIRE HOSPITALS NHS FOUNDATION TRUST","Acute and Acute & Community Trusts",807,5629,6.9826517967781907,33,96,271,288,119,15,57,178,315,242,19,33,158,279,318]
["Y62","NORTH WEST COMMISSIONING REGION","QOP","NHS GREATER MANCHESTER ICB - 00T","RBV","THE CHRISTIE NHS FOUNDATION TRUST","Acute Specialist Trusts",112,3633,6.6666666666666661,6,20,32,37,17,1,11,31,43,26,4,8,22,37,41]
["Y62","NORTH WEST COMMISSIONING REGION","QYG","NHS CHESHIRE AND MERSEYSIDE ICB - 01J","REM","LIVERPOOL UNIVERSITY HOSPITALS NHS FOUNDATION TRUST","Acute and Acute & Community Trusts",1341,15194,6.3037534178473784,98,250,466,384,143,62,145,387,450,297,51,93,305,490,402]
["Y62","NORTH WEST COMMISSIONING REGION","QYG","NHS CHESHIRE AND MERSEYSIDE ICB - 01J","REN","THE CLATTERBRIDGE CANCER CENTRE NHS FOUNDATION TRUST","Acute Specialist Trusts",547,1840,6.98659354052407,16,59,136,264,72,6,46,83,300,112,9,37,73,280,148]
["Y62","NORTH WEST COMMISSIONING REGION","QYG","NHS CHESHIRE AND MERSEYSIDE ICB - 01J","REP","LIVERPOOL WOMEN'S NHS FOUNDATION TRUST","Acute Specialist Trusts",82,1803,6.8902439024390247,6,7,22,36,11,5,2,20,33,22,4,3,12,33,30]
["Y62","NORTH WEST COMMISSIONING REGION","QYG","NHS CHESHIRE AND MERSEYSIDE ICB - 01J","RET","THE WALTON CENTRE NHS FOUNDATION TRUST","Acute Specialist Trusts",104,1573,7.1955128205128212,2,11,29,46,16,0,12,17,45,30,0,7,18,33,46]
["Y62","NORTH WEST COMMISSIONING REGION","QYG","NHS CHESHIRE AND MERSEYSIDE ICB - 01J","RJN","EAST CHESHIRE NHS TRUST","Acute and Acute & Community Trusts",39,2753,6.9444444444444438,0,10,12,10,7,0,4,11,11,13,1,1,6,15,16]
["Y62","NORTH WEST COMMISSIONING REGION","QYG","NHS CHESHIRE AND MERSEYSIDE ICB - 01J","RJR","COUNTESS OF CHESTER HOSPITAL NHS FOUNDATION TRUST","Acute and Acute & Community Trusts",87,4968,6.4176245210727974,7,16,29,27,8,4,8,26,30,19,4,3,16,34,30]
["Y62","NORTH WEST COMMISSIONING REGION","QOP","NHS GREATER MANCHESTER ICB - 00T","RM3","NORTHERN CARE ALLIANCE NHS FOUNDATION TRUST","Acute and Acute & Community Trusts",1514,20832,6.1822985468956411,127,290,513,428,156,79,191,430,508,306,53,123,377,512,449]
["Y62","NORTH WEST COMMISSIONING REGION","QOP","NHS GREATER MANCHESTER ICB - 00T","RMC","BOLTON NHS FOUNDATION TRUST","Acute and Acute & Community Trusts",149,6800,6.4821029082774055,12,25,40,48,24,5,18,42,39,45,8,8,34,57,42]
["Y62","NORTH WEST COMMISSIONING REGION","QOP","NHS GREATER MANCHESTER ICB - 00T","RMP","TAMESIDE AND GLOSSOP INTEGRATED CARE NHS FOUNDATION TRUST","Acute and Acute & Community Trusts",91,4557,6.822344322344323,5,17,33,24,12,1,6,26,31,27,2,2,20,27,40]
["Y62","NORTH WEST COMMISSIONING REGION","QOP","NHS GREATER MANCHESTER ICB - 00T","RRF","WRIGHTINGTON, WIGAN AND LEIGH NHS FOUNDATION TRUST","Acute and Acute & Community Trusts",37,7264,5.9909909909909906,3,8,11,12,3,2,4,13,13,5,1,3,11,14,8]
["Y62","NORTH WEST COMMISSIONING REGION","QOP","NHS GREATER MANCHESTER ICB - 00T","RT2","PENNINE CARE NHS FOUNDATION TRUST","Mental Health & Learning Disability and Mental Health, Learning Disability & Community Trusts",80,4019,6.447916666666667,7,12,18,29,14,4,10,17,26,23,6,8,19,20,27]
["Y62","NORTH WEST COMMISSIONING REGION","QE1","NHS LANCASHIRE AND SOUTH CUMBRIA ICB - 01E","RTX","UNIVERSITY HOSPITALS OF MORECAMBE BAY NHS FOUNDATION TRUST","Acute and Acute & Community Trusts",44,7524,6.3068181818181817,3,5,19,10,7,1,4,17,14,8,2,3,13,13,13]
["Y62","NORTH WEST COMMISSIONING REGION","QYG","NHS CHESHIRE AND MERSEYSIDE ICB - 01J","RW4","MERSEY CARE NHS FOUNDATION TRUST","Mental Health & Learning Disability and Mental Health, Learning Disability & Community Trusts",1362,11102,7.0918991678903565,55,159,422,516,210,25,98,287,524,428,27,60,232,452,591]
["Y62","NORTH WEST COMMISSIONING REGION","QE1","NHS LANCASHIRE AND SOUTH CUMBRIA ICB - 01E","RW5","LANCASHIRE & SOUTH CUMBRIA NHS FOUNDATION TRUST","Mental Health & Learning Disability and Mental Health, Learning Disability & Community Trusts",1195,7660,7.0069735006973506,29,142,405,470,149,13,62,273,505,342,12,46,279,437,421]
["Y62","NORTH WEST COMMISSIONING REGION","QOP","NHS GREATER MANCHESTER ICB - 00T","RWJ","STOCKPORT NHS FOUNDATION TRUST","Acute and Acute & Community Trusts",90,6242,6.3425925925925934,7,21,31,20,11,2,13,23,32,20,4,8,17,23,38]
["Y62","NORTH WEST COMMISSIONING REGION","QYG","NHS CHESHIRE AND MERSEYSIDE ICB - 01J","RWW","WARRINGTON AND HALTON TEACHING HOSPITALS NHS FOUNDATION TRUST","Acute and Acute & Community Trusts",91,4664,6.8498168498168504,2,18,23,36,12,0,11,26,29,25,1,4,19,32,35]
["Y62","NORTH WEST COMMISSIONING REGION","QOP","NHS GREATER MANCHESTER ICB - 00T","RX7","NORTH WEST AMBULANCE SERVICE NHS TRUST","Ambulance Trusts",1116,7179,6.4120370370370372,44,175,367,403,137,23,113,306,439,235,30,108,332,417,229]
["Y62","NORTH WEST COMMISSIONING REGION","QYG","NHS CHESHIRE AND MERSEYSIDE ICB - 01J","RXA","CHESHIRE AND WIRRAL PARTNERSHIP NHS FOUNDATION TRUST","Mental Health & Learning Disability and Mental Health, Learning Disability & Community Trusts",602,4345,7.0819490586932439,16,57,176,279,77,6,33,150,253,160,11,21,120,235,216]
["Y62","NORTH WEST COMMISSIONING REGION","QE1","NHS LANCASHIRE AND SOUTH CUMBRIA ICB - 01E","RXL","BLACKPOOL TEACHING HOSPITALS NHS FOUNDATION TRUST","Acute and Acute & Community Trusts",360,8309,6.833333333333333,16,52,110,143,39,5,26,97,133,99,4,17,92,109,138]
["Y62","NORTH WEST COMMISSIONING REGION","QE1","NHS LANCASHIRE AND SOUTH CUMBRIA ICB - 01E","RXN","LANCASHIRE TEACHING HOSPITALS NHS FOUNDATION TRUST","Acute and Acute & Community Trusts",1507,10291,6.8087812430878127,51,179,554,565,184,24,102,409,654,318,22,72,348,595,472]
["Y62","NORTH WEST COMMISSIONING REGION","QE1","NHS LANCASHIRE AND SOUTH CUMBRIA ICB - 01E","RXR","EAST LANCASHIRE HOSPITALS NHS TRUST","Acute and Acute & Community Trusts",35,10213,6.5,4,6,10,9,6,2,3,12,9,9,1,2,6,12,14]
["Y62","NORTH WEST COMMISSIONING REGION","QOP","NHS GREATER MANCHESTER ICB - 00T","RXV","GREATER MANCHESTER MENTAL HEALTH NHS FOUNDATION TRUST","Mental Health & Learning Disability and Mental Health, Learning Disability & Community Trusts",1498,6861,6.7311971517578995,53,188,558,547,169,29,92,408,645,325,26,81,348,613,430]
["Y62","NORTH WEST COMMISSIONING REGION","QYG","NHS CHESHIRE AND MERSEYSIDE ICB - 01J","RY2","BRIDGEWATER COMMUNITY HEALTHCARE NHS FOUNDATION TRUST","Community Trusts",205,1579,6.9715447154471546,5,28,59,87,26,4,16,46,76,63,3,9,44,77,72]
["Y62","NORTH WEST COMMISSIONING REGION","QYG","NHS CHESHIRE AND MERSEYSIDE ICB - 01J","RY7","WIRRAL COMMUNITY HEALTH AND CARE NHS FOUNDATION TRUST","Community Trusts",354,1757,7.2434086629001877,13,42,100,136,63,4,23,79,137,111,2,15,52,120,165]
["Y63","NORTH EAST AND YORKSHIRE COMMISSIONING REGION","QHM","NHS  NORTH EAST AND NORTH CUMBRIA ICB - 00L","R0B","SOUTH TYNESIDE AND SUNDERLAND NHS FOUNDATION TRUST","Acute and Acute & Community Trusts",160,9548,5.875,20,32,67,27,14,8,23,53,42,34,8,13,44,47,48]
["Y63","NORTH EAST AND YORKSHIRE COMMISSIONING REGION","QWO","NHS WEST YORKSHIRE ICB - 02T","RAE","BRADFORD TEACHING HOSPITALS NHS FOUNDATION TRUST","Acute and Acute & Community Trusts",77,6767,6.5151515151515156,6,11,27,26,7,2,5,21,34,15,1,6,17,30,23]
["Y63","NORTH EAST AND YORKSHIRE COMMISSIONING REGION","QOQ","NHS HUMBER AND NORTH YORKSHIRE ICB - 02Y","RCB","YORK AND SCARBOROUGH TEACHING HOSPITALS NHS FOUNDATION TRUST","Acute and Acute & Community Trusts",318,10211,6.333857442348009,18,68,110,96,26,6,39,90,131,52,7,18,87,99,107]
["Y63","NORTH EAST AND YORKSHIRE COMMISSIONING REGION","QOQ","NHS HUMBER AND NORTH YORKSHIRE ICB - 02Y","RCD","HARROGATE AND DISTRICT NHS FOUNDATION TRUST","Acute and Acute & Community Trusts",1345,5180,7.3333333333333339,36,124,436,533,218,10,60,299,588,388,9,35,204,436,661]
["Y63","NORTH EAST AND YORKSHIRE COMMISSIONING REGION","QWO","NHS WEST YORKSHIRE ICB - 02T","RCF","AIREDALE NHS FOUNDATION TRUST","Acute and Acute & Community Trusts",299,3762,6.5969899665551841,13,59,96,96,35,7,32,81,111,68,8,15,66,98,112]
["Y63","NORTH EAST AND YORKSHIRE COMMISSIONING REGION","QF7","NHS SOUTH YORKSHIRE ICB - 02P","RCU","SHEFFIELD CHILDREN'S NHS FOUNDATION TRUST","Acute and Acute & Community Trusts",427,3944,6.8110850897736146,17,43,151,167,49,9,27,107,183,101,10,16,101,164,136]
["Y63","NORTH EAST AND YORKSHIRE COMMISSIONING REGION","QF7","NHS SOUTH YORKSHIRE ICB - 02P","RFF","BARNSLEY HOSPITAL NHS FOUNDATION TRUST","Acute and Acute & Community Trusts",147,4369,6.9274376417233565,6,21,47,50,23,2,10,36,57,42,2,6,29,60,50]
["Y63","NORTH EAST AND YORKSHIRE COMMISSIONING REGION","QF7","NHS SOUTH YORKSHIRE ICB - 02P","RFR","THE ROTHERHAM NHS FOUNDATION TRUST","Acute and Acute & Community Trusts",62,4865,6.424731182795699,4,13,18,21,6,1,9,15,26,11,2,7,10,18,25]
["Y63","NORTH EAST AND YORKSHIRE COMMISSIONING REGION","QWO","NHS WEST YORKSHIRE ICB - 02T","RGD","LEEDS AND YORK PARTNERSHIP NHS FOUNDATION TRUST","Mental Health & Learning Disability and Mental Health, Learning Disability & Community Trusts",296,3126,7.1903153153153161,7,22,92,133,42,2,14,54,143,83,6,8,55,128,99]
["Y63","NORTH EAST AND YORKSHIRE COMMISSIONING REGION","QF7","NHS SOUTH YORKSHIRE ICB - 02P","RHQ","SHEFFIELD TEACHING HOSPITALS NHS FOUNDATION TRUST","Acute and Acute & Community Trusts",1129,17944,6.3802775317390017,68,212,409,336,104,30,110,331,432,226,31,69,273,421,335]
["Y63","NORTH EAST AND YORKSHIRE COMMISSIONING REGION","QOQ","NHS HUMBER AND NORTH YORKSHIRE ICB - 02Y","RJL","NORTHERN LINCOLNSHIRE AND GOOLE NHS FOUNDATION TRUST","Acute and Acute & Community Trusts",142,7085,5.821596244131455,15,34,46,35,12,10,25,35,43,29,10,12,38,43,39]
["Y63","NORTH EAST AND YORKSHIRE COMMISSIONING REGION","QHM","NHS  NORTH EAST AND NORTH CUMBRIA ICB - 00L","RNN","NORTH CUMBRIA INTEGRATED CARE NHS FOUNDATION TRUST","Acute and Acute & Community Trusts",396,7353,6.2962962962962967,15,77,149,125,30,11,48,117,145,75,11,26,103,151,105]
["Y63","NORTH EAST AND YORKSHIRE COMMISSIONING REGION","QHM","NHS  NORTH EAST AND NORTH CUMBRIA ICB - 00L","RR7","GATESHEAD HEALTH NHS FOUNDATION TRUST","Acute and Acute & Community Trusts",95,5359,6.5087719298245617,7,17,30,30,11,3,9,27,36,20,3,4,18,40,30]
["Y63","NORTH EAST AND YORKSHIRE COMMISSIONING REGION","QWO","NHS WEST YORKSHIRE ICB - 02T","RR8","LEEDS TEACHING HOSPITALS NHS TRUST","Acute and Acute & Community Trusts",1543,20689,6.8060056167638798,63,193,491,604,192,27,100,408,623,385,23,84,353,600,483]
["Y63","NORTH EAST AND YORKSHIRE COMMISSIONING REGION","QHM","NHS  NORTH EAST AND NORTH CUMBRIA ICB - 00L","RTF","NORTHUMBRIA HEALTHCARE NHS FOUNDATION TRUST","Acute and Acute & Community Trusts",4114,9211,7.0484929508993677,133,366,1348,1621,646,53,198,963,1736,1164,59,159,941,1561,1394]
["Y63","NORTH EAST AND YORKSHIRE COMMISSIONING REGION","QHM","NHS  NORTH EAST AND NORTH CUMBRIA ICB - 00L","RVW","NORTH TEES AND HARTLEPOOL NHS FOUNDATION TRUST","Acute and Acute & Community Trusts",51,5934,6.7483660130718954,3,5,19,19,5,4,1,9,23,14,1,1,14,20,15]
["Y63","NORTH EAST AND YORKSHIRE COMMISSIONING REGION","QOQ","NHS HUMBER AND NORTH YORKSHIRE ICB - 02Y","RWA","HULL UNIVERSITY TEACHING HOSPITALS NHS TRUST","Acute and Acute & Community Trusts",1909,9682,6.6836912868866767,78,262,684,687,217,33,138,552,743,443,34,94,523,683,580]
["Y63","NORTH EAST AND YORKSHIRE COMMISSIONING REGION","QWO","NHS WEST YORKSHIRE ICB - 02T","RWY","CALDERDALE AND HUDDERSFIELD NHS FOUNDATION TRUST","Acute and Acute & Community Trusts",282,6698,6.1938534278959816,15,62,98,89,18,4,32,81,119,46,11,26,77,88,80]
["Y63","NORTH EAST AND YORKSHIRE COMMISSIONING REGION","QHM","NHS  NORTH EAST AND NORTH CUMBRIA ICB - 00L","RX3","TEES, ESK AND WEAR VALLEYS NHS FOUNDATION TRUST","Mental Health & Learning Disability and Mental Health, Learning Disability & Community Trusts",823,7998,6.9208181449979742,28,105,248,345,97,8,69,194,342,210,14,41,158,309,301]
["Y63","NORTH EAST AND YORKSHIRE COMMISSIONING REGION","QHM","NHS  NORTH EAST AND NORTH CUMBRIA ICB - 00L","RX4","CUMBRIA, NORTHUMBERLAND, TYNE AND WEAR NHS FOUNDATION TRUST","Mental Health & Learning Disability and Mental Health, Learning Disability & Community Trusts",549,8284,6.8928354584092286,19,73,164,229,64,9,40,115,236,149,10,31,114,212,182]
["Y63","NORTH EAST AND YORKSHIRE COMMISSIONING REGION","QHM","NHS  NORTH EAST AND NORTH CUMBRIA ICB - 00L","RX6","NORTH EAST AMBULANCE SERVICE NHS FOUNDATION TRUST","Ambulance Trusts",66,3264,5.6818181818181817,12,12,14,22,6,6,8,13,23,16,7,8,17,25,9]
["Y63","NORTH EAST AND YORKSHIRE COMMISSIONING REGION","QWO","NHS WEST YORKSHIRE ICB - 02T","RX8","YORKSHIRE AMBULANCE SERVICE NHS TRUST","Ambulance Trusts",919,6251,6.2740297424737026,58,170,280,286,125,30,94,239,325,231,45,95,274,303,202]
["Y63","NORTH EAST AND YORKSHIRE COMMISSIONING REGION","QF7","NHS SOUTH YORKSHIRE ICB - 02P","RXE","ROTHERHAM DONCASTER AND SOUTH HUMBER NHS FOUNDATION TRUST","Mental Health & Learning Disability and Mental Health, Learning Disability & Community Trusts",58,3856,6.1494252873563218,1,14,19,19,5,0,8,22,18,10,2,6,14,25,11]
["Y63","NORTH EAST AND YORKSHIRE COMMISSIONING REGION","QWO","NHS WEST YORKSHIRE ICB - 02T","RXF","MID YORKSHIRE TEACHING NHS TRUST","Acute and Acute & Community Trusts",1762,9757,6.6936246689368142,83,236,605,636,214,44,144,443,706,425,41,104,430,633,558]
["Y63","NORTH EAST AND YORKSHIRE COMMISSIONING REGION","QWO","NHS WEST YORKSHIRE ICB - 02T","RXG","SOUTH WEST YORKSHIRE PARTNERSHIP NHS FOUNDATION TRUST","Mental Health & Learning Disability and Mental Health, Learning Disability & Community Trusts",127,4839,7.0734908136482941,1,9,53,44,20,0,5,44,39,39,0,5,29,50,43]
["Y63","NORTH EAST AND YORKSHIRE COMMISSIONING REGION","QHM","NHS  NORTH EAST AND NORTH CUMBRIA ICB - 00L","RXP","COUNTY DURHAM AND DARLINGTON NHS FOUNDATION TRUST","Acute and Acute & Community Trusts",726,8337,6.5599173553719012,50,117,262,202,95,23,63,212,236,192,24,35,174,230,263]
["Y63","NORTH EAST AND YORKSHIRE COMMISSIONING REGION","QWO","NHS WEST YORKSHIRE ICB - 02T","RY6","LEEDS COMMUNITY HEALTHCARE NHS TRUST","Community Trusts",767,3377,7.0067362016514565,22,79,276,315,82,8,37,191,353,178,9,24,153,303,279]
["Y63","NORTH EAST AND YORKSHIRE COMMISSIONING REGION","QWO","NHS WEST YORKSHIRE ICB - 02T","TAD","BRADFORD DISTRICT CARE NHS FOUNDATION TRUST","Mental Health & Learning Disability and Mental Health, Learning Disability & Community Trusts",371,3287,7.0125786163522008,12,24,58,144,133,22,30,77,148,95,14,33,83,153,88]
["Y63","NORTH EAST AND YORKSHIRE COMMISSIONING REGION","QF7","NHS SOUTH YORKSHIRE ICB - 02P","TAH","SHEFFIELD HEALTH & SOCIAL CARE NHS FOUNDATION TRUST","Mental Health & Learning Disability and Mental Health, Learning Disability & Community Trusts",318,2592,6.1399371069182394,21,60,120,97,20,12,34,101,112,59,9,29,80,125,75]

{"sheet":"BS","index":7,"n_rows":181,"n_cols":41,"rows_kept":181,"cut":false,"hidden":true,"merged":[]}
[null,"Sort","Region (Geography) code","Region (Geography) name","Org code","Org name","STP Code","STP Name","Org Type",null,"Sort Lists:","Sort range…","Sort range…","Region (Geography) Reference Lists:","Code…","Name…","Region (Geography) Linked Lists:","Code…","Name…","STP Reference List:","Code…","Code…","Name…","STP Linked List:","Code…","Name…","Orgs Reference List:","Code…","Code…","Code…","Name…","Type…","Orgs Linked List:","Code…","Name…","Type…","Org Type Reference List:","Type…",null,"Org Type Linked List:","Type…"]
["Engagement Score Breakdown",1,1,1,1,1,1,1,1,null,null,"Region Code","Region Code",null,"Y56","LONDON COMMISSIONING REGION",null,"Y56","LONDON COMMISSIONING REGION",null,"Y60","QNC","NHS STAFFORDSHIRE AND STOKE-ON-TRENT INTEGRATED CARE BOARD",null,"QE1","NHS BATH AND NORTH EAST SOMERSET, SWINDON AND WILTSHIRE INTEGRATED CARE BOARD",null,"Y56","QMF","R1H","BARTS HEALTH NHS TRUST","Acute and Acute & Community Trusts",null,"R0A","AIREDALE NHS FOUNDATION TRUST","Acute and Acute & Community Trusts",null,"Acute",null,null,"Acute and Acute & Community Trusts"]
["All Engagement Scores",1,1,1,1,1,1,1,1,null,null,"Region Name","Region Name",null,"Y58","SOUTH WEST COMMISSIONING REGION",null,"Y58","SOUTH WEST COMMISSIONING REGION",null,"Y58","QT6","NHS CORNWALL AND THE ISLES OF SCILLY INTEGRATED CARE BOARD",null,"QF7","NHS BEDFORDSHIRE, LUTON AND MILTON KEYNES INTEGRATED CARE BOARD",null,"Y56","QMJ","RAL","ROYAL FREE LONDON NHS FOUNDATION TRUST","Acute and Acute & Community Trusts",null,"R0B","AVON AND WILTSHIRE MENTAL HEALTH PARTNERSHIP NHS TRUST","Acute and Acute & Community Trusts",null,"Mental Health",null,null,"Mental Health & Learning Disability and Mental Health, Learning Disability & Community Trusts"]
["Engagement Score",1,1,1,1,1,1,1,1,null,null,"STP Code","STP Code",null,"Y59","SOUTH EAST COMMISSIONING REGION",null,"Y59","SOUTH EAST COMMISSIONING REGION",null,"Y61","QHG","NHS BEDFORDSHIRE, LUTON AND MILTON KEYNES INTEGRATED CARE BOARD",null,"QGH","NHS BIRMINGHAM AND SOLIHULL INTEGRATED CARE BOARD",null,"Y56","QRV","RAN","ROYAL NATIONAL ORTHOPAEDIC HOSPITAL NHS TRUST","Acute Specialist Trusts",null,"R0D","BARNET, ENFIELD AND HARINGEY MENTAL HEALTH NHS TRUST","Acute and Acute & Community Trusts",null,"Ambulance",null,null,"Acute Specialist Trusts"]
["Advocacy",1,1,1,1,1,1,1,1,null,null,"STP Name","STP Name",null,"Y60","MIDLANDS COMMISSIONING REGION",null,"Y60","MIDLANDS COMMISSIONING REGION",null,"Y61","QH8","NHS MID AND SOUTH ESSEX INTEGRATED CARE BOARD",null,"QH8","NHS BLACK COUNTRY INTEGRATED CARE BOARD",null,"Y56","QMJ","RAP","NORTH MIDDLESEX UNIVERSITY HOSPITAL NHS TRUST","Acute and Acute & Community Trusts",null,"R1C","BARNSLEY HOSPITAL NHS FOUNDATION TRUST","Acute and Acute & Community Trusts",null,"Community",null,null,"Community Trusts"]
["Involvement",1,1,1,1,1,1,1,1,null,null,"Org Code","Org Code",null,"Y61","EAST OF ENGLAND COMMISSIONING REGION",null,"Y61","EAST OF ENGLAND COMMISSIONING REGION",null,"Y58","QUY","NHS BRISTOL, NORTH SOMERSET AND SOUTH GLOUCESTERSHIRE INTEGRATED CARE BOARD",null,"QHG","NHS BRISTOL, NORTH SOMERSET AND SOUTH GLOUCESTERSHIRE INTEGRATED CARE BOARD",null,"Y56","QMF","RAT","NORTH EAST LONDON NHS FOUNDATION TRUST","Mental Health & Learning Disability and Mental Health, Learning Disability & Community Trusts",null,"R1D","BARTS HEALTH NHS TRUST","Acute and Acute & Community Trusts",null,null,null,null,"Ambulance Trusts"]
["Motivation",1,1,1,1,1,1,1,1,null,null,"Org Name","Org Name",null,"Y62","NORTH WEST COMMISSIONING REGION",null,"Y62","NORTH WEST COMMISSIONING REGION",null,"Y58","QR1","NHS GLOUCESTERSHIRE INTEGRATED CARE BOARD",null,"QHL","NHS BUCKINGHAMSHIRE, OXFORDSHIRE AND BERKSHIRE WEST INTEGRATED CARE BOARD",null,"Y56","QKK","RJ1","GUY'S AND ST THOMAS' NHS FOUNDATION TRUST","Acute and Acute & Community Trusts",null,"R1F","BERKSHIRE HEALTHCARE NHS FOUNDATION TRUST","Acute and Acute & Community Trusts"]
["Question Breakdown",1,1,1,1,1,1,1,1,null,null,"Org Type","Org Type",null,"Y63","NORTH EAST AND YORKSHIRE COMMISSIONING REGION",null,"Y63","NORTH EAST AND YORKSHIRE COMMISSIONING REGION",null,"Y60","QOC","NHS SHROPSHIRE, TELFORD AND WREKIN INTEGRATED CARE BOARD",null,"QHM","NHS CAMBRIDGESHIRE AND PETERBOROUGH INTEGRATED CARE BOARD",null,"Y56","QKK","RJ2","LEWISHAM AND GREENWICH NHS TRUST","Acute and Acute & Community Trusts",null,"R1H","BIRMINGHAM AND SOLIHULL MENTAL HEALTH NHS FOUNDATION TRUST","Acute and Acute & Community Trusts"]
[null,null,null,null,null,null,null,null,null,null,null,"Total Responses","Total Responses",null,null,null,null,null,null,null,"Y58","QSL","NHS SOMERSET INTEGRATED CARE BOARD",null,"QJ2","NHS CHESHIRE AND MERSEYSIDE INTEGRATED CARE BOARD",null,"Y56","QWE","RJ7","ST GEORGE'S UNIVERSITY HOSPITALS NHS FOUNDATION TRUST","Acute and Acute & Community Trusts",null,"R1L","BIRMINGHAM COMMUNITY HEALTHCARE NHS FOUNDATION TRUST","Acute and Acute & Community Trusts"]
[null,null,null,null,null,null,null,null,null,null,null,"HSCIC Workforce Headcount","HSCIC Workforce Headcount",null,null,null,null,null,null,null,"Y60","QGH","NHS HEREFORDSHIRE AND WORCESTERSHIRE INTEGRATED CARE BOARD",null,"QJG","NHS CORNWALL AND THE ISLES OF SCILLY INTEGRATED CARE BOARD",null,"Y56","QKK","RJZ","KING'S COLLEGE HOSPITAL NHS FOUNDATION TRUST","Acute and Acute & Community Trusts",null,"RA7","BIRMINGHAM WOMEN'S AND CHILDREN'S NHS FOUNDATION TRUST","Acute and Acute & Community Trusts"]
[null,null,null,null,null,null,null,null,null,null,null,"Score","Score",null,null,null,null,null,null,null,"Y59","QXU","NHS SURREY HEARTLANDS INTEGRATED CARE BOARD",null,"QJK","NHS COVENTRY AND WARWICKSHIRE INTEGRATED CARE BOARD",null,"Y56","QMJ","RKE","WHITTINGTON HEALTH NHS TRUST","Acute and Acute & Community Trusts",null,"RA9","BLACK COUNTRY HEALTHCARE NHS FOUNDATION TRUST","Acute and Acute & Community Trusts"]
[null,null,null,null,null,null,null,null,null,null,null,null,null,null,null,null,null,null,null,null,"Y60","QWU","NHS COVENTRY AND WARWICKSHIRE INTEGRATED CARE BOARD",null,"QJM","NHS DERBY AND DERBYSHIRE INTEGRATED CARE BOARD",null,"Y56","QMJ","RNK","TAVISTOCK AND PORTMAN NHS FOUNDATION TRUST","Mental Health & Learning Disability and Mental Health, Learning Disability & Community Trusts",null,"RAE","BLACKPOOL TEACHING HOSPITALS NHS FOUNDATION TRUST","Acute and Acute & Community Trusts"]
[null,null,null,null,null,null,null,null,null,null,null,null,null,null,null,null,null,null,null,null,"Y60","QK1","NHS LEICESTER, LEICESTERSHIRE AND RUTLAND INTEGRATED CARE BOARD",null,"QK1","NHS DEVON INTEGRATED CARE BOARD",null,"Y56","QMJ","RP4","GREAT ORMOND STREET HOSPITAL FOR CHILDREN NHS FOUNDATION TRUST","Acute Specialist Trusts",null,"RAL","BOLTON NHS FOUNDATION TRUST","Acute and Acute & Community Trusts"]
[null,null,null,null,null,null,null,null,null,null,null,null,null,null,null,null,null,null,null,null,"Y63","QOQ","NHS HUMBER AND NORTH YORKSHIRE INTEGRATED CARE BOARD",null,"QKK","NHS DORSET INTEGRATED CARE BOARD",null,"Y56","QMJ","RP6","MOORFIELDS EYE HOSPITAL NHS FOUNDATION TRUST","Acute Specialist Trusts",null,"RAN","BRADFORD DISTRICT CARE NHS FOUNDATION TRUST","Acute and Acute & Community Trusts"]
[null,null,null,null,null,null,null,null,null,null,null,null,null,null,null,null,null,null,null,null,"Y60","QHL","NHS BIRMINGHAM AND SOLIHULL INTEGRATED CARE BOARD",null,"QKS","NHS FRIMLEY INTEGRATED CARE BOARD",null,"Y56","QRV","RPY","THE ROYAL MARSDEN NHS FOUNDATION TRUST","Acute Specialist Trusts",null,"RAP","BRADFORD TEACHING HOSPITALS NHS FOUNDATION TRUST","Acute and Acute & Community Trusts"]
[null,null,null,null,null,null,null,null,null,null,null,null,null,null,null,null,null,null,null,null,"Y60","QPM","NHS NORTHAMPTONSHIRE INTEGRATED CARE BOARD",null,"QM7","NHS GLOUCESTERSHIRE INTEGRATED CARE BOARD",null,"Y56","QMF","RQX","HOMERTON HEALTHCARE NHS FOUNDATION TRUST","Acute and Acute & Community Trusts",null,"RAT","BRIDGEWATER COMMUNITY HEALTHCARE NHS FOUNDATION TRUST","Acute and Acute & Community Trusts"]
[null,null,null,null,null,null,null,null,null,null,null,null,null,null,null,null,null,null,null,null,"Y56","QWE","NHS SOUTH WEST LONDON INTEGRATED CARE BOARD",null,"QMF","NHS GREATER MANCHESTER INTEGRATED CARE BOARD",null,"Y56","QWE","RQY","SOUTH WEST LONDON AND ST GEORGE'S MENTAL HEALTH NHS TRUST","Mental Health & Learning Disability and Mental Health, Learning Disability & Community Trusts",null,"RBD","BUCKINGHAMSHIRE HEALTHCARE NHS TRUST","Acute and Acute & Community Trusts"]
[null,null,null,null,null,null,null,null,null,null,null,null,null,null,null,null,null,null,null,null,"Y62","QE1","NHS LANCASHIRE AND SOUTH CUMBRIA INTEGRATED CARE BOARD",null,"QMJ","NHS HAMPSHIRE AND ISLE OF WIGHT INTEGRATED CARE BOARD",null,"Y56","QMJ","RRP","BARNET, ENFIELD AND HARINGEY MENTAL HEALTH NHS TRUST","Mental Health & Learning Disability and Mental Health, Learning Disability & Community Trusts",null,"RBK","CALDERDALE AND HUDDERSFIELD NHS FOUNDATION TRUST","Acute and Acute & Community Trusts"]
[null,null,null,null,null,null,null,null,null,null,null,null,null,null,null,null,null,null,null,null,"Y61","QJG","NHS SUFFOLK AND NORTH EAST ESSEX INTEGRATED CARE BOARD",null,"QMM","NHS HEREFORDSHIRE AND WORCESTERSHIRE INTEGRATED CARE BOARD",null,"Y56","QKK","RRU","LONDON AMBULANCE SERVICE NHS TRUST","Ambulance Trusts",null,"RBL","CAMBRIDGE UNIVERSITY HOSPITALS NHS FOUNDATION TRUST","Acute and Acute & Community Trusts"]
[null,null,null,null,null,null,null,null,null,null,null,null,null,null,null,null,null,null,null,null,"Y56","QMF","NHS NORTH EAST LONDON INTEGRATED CARE BOARD",null,"QNC","NHS HERTFORDSHIRE AND WEST ESSEX INTEGRATED CARE BOARD",null,"Y56","QMJ","RRV","UNIVERSITY COLLEGE LONDON HOSPITALS NHS FOUNDATION TRUST","Acute and Acute & Community Trusts",null,"RBN","CAMBRIDGESHIRE AND PETERBOROUGH NHS FOUNDATION TRUST","Acute and Acute & Community Trusts"]
[null,null,null,null,null,null,null,null,null,null,null,null,null,null,null,null,null,null,null,null,"Y58","QVV","NHS DORSET INTEGRATED CARE BOARD",null,"QNQ","NHS HUMBER AND NORTH YORKSHIRE INTEGRATED CARE BOARD",null,"Y56","QMJ","RV3","CENTRAL AND NORTH WEST LONDON NHS FOUNDATION TRUST","Mental Health & Learning Disability and Mental Health, Learning Disability & Community Trusts",null,"RBQ","CAMBRIDGESHIRE COMMUNITY SERVICES NHS TRUST","Acute and Acute & Community Trusts"]
[null,null,null,null,null,null,null,null,null,null,null,null,null,null,null,null,null,null,null,null,"Y56","QMJ","NHS NORTH CENTRAL LONDON INTEGRATED CARE BOARD",null,"QNX","NHS KENT AND MEDWAY INTEGRATED CARE BOARD",null,"Y56","QWE","RVR","EPSOM AND ST HELIER UNIVERSITY HOSPITALS NHS TRUST","Acute and Acute & Community Trusts",null,"RBT","CAMDEN AND ISLINGTON NHS FOUNDATION TRUST","Acute and Acute & Community Trusts"]
[null,null,null,null,null,null,null,null,null,null,null,null,null,null,null,null,null,null,null,null,"Y59","QNX","NHS SUSSEX INTEGRATED CARE BOARD",null,"QOC","NHS LANCASHIRE AND SOUTH CUMBRIA INTEGRATED CARE BOARD",null,"Y56","QMF","RWK","EAST LONDON NHS FOUNDATION TRUST","Mental Health & Learning Disability and Mental Health, Learning Disability & Community Trusts",null,"RBV","CENTRAL AND NORTH WEST LONDON NHS FOUNDATION TRUST","Acute and Acute & Community Trusts"]
[null,null,null,null,null,null,null,null,null,null,null,null,null,null,null,null,null,null,null,null,"Y58","QOX","NHS BATH AND NORTH EAST SOMERSET, SWINDON AND WILTSHIRE INTEGRATED CARE BOARD",null,"QOP","NHS LEICESTER, LEICESTERSHIRE AND RUTLAND INTEGRATED CARE BOARD",null,"Y56","QRV","RYJ","IMPERIAL COLLEGE HEALTHCARE NHS TRUST","Acute and Acute & Community Trusts",null,"RCB","CENTRAL LONDON COMMUNITY HEALTHCARE NHS TRUST","Acute and Acute & Community Trusts"]
[null,null,null,null,null,null,null,null,null,null,null,null,null,null,null,null,null,null,null,null,"Y61","QM7","NHS HERTFORDSHIRE AND WEST ESSEX INTEGRATED CARE BOARD",null,"QOQ","NHS LINCOLNSHIRE INTEGRATED CARE BOARD",null,"Y56","QRV","RYX","CENTRAL LONDON COMMUNITY HEALTHCARE NHS TRUST","Community Trusts",null,"RCD","CHESHIRE AND WIRRAL PARTNERSHIP NHS FOUNDATION TRUST","Acute and Acute & Community Trusts"]
[null,null,null,null,null,null,null,null,null,null,null,null,null,null,null,null,null,null,null,null,"Y63","QWO","NHS WEST YORKSHIRE INTEGRATED CARE BOARD",null,"QOX","NHS MID AND SOUTH ESSEX INTEGRATED CARE BOARD",null,"Y56","QMJ","TAF","CAMDEN AND ISLINGTON NHS FOUNDATION TRUST","Mental Health & Learning Disability and Mental Health, Learning Disability & Community Trusts",null,"RCF","CORNWALL PARTNERSHIP NHS FOUNDATION TRUST","Acute and Acute & Community Trusts"]
[null,null,null,null,null,null,null,null,null,null,null,null,null,null,null,null,null,null,null,null,"Y59","QNQ","NHS FRIMLEY INTEGRATED CARE BOARD",null,"QPM","NHS NORFOLK AND WAVENEY INTEGRATED CARE BOARD",null,"Y58","QVV","R0D","UNIVERSITY HOSPITALS DORSET NHS FOUNDATION TRUST","Acute and Acute & Community Trusts",null,"RCU","COUNTESS OF CHESTER HOSPITAL NHS FOUNDATION TRUST","Acute and Acute & Community Trusts"]
[null,null,null,null,null,null,null,null,null,null,null,null,null,null,null,null,null,null,null,null,"Y61","QMM","NHS NORFOLK AND WAVENEY INTEGRATED CARE BOARD",null,"QR1","NHS NORTH CENTRAL LONDON INTEGRATED CARE BOARD",null,"Y58","QUY","RA7","UNIVERSITY HOSPITALS BRISTOL AND WESTON NHS FOUNDATION TRUST","Acute and Acute & Community Trusts",null,"RCX","COUNTY DURHAM AND DARLINGTON NHS FOUNDATION TRUST","Acute and Acute & Community Trusts"]
[null,null,null,null,null,null,null,null,null,null,null,null,null,null,null,null,null,null,null,null,"Y63","QF7","NHS SOUTH YORKSHIRE INTEGRATED CARE BOARD",null,"QRL","NHS NORTH EAST AND NORTH CUMBRIA INTEGRATED CARE BOARD",null,"Y58","QJK","RA9","TORBAY AND SOUTH DEVON NHS FOUNDATION TRUST","Acute and Acute & Community Trusts",null,"RD1","COVENTRY AND WARWICKSHIRE PARTNERSHIP NHS TRUST","Acute and Acute & Community Trusts"]
[null,null,null,null,null,null,null,null,null,null,null,null,null,null,null,null,null,null,null,null,"Y59","QU9","NHS BUCKINGHAMSHIRE, OXFORDSHIRE AND BERKSHIRE WEST INTEGRATED CARE BOARD",null,"QRV","NHS NORTH EAST LONDON INTEGRATED CARE BOARD",null,"Y58","QVV","RBD","DORSET COUNTY HOSPITAL NHS FOUNDATION TRUST","Acute and Acute & Community Trusts",null,"RD8","CUMBRIA, NORTHUMBERLAND, TYNE AND WEAR NHS FOUNDATION TRUST","Acute and Acute & Community Trusts"]
[null,null,null,null,null,null,null,null,null,null,null,null,null,null,null,null,null,null,null,null,"Y56","QRV","NHS NORTH WEST LONDON INTEGRATED CARE BOARD",null,"QSL","NHS NORTH WEST LONDON INTEGRATED CARE BOARD",null,"Y58","QOX","RD1","ROYAL UNITED HOSPITALS BATH NHS FOUNDATION TRUST","Acute and Acute & Community Trusts",null,"RDR","DARTFORD AND GRAVESHAM NHS TRUST","Acute and Acute & Community Trusts"]
[null,null,null,null,null,null,null,null,null,null,null,null,null,null,null,null,null,null,null,null,"Y60","QT1","NHS NOTTINGHAM AND NOTTINGHAMSHIRE INTEGRATED CARE BOARD",null,"QT1","NHS NORTHAMPTONSHIRE INTEGRATED CARE BOARD",null,"Y58","QVV","RDY","DORSET HEALTHCARE UNIVERSITY NHS FOUNDATION TRUST","Mental Health & Learning Disability and Mental Health, Learning Disability & Community Trusts",null,"RDU","DERBYSHIRE COMMUNITY HEALTH SERVICES NHS FOUNDATION TRUST","Acute and Acute & Community Trusts"]
[null,null,null,null,null,null,null,null,null,null,null,null,null,null,null,null,null,null,null,null,"Y59","QKS","NHS KENT AND MEDWAY INTEGRATED CARE BOARD",null,"QT6","NHS NOTTINGHAM AND NOTTINGHAMSHIRE INTEGRATED CARE BOARD",null,"Y58","QT6","REF","ROYAL CORNWALL HOSPITALS NHS TRUST","Acute and Acute & Community Trusts",null,"RDY","DERBYSHIRE HEALTHCARE NHS FOUNDATION TRUST","Acute and Acute & Community Trusts"]
[null,null,null,null,null,null,null,null,null,null,null,null,null,null,null,null,null,null,null,null,"Y58","QJK","NHS DEVON INTEGRATED CARE BOARD",null,"QU9","NHS SHROPSHIRE, TELFORD AND WREKIN INTEGRATED CARE BOARD",null,"Y58","QSL","RH5","SOMERSET NHS FOUNDATION TRUST","Acute and Acute & Community Trusts",null,"REF","DEVON PARTNERSHIP NHS TRUST","Acute and Acute & Community Trusts"]
[null,null,null,null,null,null,null,null,null,null,null,null,null,null,null,null,null,null,null,null,"Y60","QJ2","NHS DERBY AND DERBYSHIRE INTEGRATED CARE BOARD",null,"QUA","NHS SOMERSET INTEGRATED CARE BOARD",null,"Y58","QJK","RH8","ROYAL DEVON UNIVERSITY HEALTHCARE NHS FOUNDATION TRUST","Acute and Acute & Community Trusts",null,"REM","DORSET COUNTY HOSPITAL NHS FOUNDATION TRUST","Acute and Acute & Community Trusts"]
[null,null,null,null,null,null,null,null,null,null,null,null,null,null,null,null,null,null,null,null,"Y60","QJM","NHS LINCOLNSHIRE INTEGRATED CARE BOARD",null,"QUE","NHS SOUTH EAST LONDON INTEGRATED CARE BOARD",null,"Y58","QT6","RJ8","CORNWALL PARTNERSHIP NHS FOUNDATION TRUST","Mental Health & Learning Disability and Mental Health, Learning Disability & Community Trusts",null,"REN","DORSET HEALTHCARE UNIVERSITY NHS FOUNDATION TRUST","Acute and Acute & Community Trusts"]
[null,null,null,null,null,null,null,null,null,null,null,null,null,null,null,null,null,null,null,null,"Y60","QUA","NHS BLACK COUNTRY INTEGRATED CARE BOARD",null,"QUY","NHS SOUTH WEST LONDON INTEGRATED CARE BOARD",null,"Y58","QJK","RK9","UNIVERSITY HOSPITALS PLYMOUTH NHS TRUST","Acute and Acute & Community Trusts",null,"REP","DUDLEY INTEGRATED HEALTH AND CARE NHS TRUST","Acute and Acute & Community Trusts"]
[null,null,null,null,null,null,null,null,null,null,null,null,null,null,null,null,null,null,null,null,"Y56","QKK","NHS SOUTH EAST LONDON INTEGRATED CARE BOARD",null,"QVV","NHS SOUTH YORKSHIRE INTEGRATED CARE BOARD",null,"Y58","QOX","RN3","GREAT WESTERN HOSPITALS NHS FOUNDATION TRUST","Acute and Acute & Community Trusts",null,"RET","EAST CHESHIRE NHS TRUST","Acute and Acute & Community Trusts"]
[null,null,null,null,null,null,null,null,null,null,null,null,null,null,null,null,null,null,null,null,"Y61","QUE","NHS CAMBRIDGESHIRE AND PETERBOROUGH INTEGRATED CARE BOARD",null,"QWE","NHS STAFFORDSHIRE AND STOKE-ON-TRENT INTEGRATED CARE BOARD",null,"Y58","QR1","RTE","GLOUCESTERSHIRE HOSPITALS NHS FOUNDATION TRUST","Acute and Acute & Community Trusts",null,"RFF","EAST KENT HOSPITALS UNIVERSITY NHS FOUNDATION TRUST","Acute and Acute & Community Trusts"]
[null,null,null,null,null,null,null,null,null,null,null,null,null,null,null,null,null,null,null,null,"Y59","QRL","NHS HAMPSHIRE AND ISLE OF WIGHT INTEGRATED CARE BOARD",null,"QWO","NHS SUFFOLK AND NORTH EAST ESSEX INTEGRATED CARE BOARD",null,"Y58","QR1","RTQ","GLOUCESTERSHIRE HEALTH AND CARE NHS FOUNDATION TRUST","Mental Health & Learning Disability and Mental Health, Learning Disability & Community Trusts",null,"RFR","EAST LANCASHIRE HOSPITALS NHS TRUST","Acute and Acute & Community Trusts"]
[null,null,null,null,null,null,null,null,null,null,null,null,null,null,null,null,null,null,null,null,"Y62","QYG","NHS CHESHIRE AND MERSEYSIDE INTEGRATED CARE BOARD",null,"QWU","NHS SURREY HEARTLANDS INTEGRATED CARE BOARD",null,"Y58","QUY","RVJ","NORTH BRISTOL NHS TRUST","Acute and Acute & Community Trusts",null,"RGD","EAST LONDON NHS FOUNDATION TRUST","Acute and Acute & Community Trusts"]
[null,null,null,null,null,null,null,null,null,null,null,null,null,null,null,null,null,null,null,null,"Y63","QHM","NHS NORTH EAST AND NORTH CUMBRIA INTEGRATED CARE BOARD",null,"QXU","NHS SUSSEX INTEGRATED CARE BOARD",null,"Y58","QOX","RVN","AVON AND WILTSHIRE MENTAL HEALTH PARTNERSHIP NHS TRUST","Mental Health & Learning Disability and Mental Health, Learning Disability & Community Trusts",null,"RGN","EAST MIDLANDS AMBULANCE SERVICE NHS TRUST","Acute and Acute & Community Trusts"]
[null,null,null,null,null,null,null,null,null,null,null,null,null,null,null,null,null,null,null,null,"Y62","QOP","NHS GREATER MANCHESTER INTEGRATED CARE BOARD",null,"QYG","NHS WEST YORKSHIRE INTEGRATED CARE BOARD",null,"Y58","QJK","RWV","DEVON PARTNERSHIP NHS TRUST","Mental Health & Learning Disability and Mental Health, Learning Disability & Community Trusts",null,"RGR","EAST OF ENGLAND AMBULANCE SERVICE NHS TRUST","Acute and Acute & Community Trusts"]
[null,null,null,null,null,null,null,null,null,null,null,null,null,null,null,null,null,null,null,null,null,null,null,null,null,null,null,"Y59","QRL","R1C","SOLENT NHS TRUST","Mental Health & Learning Disability and Mental Health, Learning Disability & Community Trusts",null,"RGT","EAST SUSSEX HEALTHCARE NHS TRUST","Acute and Acute & Community Trusts"]
[null,null,null,null,null,null,null,null,null,null,null,null,null,null,null,null,null,null,null,null,null,null,null,null,null,null,null,"Y59","QRL","R1F","ISLE OF WIGHT NHS TRUST","Acute and Acute & Community Trusts",null,"RH5","EPSOM AND ST HELIER UNIVERSITY HOSPITALS NHS TRUST","Acute and Acute & Community Trusts"]
[null,null,null,null,null,null,null,null,null,null,null,null,null,null,null,null,null,null,null,null,null,null,null,null,null,null,null,"Y59","QNX","RDR","SUSSEX COMMUNITY NHS FOUNDATION TRUST","Community Trusts",null,"RH8","ESSEX PARTNERSHIP UNIVERSITY NHS FOUNDATION TRUST","Acute and Acute & Community Trusts"]
[null,null,null,null,null,null,null,null,null,null,null,null,null,null,null,null,null,null,null,null,null,null,null,null,null,null,null,"Y59","QNQ","RDU","FRIMLEY HEALTH NHS FOUNDATION TRUST","Acute and Acute & Community Trusts",null,"RHA","FRIMLEY HEALTH NHS FOUNDATION TRUST","Acute and Acute & Community Trusts"]
[null,null,null,null,null,null,null,null,null,null,null,null,null,null,null,null,null,null,null,null,null,null,null,null,null,null,null,"Y59","QRL","RHM","UNIVERSITY HOSPITAL SOUTHAMPTON NHS FOUNDATION TRUST","Acute and Acute & Community Trusts",null,"RHM","GATESHEAD HEALTH NHS FOUNDATION TRUST","Acute and Acute & Community Trusts"]
[null,null,null,null,null,null,null,null,null,null,null,null,null,null,null,null,null,null,null,null,null,null,null,null,null,null,null,"Y59","QRL","RHU","PORTSMOUTH HOSPITALS UNIVERSITY NATIONAL HEALTH SERVICE TRUST","Acute and Acute & Community Trusts",null,"RHQ","GEORGE ELIOT HOSPITAL NHS TRUST","Acute and Acute & Community Trusts"]
[null,null,null,null,null,null,null,null,null,null,null,null,null,null,null,null,null,null,null,null,null,null,null,null,null,null,null,"Y59","QU9","RHW","ROYAL BERKSHIRE NHS FOUNDATION TRUST","Acute and Acute & Community Trusts",null,"RHU","GLOUCESTERSHIRE HEALTH AND CARE NHS FOUNDATION TRUST","Acute and Acute & Community Trusts"]
[null,null,null,null,null,null,null,null,null,null,null,null,null,null,null,null,null,null,null,null,null,null,null,null,null,null,null,"Y59","QRL","RN5","HAMPSHIRE HOSPITALS NHS FOUNDATION TRUST","Acute and Acute & Community Trusts",null,"RHW","GLOUCESTERSHIRE HOSPITALS NHS FOUNDATION TRUST","Acute and Acute & Community Trusts"]
[null,null,null,null,null,null,null,null,null,null,null,null,null,null,null,null,null,null,null,null,null,null,null,null,null,null,null,"Y59","QKS","RN7","DARTFORD AND GRAVESHAM NHS TRUST","Acute and Acute & Community Trusts",null,"RJ1","GREAT ORMOND STREET HOSPITAL FOR CHILDREN NHS FOUNDATION TRUST","Acute and Acute & Community Trusts"]
[null,null,null,null,null,null,null,null,null,null,null,null,null,null,null,null,null,null,null,null,null,null,null,null,null,null,null,"Y59","QU9","RNU","OXFORD HEALTH NHS FOUNDATION TRUST","Mental Health & Learning Disability and Mental Health, Learning Disability & Community Trusts",null,"RJ2","GREAT WESTERN HOSPITALS NHS FOUNDATION TRUST","Acute and Acute & Community Trusts"]
[null,null,null,null,null,null,null,null,null,null,null,null,null,null,null,null,null,null,null,null,null,null,null,null,null,null,null,"Y59","QKS","RPA","MEDWAY NHS FOUNDATION TRUST","Acute and Acute & Community Trusts",null,"RJ7","GREATER MANCHESTER MENTAL HEALTH NHS FOUNDATION TRUST","Acute and Acute & Community Trusts"]
[null,null,null,null,null,null,null,null,null,null,null,null,null,null,null,null,null,null,null,null,null,null,null,null,null,null,null,"Y59","QNX","RPC","QUEEN VICTORIA HOSPITAL NHS FOUNDATION TRUST","Acute Specialist Trusts",null,"RJ8","GUY'S AND ST THOMAS' NHS FOUNDATION TRUST","Acute and Acute & Community Trusts"]
[null,null,null,null,null,null,null,null,null,null,null,null,null,null,null,null,null,null,null,null,null,null,null,null,null,null,null,"Y59","QU9","RTH","OXFORD UNIVERSITY HOSPITALS NHS FOUNDATION TRUST","Acute and Acute & Community Trusts",null,"RJC","HAMPSHIRE HOSPITALS NHS FOUNDATION TRUST","Acute and Acute & Community Trusts"]
[null,null,null,null,null,null,null,null,null,null,null,null,null,null,null,null,null,null,null,null,null,null,null,null,null,null,null,"Y59","QKS","RVV","EAST KENT HOSPITALS UNIVERSITY NHS FOUNDATION TRUST","Acute and Acute & Community Trusts",null,"RJE","HARROGATE AND DISTRICT NHS FOUNDATION TRUST","Acute and Acute & Community Trusts"]
[null,null,null,null,null,null,null,null,null,null,null,null,null,null,null,null,null,null,null,null,null,null,null,null,null,null,null,"Y59","QRL","RW1","SOUTHERN HEALTH NHS FOUNDATION TRUST","Mental Health & Learning Disability and Mental Health, Learning Disability & Community Trusts",null,"RJL","HERTFORDSHIRE COMMUNITY NHS TRUST","Acute and Acute & Community Trusts"]
[null,null,null,null,null,null,null,null,null,null,null,null,null,null,null,null,null,null,null,null,null,null,null,null,null,null,null,"Y59","QKS","RWF","MAIDSTONE AND TUNBRIDGE WELLS NHS TRUST","Acute and Acute & Community Trusts",null,"RJN","HERTFORDSHIRE PARTNERSHIP UNIVERSITY NHS FOUNDATION TRUST","Acute and Acute & Community Trusts"]
[null,null,null,null,null,null,null,null,null,null,null,null,null,null,null,null,null,null,null,null,null,null,null,null,null,null,null,"Y59","QNQ","RWX","BERKSHIRE HEALTHCARE NHS FOUNDATION TRUST","Mental Health & Learning Disability and Mental Health, Learning Disability & Community Trusts",null,"RJR","HOMERTON HEALTHCARE NHS FOUNDATION TRUST","Acute and Acute & Community Trusts"]
[null,null,null,null,null,null,null,null,null,null,null,null,null,null,null,null,null,null,null,null,null,null,null,null,null,null,null,"Y59","QNX","RX2","SUSSEX PARTNERSHIP NHS FOUNDATION TRUST","Mental Health & Learning Disability and Mental Health, Learning Disability & Community Trusts",null,"RJZ","HULL UNIVERSITY TEACHING HOSPITALS NHS TRUST","Acute and Acute & Community Trusts"]
[null,null,null,null,null,null,null,null,null,null,null,null,null,null,null,null,null,null,null,null,null,null,null,null,null,null,null,"Y59","QNX","RXC","EAST SUSSEX HEALTHCARE NHS TRUST","Acute and Acute & Community Trusts",null,"RK5","IMPERIAL COLLEGE HEALTHCARE NHS TRUST","Acute and Acute & Community Trusts"]
[null,null,null,null,null,null,null,null,null,null,null,null,null,null,null,null,null,null,null,null,null,null,null,null,null,null,null,"Y59","QU9","RXQ","BUCKINGHAMSHIRE HEALTHCARE NHS TRUST","Acute and Acute & Community Trusts",null,"RK9","ISLE OF WIGHT NHS TRUST","Acute and Acute & Community Trusts"]
[null,null,null,null,null,null,null,null,null,null,null,null,null,null,null,null,null,null,null,null,null,null,null,null,null,null,null,"Y59","QXU","RXX","SURREY AND BORDERS PARTNERSHIP NHS FOUNDATION TRUST","Mental Health & Learning Disability and Mental Health, Learning Disability & Community Trusts",null,"RKB","KENT COMMUNITY HEALTH NHS FOUNDATION TRUST","Acute and Acute & Community Trusts"]
[null,null,null,null,null,null,null,null,null,null,null,null,null,null,null,null,null,null,null,null,null,null,null,null,null,null,null,"Y59","QNX","RYD","SOUTH EAST COAST AMBULANCE SERVICE NHS FOUNDATION TRUST","Ambulance Trusts",null,"RKE","KETTERING GENERAL HOSPITAL NHS FOUNDATION TRUST","Acute and Acute & Community Trusts"]
[null,null,null,null,null,null,null,null,null,null,null,null,null,null,null,null,null,null,null,null,null,null,null,null,null,null,null,"Y59","QU9","RYE","SOUTH CENTRAL AMBULANCE SERVICE NHS FOUNDATION TRUST","Ambulance Trusts",null,"RL4","KING'S COLLEGE HOSPITAL NHS FOUNDATION TRUST","Acute and Acute & Community Trusts"]
[null,null,null,null,null,null,null,null,null,null,null,null,null,null,null,null,null,null,null,null,null,null,null,null,null,null,null,"Y59","QNX","RYR","UNIVERSITY HOSPITALS SUSSEX NHS FOUNDATION TRUST","Acute and Acute & Community Trusts",null,"RLQ","LANCASHIRE & SOUTH CUMBRIA NHS FOUNDATION TRUST","Acute and Acute & Community Trusts"]
[null,null,null,null,null,null,null,null,null,null,null,null,null,null,null,null,null,null,null,null,null,null,null,null,null,null,null,"Y59","QKS","RYY","KENT COMMUNITY HEALTH NHS FOUNDATION TRUST","Community Trusts",null,"RLT","LANCASHIRE TEACHING HOSPITALS NHS FOUNDATION TRUST","Acute and Acute & Community Trusts"]
[null,null,null,null,null,null,null,null,null,null,null,null,null,null,null,null,null,null,null,null,null,null,null,null,null,null,null,"Y60","QOC","R1D","SHROPSHIRE COMMUNITY HEALTH NHS TRUST","Community Trusts",null,"RLY","LEEDS AND YORK PARTNERSHIP NHS FOUNDATION TRUST","Acute and Acute & Community Trusts"]
[null,null,null,null,null,null,null,null,null,null,null,null,null,null,null,null,null,null,null,null,null,null,null,null,null,null,null,"Y60","QUA","RBK","WALSALL HEALTHCARE NHS TRUST","Acute and Acute & Community Trusts",null,"RM1","LEEDS COMMUNITY HEALTHCARE NHS TRUST","Acute and Acute & Community Trusts"]
[null,null,null,null,null,null,null,null,null,null,null,null,null,null,null,null,null,null,null,null,null,null,null,null,null,null,null,"Y60","QT1","RHA","NOTTINGHAMSHIRE HEALTHCARE NHS FOUNDATION TRUST","Mental Health & Learning Disability and Mental Health, Learning Disability & Community Trusts",null,"RM3","LEEDS TEACHING HOSPITALS NHS TRUST","Acute and Acute & Community Trusts"]
[null,null,null,null,null,null,null,null,null,null,null,null,null,null,null,null,null,null,null,null,null,null,null,null,null,null,null,"Y60","QWU","RJC","SOUTH WARWICKSHIRE UNIVERSITY NHS FOUNDATION TRUST","Acute and Acute & Community Trusts",null,"RMC","LEICESTERSHIRE PARTNERSHIP NHS TRUST","Acute and Acute & Community Trusts"]
[null,null,null,null,null,null,null,null,null,null,null,null,null,null,null,null,null,null,null,null,null,null,null,null,null,null,null,"Y60","QNC","RJE","UNIVERSITY HOSPITALS OF NORTH MIDLANDS NHS TRUST","Acute and Acute & Community Trusts",null,"RMP","LEWISHAM AND GREENWICH NHS TRUST","Acute and Acute & Community Trusts"]
[null,null,null,null,null,null,null,null,null,null,null,null,null,null,null,null,null,null,null,null,null,null,null,null,null,null,null,"Y60","QT1","RK5","SHERWOOD FOREST HOSPITALS NHS FOUNDATION TRUST","Acute and Acute & Community Trusts",null,"RMY","LINCOLNSHIRE COMMUNITY HEALTH SERVICES NHS TRUST","Acute and Acute & Community Trusts"]
[null,null,null,null,null,null,null,null,null,null,null,null,null,null,null,null,null,null,null,null,null,null,null,null,null,null,null,"Y60","QWU","RKB","UNIVERSITY HOSPITALS COVENTRY AND WARWICKSHIRE NHS TRUST","Acute and Acute & Community Trusts",null,"RN3","LINCOLNSHIRE PARTNERSHIP NHS FOUNDATION TRUST","Acute and Acute & Community Trusts"]
[null,null,null,null,null,null,null,null,null,null,null,null,null,null,null,null,null,null,null,null,null,null,null,null,null,null,null,"Y60","QUA","RL4","THE ROYAL WOLVERHAMPTON NHS TRUST","Acute and Acute & Community Trusts",null,"RN5","LIVERPOOL HEART AND CHEST HOSPITAL NHS FOUNDATION TRUST","Acute and Acute & Community Trusts"]
[null,null,null,null,null,null,null,null,null,null,null,null,null,null,null,null,null,null,null,null,null,null,null,null,null,null,null,"Y60","QGH","RLQ","WYE VALLEY NHS TRUST","Acute and Acute & Community Trusts",null,"RN7","LIVERPOOL UNIVERSITY HOSPITALS NHS FOUNDATION TRUST","Acute and Acute & Community Trusts"]
[null,null,null,null,null,null,null,null,null,null,null,null,null,null,null,null,null,null,null,null,null,null,null,null,null,null,null,"Y60","QWU","RLT","GEORGE ELIOT HOSPITAL NHS TRUST","Acute and Acute & Community Trusts",null,"RNA","LIVERPOOL WOMEN'S NHS FOUNDATION TRUST","Acute and Acute & Community Trusts"]
[null,null,null,null,null,null,null,null,null,null,null,null,null,null,null,null,null,null,null,null,null,null,null,null,null,null,null,"Y60","QNC","RLY","NORTH STAFFORDSHIRE COMBINED HEALTHCARE NHS TRUST","Mental Health & Learning Disability and Mental Health, Learning Disability & Community Trusts",null,"RNK","LONDON AMBULANCE SERVICE NHS TRUST","Acute and Acute & Community Trusts"]
[null,null,null,null,null,null,null,null,null,null,null,null,null,null,null,null,null,null,null,null,null,null,null,null,null,null,null,"Y60","QUA","RNA","THE DUDLEY GROUP NHS FOUNDATION TRUST","Acute and Acute & Community Trusts",null,"RNN","MAIDSTONE AND TUNBRIDGE WELLS NHS TRUST","Acute and Acute & Community Trusts"]
[null,null,null,null,null,null,null,null,null,null,null,null,null,null,null,null,null,null,null,null,null,null,null,null,null,null,null,"Y60","QPM","RNQ","KETTERING GENERAL HOSPITAL NHS FOUNDATION TRUST","Acute and Acute & Community Trusts",null,"RNQ","MANCHESTER UNIVERSITY NHS FOUNDATION TRUST","Acute and Acute & Community Trusts"]
[null,null,null,null,null,null,null,null,null,null,null,null,null,null,null,null,null,null,null,null,null,null,null,null,null,null,null,"Y60","QPM","RNS","NORTHAMPTON GENERAL HOSPITAL NHS TRUST","Acute and Acute & Community Trusts",null,"RNS","MEDWAY NHS FOUNDATION TRUST","Acute and Acute & Community Trusts"]
[null,null,null,null,null,null,null,null,null,null,null,null,null,null,null,null,null,null,null,null,null,null,null,null,null,null,null,"Y60","QPM","RP1","NORTHAMPTONSHIRE HEALTHCARE NHS FOUNDATION TRUST","Mental Health & Learning Disability and Mental Health, Learning Disability & Community Trusts",null,"RNU","MERSEY AND WEST LANCASHIRE TEACHING HOSPITALS NHS TRUST","Acute and Acute & Community Trusts"]
[null,null,null,null,null,null,null,null,null,null,null,null,null,null,null,null,null,null,null,null,null,null,null,null,null,null,null,"Y60","QJM","RP7","LINCOLNSHIRE PARTNERSHIP NHS FOUNDATION TRUST","Mental Health & Learning Disability and Mental Health, Learning Disability & Community Trusts",null,"RP1","MERSEY CARE NHS FOUNDATION TRUST","Acute and Acute & Community Trusts"]
[null,null,null,null,null,null,null,null,null,null,null,null,null,null,null,null,null,null,null,null,null,null,null,null,null,null,null,"Y60","QHL","RQ3","BIRMINGHAM WOMEN'S AND CHILDREN'S NHS FOUNDATION TRUST","Acute and Acute & Community Trusts",null,"RP4","MID CHESHIRE HOSPITALS NHS FOUNDATION TRUST","Acute and Acute & Community Trusts"]
[null,null,null,null,null,null,null,null,null,null,null,null,null,null,null,null,null,null,null,null,null,null,null,null,null,null,null,"Y60","QNC","RRE","MIDLANDS PARTNERSHIP NHS FOUNDATION TRUST","Mental Health & Learning Disability and Mental Health, Learning Disability & Community Trusts",null,"RP6","MID YORKSHIRE TEACHING NHS TRUST","Acute and Acute & Community Trusts"]
[null,null,null,null,null,null,null,null,null,null,null,null,null,null,null,null,null,null,null,null,null,null,null,null,null,null,null,"Y60","QHL","RRJ","THE ROYAL ORTHOPAEDIC HOSPITAL NHS FOUNDATION TRUST","Acute Specialist Trusts",null,"RP7","MIDLANDS PARTNERSHIP NHS FOUNDATION TRUST","Acute and Acute & Community Trusts"]
[null,null,null,null,null,null,null,null,null,null,null,null,null,null,null,null,null,null,null,null,null,null,null,null,null,null,null,"Y60","QHL","RRK","UNIVERSITY HOSPITALS BIRMINGHAM NHS FOUNDATION TRUST","Acute and Acute & Community Trusts",null,"RPA","MILTON KEYNES UNIVERSITY HOSPITAL NHS FOUNDATION TRUST","Acute and Acute & Community Trusts"]
[null,null,null,null,null,null,null,null,null,null,null,null,null,null,null,null,null,null,null,null,null,null,null,null,null,null,null,"Y60","QK1","RT5","LEICESTERSHIRE PARTNERSHIP NHS TRUST","Mental Health & Learning Disability and Mental Health, Learning Disability & Community Trusts",null,"RPC","MOORFIELDS EYE HOSPITAL NHS FOUNDATION TRUST","Acute and Acute & Community Trusts"]
[null,null,null,null,null,null,null,null,null,null,null,null,null,null,null,null,null,null,null,null,null,null,null,null,null,null,null,"Y60","QJ2","RTG","UNIVERSITY HOSPITALS OF DERBY AND BURTON NHS FOUNDATION TRUST","Acute and Acute & Community Trusts",null,"RPY","NORFOLK AND NORWICH UNIVERSITY HOSPITALS NHS FOUNDATION TRUST","Acute and Acute & Community Trusts"]
[null,null,null,null,null,null,null,null,null,null,null,null,null,null,null,null,null,null,null,null,null,null,null,null,null,null,null,"Y60","QJM","RWD","UNITED LINCOLNSHIRE HOSPITALS NHS TRUST","Acute and Acute & Community Trusts",null,"RQ3","NORFOLK AND SUFFOLK NHS FOUNDATION TRUST","Acute and Acute & Community Trusts"]
[null,null,null,null,null,null,null,null,null,null,null,null,null,null,null,null,null,null,null,null,null,null,null,null,null,null,null,"Y60","QGH","RWP","WORCESTERSHIRE ACUTE HOSPITALS NHS TRUST","Acute and Acute & Community Trusts",null,"RQW","NORFOLK COMMUNITY HEALTH AND CARE NHS TRUST","Acute and Acute & Community Trusts"]
[null,null,null,null,null,null,null,null,null,null,null,null,null,null,null,null,null,null,null,null,null,null,null,null,null,null,null,"Y60","QT1","RX1","NOTTINGHAM UNIVERSITY HOSPITALS NHS TRUST","Acute and Acute & Community Trusts",null,"RQX","NORTH BRISTOL NHS TRUST","Acute and Acute & Community Trusts"]
[null,null,null,null,null,null,null,null,null,null,null,null,null,null,null,null,null,null,null,null,null,null,null,null,null,null,null,"Y60","QT1","RX9","EAST MIDLANDS AMBULANCE SERVICE NHS TRUST","Ambulance Trusts",null,"RQY","NORTH CUMBRIA INTEGRATED CARE NHS FOUNDATION TRUST","Acute and Acute & Community Trusts"]
[null,null,null,null,null,null,null,null,null,null,null,null,null,null,null,null,null,null,null,null,null,null,null,null,null,null,null,"Y60","QHL","RXK","SANDWELL AND WEST BIRMINGHAM HOSPITALS NHS TRUST","Acute and Acute & Community Trusts",null,"RR7","NORTH EAST AMBULANCE SERVICE NHS FOUNDATION TRUST","Acute and Acute & Community Trusts"]
[null,null,null,null,null,null,null,null,null,null,null,null,null,null,null,null,null,null,null,null,null,null,null,null,null,null,null,"Y60","QJ2","RXM","DERBYSHIRE HEALTHCARE NHS FOUNDATION TRUST","Mental Health & Learning Disability and Mental Health, Learning Disability & Community Trusts",null,"RR8","NORTH EAST LONDON NHS FOUNDATION TRUST","Acute and Acute & Community Trusts"]
[null,null,null,null,null,null,null,null,null,null,null,null,null,null,null,null,null,null,null,null,null,null,null,null,null,null,null,"Y60","QHL","RXT","BIRMINGHAM AND SOLIHULL MENTAL HEALTH NHS FOUNDATION TRUST","Mental Health & Learning Disability and Mental Health, Learning Disability & Community Trusts",null,"RRE","NORTH MIDDLESEX UNIVERSITY HOSPITAL NHS TRUST","Acute and Acute & Community Trusts"]
[null,null,null,null,null,null,null,null,null,null,null,null,null,null,null,null,null,null,null,null,null,null,null,null,null,null,null,"Y60","QOC","RXW","THE SHREWSBURY AND TELFORD HOSPITAL NHS TRUST","Acute and Acute & Community Trusts",null,"RRF","NORTH STAFFORDSHIRE COMBINED HEALTHCARE NHS TRUST","Acute and Acute & Community Trusts"]
[null,null,null,null,null,null,null,null,null,null,null,null,null,null,null,null,null,null,null,null,null,null,null,null,null,null,null,"Y60","QJM","RY5","LINCOLNSHIRE COMMUNITY HEALTH SERVICES NHS TRUST","Community Trusts",null,"RRJ","NORTH TEES AND HARTLEPOOL NHS FOUNDATION TRUST","Acute and Acute & Community Trusts"]
[null,null,null,null,null,null,null,null,null,null,null,null,null,null,null,null,null,null,null,null,null,null,null,null,null,null,null,"Y60","QJ2","RY8","DERBYSHIRE COMMUNITY HEALTH SERVICES NHS FOUNDATION TRUST","Community Trusts",null,"RRK","NORTH WEST AMBULANCE SERVICE NHS TRUST","Acute and Acute & Community Trusts"]
[null,null,null,null,null,null,null,null,null,null,null,null,null,null,null,null,null,null,null,null,null,null,null,null,null,null,null,"Y60","QUA","RYA","WEST MIDLANDS AMBULANCE SERVICE UNIVERSITY NHS FOUNDATION TRUST","Ambulance Trusts",null,"RRP","NORTH WEST ANGLIA NHS FOUNDATION TRUST","Acute and Acute & Community Trusts"]
[null,null,null,null,null,null,null,null,null,null,null,null,null,null,null,null,null,null,null,null,null,null,null,null,null,null,null,"Y60","QWU","RYG","COVENTRY AND WARWICKSHIRE PARTNERSHIP NHS TRUST","Mental Health & Learning Disability and Mental Health, Learning Disability & Community Trusts",null,"RRU","NORTHAMPTON GENERAL HOSPITAL NHS TRUST","Acute and Acute & Community Trusts"]
[null,null,null,null,null,null,null,null,null,null,null,null,null,null,null,null,null,null,null,null,null,null,null,null,null,null,null,"Y60","QUA","RYK","DUDLEY INTEGRATED HEALTH AND CARE NHS TRUST","Community Trusts",null,"RRV","NORTHAMPTONSHIRE HEALTHCARE NHS FOUNDATION TRUST","Acute Specialist Trusts"]
[null,null,null,null,null,null,null,null,null,null,null,null,null,null,null,null,null,null,null,null,null,null,null,null,null,null,null,"Y60","QHL","RYW","BIRMINGHAM COMMUNITY HEALTHCARE NHS FOUNDATION TRUST","Community Trusts",null,"RT1","NORTHERN CARE ALLIANCE NHS FOUNDATION TRUST","Acute Specialist Trusts"]
[null,null,null,null,null,null,null,null,null,null,null,null,null,null,null,null,null,null,null,null,null,null,null,null,null,null,null,"Y60","QUA","TAJ","BLACK COUNTRY HEALTHCARE NHS FOUNDATION TRUST","Mental Health & Learning Disability and Mental Health, Learning Disability & Community Trusts",null,"RT2","NORTHERN LINCOLNSHIRE AND GOOLE NHS FOUNDATION TRUST","Acute Specialist Trusts"]
[null,null,null,null,null,null,null,null,null,null,null,null,null,null,null,null,null,null,null,null,null,null,null,null,null,null,null,"Y61","QH8","R1L","ESSEX PARTNERSHIP UNIVERSITY NHS FOUNDATION TRUST","Mental Health & Learning Disability and Mental Health, Learning Disability & Community Trusts",null,"RT5","NORTHUMBRIA HEALTHCARE NHS FOUNDATION TRUST","Acute Specialist Trusts"]
[null,null,null,null,null,null,null,null,null,null,null,null,null,null,null,null,null,null,null,null,null,null,null,null,null,null,null,"Y61","QMM","RCX","THE QUEEN ELIZABETH HOSPITAL, KING'S LYNN, NHS FOUNDATION TRUST","Acute and Acute & Community Trusts",null,"RTE","NOTTINGHAM UNIVERSITY HOSPITALS NHS TRUST","Acute Specialist Trusts"]
[null,null,null,null,null,null,null,null,null,null,null,null,null,null,null,null,null,null,null,null,null,null,null,null,null,null,null,"Y61","QHG","RD8","MILTON KEYNES UNIVERSITY HOSPITAL NHS FOUNDATION TRUST","Acute and Acute & Community Trusts",null,"RTF","NOTTINGHAMSHIRE HEALTHCARE NHS FOUNDATION TRUST","Acute Specialist Trusts"]
[null,null,null,null,null,null,null,null,null,null,null,null,null,null,null,null,null,null,null,null,null,null,null,null,null,null,null,"Y61","QUE","RGN","NORTH WEST ANGLIA NHS FOUNDATION TRUST","Acute and Acute & Community Trusts",null,"RTG","OXFORD HEALTH NHS FOUNDATION TRUST","Acute Specialist Trusts"]
[null,null,null,null,null,null,null,null,null,null,null,null,null,null,null,null,null,null,null,null,null,null,null,null,null,null,null,"Y61","QJG","RGR","WEST SUFFOLK NHS FOUNDATION TRUST","Acute and Acute & Community Trusts",null,"RTH","OXFORD UNIVERSITY HOSPITALS NHS FOUNDATION TRUST","Acute Specialist Trusts"]
[null,null,null,null,null,null,null,null,null,null,null,null,null,null,null,null,null,null,null,null,null,null,null,null,null,null,null,"Y61","QUE","RGT","CAMBRIDGE UNIVERSITY HOSPITALS NHS FOUNDATION TRUST","Acute and Acute & Community Trusts",null,"RTQ","PENNINE CARE NHS FOUNDATION TRUST","Acute Specialist Trusts"]
[null,null,null,null,null,null,null,null,null,null,null,null,null,null,null,null,null,null,null,null,null,null,null,null,null,null,null,"Y61","QMM","RM1","NORFOLK AND NORWICH UNIVERSITY HOSPITALS NHS FOUNDATION TRUST","Acute and Acute & Community Trusts",null,"RTX","PORTSMOUTH HOSPITALS UNIVERSITY NATIONAL HEALTH SERVICE TRUST","Acute Specialist Trusts"]
[null,null,null,null,null,null,null,null,null,null,null,null,null,null,null,null,null,null,null,null,null,null,null,null,null,null,null,"Y61","QMM","RMY","NORFOLK AND SUFFOLK NHS FOUNDATION TRUST","Mental Health & Learning Disability and Mental Health, Learning Disability & Community Trusts",null,"RV3","QUEEN VICTORIA HOSPITAL NHS FOUNDATION TRUST","Acute Specialist Trusts"]
[null,null,null,null,null,null,null,null,null,null,null,null,null,null,null,null,null,null,null,null,null,null,null,null,null,null,null,"Y61","QM7","RQW","THE PRINCESS ALEXANDRA HOSPITAL NHS TRUST","Acute and Acute & Community Trusts",null,"RVJ","ROTHERHAM DONCASTER AND SOUTH HUMBER NHS FOUNDATION TRUST","Ambulance Trusts"]
[null,null,null,null,null,null,null,null,null,null,null,null,null,null,null,null,null,null,null,null,null,null,null,null,null,null,null,"Y61","QUE","RT1","CAMBRIDGESHIRE AND PETERBOROUGH NHS FOUNDATION TRUST","Mental Health & Learning Disability and Mental Health, Learning Disability & Community Trusts",null,"RVN","ROYAL BERKSHIRE NHS FOUNDATION TRUST","Ambulance Trusts"]
[null,null,null,null,null,null,null,null,null,null,null,null,null,null,null,null,null,null,null,null,null,null,null,null,null,null,null,"Y61","QM7","RWG","WEST HERTFORDSHIRE TEACHING HOSPITALS NHS TRUST","Acute and Acute & Community Trusts",null,"RVR","ROYAL CORNWALL HOSPITALS NHS TRUST","Ambulance Trusts"]
[null,null,null,null,null,null,null,null,null,null,null,null,null,null,null,null,null,null,null,null,null,null,null,null,null,null,null,"Y61","QM7","RWR","HERTFORDSHIRE PARTNERSHIP UNIVERSITY NHS FOUNDATION TRUST","Mental Health & Learning Disability and Mental Health, Learning Disability & Community Trusts",null,"RVV","ROYAL DEVON UNIVERSITY HEALTHCARE NHS FOUNDATION TRUST","Ambulance Trusts"]
[null,null,null,null,null,null,null,null,null,null,null,null,null,null,null,null,null,null,null,null,null,null,null,null,null,null,null,"Y61","QMM","RY3","NORFOLK COMMUNITY HEALTH AND CARE NHS TRUST","Community Trusts",null,"RVW","ROYAL FREE LONDON NHS FOUNDATION TRUST","Ambulance Trusts"]
[null,null,null,null,null,null,null,null,null,null,null,null,null,null,null,null,null,null,null,null,null,null,null,null,null,null,null,"Y61","QM7","RY4","HERTFORDSHIRE COMMUNITY NHS TRUST","Community Trusts",null,"RW1","ROYAL NATIONAL ORTHOPAEDIC HOSPITAL NHS TRUST","Ambulance Trusts"]
[null,null,null,null,null,null,null,null,null,null,null,null,null,null,null,null,null,null,null,null,null,null,null,null,null,null,null,"Y61","QUE","RYC","EAST OF ENGLAND AMBULANCE SERVICE NHS TRUST","Ambulance Trusts",null,"RW4","ROYAL UNITED HOSPITALS BATH NHS FOUNDATION TRUST","Ambulance Trusts"]
[null,null,null,null,null,null,null,null,null,null,null,null,null,null,null,null,null,null,null,null,null,null,null,null,null,null,null,"Y61","QUE","RYV","CAMBRIDGESHIRE COMMUNITY SERVICES NHS TRUST","Community Trusts",null,"RW5","SANDWELL AND WEST BIRMINGHAM HOSPITALS NHS TRUST","Ambulance Trusts"]
[null,null,null,null,null,null,null,null,null,null,null,null,null,null,null,null,null,null,null,null,null,null,null,null,null,null,null,"Y62","QOP","R0A","MANCHESTER UNIVERSITY NHS FOUNDATION TRUST","Acute and Acute & Community Trusts",null,"RWA","SHEFFIELD CHILDREN'S NHS FOUNDATION TRUST","Ambulance Trusts"]
[null,null,null,null,null,null,null,null,null,null,null,null,null,null,null,null,null,null,null,null,null,null,null,null,null,null,null,"Y62","QYG","RBL","WIRRAL UNIVERSITY TEACHING HOSPITAL NHS FOUNDATION TRUST","Acute and Acute & Community Trusts",null,"RWD","SHEFFIELD HEALTH & SOCIAL CARE NHS FOUNDATION TRUST","Community Trusts"]
[null,null,null,null,null,null,null,null,null,null,null,null,null,null,null,null,null,null,null,null,null,null,null,null,null,null,null,"Y62","QYG","RBN","MERSEY AND WEST LANCASHIRE TEACHING HOSPITALS NHS TRUST","Acute and Acute & Community Trusts",null,"RWF","SHEFFIELD TEACHING HOSPITALS NHS FOUNDATION TRUST","Community Trusts"]
[null,null,null,null,null,null,null,null,null,null,null,null,null,null,null,null,null,null,null,null,null,null,null,null,null,null,null,"Y62","QYG","RBQ","LIVERPOOL HEART AND CHEST HOSPITAL NHS FOUNDATION TRUST","Acute Specialist Trusts",null,"RWG","SHERWOOD FOREST HOSPITALS NHS FOUNDATION TRUST","Community Trusts"]
[null,null,null,null,null,null,null,null,null,null,null,null,null,null,null,null,null,null,null,null,null,null,null,null,null,null,null,"Y62","QYG","RBT","MID CHESHIRE HOSPITALS NHS FOUNDATION TRUST","Acute and Acute & Community Trusts",null,"RWJ","SHROPSHIRE COMMUNITY HEALTH NHS TRUST","Community Trusts"]
[null,null,null,null,null,null,null,null,null,null,null,null,null,null,null,null,null,null,null,null,null,null,null,null,null,null,null,"Y62","QOP","RBV","THE CHRISTIE NHS FOUNDATION TRUST","Acute Specialist Trusts",null,"RWK","SOLENT NHS TRUST","Community Trusts"]
[null,null,null,null,null,null,null,null,null,null,null,null,null,null,null,null,null,null,null,null,null,null,null,null,null,null,null,"Y62","QYG","REM","LIVERPOOL UNIVERSITY HOSPITALS NHS FOUNDATION TRUST","Acute and Acute & Community Trusts",null,"RWP","SOMERSET NHS FOUNDATION TRUST","Community Trusts"]
[null,null,null,null,null,null,null,null,null,null,null,null,null,null,null,null,null,null,null,null,null,null,null,null,null,null,null,"Y62","QYG","REN","THE CLATTERBRIDGE CANCER CENTRE NHS FOUNDATION TRUST","Acute Specialist Trusts",null,"RWR","SOUTH CENTRAL AMBULANCE SERVICE NHS FOUNDATION TRUST","Community Trusts"]
[null,null,null,null,null,null,null,null,null,null,null,null,null,null,null,null,null,null,null,null,null,null,null,null,null,null,null,"Y62","QYG","REP","LIVERPOOL WOMEN'S NHS FOUNDATION TRUST","Acute Specialist Trusts",null,"RWV","SOUTH EAST COAST AMBULANCE SERVICE NHS FOUNDATION TRUST","Community Trusts"]
[null,null,null,null,null,null,null,null,null,null,null,null,null,null,null,null,null,null,null,null,null,null,null,null,null,null,null,"Y62","QYG","RET","THE WALTON CENTRE NHS FOUNDATION TRUST","Acute Specialist Trusts",null,"RWW","SOUTH TYNESIDE AND SUNDERLAND NHS FOUNDATION TRUST","Community Trusts"]
[null,null,null,null,null,null,null,null,null,null,null,null,null,null,null,null,null,null,null,null,null,null,null,null,null,null,null,"Y62","QYG","RJN","EAST CHESHIRE NHS TRUST","Acute and Acute & Community Trusts",null,"RWX","SOUTH WARWICKSHIRE UNIVERSITY NHS FOUNDATION TRUST","Community Trusts"]
[null,null,null,null,null,null,null,null,null,null,null,null,null,null,null,null,null,null,null,null,null,null,null,null,null,null,null,"Y62","QYG","RJR","COUNTESS OF CHESTER HOSPITAL NHS FOUNDATION TRUST","Acute and Acute & Community Trusts",null,"RWY","SOUTH WEST LONDON AND ST GEORGE'S MENTAL HEALTH NHS TRUST","Community Trusts"]
[null,null,null,null,null,null,null,null,null,null,null,null,null,null,null,null,null,null,null,null,null,null,null,null,null,null,null,"Y62","QOP","RM3","NORTHERN CARE ALLIANCE NHS FOUNDATION TRUST","Acute and Acute & Community Trusts",null,"RX1","SOUTH WEST YORKSHIRE PARTNERSHIP NHS FOUNDATION TRUST","Community Trusts"]
[null,null,null,null,null,null,null,null,null,null,null,null,null,null,null,null,null,null,null,null,null,null,null,null,null,null,null,"Y62","QOP","RMC","BOLTON NHS FOUNDATION TRUST","Acute and Acute & Community Trusts",null,"RX2","SOUTHERN HEALTH NHS FOUNDATION TRUST","Community Trusts"]
[null,null,null,null,null,null,null,null,null,null,null,null,null,null,null,null,null,null,null,null,null,null,null,null,null,null,null,"Y62","QOP","RMP","TAMESIDE AND GLOSSOP INTEGRATED CARE NHS FOUNDATION TRUST","Acute and Acute & Community Trusts",null,"RX3","ST GEORGE'S UNIVERSITY HOSPITALS NHS FOUNDATION TRUST","Community Trusts"]
[null,null,null,null,null,null,null,null,null,null,null,null,null,null,null,null,null,null,null,null,null,null,null,null,null,null,null,"Y62","QOP","RRF","WRIGHTINGTON, WIGAN AND LEIGH NHS FOUNDATION TRUST","Acute and Acute & Community Trusts",null,"RX4","STOCKPORT NHS FOUNDATION TRUST","Mental Health & Learning Disability and Mental Health, Learning Disability & Community Trusts"]
[null,null,null,null,null,null,null,null,null,null,null,null,null,null,null,null,null,null,null,null,null,null,null,null,null,null,null,"Y62","QOP","RT2","PENNINE CARE NHS FOUNDATION TRUST","Mental Health & Learning Disability and Mental Health, Learning Disability & Community Trusts",null,"RX6","SURREY AND BORDERS PARTNERSHIP NHS FOUNDATION TRUST","Mental Health & Learning Disability and Mental Health, Learning Disability & Community Trusts"]
[null,null,null,null,null,null,null,null,null,null,null,null,null,null,null,null,null,null,null,null,null,null,null,null,null,null,null,"Y62","QE1","RTX","UNIVERSITY HOSPITALS OF MORECAMBE BAY NHS FOUNDATION TRUST","Acute and Acute & Community Trusts",null,"RX7","SUSSEX COMMUNITY NHS FOUNDATION TRUST","Mental Health & Learning Disability and Mental Health, Learning Disability & Community Trusts"]
[null,null,null,null,null,null,null,null,null,null,null,null,null,null,null,null,null,null,null,null,null,null,null,null,null,null,null,"Y62","QYG","RW4","MERSEY CARE NHS FOUNDATION TRUST","Mental Health & Learning Disability and Mental Health, Learning Disability & Community Trusts",null,"RX8","SUSSEX PARTNERSHIP NHS FOUNDATION TRUST","Mental Health & Learning Disability and Mental Health, Learning Disability & Community Trusts"]
[null,null,null,null,null,null,null,null,null,null,null,null,null,null,null,null,null,null,null,null,null,null,null,null,null,null,null,"Y62","QE1","RW5","LANCASHIRE & SOUTH CUMBRIA NHS FOUNDATION TRUST","Mental Health & Learning Disability and Mental Health, Learning Disability & Community Trusts",null,"RX9","TAMESIDE AND GLOSSOP INTEGRATED CARE NHS FOUNDATION TRUST","Mental Health & Learning Disability and Mental Health, Learning Disability & Community Trusts"]
[null,null,null,null,null,null,null,null,null,null,null,null,null,null,null,null,null,null,null,null,null,null,null,null,null,null,null,"Y62","QOP","RWJ","STOCKPORT NHS FOUNDATION TRUST","Acute and Acute & Community Trusts",null,"RXA","TAVISTOCK AND PORTMAN NHS FOUNDATION TRUST","Mental Health & Learning Disability and Mental Health, Learning Disability & Community Trusts"]
[null,null,null,null,null,null,null,null,null,null,null,null,null,null,null,null,null,null,null,null,null,null,null,null,null,null,null,"Y62","QYG","RWW","WARRINGTON AND HALTON TEACHING HOSPITALS NHS FOUNDATION TRUST","Acute and Acute & Community Trusts",null,"RXC","TEES, ESK AND WEAR VALLEYS NHS FOUNDATION TRUST","Mental Health & Learning Disability and Mental Health, Learning Disability & Community Trusts"]
[null,null,null,null,null,null,null,null,null,null,null,null,null,null,null,null,null,null,null,null,null,null,null,null,null,null,null,"Y62","QOP","RX7","NORTH WEST AMBULANCE SERVICE NHS TRUST","Ambulance Trusts",null,"RXE","THE CHRISTIE NHS FOUNDATION TRUST","Mental Health & Learning Disability and Mental Health, Learning Disability & Community Trusts"]
[null,null,null,null,null,null,null,null,null,null,null,null,null,null,null,null,null,null,null,null,null,null,null,null,null,null,null,"Y62","QYG","RXA","CHESHIRE AND WIRRAL PARTNERSHIP NHS FOUNDATION TRUST","Mental Health & Learning Disability and Mental Health, Learning Disability & Community Trusts",null,"RXF","THE CLATTERBRIDGE CANCER CENTRE NHS FOUNDATION TRUST","Mental Health & Learning Disability and Mental Health, Learning Disability & Community Trusts"]
[null,null,null,null,null,null,null,null,null,null,null,null,null,null,null,null,null,null,null,null,null,null,null,null,null,null,null,"Y62","QE1","RXL","BLACKPOOL TEACHING HOSPITALS NHS FOUNDATION TRUST","Acute and Acute & Community Trusts",null,"RXG","THE DUDLEY GROUP NHS FOUNDATION TRUST","Mental Health & Learning Disability and Mental Health, Learning Disability & Community Trusts"]
[null,null,null,null,null,null,null,null,null,null,null,null,null,null,null,null,null,null,null,null,null,null,null,null,null,null,null,"Y62","QE1","RXN","LANCASHIRE TEACHING HOSPITALS NHS FOUNDATION TRUST","Acute and Acute & Community Trusts",null,"RXK","THE PRINCESS ALEXANDRA HOSPITAL NHS TRUST","Mental Health & Learning Disability and Mental Health, Learning Disability & Community Trusts"]
[null,null,null,null,null,null,null,null,null,null,null,null,null,null,null,null,null,null,null,null,null,null,null,null,null,null,null,"Y62","QE1","RXR","EAST LANCASHIRE HOSPITALS NHS TRUST","Acute and Acute & Community Trusts",null,"RXL","THE QUEEN ELIZABETH HOSPITAL, KING'S LYNN, NHS FOUNDATION TRUST","Mental Health & Learning Disability and Mental Health, Learning Disability & Community Trusts"]
[null,null,null,null,null,null,null,null,null,null,null,null,null,null,null,null,null,null,null,null,null,null,null,null,null,null,null,"Y62","QOP","RXV","GREATER MANCHESTER MENTAL HEALTH NHS FOUNDATION TRUST","Mental Health & Learning Disability and Mental Health, Learning Disability & Community Trusts",null,"RXM","THE ROTHERHAM NHS FOUNDATION TRUST","Mental Health & Learning Disability and Mental Health, Learning Disability & Community Trusts"]
[null,null,null,null,null,null,null,null,null,null,null,null,null,null,null,null,null,null,null,null,null,null,null,null,null,null,null,"Y62","QYG","RY2","BRIDGEWATER COMMUNITY HEALTHCARE NHS FOUNDATION TRUST","Community Trusts",null,"RXN","THE ROYAL MARSDEN NHS FOUNDATION TRUST","Mental Health & Learning Disability and Mental Health, Learning Disability & Community Trusts"]
[null,null,null,null,null,null,null,null,null,null,null,null,null,null,null,null,null,null,null,null,null,null,null,null,null,null,null,"Y62","QYG","RY7","WIRRAL COMMUNITY HEALTH AND CARE NHS FOUNDATION TRUST","Community Trusts",null,"RXP","THE ROYAL ORTHOPAEDIC HOSPITAL NHS FOUNDATION TRUST","Mental Health & Learning Disability and Mental Health, Learning Disability & Community Trusts"]
[null,null,null,null,null,null,null,null,null,null,null,null,null,null,null,null,null,null,null,null,null,null,null,null,null,null,null,"Y63","QHM","R0B","SOUTH TYNESIDE AND SUNDERLAND NHS FOUNDATION TRUST","Acute and Acute & Community Trusts",null,"RXQ","THE ROYAL WOLVERHAMPTON NHS TRUST","Mental Health & Learning Disability and Mental Health, Learning Disability & Community Trusts"]
[null,null,null,null,null,null,null,null,null,null,null,null,null,null,null,null,null,null,null,null,null,null,null,null,null,null,null,"Y63","QWO","RAE","BRADFORD TEACHING HOSPITALS NHS FOUNDATION TRUST","Acute and Acute & Community Trusts",null,"RXR","THE SHREWSBURY AND TELFORD HOSPITAL NHS TRUST","Mental Health & Learning Disability and Mental Health, Learning Disability & Community Trusts"]
[null,null,null,null,null,null,null,null,null,null,null,null,null,null,null,null,null,null,null,null,null,null,null,null,null,null,null,"Y63","QOQ","RCB","YORK AND SCARBOROUGH TEACHING HOSPITALS NHS FOUNDATION TRUST","Acute and Acute & Community Trusts",null,"RXT","THE WALTON CENTRE NHS FOUNDATION TRUST","Mental Health & Learning Disability and Mental Health, Learning Disability & Community Trusts"]
[null,null,null,null,null,null,null,null,null,null,null,null,null,null,null,null,null,null,null,null,null,null,null,null,null,null,null,"Y63","QOQ","RCD","HARROGATE AND DISTRICT NHS FOUNDATION TRUST","Acute and Acute & Community Trusts",null,"RXV","TORBAY AND SOUTH DEVON NHS FOUNDATION TRUST","Mental Health & Learning Disability and Mental Health, Learning Disability & Community Trusts"]
[null,null,null,null,null,null,null,null,null,null,null,null,null,null,null,null,null,null,null,null,null,null,null,null,null,null,null,"Y63","QWO","RCF","AIREDALE NHS FOUNDATION TRUST","Acute and Acute & Community Trusts",null,"RXW","UNITED LINCOLNSHIRE HOSPITALS NHS TRUST","Mental Health & Learning Disability and Mental Health, Learning Disability & Community Trusts"]
[null,null,null,null,null,null,null,null,null,null,null,null,null,null,null,null,null,null,null,null,null,null,null,null,null,null,null,"Y63","QF7","RCU","SHEFFIELD CHILDREN'S NHS FOUNDATION TRUST","Acute and Acute & Community Trusts",null,"RXX","UNIVERSITY COLLEGE LONDON HOSPITALS NHS FOUNDATION TRUST","Mental Health & Learning Disability and Mental Health, Learning Disability & Community Trusts"]
[null,null,null,null,null,null,null,null,null,null,null,null,null,null,null,null,null,null,null,null,null,null,null,null,null,null,null,"Y63","QF7","RFF","BARNSLEY HOSPITAL NHS FOUNDATION TRUST","Acute and Acute & Community Trusts",null,"RY2","UNIVERSITY HOSPITAL SOUTHAMPTON NHS FOUNDATION TRUST","Mental Health & Learning Disability and Mental Health, Learning Disability & Community Trusts"]
[null,null,null,null,null,null,null,null,null,null,null,null,null,null,null,null,null,null,null,null,null,null,null,null,null,null,null,"Y63","QF7","RFR","THE ROTHERHAM NHS FOUNDATION TRUST","Acute and Acute & Community Trusts",null,"RY3","UNIVERSITY HOSPITALS BIRMINGHAM NHS FOUNDATION TRUST","Mental Health & Learning Disability and Mental Health, Learning Disability & Community Trusts"]
[null,null,null,null,null,null,null,null,null,null,null,null,null,null,null,null,null,null,null,null,null,null,null,null,null,null,null,"Y63","QWO","RGD","LEEDS AND YORK PARTNERSHIP NHS FOUNDATION TRUST","Mental Health & Learning Disability and Mental Health, Learning Disability & Community Trusts",null,"RY4","UNIVERSITY HOSPITALS BRISTOL AND WESTON NHS FOUNDATION TRUST","Mental Health & Learning Disability and Mental Health, Learning Disability & Community Trusts"]
[null,null,null,null,null,null,null,null,null,null,null,null,null,null,null,null,null,null,null,null,null,null,null,null,null,null,null,"Y63","QF7","RHQ","SHEFFIELD TEACHING HOSPITALS NHS FOUNDATION TRUST","Acute and Acute & Community Trusts",null,"RY5","UNIVERSITY HOSPITALS COVENTRY AND WARWICKSHIRE NHS TRUST","Mental Health & Learning Disability and Mental Health, Learning Disability & Community Trusts"]
[null,null,null,null,null,null,null,null,null,null,null,null,null,null,null,null,null,null,null,null,null,null,null,null,null,null,null,"Y63","QOQ","RJL","NORTHERN LINCOLNSHIRE AND GOOLE NHS FOUNDATION TRUST","Acute and Acute & Community Trusts",null,"RY6","UNIVERSITY HOSPITALS DORSET NHS FOUNDATION TRUST","Mental Health & Learning Disability and Mental Health, Learning Disability & Community Trusts"]
[null,null,null,null,null,null,null,null,null,null,null,null,null,null,null,null,null,null,null,null,null,null,null,null,null,null,null,"Y63","QHM","RNN","NORTH CUMBRIA INTEGRATED CARE NHS FOUNDATION TRUST","Acute and Acute & Community Trusts",null,"RY7","UNIVERSITY HOSPITALS OF DERBY AND BURTON NHS FOUNDATION TRUST","Mental Health & Learning Disability and Mental Health, Learning Disability & Community Trusts"]
[null,null,null,null,null,null,null,null,null,null,null,null,null,null,null,null,null,null,null,null,null,null,null,null,null,null,null,"Y63","QHM","RR7","GATESHEAD HEALTH NHS FOUNDATION TRUST","Acute and Acute & Community Trusts",null,"RY8","UNIVERSITY HOSPITALS OF MORECAMBE BAY NHS FOUNDATION TRUST","Mental Health & Learning Disability and Mental Health, Learning Disability & Community Trusts"]
[null,null,null,null,null,null,null,null,null,null,null,null,null,null,null,null,null,null,null,null,null,null,null,null,null,null,null,"Y63","QWO","RR8","LEEDS TEACHING HOSPITALS NHS TRUST","Acute and Acute & Community Trusts",null,"RYA","UNIVERSITY HOSPITALS OF NORTH MIDLANDS NHS TRUST","Mental Health & Learning Disability and Mental Health, Learning Disability & Community Trusts"]
[null,null,null,null,null,null,null,null,null,null,null,null,null,null,null,null,null,null,null,null,null,null,null,null,null,null,null,"Y63","QHM","RTF","NORTHUMBRIA HEALTHCARE NHS FOUNDATION TRUST","Acute and Acute & Community Trusts",null,"RYC","UNIVERSITY HOSPITALS PLYMOUTH NHS TRUST","Mental Health & Learning Disability and Mental Health, Learning Disability & Community Trusts"]
[null,null,null,null,null,null,null,null,null,null,null,null,null,null,null,null,null,null,null,null,null,null,null,null,null,null,null,"Y63","QHM","RVW","NORTH TEES AND HARTLEPOOL NHS FOUNDATION TRUST","Acute and Acute & Community Trusts",null,"RYD","UNIVERSITY HOSPITALS SUSSEX NHS FOUNDATION TRUST","Mental Health & Learning Disability and Mental Health, Learning Disability & Community Trusts"]
[null,null,null,null,null,null,null,null,null,null,null,null,null,null,null,null,null,null,null,null,null,null,null,null,null,null,null,"Y63","QOQ","RWA","HULL UNIVERSITY TEACHING HOSPITALS NHS TRUST","Acute and Acute & Community Trusts",null,"RYE","WALSALL HEALTHCARE NHS TRUST","Mental Health & Learning Disability and Mental Health, Learning Disability & Community Trusts"]
[null,null,null,null,null,null,null,null,null,null,null,null,null,null,null,null,null,null,null,null,null,null,null,null,null,null,null,"Y63","QWO","RWY","CALDERDALE AND HUDDERSFIELD NHS FOUNDATION TRUST","Acute and Acute & Community Trusts",null,"RYG","WARRINGTON AND HALTON TEACHING HOSPITALS NHS FOUNDATION TRUST","Mental Health & Learning Disability and Mental Health, Learning Disability & Community Trusts"]
[null,null,null,null,null,null,null,null,null,null,null,null,null,null,null,null,null,null,null,null,null,null,null,null,null,null,null,"Y63","QHM","RX3","TEES, ESK AND WEAR VALLEYS NHS FOUNDATION TRUST","Mental Health & Learning Disability and Mental Health, Learning Disability & Community Trusts",null,"RYJ","WEST HERTFORDSHIRE TEACHING HOSPITALS NHS TRUST","Mental Health & Learning Disability and Mental Health, Learning Disability & Community Trusts"]
[null,null,null,null,null,null,null,null,null,null,null,null,null,null,null,null,null,null,null,null,null,null,null,null,null,null,null,"Y63","QHM","RX4","CUMBRIA, NORTHUMBERLAND, TYNE AND WEAR NHS FOUNDATION TRUST","Mental Health & Learning Disability and Mental Health, Learning Disability & Community Trusts",null,"RYK","WEST MIDLANDS AMBULANCE SERVICE UNIVERSITY NHS FOUNDATION TRUST","Mental Health & Learning Disability and Mental Health, Learning Disability & Community Trusts"]
[null,null,null,null,null,null,null,null,null,null,null,null,null,null,null,null,null,null,null,null,null,null,null,null,null,null,null,"Y63","QHM","RX6","NORTH EAST AMBULANCE SERVICE NHS FOUNDATION TRUST","Ambulance Trusts",null,"RYR","WEST SUFFOLK NHS FOUNDATION TRUST","Mental Health & Learning Disability and Mental Health, Learning Disability & Community Trusts"]
[null,null,null,null,null,null,null,null,null,null,null,null,null,null,null,null,null,null,null,null,null,null,null,null,null,null,null,"Y63","QWO","RX8","YORKSHIRE AMBULANCE SERVICE NHS TRUST","Ambulance Trusts",null,"RYV","WHITTINGTON HEALTH NHS TRUST","Mental Health & Learning Disability and Mental Health, Learning Disability & Community Trusts"]
[null,null,null,null,null,null,null,null,null,null,null,null,null,null,null,null,null,null,null,null,null,null,null,null,null,null,null,"Y63","QF7","RXE","ROTHERHAM DONCASTER AND SOUTH HUMBER NHS FOUNDATION TRUST","Mental Health & Learning Disability and Mental Health, Learning Disability & Community Trusts",null,"RYW","WIRRAL COMMUNITY HEALTH AND CARE NHS FOUNDATION TRUST","Mental Health & Learning Disability and Mental Health, Learning Disability & Community Trusts"]
[null,null,null,null,null,null,null,null,null,null,null,null,null,null,null,null,null,null,null,null,null,null,null,null,null,null,null,"Y63","QWO","RXF","MID YORKSHIRE TEACHING NHS TRUST","Acute and Acute & Community Trusts",null,"RYX","WIRRAL UNIVERSITY TEACHING HOSPITAL NHS FOUNDATION TRUST","Mental Health & Learning Disability and Mental Health, Learning Disability & Community Trusts"]
[null,null,null,null,null,null,null,null,null,null,null,null,null,null,null,null,null,null,null,null,null,null,null,null,null,null,null,"Y63","QWO","RXG","SOUTH WEST YORKSHIRE PARTNERSHIP NHS FOUNDATION TRUST","Mental Health & Learning Disability and Mental Health, Learning Disability & Community Trusts",null,"RYY","WORCESTERSHIRE ACUTE HOSPITALS NHS TRUST","Mental Health & Learning Disability and Mental Health, Learning Disability & Community Trusts"]
[null,null,null,null,null,null,null,null,null,null,null,null,null,null,null,null,null,null,null,null,null,null,null,null,null,null,null,"Y63","QHM","RXP","COUNTY DURHAM AND DARLINGTON NHS FOUNDATION TRUST","Acute and Acute & Community Trusts",null,"TAD","WRIGHTINGTON, WIGAN AND LEIGH NHS FOUNDATION TRUST","Mental Health & Learning Disability and Mental Health, Learning Disability & Community Trusts"]
[null,null,null,null,null,null,null,null,null,null,null,null,null,null,null,null,null,null,null,null,null,null,null,null,null,null,null,"Y63","QWO","RY6","LEEDS COMMUNITY HEALTHCARE NHS TRUST","Community Trusts",null,"TAF","WYE VALLEY NHS TRUST","Mental Health & Learning Disability and Mental Health, Learning Disability & Community Trusts"]
[null,null,null,null,null,null,null,null,null,null,null,null,null,null,null,null,null,null,null,null,null,null,null,null,null,null,null,"Y63","QWO","TAD","BRADFORD DISTRICT CARE NHS FOUNDATION TRUST","Mental Health & Learning Disability and Mental Health, Learning Disability & Community Trusts",null,"TAH","YORK AND SCARBOROUGH TEACHING HOSPITALS NHS FOUNDATION TRUST","Mental Health & Learning Disability and Mental Health, Learning Disability & Community Trusts"]
[null,null,null,null,null,null,null,null,null,null,null,null,null,null,null,null,null,null,null,null,null,null,null,null,null,null,null,"Y63","QF7","TAH","SHEFFIELD HEALTH & SOCIAL CARE NHS FOUNDATION TRUST","Mental Health & Learning Disability and Mental Health, Learning Disability & Community Trusts",null,"TAJ","YORKSHIRE AMBULANCE SERVICE NHS TRUST","Mental Health & Learning Disability and Mental Health, Learning Disability & Community Trusts"]
[null,null,null,null,null,null,null,null,null,null,null,null,null,null,null,null,null,null,null,null,null,null,null,null,null,null,null,null,null,null,null,null,null,null,null,"Mental Health & Learning Disability and Mental Health, Learning Disability & Community Trusts"]